Workbook

Sheet Round 126
A10: IOM is pleased to share with you the latest Displacement Tracking Matrix (DTM) Dataset Round 126, covering the months of April, May and June 2022
C11: During this round of data collection, DTM has identified 1,177,234 internally displaced persons (202,206 households), dispersed across 18 governorates, 105 districts and 2,792 locations in Iraq
D15: You can find in the Summary tab the number of IDPs breakdown by:
D16: Shelter Type
D17: Governorate of Origin
D18: Period and Governorate of Displacement
D19: Period of Displacement
D20: District of Displacement
D22: Dataset
D23: The whole dataset is located under DTM Dataset tab
D25: Other tabs
D26: Period of Displacement includes a chart that shows the number of IDPs by Period of Displacement
D27: Shelter Type is a breakdown chart that shows Shelter Type by Governorate of Displacement

Sheet Summary
A1: Summary
A2: #Districts | B2: =SUMPRODUCT(1/COUNTIF('DTM Dataset'!C4:C2795,'DTM Dataset'!C4:C2795&"")) -> 100
A3: #Locations | B3: =COUNT('DTM Dataset'!A:A) -> 2792
A4: #IDP Households | B4: =SUM('DTM Dataset'!I:I) -> 202206
A5: #Individuals | B5: =SUM('DTM Dataset'!J:J) -> 1177234
A7: Number of IDP individuals by Shelter Type
B8: Shelter Type(in red, classified as critical shelters)
A9: Governorate of Displacement | B9: Camp | C9: Host families | D9: Hotel/Motel or short-term rental | E9: Own Property | F9: Apartment/House (not owned) (habitable) | G9: Apartment/House (not owned) (uninhabitable) | H9: Tent/Caravan/makeshift shelter/mud or block house | I9: Unfinished/Abandoned building | J9: Public Buildings or Collective shelters | K9: Religious building | L9: School building | M9: Other Critical shelter | N9: Unknown shelter type | O9: Total
A10: Al-Anbar | B10: =SUMIF('DTM Dataset'!B:B,A10,'DTM Dataset'!M:M) -> 0 | C10: =SUMIF('DTM Dataset'!B:B,A10,'DTM Dataset'!N:N) -> 2274 | D10: =SUMIF('DTM Dataset'!B:B,A10,'DTM Dataset'!O:O) -> 0 | E10: =SUMIF('DTM Dataset'!B:B,A10,'DTM Dataset'!P:P) -> 300 | F10: =SUMIF('DTM Dataset'!B:B,A10,'DTM Dataset'!Q:Q) -> 10080 | G10: =SUMIF('DTM Dataset'!B:B,A10,'DTM Dataset'!R:R) -> 264 | H10: =SUMIF('DTM Dataset'!B:B,A10,'DTM Dataset'!S:S) -> 15834 | I10: =SUMIF('DTM Dataset'!B:B,A10,'DTM Dataset'!T:T) -> 864 | J10: =SUMIF('DTM Dataset'!B:B,A10,'DTM Dataset'!U:U) -> 4932 | K10: =SUMIF('DTM Dataset'!B:B,A10,'DTM Dataset'!V:V) -> 162 | L10: =SUMIF('DTM Dataset'!B:B,A10,'DTM Dataset'!W:W) -> 12 | M10: =SUMIF('DTM Dataset'!B:B,A10,'DTM Dataset'!X:X) -> 0 | N10: =SUMIF('DTM Dataset'!B:B,B10,'DTM Dataset'!Y:Y) -> 0 | O10: =SUM(B10:N10) -> 34722
A11: Al-Basrah | B11: =SUMIF('DTM Dataset'!B:B,A11,'DTM Dataset'!M:M) -> 0 | C11: =SUMIF('DTM Dataset'!B:B,A11,'DTM Dataset'!N:N) -> 996 | D11: =SUMIF('DTM Dataset'!B:B,A11,'DTM Dataset'!O:O) -> 72 | E11: =SUMIF('DTM Dataset'!B:B,A11,'DTM Dataset'!P:P) -> 492 | F11: =SUMIF('DTM Dataset'!B:B,A11,'DTM Dataset'!Q:Q) -> 3588 | G11: =SUMIF('DTM Dataset'!B:B,A11,'DTM Dataset'!R:R) -> 6 | H11: =SUMIF('DTM Dataset'!B:B,A11,'DTM Dataset'!S:S) -> 150 | I11: =SUMIF('DTM Dataset'!B:B,A11,'DTM Dataset'!T:T) -> 0 | J11: =SUMIF('DTM Dataset'!B:B,A11,'DTM Dataset'!U:U) -> 0 | K11: =SUMIF('DTM Dataset'!B:B,A11,'DTM Dataset'!V:V) -> 0 | L11: =SUMIF('DTM Dataset'!B:B,A11,'DTM Dataset'!W:W) -> 0 | M11: =SUMIF('DTM Dataset'!B:B,A11,'DTM Dataset'!X:X) -> 0 | N11: =SUMIF('DTM Dataset'!B:B,A11,'DTM Dataset'!Y:Y) -> 0 | O11: 5304
A12: Al-Muthanna | B12: =SUMIF('DTM Dataset'!B:B,A12,'DTM Dataset'!M:M) -> 0 | C12: =SUMIF('DTM Dataset'!B:B,A12,'DTM Dataset'!N:N) -> 42 | D12: =SUMIF('DTM Dataset'!B:B,A12,'DTM Dataset'!O:O) -> 0 | E12: =SUMIF('DTM Dataset'!B:B,A12,'DTM Dataset'!P:P) -> 0 | F12: =SUMIF('DTM Dataset'!B:B,A12,'DTM Dataset'!Q:Q) -> 768 | G12: =SUMIF('DTM Dataset'!B:B,A12,'DTM Dataset'!R:R) -> 0 | H12: =SUMIF('DTM Dataset'!B:B,A12,'DTM Dataset'!S:S) -> 0 | I12: =SUMIF('DTM Dataset'!B:B,A12,'DTM Dataset'!T:T) -> 24 | J12: =SUMIF('DTM Dataset'!B:B,A12,'DTM Dataset'!U:U) -> 0 | K12: =SUMIF('DTM Dataset'!B:B,A12,'DTM Dataset'!V:V) -> 12 | L12: =SUMIF('DTM Dataset'!B:B,A12,'DTM Dataset'!W:W) -> 0 | M12: =SUMIF('DTM Dataset'!B:B,A12,'DTM Dataset'!X:X) -> 0 | N12: =SUMIF('DTM Dataset'!B:B,A12,'DTM Dataset'!Y:Y) -> 0 | O12: 846
A13: Al-Najaf | B13: =SUMIF('DTM Dataset'!B:B,A13,'DTM Dataset'!M:M) -> 0 | C13: =SUMIF('DTM Dataset'!B:B,A13,'DTM Dataset'!N:N) -> 0 | D13: =SUMIF('DTM Dataset'!B:B,A13,'DTM Dataset'!O:O) -> 0 | E13: =SUMIF('DTM Dataset'!B:B,A13,'DTM Dataset'!P:P) -> 1464 | F13: =SUMIF('DTM Dataset'!B:B,A13,'DTM Dataset'!Q:Q) -> 6144 | G13: =SUMIF('DTM Dataset'!B:B,A13,'DTM Dataset'!R:R) -> 18 | H13: =SUMIF('DTM Dataset'!B:B,A13,'DTM Dataset'!S:S) -> 0 | I13: =SUMIF('DTM Dataset'!B:B,A13,'DTM Dataset'!T:T) -> 0 | J13: =SUMIF('DTM Dataset'!B:B,A13,'DTM Dataset'!U:U) -> 540 | K13: =SUMIF('DTM Dataset'!B:B,A13,'DTM Dataset'!V:V) -> 0 | L13: =SUMIF('DTM Dataset'!B:B,A13,'DTM Dataset'!W:W) -> 0 | M13: =SUMIF('DTM Dataset'!B:B,A13,'DTM Dataset'!X:X) -> 0 | N13: =SUMIF('DTM Dataset'!B:B,A13,'DTM Dataset'!Y:Y) -> 0 | O13: 8166
A14: Al-Qadissiya | B14: =SUMIF('DTM Dataset'!B:B,A14,'DTM Dataset'!M:M) -> 0 | C14: =SUMIF('DTM Dataset'!B:B,A14,'DTM Dataset'!N:N) -> 6 | D14: =SUMIF('DTM Dataset'!B:B,A14,'DTM Dataset'!O:O) -> 0 | E14: =SUMIF('DTM Dataset'!B:B,A14,'DTM Dataset'!P:P) -> 0 | F14: =SUMIF('DTM Dataset'!B:B,A14,'DTM Dataset'!Q:Q) -> 2718 | G14: =SUMIF('DTM Dataset'!B:B,A14,'DTM Dataset'!R:R) -> 0 | H14: =SUMIF('DTM Dataset'!B:B,A14,'DTM Dataset'!S:S) -> 6 | I14: =SUMIF('DTM Dataset'!B:B,A14,'DTM Dataset'!T:T) -> 18 | J14: =SUMIF('DTM Dataset'!B:B,A14,'DTM Dataset'!U:U) -> 126 | K14: =SUMIF('DTM Dataset'!B:B,A14,'DTM Dataset'!V:V) -> 270 | L14: =SUMIF('DTM Dataset'!B:B,A14,'DTM Dataset'!W:W) -> 0 | M14: =SUMIF('DTM Dataset'!B:B,A14,'DTM Dataset'!X:X) -> 0 | N14: =SUMIF('DTM Dataset'!B:B,A14,'DTM Dataset'!Y:Y) -> 0 | O14: 3144
A15: Al-Sulaymaniyah | B15: =SUMIF('DTM Dataset'!B:B,A15,'DTM Dataset'!M:M) -> 11285 | C15: =SUMIF('DTM Dataset'!B:B,A15,'DTM Dataset'!N:N) -> 0 | D15: =SUMIF('DTM Dataset'!B:B,A15,'DTM Dataset'!O:O) -> 36 | E15: =SUMIF('DTM Dataset'!B:B,A15,'DTM Dataset'!P:P) -> 4896 | F15: =SUMIF('DTM Dataset'!B:B,A15,'DTM Dataset'!Q:Q) -> 116640 | G15: =SUMIF('DTM Dataset'!B:B,A15,'DTM Dataset'!R:R) -> 24 | H15: =SUMIF('DTM Dataset'!B:B,A15,'DTM Dataset'!S:S) -> 36 | I15: =SUMIF('DTM Dataset'!B:B,A15,'DTM Dataset'!T:T) -> 96 | J15: =SUMIF('DTM Dataset'!B:B,A15,'DTM Dataset'!U:U) -> 0 | K15: =SUMIF('DTM Dataset'!B:B,A15,'DTM Dataset'!V:V) -> 12 | L15: =SUMIF('DTM Dataset'!B:B,A15,'DTM Dataset'!W:W) -> 12 | M15: =SUMIF('DTM Dataset'!B:B,A15,'DTM Dataset'!X:X) -> 0 | N15: =SUMIF('DTM Dataset'!B:B,A15,'DTM Dataset'!Y:Y) -> 0 | O15: 133037
A16: Babil | B16: =SUMIF('DTM Dataset'!B:B,A16,'DTM Dataset'!M:M) -> 0 | C16: =SUMIF('DTM Dataset'!B:B,A16,'DTM Dataset'!N:N) -> 462 | D16: =SUMIF('DTM Dataset'!B:B,A16,'DTM Dataset'!O:O) -> 0 | E16: =SUMIF('DTM Dataset'!B:B,A16,'DTM Dataset'!P:P) -> 1746 | F16: =SUMIF('DTM Dataset'!B:B,A16,'DTM Dataset'!Q:Q) -> 13440 | G16: =SUMIF('DTM Dataset'!B:B,A16,'DTM Dataset'!R:R) -> 0 | H16: =SUMIF('DTM Dataset'!B:B,A16,'DTM Dataset'!S:S) -> 450 | I16: =SUMIF('DTM Dataset'!B:B,A16,'DTM Dataset'!T:T) -> 30 | J16: =SUMIF('DTM Dataset'!B:B,A16,'DTM Dataset'!U:U) -> 0 | K16: =SUMIF('DTM Dataset'!B:B,A16,'DTM Dataset'!V:V) -> 0 | L16: =SUMIF('DTM Dataset'!B:B,A16,'DTM Dataset'!W:W) -> 0 | M16: =SUMIF('DTM Dataset'!B:B,A16,'DTM Dataset'!X:X) -> 0 | N16: =SUMIF('DTM Dataset'!B:B,A16,'DTM Dataset'!Y:Y) -> 0 | O16: 16128
A17: Baghdad | B17: =SUMIF('DTM Dataset'!B:B,A17,'DTM Dataset'!M:M) -> 0 | C17: =SUMIF('DTM Dataset'!B:B,A17,'DTM Dataset'!N:N) -> 936 | D17: =SUMIF('DTM Dataset'!B:B,A17,'DTM Dataset'!O:O) -> 0 | E17: =SUMIF('DTM Dataset'!B:B,A17,'DTM Dataset'!P:P) -> 900 | F17: =SUMIF('DTM Dataset'!B:B,A17,'DTM Dataset'!Q:Q) -> 13944 | G17: =SUMIF('DTM Dataset'!B:B,A17,'DTM Dataset'!R:R) -> 840 | H17: =SUMIF('DTM Dataset'!B:B,A17,'DTM Dataset'!S:S) -> 10176 | I17: =SUMIF('DTM Dataset'!B:B,A17,'DTM Dataset'!T:T) -> 132 | J17: =SUMIF('DTM Dataset'!B:B,A17,'DTM Dataset'!U:U) -> 48 | K17: =SUMIF('DTM Dataset'!B:B,A17,'DTM Dataset'!V:V) -> 60 | L17: =SUMIF('DTM Dataset'!B:B,A17,'DTM Dataset'!W:W) -> 66 | M17: =SUMIF('DTM Dataset'!B:B,A17,'DTM Dataset'!X:X) -> 0 | N17: =SUMIF('DTM Dataset'!B:B,A17,'DTM Dataset'!Y:Y) -> 0 | O17: 27102
A18: Diyala | B18: =SUMIF('DTM Dataset'!B:B,A18,'DTM Dataset'!M:M) -> 505 | C18: =SUMIF('DTM Dataset'!B:B,A18,'DTM Dataset'!N:N) -> 3408 | D18: =SUMIF('DTM Dataset'!B:B,A18,'DTM Dataset'!O:O) -> 0 | E18: =SUMIF('DTM Dataset'!B:B,A18,'DTM Dataset'!P:P) -> 570 | F18: =SUMIF('DTM Dataset'!B:B,A18,'DTM Dataset'!Q:Q) -> 43050 | G18: =SUMIF('DTM Dataset'!B:B,A18,'DTM Dataset'!R:R) -> 1956 | H18: =SUMIF('DTM Dataset'!B:B,A18,'DTM Dataset'!S:S) -> 0 | I18: =SUMIF('DTM Dataset'!B:B,A18,'DTM Dataset'!T:T) -> 306 | J18: =SUMIF('DTM Dataset'!B:B,A18,'DTM Dataset'!U:U) -> 0 | K18: =SUMIF('DTM Dataset'!B:B,A18,'DTM Dataset'!V:V) -> 0 | L18: =SUMIF('DTM Dataset'!B:B,A18,'DTM Dataset'!W:W) -> 0 | M18: =SUMIF('DTM Dataset'!B:B,A18,'DTM Dataset'!X:X) -> 0 | N18: =SUMIF('DTM Dataset'!B:B,A18,'DTM Dataset'!Y:Y) -> 0 | O18: 49795
A19: Duhok | B19: =SUMIF('DTM Dataset'!B:B,A19,'DTM Dataset'!M:M) -> 109955 | C19: =SUMIF('DTM Dataset'!B:B,A19,'DTM Dataset'!N:N) -> 0 | D19: =SUMIF('DTM Dataset'!B:B,A19,'DTM Dataset'!O:O) -> 72 | E19: =SUMIF('DTM Dataset'!B:B,A19,'DTM Dataset'!P:P) -> 8640 | F19: =SUMIF('DTM Dataset'!B:B,A19,'DTM Dataset'!Q:Q) -> 110304 | G19: =SUMIF('DTM Dataset'!B:B,A19,'DTM Dataset'!R:R) -> 0 | H19: =SUMIF('DTM Dataset'!B:B,A19,'DTM Dataset'!S:S) -> 12330 | I19: =SUMIF('DTM Dataset'!B:B,A19,'DTM Dataset'!T:T) -> 7776 | J19: =SUMIF('DTM Dataset'!B:B,A19,'DTM Dataset'!U:U) -> 36 | K19: =SUMIF('DTM Dataset'!B:B,A19,'DTM Dataset'!V:V) -> 0 | L19: =SUMIF('DTM Dataset'!B:B,A19,'DTM Dataset'!W:W) -> 0 | M19: =SUMIF('DTM Dataset'!B:B,A19,'DTM Dataset'!X:X) -> 42 | N19: =SUMIF('DTM Dataset'!B:B,A19,'DTM Dataset'!Y:Y) -> 0 | O19: 249155
A20: Erbil | B20: =SUMIF('DTM Dataset'!B:B,A20,'DTM Dataset'!M:M) -> 13250 | C20: =SUMIF('DTM Dataset'!B:B,A20,'DTM Dataset'!N:N) -> 48 | D20: =SUMIF('DTM Dataset'!B:B,A20,'DTM Dataset'!O:O) -> 222 | E20: =SUMIF('DTM Dataset'!B:B,A20,'DTM Dataset'!P:P) -> 798 | F20: =SUMIF('DTM Dataset'!B:B,A20,'DTM Dataset'!Q:Q) -> 195012 | G20: =SUMIF('DTM Dataset'!B:B,A20,'DTM Dataset'!R:R) -> 0 | H20: =SUMIF('DTM Dataset'!B:B,A20,'DTM Dataset'!S:S) -> 378 | I20: =SUMIF('DTM Dataset'!B:B,A20,'DTM Dataset'!T:T) -> 378 | J20: =SUMIF('DTM Dataset'!B:B,A20,'DTM Dataset'!U:U) -> 216 | K20: =SUMIF('DTM Dataset'!B:B,A20,'DTM Dataset'!V:V) -> 0 | L20: =SUMIF('DTM Dataset'!B:B,A20,'DTM Dataset'!W:W) -> 0 | M20: =SUMIF('DTM Dataset'!B:B,A20,'DTM Dataset'!X:X) -> 0 | N20: =SUMIF('DTM Dataset'!B:B,A20,'DTM Dataset'!Y:Y) -> 0 | O20: 210302
A21: Kerbala | B21: =SUMIF('DTM Dataset'!B:B,A21,'DTM Dataset'!M:M) -> 0 | C21: =SUMIF('DTM Dataset'!B:B,A21,'DTM Dataset'!N:N) -> 30 | D21: =SUMIF('DTM Dataset'!B:B,A21,'DTM Dataset'!O:O) -> 0 | E21: =SUMIF('DTM Dataset'!B:B,A21,'DTM Dataset'!P:P) -> 4038 | F21: =SUMIF('DTM Dataset'!B:B,A21,'DTM Dataset'!Q:Q) -> 6468 | G21: =SUMIF('DTM Dataset'!B:B,A21,'DTM Dataset'!R:R) -> 0 | H21: =SUMIF('DTM Dataset'!B:B,A21,'DTM Dataset'!S:S) -> 150 | I21: =SUMIF('DTM Dataset'!B:B,A21,'DTM Dataset'!T:T) -> 0 | J21: =SUMIF('DTM Dataset'!B:B,A21,'DTM Dataset'!U:U) -> 0 | K21: =SUMIF('DTM Dataset'!B:B,A21,'DTM Dataset'!V:V) -> 36 | L21: =SUMIF('DTM Dataset'!B:B,A21,'DTM Dataset'!W:W) -> 0 | M21: =SUMIF('DTM Dataset'!B:B,A21,'DTM Dataset'!X:X) -> 0 | N21: =SUMIF('DTM Dataset'!B:B,A21,'DTM Dataset'!Y:Y) -> 0 | O21: 10722
A22: Kirkuk | B22: =SUMIF('DTM Dataset'!B:B,A22,'DTM Dataset'!M:M) -> 0 | C22: =SUMIF('DTM Dataset'!B:B,A22,'DTM Dataset'!N:N) -> 390 | D22: =SUMIF('DTM Dataset'!B:B,A22,'DTM Dataset'!O:O) -> 0 | E22: =SUMIF('DTM Dataset'!B:B,A22,'DTM Dataset'!P:P) -> 2226 | F22: =SUMIF('DTM Dataset'!B:B,A22,'DTM Dataset'!Q:Q) -> 77172 | G22: =SUMIF('DTM Dataset'!B:B,A22,'DTM Dataset'!R:R) -> 1698 | H22: =SUMIF('DTM Dataset'!B:B,A22,'DTM Dataset'!S:S) -> 10410 | I22: =SUMIF('DTM Dataset'!B:B,A22,'DTM Dataset'!T:T) -> 12 | J22: =SUMIF('DTM Dataset'!B:B,A22,'DTM Dataset'!U:U) -> 54 | K22: =SUMIF('DTM Dataset'!B:B,A22,'DTM Dataset'!V:V) -> 0 | L22: =SUMIF('DTM Dataset'!B:B,A22,'DTM Dataset'!W:W) -> 114 | M22: =SUMIF('DTM Dataset'!B:B,A22,'DTM Dataset'!X:X) -> 0 | N22: =SUMIF('DTM Dataset'!B:B,A22,'DTM Dataset'!Y:Y) -> 0 | O22: 92076
A23: Maysan | B23: =SUMIF('DTM Dataset'!B:B,A23,'DTM Dataset'!M:M) -> 0 | C23: =SUMIF('DTM Dataset'!B:B,A23,'DTM Dataset'!N:N) -> 90 | D23: =SUMIF('DTM Dataset'!B:B,A23,'DTM Dataset'!O:O) -> 0 | E23: =SUMIF('DTM Dataset'!B:B,A23,'DTM Dataset'!P:P) -> 36 | F23: =SUMIF('DTM Dataset'!B:B,A23,'DTM Dataset'!Q:Q) -> 1560 | G23: =SUMIF('DTM Dataset'!B:B,A23,'DTM Dataset'!R:R) -> 0 | H23: =SUMIF('DTM Dataset'!B:B,A23,'DTM Dataset'!S:S) -> 150 | I23: =SUMIF('DTM Dataset'!B:B,A23,'DTM Dataset'!T:T) -> 0 | J23: =SUMIF('DTM Dataset'!B:B,A23,'DTM Dataset'!U:U) -> 0 | K23: =SUMIF('DTM Dataset'!B:B,A23,'DTM Dataset'!V:V) -> 6 | L23: =SUMIF('DTM Dataset'!B:B,A23,'DTM Dataset'!W:W) -> 0 | M23: =SUMIF('DTM Dataset'!B:B,A23,'DTM Dataset'!X:X) -> 0 | N23: =SUMIF('DTM Dataset'!B:B,A23,'DTM Dataset'!Y:Y) -> 0 | O23: 1842
A24: Ninewa | B24: =SUMIF('DTM Dataset'!B:B,A24,'DTM Dataset'!M:M) -> 45015 | C24: =SUMIF('DTM Dataset'!B:B,A24,'DTM Dataset'!N:N) -> 10104 | D24: =SUMIF('DTM Dataset'!B:B,A24,'DTM Dataset'!O:O) -> 0 | E24: =SUMIF('DTM Dataset'!B:B,A24,'DTM Dataset'!P:P) -> 8214 | F24: =SUMIF('DTM Dataset'!B:B,A24,'DTM Dataset'!Q:Q) -> 190956 | G24: =SUMIF('DTM Dataset'!B:B,A24,'DTM Dataset'!R:R) -> 5088 | H24: =SUMIF('DTM Dataset'!B:B,A24,'DTM Dataset'!S:S) -> 7032 | I24: =SUMIF('DTM Dataset'!B:B,A24,'DTM Dataset'!T:T) -> 5268 | J24: =SUMIF('DTM Dataset'!B:B,A24,'DTM Dataset'!U:U) -> 0 | K24: =SUMIF('DTM Dataset'!B:B,A24,'DTM Dataset'!V:V) -> 186 | L24: =SUMIF('DTM Dataset'!B:B,A24,'DTM Dataset'!W:W) -> 228 | M24: =SUMIF('DTM Dataset'!B:B,A24,'DTM Dataset'!X:X) -> 270 | N24: =SUMIF('DTM Dataset'!B:B,A24,'DTM Dataset'!Y:Y) -> 762 | O24: 273123
A25: Salah al-Din | B25: =SUMIF('DTM Dataset'!B:B,A25,'DTM Dataset'!M:M) -> 0 | C25: =SUMIF('DTM Dataset'!B:B,A25,'DTM Dataset'!N:N) -> 2688 | D25: =SUMIF('DTM Dataset'!B:B,A25,'DTM Dataset'!O:O) -> 0 | E25: =SUMIF('DTM Dataset'!B:B,A25,'DTM Dataset'!P:P) -> 1776 | F25: =SUMIF('DTM Dataset'!B:B,A25,'DTM Dataset'!Q:Q) -> 33846 | G25: =SUMIF('DTM Dataset'!B:B,A25,'DTM Dataset'!R:R) -> 6504 | H25: =SUMIF('DTM Dataset'!B:B,A25,'DTM Dataset'!S:S) -> 7854 | I25: =SUMIF('DTM Dataset'!B:B,A25,'DTM Dataset'!T:T) -> 1158 | J25: =SUMIF('DTM Dataset'!B:B,A25,'DTM Dataset'!U:U) -> 84 | K25: =SUMIF('DTM Dataset'!B:B,A25,'DTM Dataset'!V:V) -> 48 | L25: =SUMIF('DTM Dataset'!B:B,A25,'DTM Dataset'!W:W) -> 282 | M25: =SUMIF('DTM Dataset'!B:B,A25,'DTM Dataset'!X:X) -> 150 | N25: =SUMIF('DTM Dataset'!B:B,A25,'DTM Dataset'!Y:Y) -> 0 | O25: 54390
A26: Thi Qar | B26: =SUMIF('DTM Dataset'!B:B,A26,'DTM Dataset'!M:M) -> 0 | C26: =SUMIF('DTM Dataset'!B:B,A26,'DTM Dataset'!N:N) -> 396 | D26: =SUMIF('DTM Dataset'!B:B,A26,'DTM Dataset'!O:O) -> 0 | E26: =SUMIF('DTM Dataset'!B:B,A26,'DTM Dataset'!P:P) -> 582 | F26: =SUMIF('DTM Dataset'!B:B,A26,'DTM Dataset'!Q:Q) -> 1848 | G26: =SUMIF('DTM Dataset'!B:B,A26,'DTM Dataset'!R:R) -> 0 | H26: =SUMIF('DTM Dataset'!B:B,A26,'DTM Dataset'!S:S) -> 210 | I26: =SUMIF('DTM Dataset'!B:B,A26,'DTM Dataset'!T:T) -> 0 | J26: =SUMIF('DTM Dataset'!B:B,A26,'DTM Dataset'!U:U) -> 30 | K26: =SUMIF('DTM Dataset'!B:B,A26,'DTM Dataset'!V:V) -> 18 | L26: =SUMIF('DTM Dataset'!B:B,A26,'DTM Dataset'!W:W) -> 0 | M26: =SUMIF('DTM Dataset'!B:B,A26,'DTM Dataset'!X:X) -> 0 | N26: =SUMIF('DTM Dataset'!B:B,A26,'DTM Dataset'!Y:Y) -> 0 | O26: 3084
A27: Wassit | B27: =SUMIF('DTM Dataset'!B:B,A27,'DTM Dataset'!M:M) -> 0 | C27: =SUMIF('DTM Dataset'!B:B,A27,'DTM Dataset'!N:N) -> 48 | D27: =SUMIF('DTM Dataset'!B:B,A27,'DTM Dataset'!O:O) -> 0 | E27: =SUMIF('DTM Dataset'!B:B,A27,'DTM Dataset'!P:P) -> 120 | F27: =SUMIF('DTM Dataset'!B:B,A27,'DTM Dataset'!Q:Q) -> 3792 | G27: =SUMIF('DTM Dataset'!B:B,A27,'DTM Dataset'!R:R) -> 0 | H27: =SUMIF('DTM Dataset'!B:B,A27,'DTM Dataset'!S:S) -> 0 | I27: =SUMIF('DTM Dataset'!B:B,A27,'DTM Dataset'!T:T) -> 336 | J27: =SUMIF('DTM Dataset'!B:B,A27,'DTM Dataset'!U:U) -> 0 | K27: =SUMIF('DTM Dataset'!B:B,A27,'DTM Dataset'!V:V) -> 0 | L27: =SUMIF('DTM Dataset'!B:B,A27,'DTM Dataset'!W:W) -> 0 | M27: =SUMIF('DTM Dataset'!B:B,A27,'DTM Dataset'!X:X) -> 0 | N27: =SUMIF('DTM Dataset'!B:B,A27,'DTM Dataset'!Y:Y) -> 0 | O27: 4296
A28: Total | B28: =SUM(B10:B27) -> 180010 | C28: 21918 | D28: 402 | E28: 36798 | F28: 831330 | G28: 16398 | H28: 65166 | I28: 16398 | J28: 6066 | K28: 810 | L28: =SUM(L10:L27) -> 714 | M28: 462 | N28: 762 | O28: 1177234
A30: Number of IDP individuals by Governorate of Origin
B31: Governorate of Origin
A32: Governorate of Displacement | B32: Al-Anbar | C32: Babil | D32: Baghdad | E32: Diyala | F32: Erbil | G32: Kirkuk | H32: Ninewa | I32: Salah al-Din | J32: Total
A33: Al-Anbar | B33: =SUMIF('DTM Dataset'!B:B,A33,'DTM Dataset'!Z:Z) -> 25050 | C33: =SUMIF('DTM Dataset'!B:B,A33,'DTM Dataset'!AA:AA) -> 9108 | D33: =SUMIF('DTM Dataset'!B:B,A33,'DTM Dataset'!AB:AB) -> 282 | E33: =SUMIF('DTM Dataset'!B:B,A33,'DTM Dataset'!AE:AE) -> 6 | F33: =SUMIF('DTM Dataset'!B:B,A33,'DTM Dataset'!AF:AF) -> 0 | G33: =SUMIF('DTM Dataset'!B:B,A33,'DTM Dataset'!AH:AH) -> 24 | H33: =SUMIF('DTM Dataset'!B:B,A33,'DTM Dataset'!AL:AL) -> 72 | I33: =SUMIF('DTM Dataset'!B:B,A33,'DTM Dataset'!AN:AN) -> 180 | J33: =SUM(B33:I33) -> 34722
A34: Al-Basrah | B34: =SUMIF('DTM Dataset'!B:B,A34,'DTM Dataset'!Z:Z) -> 1014 | C34: =SUMIF('DTM Dataset'!B:B,A34,'DTM Dataset'!AA:AA) -> 108 | D34: =SUMIF('DTM Dataset'!B:B,A34,'DTM Dataset'!AB:AB) -> 162 | E34: =SUMIF('DTM Dataset'!B:B,A34,'DTM Dataset'!AE:AE) -> 150 | F34: =SUMIF('DTM Dataset'!B:B,A34,'DTM Dataset'!AF:AF) -> 0 | G34: =SUMIF('DTM Dataset'!B:B,A34,'DTM Dataset'!AH:AH) -> 522 | H34: =SUMIF('DTM Dataset'!B:B,A34,'DTM Dataset'!AL:AL) -> 1464 | I34: =SUMIF('DTM Dataset'!B:B,A34,'DTM Dataset'!AN:AN) -> 1884 | J34: 5304
A35: Al-Muthanna | B35: =SUMIF('DTM Dataset'!B:B,A35,'DTM Dataset'!Z:Z) -> 90 | C35: =SUMIF('DTM Dataset'!B:B,A35,'DTM Dataset'!AA:AA) -> 0 | D35: =SUMIF('DTM Dataset'!B:B,A35,'DTM Dataset'!AB:AB) -> 120 | E35: =SUMIF('DTM Dataset'!B:B,A35,'DTM Dataset'!AE:AE) -> 24 | F35: =SUMIF('DTM Dataset'!B:B,A35,'DTM Dataset'!AF:AF) -> 0 | G35: =SUMIF('DTM Dataset'!B:B,A35,'DTM Dataset'!AH:AH) -> 78 | H35: =SUMIF('DTM Dataset'!B:B,A35,'DTM Dataset'!AL:AL) -> 468 | I35: =SUMIF('DTM Dataset'!B:B,A35,'DTM Dataset'!AN:AN) -> 66 | J35: 846
A36: Al-Najaf | B36: =SUMIF('DTM Dataset'!B:B,A36,'DTM Dataset'!Z:Z) -> 0 | C36: =SUMIF('DTM Dataset'!B:B,A36,'DTM Dataset'!AA:AA) -> 0 | D36: =SUMIF('DTM Dataset'!B:B,A36,'DTM Dataset'!AB:AB) -> 0 | E36: =SUMIF('DTM Dataset'!B:B,A36,'DTM Dataset'!AE:AE) -> 42 | F36: =SUMIF('DTM Dataset'!B:B,A36,'DTM Dataset'!AF:AF) -> 0 | G36: =SUMIF('DTM Dataset'!B:B,A36,'DTM Dataset'!AH:AH) -> 0 | H36: =SUMIF('DTM Dataset'!B:B,A36,'DTM Dataset'!AL:AL) -> 8088 | I36: =SUMIF('DTM Dataset'!B:B,A36,'DTM Dataset'!AN:AN) -> 36 | J36: 8166
A37: Al-Qadissiya | B37: =SUMIF('DTM Dataset'!B:B,A37,'DTM Dataset'!Z:Z) -> 0 | C37: =SUMIF('DTM Dataset'!B:B,A37,'DTM Dataset'!AA:AA) -> 0 | D37: =SUMIF('DTM Dataset'!B:B,A37,'DTM Dataset'!AB:AB) -> 108 | E37: =SUMIF('DTM Dataset'!B:B,A37,'DTM Dataset'!AE:AE) -> 0 | F37: =SUMIF('DTM Dataset'!B:B,A37,'DTM Dataset'!AF:AF) -> 0 | G37: =SUMIF('DTM Dataset'!B:B,A37,'DTM Dataset'!AH:AH) -> 1182 | H37: =SUMIF('DTM Dataset'!B:B,A37,'DTM Dataset'!AL:AL) -> 1824 | I37: =SUMIF('DTM Dataset'!B:B,A37,'DTM Dataset'!AN:AN) -> 30 | J37: 3144
A38: Al-Sulaymaniyah | B38: =SUMIF('DTM Dataset'!B:B,A38,'DTM Dataset'!Z:Z) -> 21178 | C38: =SUMIF('DTM Dataset'!B:B,A38,'DTM Dataset'!AA:AA) -> 8929 | D38: =SUMIF('DTM Dataset'!B:B,A38,'DTM Dataset'!AB:AB) -> 30840 | E38: =SUMIF('DTM Dataset'!B:B,A38,'DTM Dataset'!AE:AE) -> 20797 | F38: =SUMIF('DTM Dataset'!B:B,A38,'DTM Dataset'!AF:AF) -> 0 | G38: =SUMIF('DTM Dataset'!B:B,A38,'DTM Dataset'!AH:AH) -> 4506 | H38: =SUMIF('DTM Dataset'!B:B,A38,'DTM Dataset'!AL:AL) -> 13801 | I38: =SUMIF('DTM Dataset'!B:B,A38,'DTM Dataset'!AN:AN) -> 32986 | J38: 133037
A39: Babil | B39: =SUMIF('DTM Dataset'!B:B,A39,'DTM Dataset'!Z:Z) -> 120 | C39: =SUMIF('DTM Dataset'!B:B,A39,'DTM Dataset'!AA:AA) -> 15306 | D39: =SUMIF('DTM Dataset'!B:B,A39,'DTM Dataset'!AB:AB) -> 102 | E39: =SUMIF('DTM Dataset'!B:B,A39,'DTM Dataset'!AE:AE) -> 24 | F39: =SUMIF('DTM Dataset'!B:B,A39,'DTM Dataset'!AF:AF) -> 0 | G39: =SUMIF('DTM Dataset'!B:B,A39,'DTM Dataset'!AH:AH) -> 18 | H39: =SUMIF('DTM Dataset'!B:B,A39,'DTM Dataset'!AL:AL) -> 504 | I39: =SUMIF('DTM Dataset'!B:B,A39,'DTM Dataset'!AN:AN) -> 54 | J39: 16128
A40: Baghdad | B40: =SUMIF('DTM Dataset'!B:B,A40,'DTM Dataset'!Z:Z) -> 10974 | C40: =SUMIF('DTM Dataset'!B:B,A40,'DTM Dataset'!AA:AA) -> 8544 | D40: =SUMIF('DTM Dataset'!B:B,A40,'DTM Dataset'!AB:AB) -> 378 | E40: =SUMIF('DTM Dataset'!B:B,A40,'DTM Dataset'!AE:AE) -> 696 | F40: =SUMIF('DTM Dataset'!B:B,A40,'DTM Dataset'!AF:AF) -> 0 | G40: =SUMIF('DTM Dataset'!B:B,A40,'DTM Dataset'!AH:AH) -> 42 | H40: =SUMIF('DTM Dataset'!B:B,A40,'DTM Dataset'!AL:AL) -> 4698 | I40: =SUMIF('DTM Dataset'!B:B,A40,'DTM Dataset'!AN:AN) -> 1770 | J40: 27102
A41: Diyala | B41: =SUMIF('DTM Dataset'!B:B,A41,'DTM Dataset'!Z:Z) -> 834 | C41: =SUMIF('DTM Dataset'!B:B,A41,'DTM Dataset'!AA:AA) -> 1212 | D41: =SUMIF('DTM Dataset'!B:B,A41,'DTM Dataset'!AB:AB) -> 684 | E41: =SUMIF('DTM Dataset'!B:B,A41,'DTM Dataset'!AE:AE) -> 43454 | F41: =SUMIF('DTM Dataset'!B:B,A41,'DTM Dataset'!AF:AF) -> 0 | G41: =SUMIF('DTM Dataset'!B:B,A41,'DTM Dataset'!AH:AH) -> 54 | H41: =SUMIF('DTM Dataset'!B:B,A41,'DTM Dataset'!AL:AL) -> 330 | I41: =SUMIF('DTM Dataset'!B:B,A41,'DTM Dataset'!AN:AN) -> 3227 | J41: 49795
A42: Duhok | B42: =SUMIF('DTM Dataset'!B:B,A42,'DTM Dataset'!Z:Z) -> 210 | C42: =SUMIF('DTM Dataset'!B:B,A42,'DTM Dataset'!AA:AA) -> 0 | D42: =SUMIF('DTM Dataset'!B:B,A42,'DTM Dataset'!AB:AB) -> 198 | E42: =SUMIF('DTM Dataset'!B:B,A42,'DTM Dataset'!AE:AE) -> 0 | F42: =SUMIF('DTM Dataset'!B:B,A42,'DTM Dataset'!AF:AF) -> 0 | G42: =SUMIF('DTM Dataset'!B:B,A42,'DTM Dataset'!AH:AH) -> 66 | H42: =SUMIF('DTM Dataset'!B:B,A42,'DTM Dataset'!AL:AL) -> 248435 | I42: =SUMIF('DTM Dataset'!B:B,A42,'DTM Dataset'!AN:AN) -> 246 | J42: 249155
A43: Erbil | B43: =SUMIF('DTM Dataset'!B:B,A43,'DTM Dataset'!Z:Z) -> 62328 | C43: =SUMIF('DTM Dataset'!B:B,A43,'DTM Dataset'!AA:AA) -> 35 | D43: =SUMIF('DTM Dataset'!B:B,A43,'DTM Dataset'!AB:AB) -> 12562 | E43: =SUMIF('DTM Dataset'!B:B,A43,'DTM Dataset'!AE:AE) -> 916 | F43: =SUMIF('DTM Dataset'!B:B,A43,'DTM Dataset'!AF:AF) -> 7322 | G43: =SUMIF('DTM Dataset'!B:B,A43,'DTM Dataset'!AH:AH) -> 9635 | H43: =SUMIF('DTM Dataset'!B:B,A43,'DTM Dataset'!AL:AL) -> 94816 | I43: =SUMIF('DTM Dataset'!B:B,A43,'DTM Dataset'!AN:AN) -> 22688 | J43: 210302
A44: Kerbala | B44: =SUMIF('DTM Dataset'!B:B,A44,'DTM Dataset'!Z:Z) -> 186 | C44: =SUMIF('DTM Dataset'!B:B,A44,'DTM Dataset'!AA:AA) -> 1206 | D44: =SUMIF('DTM Dataset'!B:B,A44,'DTM Dataset'!AB:AB) -> 0 | E44: =SUMIF('DTM Dataset'!B:B,A44,'DTM Dataset'!AE:AE) -> 42 | F44: =SUMIF('DTM Dataset'!B:B,A44,'DTM Dataset'!AF:AF) -> 0 | G44: =SUMIF('DTM Dataset'!B:B,A44,'DTM Dataset'!AH:AH) -> 228 | H44: =SUMIF('DTM Dataset'!B:B,A44,'DTM Dataset'!AL:AL) -> 9060 | I44: =SUMIF('DTM Dataset'!B:B,A44,'DTM Dataset'!AN:AN) -> 0 | J44: 10722
A45: Kirkuk | B45: =SUMIF('DTM Dataset'!B:B,A45,'DTM Dataset'!Z:Z) -> 2424 | C45: =SUMIF('DTM Dataset'!B:B,A45,'DTM Dataset'!AA:AA) -> 192 | D45: =SUMIF('DTM Dataset'!B:B,A45,'DTM Dataset'!AB:AB) -> 1026 | E45: =SUMIF('DTM Dataset'!B:B,A45,'DTM Dataset'!AE:AE) -> 5886 | F45: =SUMIF('DTM Dataset'!B:B,A45,'DTM Dataset'!AF:AF) -> 30 | G45: =SUMIF('DTM Dataset'!B:B,A45,'DTM Dataset'!AH:AH) -> 53778 | H45: =SUMIF('DTM Dataset'!B:B,A45,'DTM Dataset'!AL:AL) -> 8724 | I45: =SUMIF('DTM Dataset'!B:B,A45,'DTM Dataset'!AN:AN) -> 20016 | J45: 92076
A46: Maysan | B46: =SUMIF('DTM Dataset'!B:B,A46,'DTM Dataset'!Z:Z) -> 126 | C46: =SUMIF('DTM Dataset'!B:B,A46,'DTM Dataset'!AA:AA) -> 36 | D46: =SUMIF('DTM Dataset'!B:B,A46,'DTM Dataset'!AB:AB) -> 144 | E46: =SUMIF('DTM Dataset'!B:B,A46,'DTM Dataset'!AE:AE) -> 78 | F46: =SUMIF('DTM Dataset'!B:B,A46,'DTM Dataset'!AF:AF) -> 0 | G46: =SUMIF('DTM Dataset'!B:B,A46,'DTM Dataset'!AH:AH) -> 402 | H46: =SUMIF('DTM Dataset'!B:B,A46,'DTM Dataset'!AL:AL) -> 804 | I46: =SUMIF('DTM Dataset'!B:B,A46,'DTM Dataset'!AN:AN) -> 252 | J46: 1842
A47: Ninewa | B47: =SUMIF('DTM Dataset'!B:B,A47,'DTM Dataset'!Z:Z) -> 6375 | C47: =SUMIF('DTM Dataset'!B:B,A47,'DTM Dataset'!AA:AA) -> 10 | D47: =SUMIF('DTM Dataset'!B:B,A47,'DTM Dataset'!AB:AB) -> 120 | E47: =SUMIF('DTM Dataset'!B:B,A47,'DTM Dataset'!AE:AE) -> 20 | F47: =SUMIF('DTM Dataset'!B:B,A47,'DTM Dataset'!AF:AF) -> 1597 | G47: =SUMIF('DTM Dataset'!B:B,A47,'DTM Dataset'!AH:AH) -> 743 | H47: =SUMIF('DTM Dataset'!B:B,A47,'DTM Dataset'!AL:AL) -> 262678 | I47: =SUMIF('DTM Dataset'!B:B,A47,'DTM Dataset'!AN:AN) -> 1580 | J47: 273123
A48: Salah al-Din | B48: =SUMIF('DTM Dataset'!B:B,A48,'DTM Dataset'!Z:Z) -> 96 | C48: =SUMIF('DTM Dataset'!B:B,A48,'DTM Dataset'!AA:AA) -> 0 | D48: =SUMIF('DTM Dataset'!B:B,A48,'DTM Dataset'!AB:AB) -> 0 | E48: =SUMIF('DTM Dataset'!B:B,A48,'DTM Dataset'!AE:AE) -> 762 | F48: =SUMIF('DTM Dataset'!B:B,A48,'DTM Dataset'!AF:AF) -> 0 | G48: =SUMIF('DTM Dataset'!B:B,A48,'DTM Dataset'!AH:AH) -> 3666 | H48: =SUMIF('DTM Dataset'!B:B,A48,'DTM Dataset'!AL:AL) -> 18 | I48: =SUMIF('DTM Dataset'!B:B,A48,'DTM Dataset'!AN:AN) -> 49848 | J48: 54390
A49: Thi Qar | B49: =SUMIF('DTM Dataset'!B:B,A49,'DTM Dataset'!Z:Z) -> 540 | C49: =SUMIF('DTM Dataset'!B:B,A49,'DTM Dataset'!AA:AA) -> 36 | D49: =SUMIF('DTM Dataset'!B:B,A49,'DTM Dataset'!AB:AB) -> 42 | E49: =SUMIF('DTM Dataset'!B:B,A49,'DTM Dataset'!AE:AE) -> 60 | F49: =SUMIF('DTM Dataset'!B:B,A49,'DTM Dataset'!AF:AF) -> 0 | G49: =SUMIF('DTM Dataset'!B:B,A49,'DTM Dataset'!AH:AH) -> 534 | H49: =SUMIF('DTM Dataset'!B:B,A49,'DTM Dataset'!AL:AL) -> 1698 | I49: =SUMIF('DTM Dataset'!B:B,A49,'DTM Dataset'!AN:AN) -> 174 | J49: 3084
A50: Wassit | B50: =SUMIF('DTM Dataset'!B:B,A50,'DTM Dataset'!Z:Z) -> 132 | C50: =SUMIF('DTM Dataset'!B:B,A50,'DTM Dataset'!AA:AA) -> 0 | D50: =SUMIF('DTM Dataset'!B:B,A50,'DTM Dataset'!AB:AB) -> 0 | E50: =SUMIF('DTM Dataset'!B:B,A50,'DTM Dataset'!AE:AE) -> 204 | F50: =SUMIF('DTM Dataset'!B:B,A50,'DTM Dataset'!AF:AF) -> 0 | G50: =SUMIF('DTM Dataset'!B:B,A50,'DTM Dataset'!AH:AH) -> 414 | H50: =SUMIF('DTM Dataset'!B:B,A50,'DTM Dataset'!AL:AL) -> 3432 | I50: =SUMIF('DTM Dataset'!B:B,A50,'DTM Dataset'!AN:AN) -> 114 | J50: 4296
A51: Total | B51: =SUM(B33:B50) -> 131677 | C51: =SUM(C33:C50) -> 44722 | D51: =SUM(D33:D50) -> 46768 | E51: =SUM(E33:E50) -> 73161 | F51: 8949 | G51: 75892 | H51: 660914 | I51: 135151 | J51: 1177234
A53: Number of IDP individuals by Period of Displacement and Governorate of Displacement
B54: Period of Displacement
A55: Governorate of Displacement | B55: Pre-June14 | C55: June-July14 | D55: August14 | E55: Post September14 | F55: Post April15 | G55: Post March16 | H55: Post October 16 | I55: July 17 | J55: Jan 19 | K55: Jan 20 | L55: Jan 2021 | M55: Jan 2022 | N55: Total | T55: rank
A56: Al-Anbar | B56: =SUMIF('DTM Dataset'!B:B,A56,'DTM Dataset'!AR:AR) -> 3090 | C56: =SUMIF('DTM Dataset'!B:B,A56,'DTM Dataset'!AS:AS) -> 1572 | D56: =SUMIF('DTM Dataset'!B:B,A56,'DTM Dataset'!AT:AT) -> 0 | E56: =SUMIF('DTM Dataset'!B:B,A56,'DTM Dataset'!AU:AU) -> 8460 | F56: =SUMIF('DTM Dataset'!B:B,A56,'DTM Dataset'!AV:AV) -> 10782 | G56: =SUMIF('DTM Dataset'!B:B,A56,'DTM Dataset'!AW:AW) -> 2808 | H56: =SUMIF('DTM Dataset'!B:B,A56,'DTM Dataset'!AX:AX) -> 1242 | I56: =SUMIF('DTM Dataset'!B:B,A56,'DTM Dataset'!AY:AY) -> 4302 | J56: =SUMIF('DTM Dataset'!B:B,A56,'DTM Dataset'!AZ:AZ) -> 2346 | K56: =SUMIF('DTM Dataset'!B:B,A56,'DTM Dataset'!BA:BA) -> 114 | L56: =SUMIF('DTM Dataset'!B:B,A56,'DTM Dataset'!BB:BB) -> 6 | M56: =SUMIF('DTM Dataset'!B:B,A56,'DTM Dataset'!BC:BC) -> 0 | N56: =SUM(B56:M56) -> 34722 | T56: 9
A57: Al-Basrah | B57: =SUMIF('DTM Dataset'!B:B,A57,'DTM Dataset'!AR:AR) -> 462 | C57: =SUMIF('DTM Dataset'!B:B,A57,'DTM Dataset'!AS:AS) -> 1152 | D57: =SUMIF('DTM Dataset'!B:B,A57,'DTM Dataset'!AT:AT) -> 1170 | E57: =SUMIF('DTM Dataset'!B:B,A57,'DTM Dataset'!AU:AU) -> 1806 | F57: =SUMIF('DTM Dataset'!B:B,A57,'DTM Dataset'!AV:AV) -> 330 | G57: =SUMIF('DTM Dataset'!B:B,A57,'DTM Dataset'!AW:AW) -> 126 | H57: =SUMIF('DTM Dataset'!B:B,A57,'DTM Dataset'!AX:AX) -> 228 | I57: =SUMIF('DTM Dataset'!B:B,A57,'DTM Dataset'!AY:AY) -> 30 | J57: =SUMIF('DTM Dataset'!B:B,A57,'DTM Dataset'!AZ:AZ) -> 0 | K57: =SUMIF('DTM Dataset'!B:B,A57,'DTM Dataset'!BA:BA) -> 0 | L57: =SUMIF('DTM Dataset'!B:B,A57,'DTM Dataset'!BB:BB) -> 0 | M57: =SUMIF('DTM Dataset'!B:B,A57,'DTM Dataset'!BC:BC) -> 0 | N57: 5304 | T57: 8
A58: Al-Muthanna | B58: =SUMIF('DTM Dataset'!B:B,A58,'DTM Dataset'!AR:AR) -> 30 | C58: =SUMIF('DTM Dataset'!B:B,A58,'DTM Dataset'!AS:AS) -> 372 | D58: =SUMIF('DTM Dataset'!B:B,A58,'DTM Dataset'!AT:AT) -> 234 | E58: =SUMIF('DTM Dataset'!B:B,A58,'DTM Dataset'!AU:AU) -> 120 | F58: =SUMIF('DTM Dataset'!B:B,A58,'DTM Dataset'!AV:AV) -> 54 | G58: =SUMIF('DTM Dataset'!B:B,A58,'DTM Dataset'!AW:AW) -> 0 | H58: =SUMIF('DTM Dataset'!B:B,A58,'DTM Dataset'!AX:AX) -> 36 | I58: =SUMIF('DTM Dataset'!B:B,A58,'DTM Dataset'!AY:AY) -> 0 | J58: =SUMIF('DTM Dataset'!B:B,A58,'DTM Dataset'!AZ:AZ) -> 0 | K58: =SUMIF('DTM Dataset'!B:B,A58,'DTM Dataset'!BA:BA) -> 0 | L58: =SUMIF('DTM Dataset'!B:B,A58,'DTM Dataset'!BB:BB) -> 0 | M58: =SUMIF('DTM Dataset'!B:B,A58,'DTM Dataset'!BC:BC) -> 0 | N58: 846 | T58: 7
A59: Al-Najaf | B59: =SUMIF('DTM Dataset'!B:B,A59,'DTM Dataset'!AR:AR) -> 12 | C59: =SUMIF('DTM Dataset'!B:B,A59,'DTM Dataset'!AS:AS) -> 5610 | D59: =SUMIF('DTM Dataset'!B:B,A59,'DTM Dataset'!AT:AT) -> 1632 | E59: =SUMIF('DTM Dataset'!B:B,A59,'DTM Dataset'!AU:AU) -> 912 | F59: =SUMIF('DTM Dataset'!B:B,A59,'DTM Dataset'!AV:AV) -> 0 | G59: =SUMIF('DTM Dataset'!B:B,A59,'DTM Dataset'!AW:AW) -> 0 | H59: =SUMIF('DTM Dataset'!B:B,A59,'DTM Dataset'!AX:AX) -> 0 | I59: =SUMIF('DTM Dataset'!B:B,A59,'DTM Dataset'!AY:AY) -> 0 | J59: =SUMIF('DTM Dataset'!B:B,A59,'DTM Dataset'!AZ:AZ) -> 0 | K59: =SUMIF('DTM Dataset'!B:B,A59,'DTM Dataset'!BA:BA) -> 0 | L59: =SUMIF('DTM Dataset'!B:B,A59,'DTM Dataset'!BB:BB) -> 0 | M59: =SUMIF('DTM Dataset'!B:B,A59,'DTM Dataset'!BC:BC) -> 0 | N59: 8166 | T59: 6
A60: Al-Qadissiya | B60: =SUMIF('DTM Dataset'!B:B,A60,'DTM Dataset'!AR:AR) -> 0 | C60: =SUMIF('DTM Dataset'!B:B,A60,'DTM Dataset'!AS:AS) -> 1926 | D60: =SUMIF('DTM Dataset'!B:B,A60,'DTM Dataset'!AT:AT) -> 1164 | E60: =SUMIF('DTM Dataset'!B:B,A60,'DTM Dataset'!AU:AU) -> 54 | F60: =SUMIF('DTM Dataset'!B:B,A60,'DTM Dataset'!AV:AV) -> 0 | G60: =SUMIF('DTM Dataset'!B:B,A60,'DTM Dataset'!AW:AW) -> 0 | H60: =SUMIF('DTM Dataset'!B:B,A60,'DTM Dataset'!AX:AX) -> 0 | I60: =SUMIF('DTM Dataset'!B:B,A60,'DTM Dataset'!AY:AY) -> 0 | J60: =SUMIF('DTM Dataset'!B:B,A60,'DTM Dataset'!AZ:AZ) -> 0 | K60: =SUMIF('DTM Dataset'!B:B,A60,'DTM Dataset'!BA:BA) -> 0 | L60: =SUMIF('DTM Dataset'!B:B,A60,'DTM Dataset'!BB:BB) -> 0 | M60: =SUMIF('DTM Dataset'!B:B,A60,'DTM Dataset'!BC:BC) -> 0 | N60: 3144 | T60: 5
A61: Al-Sulaymaniyah | B61: =SUMIF('DTM Dataset'!B:B,A61,'DTM Dataset'!AR:AR) -> 6046 | C61: =SUMIF('DTM Dataset'!B:B,A61,'DTM Dataset'!AS:AS) -> 19963 | D61: =SUMIF('DTM Dataset'!B:B,A61,'DTM Dataset'!AT:AT) -> 13359 | E61: =SUMIF('DTM Dataset'!B:B,A61,'DTM Dataset'!AU:AU) -> 29256 | F61: =SUMIF('DTM Dataset'!B:B,A61,'DTM Dataset'!AV:AV) -> 10787 | G61: =SUMIF('DTM Dataset'!B:B,A61,'DTM Dataset'!AW:AW) -> 10982 | H61: =SUMIF('DTM Dataset'!B:B,A61,'DTM Dataset'!AX:AX) -> 9209 | I61: =SUMIF('DTM Dataset'!B:B,A61,'DTM Dataset'!AY:AY) -> 15171 | J61: =SUMIF('DTM Dataset'!B:B,A61,'DTM Dataset'!AZ:AZ) -> 3996 | K61: =SUMIF('DTM Dataset'!B:B,A61,'DTM Dataset'!BA:BA) -> 5628 | L61: =SUMIF('DTM Dataset'!B:B,A61,'DTM Dataset'!BB:BB) -> 7530 | M61: =SUMIF('DTM Dataset'!B:B,A61,'DTM Dataset'!BC:BC) -> 1110 | N61: 133037 | T61: 4
A62: Babil | B62: =SUMIF('DTM Dataset'!B:B,A62,'DTM Dataset'!AR:AR) -> 30 | C62: =SUMIF('DTM Dataset'!B:B,A62,'DTM Dataset'!AS:AS) -> 12498 | D62: =SUMIF('DTM Dataset'!B:B,A62,'DTM Dataset'!AT:AT) -> 3270 | E62: =SUMIF('DTM Dataset'!B:B,A62,'DTM Dataset'!AU:AU) -> 294 | F62: =SUMIF('DTM Dataset'!B:B,A62,'DTM Dataset'!AV:AV) -> 36 | G62: =SUMIF('DTM Dataset'!B:B,A62,'DTM Dataset'!AW:AW) -> 0 | H62: =SUMIF('DTM Dataset'!B:B,A62,'DTM Dataset'!AX:AX) -> 0 | I62: =SUMIF('DTM Dataset'!B:B,A62,'DTM Dataset'!AY:AY) -> 0 | J62: =SUMIF('DTM Dataset'!B:B,A62,'DTM Dataset'!AZ:AZ) -> 0 | K62: =SUMIF('DTM Dataset'!B:B,A62,'DTM Dataset'!BA:BA) -> 0 | L62: =SUMIF('DTM Dataset'!B:B,A62,'DTM Dataset'!BB:BB) -> 0 | M62: =SUMIF('DTM Dataset'!B:B,A62,'DTM Dataset'!BC:BC) -> 0 | N62: 16128 | T62: 3
A63: Baghdad | B63: =SUMIF('DTM Dataset'!B:B,A63,'DTM Dataset'!AR:AR) -> 1980 | C63: =SUMIF('DTM Dataset'!B:B,A63,'DTM Dataset'!AS:AS) -> 5580 | D63: =SUMIF('DTM Dataset'!B:B,A63,'DTM Dataset'!AT:AT) -> 8760 | E63: =SUMIF('DTM Dataset'!B:B,A63,'DTM Dataset'!AU:AU) -> 6414 | F63: =SUMIF('DTM Dataset'!B:B,A63,'DTM Dataset'!AV:AV) -> 3024 | G63: =SUMIF('DTM Dataset'!B:B,A63,'DTM Dataset'!AW:AW) -> 492 | H63: =SUMIF('DTM Dataset'!B:B,A63,'DTM Dataset'!AX:AX) -> 624 | I63: =SUMIF('DTM Dataset'!B:B,A63,'DTM Dataset'!AY:AY) -> 18 | J63: =SUMIF('DTM Dataset'!B:B,A63,'DTM Dataset'!AZ:AZ) -> 210 | K63: =SUMIF('DTM Dataset'!B:B,A63,'DTM Dataset'!BA:BA) -> 0 | L63: =SUMIF('DTM Dataset'!B:B,A63,'DTM Dataset'!BB:BB) -> 0 | M63: =SUMIF('DTM Dataset'!B:B,A63,'DTM Dataset'!BC:BC) -> 0 | N63: 27102 | T63: 2
A64: Diyala | B64: =SUMIF('DTM Dataset'!B:B,A64,'DTM Dataset'!AR:AR) -> 939 | C64: =SUMIF('DTM Dataset'!B:B,A64,'DTM Dataset'!AS:AS) -> 15459 | D64: =SUMIF('DTM Dataset'!B:B,A64,'DTM Dataset'!AT:AT) -> 4830 | E64: =SUMIF('DTM Dataset'!B:B,A64,'DTM Dataset'!AU:AU) -> 19608 | F64: =SUMIF('DTM Dataset'!B:B,A64,'DTM Dataset'!AV:AV) -> 1108 | G64: =SUMIF('DTM Dataset'!B:B,A64,'DTM Dataset'!AW:AW) -> 591 | H64: =SUMIF('DTM Dataset'!B:B,A64,'DTM Dataset'!AX:AX) -> 846 | I64: =SUMIF('DTM Dataset'!B:B,A64,'DTM Dataset'!AY:AY) -> 3024 | J64: =SUMIF('DTM Dataset'!B:B,A64,'DTM Dataset'!AZ:AZ) -> 1572 | K64: =SUMIF('DTM Dataset'!B:B,A64,'DTM Dataset'!BA:BA) -> 366 | L64: =SUMIF('DTM Dataset'!B:B,A64,'DTM Dataset'!BB:BB) -> 1266 | M64: =SUMIF('DTM Dataset'!B:B,A64,'DTM Dataset'!BC:BC) -> 186 | N64: 49795 | T64: 1
A65: Duhok | B65: =SUMIF('DTM Dataset'!B:B,A65,'DTM Dataset'!AR:AR) -> 210 | C65: =SUMIF('DTM Dataset'!B:B,A65,'DTM Dataset'!AS:AS) -> 48207 | D65: =SUMIF('DTM Dataset'!B:B,A65,'DTM Dataset'!AT:AT) -> 188452 | E65: =SUMIF('DTM Dataset'!B:B,A65,'DTM Dataset'!AU:AU) -> 0 | F65: =SUMIF('DTM Dataset'!B:B,A65,'DTM Dataset'!AV:AV) -> 114 | G65: =SUMIF('DTM Dataset'!B:B,A65,'DTM Dataset'!AW:AW) -> 0 | H65: =SUMIF('DTM Dataset'!B:B,A65,'DTM Dataset'!AX:AX) -> 0 | I65: =SUMIF('DTM Dataset'!B:B,A65,'DTM Dataset'!AY:AY) -> 12130 | J65: =SUMIF('DTM Dataset'!B:B,A65,'DTM Dataset'!AZ:AZ) -> 0 | K65: =SUMIF('DTM Dataset'!B:B,A65,'DTM Dataset'!BA:BA) -> 12 | L65: =SUMIF('DTM Dataset'!B:B,A65,'DTM Dataset'!BB:BB) -> 30 | M65: =SUMIF('DTM Dataset'!B:B,A65,'DTM Dataset'!BC:BC) -> 0 | N65: 249155
A66: Erbil | B66: =SUMIF('DTM Dataset'!B:B,A66,'DTM Dataset'!AR:AR) -> 27540 | C66: =SUMIF('DTM Dataset'!B:B,A66,'DTM Dataset'!AS:AS) -> 64572 | D66: =SUMIF('DTM Dataset'!B:B,A66,'DTM Dataset'!AT:AT) -> 11782 | E66: =SUMIF('DTM Dataset'!B:B,A66,'DTM Dataset'!AU:AU) -> 11516 | F66: =SUMIF('DTM Dataset'!B:B,A66,'DTM Dataset'!AV:AV) -> 32193 | G66: =SUMIF('DTM Dataset'!B:B,A66,'DTM Dataset'!AW:AW) -> 5657 | H66: =SUMIF('DTM Dataset'!B:B,A66,'DTM Dataset'!AX:AX) -> 40194 | I66: =SUMIF('DTM Dataset'!B:B,A66,'DTM Dataset'!AY:AY) -> 13721 | J66: =SUMIF('DTM Dataset'!B:B,A66,'DTM Dataset'!AZ:AZ) -> 300 | K66: =SUMIF('DTM Dataset'!B:B,A66,'DTM Dataset'!BA:BA) -> 2671 | L66: =SUMIF('DTM Dataset'!B:B,A66,'DTM Dataset'!BB:BB) -> 156 | M66: =SUMIF('DTM Dataset'!B:B,A66,'DTM Dataset'!BC:BC) -> 0 | N66: 210302
A67: Kerbala | B67: =SUMIF('DTM Dataset'!B:B,A67,'DTM Dataset'!AR:AR) -> 1404 | C67: =SUMIF('DTM Dataset'!B:B,A67,'DTM Dataset'!AS:AS) -> 9252 | D67: =SUMIF('DTM Dataset'!B:B,A67,'DTM Dataset'!AT:AT) -> 66 | E67: =SUMIF('DTM Dataset'!B:B,A67,'DTM Dataset'!AU:AU) -> 0 | F67: =SUMIF('DTM Dataset'!B:B,A67,'DTM Dataset'!AV:AV) -> 0 | G67: =SUMIF('DTM Dataset'!B:B,A67,'DTM Dataset'!AW:AW) -> 0 | H67: =SUMIF('DTM Dataset'!B:B,A67,'DTM Dataset'!AX:AX) -> 0 | I67: =SUMIF('DTM Dataset'!B:B,A67,'DTM Dataset'!AY:AY) -> 0 | J67: =SUMIF('DTM Dataset'!B:B,A67,'DTM Dataset'!AZ:AZ) -> 0 | K67: =SUMIF('DTM Dataset'!B:B,A67,'DTM Dataset'!BA:BA) -> 0 | L67: =SUMIF('DTM Dataset'!B:B,A67,'DTM Dataset'!BB:BB) -> 0 | M67: =SUMIF('DTM Dataset'!B:B,A67,'DTM Dataset'!BC:BC) -> 0 | N67: 10722
A68: Kirkuk | B68: =SUMIF('DTM Dataset'!B:B,A68,'DTM Dataset'!AR:AR) -> 1044 | C68: =SUMIF('DTM Dataset'!B:B,A68,'DTM Dataset'!AS:AS) -> 9420 | D68: =SUMIF('DTM Dataset'!B:B,A68,'DTM Dataset'!AT:AT) -> 8460 | E68: =SUMIF('DTM Dataset'!B:B,A68,'DTM Dataset'!AU:AU) -> 17418 | F68: =SUMIF('DTM Dataset'!B:B,A68,'DTM Dataset'!AV:AV) -> 15900 | G68: =SUMIF('DTM Dataset'!B:B,A68,'DTM Dataset'!AW:AW) -> 13050 | H68: =SUMIF('DTM Dataset'!B:B,A68,'DTM Dataset'!AX:AX) -> 15672 | I68: =SUMIF('DTM Dataset'!B:B,A68,'DTM Dataset'!AY:AY) -> 10920 | J68: =SUMIF('DTM Dataset'!B:B,A68,'DTM Dataset'!AZ:AZ) -> 120 | K68: =SUMIF('DTM Dataset'!B:B,A68,'DTM Dataset'!BA:BA) -> 0 | L68: =SUMIF('DTM Dataset'!B:B,A68,'DTM Dataset'!BB:BB) -> 72 | M68: =SUMIF('DTM Dataset'!B:B,A68,'DTM Dataset'!BC:BC) -> 0 | N68: 92076
A69: Maysan | B69: =SUMIF('DTM Dataset'!B:B,A69,'DTM Dataset'!AR:AR) -> 90 | C69: =SUMIF('DTM Dataset'!B:B,A69,'DTM Dataset'!AS:AS) -> 684 | D69: =SUMIF('DTM Dataset'!B:B,A69,'DTM Dataset'!AT:AT) -> 504 | E69: =SUMIF('DTM Dataset'!B:B,A69,'DTM Dataset'!AU:AU) -> 390 | F69: =SUMIF('DTM Dataset'!B:B,A69,'DTM Dataset'!AV:AV) -> 42 | G69: =SUMIF('DTM Dataset'!B:B,A69,'DTM Dataset'!AW:AW) -> 6 | H69: =SUMIF('DTM Dataset'!B:B,A69,'DTM Dataset'!AX:AX) -> 126 | I69: =SUMIF('DTM Dataset'!B:B,A69,'DTM Dataset'!AY:AY) -> 0 | J69: =SUMIF('DTM Dataset'!B:B,A69,'DTM Dataset'!AZ:AZ) -> 0 | K69: =SUMIF('DTM Dataset'!B:B,A69,'DTM Dataset'!BA:BA) -> 0 | L69: =SUMIF('DTM Dataset'!B:B,A69,'DTM Dataset'!BB:BB) -> 0 | M69: =SUMIF('DTM Dataset'!B:B,A69,'DTM Dataset'!BC:BC) -> 0 | N69: 1842
A70: Ninewa | B70: =SUMIF('DTM Dataset'!B:B,A70,'DTM Dataset'!AR:AR) -> 2886 | C70: =SUMIF('DTM Dataset'!B:B,A70,'DTM Dataset'!AS:AS) -> 32818 | D70: =SUMIF('DTM Dataset'!B:B,A70,'DTM Dataset'!AT:AT) -> 114510 | E70: =SUMIF('DTM Dataset'!B:B,A70,'DTM Dataset'!AU:AU) -> 4677 | F70: =SUMIF('DTM Dataset'!B:B,A70,'DTM Dataset'!AV:AV) -> 14589 | G70: =SUMIF('DTM Dataset'!B:B,A70,'DTM Dataset'!AW:AW) -> 5333 | H70: =SUMIF('DTM Dataset'!B:B,A70,'DTM Dataset'!AX:AX) -> 89010 | I70: =SUMIF('DTM Dataset'!B:B,A70,'DTM Dataset'!AY:AY) -> 7117 | J70: =SUMIF('DTM Dataset'!B:B,A70,'DTM Dataset'!AZ:AZ) -> 1547 | K70: =SUMIF('DTM Dataset'!B:B,A70,'DTM Dataset'!BA:BA) -> 500 | L70: =SUMIF('DTM Dataset'!B:B,A70,'DTM Dataset'!BB:BB) -> 136 | M70: =SUMIF('DTM Dataset'!B:B,A70,'DTM Dataset'!BC:BC) -> 0 | N70: 273123
A71: Salah al-Din | B71: =SUMIF('DTM Dataset'!B:B,A71,'DTM Dataset'!AR:AR) -> 468 | C71: =SUMIF('DTM Dataset'!B:B,A71,'DTM Dataset'!AS:AS) -> 11958 | D71: =SUMIF('DTM Dataset'!B:B,A71,'DTM Dataset'!AT:AT) -> 19068 | E71: =SUMIF('DTM Dataset'!B:B,A71,'DTM Dataset'!AU:AU) -> 7200 | F71: =SUMIF('DTM Dataset'!B:B,A71,'DTM Dataset'!AV:AV) -> 8532 | G71: =SUMIF('DTM Dataset'!B:B,A71,'DTM Dataset'!AW:AW) -> 2610 | H71: =SUMIF('DTM Dataset'!B:B,A71,'DTM Dataset'!AX:AX) -> 3480 | I71: =SUMIF('DTM Dataset'!B:B,A71,'DTM Dataset'!AY:AY) -> 456 | J71: =SUMIF('DTM Dataset'!B:B,A71,'DTM Dataset'!AZ:AZ) -> 0 | K71: =SUMIF('DTM Dataset'!B:B,A71,'DTM Dataset'!BA:BA) -> 132 | L71: =SUMIF('DTM Dataset'!B:B,A71,'DTM Dataset'!BB:BB) -> 42 | M71: =SUMIF('DTM Dataset'!B:B,A71,'DTM Dataset'!BC:BC) -> 444 | N71: 54390
A72: Thi Qar | B72: =SUMIF('DTM Dataset'!B:B,A72,'DTM Dataset'!AR:AR) -> 228 | C72: =SUMIF('DTM Dataset'!B:B,A72,'DTM Dataset'!AS:AS) -> 1170 | D72: =SUMIF('DTM Dataset'!B:B,A72,'DTM Dataset'!AT:AT) -> 882 | E72: =SUMIF('DTM Dataset'!B:B,A72,'DTM Dataset'!AU:AU) -> 672 | F72: =SUMIF('DTM Dataset'!B:B,A72,'DTM Dataset'!AV:AV) -> 72 | G72: =SUMIF('DTM Dataset'!B:B,A72,'DTM Dataset'!AW:AW) -> 36 | H72: =SUMIF('DTM Dataset'!B:B,A72,'DTM Dataset'!AX:AX) -> 24 | I72: =SUMIF('DTM Dataset'!B:B,A72,'DTM Dataset'!AY:AY) -> 0 | J72: =SUMIF('DTM Dataset'!B:B,A72,'DTM Dataset'!AZ:AZ) -> 0 | K72: =SUMIF('DTM Dataset'!B:B,A72,'DTM Dataset'!BA:BA) -> 0 | L72: =SUMIF('DTM Dataset'!B:B,A72,'DTM Dataset'!BB:BB) -> 0 | M72: =SUMIF('DTM Dataset'!B:B,A72,'DTM Dataset'!BC:BC) -> 0 | N72: 3084
A73: Wassit | B73: =SUMIF('DTM Dataset'!B:B,A73,'DTM Dataset'!AR:AR) -> 114 | C73: =SUMIF('DTM Dataset'!B:B,A73,'DTM Dataset'!AS:AS) -> 3534 | D73: =SUMIF('DTM Dataset'!B:B,A73,'DTM Dataset'!AT:AT) -> 528 | E73: =SUMIF('DTM Dataset'!B:B,A73,'DTM Dataset'!AU:AU) -> 36 | F73: =SUMIF('DTM Dataset'!B:B,A73,'DTM Dataset'!AV:AV) -> 84 | G73: =SUMIF('DTM Dataset'!B:B,A73,'DTM Dataset'!AW:AW) -> 0 | H73: =SUMIF('DTM Dataset'!B:B,A73,'DTM Dataset'!AX:AX) -> 0 | I73: =SUMIF('DTM Dataset'!B:B,A73,'DTM Dataset'!AY:AY) -> 0 | J73: =SUMIF('DTM Dataset'!B:B,A73,'DTM Dataset'!AZ:AZ) -> 0 | K73: =SUMIF('DTM Dataset'!B:B,A73,'DTM Dataset'!BA:BA) -> 0 | L73: =SUMIF('DTM Dataset'!B:B,A73,'DTM Dataset'!BB:BB) -> 0 | M73: =SUMIF('DTM Dataset'!B:B,A73,'DTM Dataset'!BC:BC) -> 0 | N73: 4296
A74: Total | B74: =SUM(B56:B73) -> 46573 | C74: 245747 | D74: 378671 | E74: 108833 | F74: 97647 | G74: 41691 | H74: 160691 | I74: 66889 | J74: 10091 | K74: 9423 | L74: 9238 | M74: 1740 | N74: =SUM(N56:N73) -> 1177234
A76: Number and % of IDPs by Period of Displacement
A77: Period of Displacement | B77: IDP Households | C77: IDP Individuals | D77: % | E77: rank
A78: Wave1PreJun14 | B78: 7765 | C78: =SUM('DTM Dataset'!AR:AR) -> 46573 | D78: =C78/$C$90 -> 4% | E78: 12
A79: Wave2JunJul14 | B79: 41012 | C79: =SUM('DTM Dataset'!AS:AS) -> 245747 | D79: 21% | E79: 11
A80: Wave3Aug14 | B80: 67903 | C80: =SUM('DTM Dataset'!AT:AT) -> 378671 | D80: 32% | E80: 10
A81: Wave4Sep14Mar15 | B81: 18525 | C81: =SUM('DTM Dataset'!AU:AU) -> 108833 | D81: 9% | E81: 9
A82: Wave5PostApr15 | B82: 16283 | C82: =SUM('DTM Dataset'!AV:AV) -> 97647 | D82: 8% | E82: 8
A83: Wave6PostMar16 | B83: 7168 | C83: =SUM('DTM Dataset'!AW:AW) -> 41691 | D83: 4% | E83: 7
A84: Wave7PostOct16 | B84: 27192 | C84: =SUM('DTM Dataset'!AX:AX) -> 160691 | D84: 14% | E84: 6
A85: Wave8July17 | B85: 11216 | C85: =SUM('DTM Dataset'!AY:AY) -> 66889 | D85: 6% | E85: 5
A86: Wave9Jan19 | B86: 1719 | C86: =SUM('DTM Dataset'!AZ:AZ) -> 10091 | D86: 1% | E86: 4
A87: Wave10Jan20 | B87: 1589 | C87: =SUM('DTM Dataset'!BA:BA) -> 9423 | D87: =C87/$C$90 -> 1% | E87: 3
A88: Wave11Jan21 | B88: 1544 | C88: =SUM('DTM Dataset'!BB:BB) -> 9238 | D88: 1% | E88: 2
A89: Wave12Jan22 | B89: 290 | C89: =SUM('DTM Dataset'!BC:BC) -> 1740 | D89: 0% | E89: 1
A90: Total | B90: =SUM(B78:B89) -> 202206 | C90: =SUM(C78:C89) -> 1177234 | D90: 100%
A92: Number of IDPs by District of Displacement
A93: Governorate of Displacement | B93: District of Displacement | C93: Households | D93: Individuals
A94: Al-Anbar | B94: Al-Falluja | C94: =SUMIF('DTM Dataset'!$C:$C,$B94,'DTM Dataset'!I:I) -> 3166 | D94: =SUMIF('DTM Dataset'!$C:$C,$B94,'DTM Dataset'!J:J) -> 18996
B95: Al-Kaim | C95: =SUMIF('DTM Dataset'!$C:$C,$B95,'DTM Dataset'!I:I) -> 348 | D95: =SUMIF('DTM Dataset'!$C:$C,$B95,'DTM Dataset'!J:J) -> 2088
B96: Al-Ramadi | C96: =SUMIF('DTM Dataset'!$C:$C,$B96,'DTM Dataset'!I:I) -> 1095 | D96: =SUMIF('DTM Dataset'!$C:$C,$B96,'DTM Dataset'!J:J) -> 6570
B97: Al-Rutba | C97: =SUMIF('DTM Dataset'!$C:$C,$B97,'DTM Dataset'!I:I) -> 445 | D97: =SUMIF('DTM Dataset'!$C:$C,$B97,'DTM Dataset'!J:J) -> 2670
B98: Ana | C98: =SUMIF('DTM Dataset'!$C:$C,$B98,'DTM Dataset'!I:I) -> 319 | D98: =SUMIF('DTM Dataset'!$C:$C,$B98,'DTM Dataset'!J:J) -> 1914
B99: Haditha | C99: =SUMIF('DTM Dataset'!$C:$C,$B99,'DTM Dataset'!I:I) -> 181 | D99: =SUMIF('DTM Dataset'!$C:$C,$B99,'DTM Dataset'!J:J) -> 1086
B100: Heet | C100: =SUMIF('DTM Dataset'!$C:$C,$B100,'DTM Dataset'!I:I) -> 233 | D100: =SUMIF('DTM Dataset'!$C:$C,$B100,'DTM Dataset'!J:J) -> 1398
A101: Al-Basrah | B101: Abu Al-Khaseeb | C101: =SUMIF('DTM Dataset'!$C:$C,$B101,'DTM Dataset'!I:I) -> 205 | D101: =SUMIF('DTM Dataset'!$C:$C,$B101,'DTM Dataset'!J:J) -> 1230
B102: Al-Basrah | C102: =SUMIF('DTM Dataset'!$C:$C,$B102,'DTM Dataset'!I:I) -> 334 | D102: =SUMIF('DTM Dataset'!$C:$C,$B102,'DTM Dataset'!J:J) -> 2004
B103: Al-Faw | C103: =SUMIF('DTM Dataset'!$C:$C,$B103,'DTM Dataset'!I:I) -> 9 | D103: =SUMIF('DTM Dataset'!$C:$C,$B103,'DTM Dataset'!J:J) -> 54
B104: Al-Midaina | C104: =SUMIF('DTM Dataset'!$C:$C,$B104,'DTM Dataset'!I:I) -> 23 | D104: =SUMIF('DTM Dataset'!$C:$C,$B104,'DTM Dataset'!J:J) -> 138
B105: Al-Qurna | C105: =SUMIF('DTM Dataset'!$C:$C,$B105,'DTM Dataset'!I:I) -> 45 | D105: =SUMIF('DTM Dataset'!$C:$C,$B105,'DTM Dataset'!J:J) -> 270
B106: Al-Zubair | C106: =SUMIF('DTM Dataset'!$C:$C,$B106,'DTM Dataset'!I:I) -> 202 | D106: =SUMIF('DTM Dataset'!$C:$C,$B106,'DTM Dataset'!J:J) -> 1212
B107: Shat Al-Arab | C107: =SUMIF('DTM Dataset'!$C:$C,$B107,'DTM Dataset'!I:I) -> 66 | D107: =SUMIF('DTM Dataset'!$C:$C,$B107,'DTM Dataset'!J:J) -> 396
A108: Al-Muthanna | B108: Al-Khidhir | C108: =SUMIF('DTM Dataset'!$C:$C,$B108,'DTM Dataset'!I:I) -> 6 | D108: =SUMIF('DTM Dataset'!$C:$C,$B108,'DTM Dataset'!J:J) -> 36
B109: Al-Rumaitha | C109: =SUMIF('DTM Dataset'!$C:$C,$B109,'DTM Dataset'!I:I) -> 48 | D109: =SUMIF('DTM Dataset'!$C:$C,$B109,'DTM Dataset'!J:J) -> 288
B110: Al-Salman | C110: =SUMIF('DTM Dataset'!$C:$C,$B110,'DTM Dataset'!I:I) -> 1 | D110: =SUMIF('DTM Dataset'!$C:$C,$B110,'DTM Dataset'!J:J) -> 6
B111: Al-Samawa | C111: =SUMIF('DTM Dataset'!$C:$C,$B111,'DTM Dataset'!I:I) -> 86 | D111: =SUMIF('DTM Dataset'!$C:$C,$B111,'DTM Dataset'!J:J) -> 516
A112: Al-Najaf | B112: Al-Kufa | C112: =SUMIF('DTM Dataset'!$C:$C,$B112,'DTM Dataset'!I:I) -> 360 | D112: =SUMIF('DTM Dataset'!$C:$C,$B112,'DTM Dataset'!J:J) -> 2160
B113: Al-Manathera | C113: =SUMIF('DTM Dataset'!$C:$C,$B113,'DTM Dataset'!I:I) -> 16 | D113: =SUMIF('DTM Dataset'!$C:$C,$B113,'DTM Dataset'!J:J) -> 96
B114: Al-Najaf | C114: =SUMIF('DTM Dataset'!$C:$C,$B114,'DTM Dataset'!I:I) -> 985 | D114: =SUMIF('DTM Dataset'!$C:$C,$B114,'DTM Dataset'!J:J) -> 5910
A115: Al-Qadissiya | B115: Afaq | C115: =SUMIF('DTM Dataset'!$C:$C,$B115,'DTM Dataset'!I:I) -> 126 | D115: =SUMIF('DTM Dataset'!$C:$C,$B115,'DTM Dataset'!J:J) -> 756
B116: Al-Diwaniya | C116: =SUMIF('DTM Dataset'!$C:$C,$B116,'DTM Dataset'!I:I) -> 329 | D116: =SUMIF('DTM Dataset'!$C:$C,$B116,'DTM Dataset'!J:J) -> 1974
B117: Al-Hamza | C117: =SUMIF('DTM Dataset'!$C:$C,$B117,'DTM Dataset'!I:I) -> 21 | D117: =SUMIF('DTM Dataset'!$C:$C,$B117,'DTM Dataset'!J:J) -> 126
B118: Al-Shamiya | C118: =SUMIF('DTM Dataset'!$C:$C,$B118,'DTM Dataset'!I:I) -> 48 | D118: =SUMIF('DTM Dataset'!$C:$C,$B118,'DTM Dataset'!J:J) -> 288
A119: Al-Sulaymaniyah | B119: Al-Sulaymaniyah | C119: =SUMIF('DTM Dataset'!$C:$C,$B119,'DTM Dataset'!I:I) -> 16029 | D119: =SUMIF('DTM Dataset'!$C:$C,$B119,'DTM Dataset'!J:J) -> 94088
B120: Chamchamal | C120: =SUMIF('DTM Dataset'!$C:$C,$B120,'DTM Dataset'!I:I) -> 1468 | D120: =SUMIF('DTM Dataset'!$C:$C,$B120,'DTM Dataset'!J:J) -> 8808
B121: Derbendikhan | C121: =SUMIF('DTM Dataset'!$C:$C,$B121,'DTM Dataset'!I:I) -> 862 | D121: =SUMIF('DTM Dataset'!$C:$C,$B121,'DTM Dataset'!J:J) -> 5172
B122: Dokan | C122: =SUMIF('DTM Dataset'!$C:$C,$B122,'DTM Dataset'!I:I) -> 859 | D122: =SUMIF('DTM Dataset'!$C:$C,$B122,'DTM Dataset'!J:J) -> 5154
B123: Halabcha | C123: =SUMIF('DTM Dataset'!$C:$C,$B123,'DTM Dataset'!I:I) -> 672 | D123: =SUMIF('DTM Dataset'!$C:$C,$B123,'DTM Dataset'!J:J) -> 4032
B124: Kalar | C124: =SUMIF('DTM Dataset'!$C:$C,$B124,'DTM Dataset'!I:I) -> 2204 | D124: =SUMIF('DTM Dataset'!$C:$C,$B124,'DTM Dataset'!J:J) -> 13053
B125: Panjwin | C125: =SUMIF('DTM Dataset'!$C:$C,$B125,'DTM Dataset'!I:I) -> 5 | D125: =SUMIF('DTM Dataset'!$C:$C,$B125,'DTM Dataset'!J:J) -> 30
B126: Pshdar | C126: =SUMIF('DTM Dataset'!$C:$C,$B126,'DTM Dataset'!I:I) -> 28 | D126: =SUMIF('DTM Dataset'!$C:$C,$B126,'DTM Dataset'!J:J) -> 168
B127: Rania | C127: =SUMIF('DTM Dataset'!$C:$C,$B127,'DTM Dataset'!I:I) -> 355 | D127: =SUMIF('DTM Dataset'!$C:$C,$B127,'DTM Dataset'!J:J) -> 2130
B128: Sharbazher | C128: =SUMIF('DTM Dataset'!$C:$C,$B128,'DTM Dataset'!I:I) -> 67 | D128: =SUMIF('DTM Dataset'!$C:$C,$B128,'DTM Dataset'!J:J) -> 402
A129: Babil | B129: Al-Hashimiya | C129: =SUMIF('DTM Dataset'!$C:$C,$B129,'DTM Dataset'!I:I) -> 9 | D129: =SUMIF('DTM Dataset'!$C:$C,$B129,'DTM Dataset'!J:J) -> 54
B130: Al-Hilla | C130: =SUMIF('DTM Dataset'!$C:$C,$B130,'DTM Dataset'!I:I) -> 106 | D130: =SUMIF('DTM Dataset'!$C:$C,$B130,'DTM Dataset'!J:J) -> 636
B131: Al-Mahaweel | C131: =SUMIF('DTM Dataset'!$C:$C,$B131,'DTM Dataset'!I:I) -> 34 | D131: =SUMIF('DTM Dataset'!$C:$C,$B131,'DTM Dataset'!J:J) -> 204
B132: Al-Mussyab | C132: =SUMIF('DTM Dataset'!$C:$C,$B132,'DTM Dataset'!I:I) -> 2539 | D132: =SUMIF('DTM Dataset'!$C:$C,$B132,'DTM Dataset'!J:J) -> 15234
A133: Baghdad | B133: Al-Adhamiya | C133: =SUMIF('DTM Dataset'!$C:$C,$B133,'DTM Dataset'!I:I) -> 344 | D133: =SUMIF('DTM Dataset'!$C:$C,$B133,'DTM Dataset'!J:J) -> 2064
B134: Al-Kadhmiyah | C134: =SUMIF('DTM Dataset'!$C:$C,$B134,'DTM Dataset'!I:I) -> 1485 | D134: =SUMIF('DTM Dataset'!$C:$C,$B134,'DTM Dataset'!J:J) -> 8910
B135: Al-Karkh | C135: =SUMIF('DTM Dataset'!$C:$C,$B135,'DTM Dataset'!I:I) -> 639 | D135: =SUMIF('DTM Dataset'!$C:$C,$B135,'DTM Dataset'!J:J) -> 3834
B136: Al-Mada'in | C136: =SUMIF('DTM Dataset'!$C:$C,$B136,'DTM Dataset'!I:I) -> 121 | D136: =SUMIF('DTM Dataset'!$C:$C,$B136,'DTM Dataset'!J:J) -> 726
B137: Al-Mahmoudiya | C137: =SUMIF('DTM Dataset'!$C:$C,$B137,'DTM Dataset'!I:I) -> 1511 | D137: =SUMIF('DTM Dataset'!$C:$C,$B137,'DTM Dataset'!J:J) -> 9066
B138: Al-Risafa | C138: =SUMIF('DTM Dataset'!$C:$C,$B138,'DTM Dataset'!I:I) -> 355 | D138: =SUMIF('DTM Dataset'!$C:$C,$B138,'DTM Dataset'!J:J) -> 2130
B139: Al-Thawra | C139: =SUMIF('DTM Dataset'!$C:$C,$B139,'DTM Dataset'!I:I) -> 62 | D139: =SUMIF('DTM Dataset'!$C:$C,$B139,'DTM Dataset'!J:J) -> 372
A140: Diyala | B140: Al-Khalis | C140: =SUMIF('DTM Dataset'!$C:$C,$B140,'DTM Dataset'!I:I) -> 586 | D140: =SUMIF('DTM Dataset'!$C:$C,$B140,'DTM Dataset'!J:J) -> 3516
B141: Al-Muqdadiya | C141: =SUMIF('DTM Dataset'!$C:$C,$B141,'DTM Dataset'!I:I) -> 33 | D141: =SUMIF('DTM Dataset'!$C:$C,$B141,'DTM Dataset'!J:J) -> 198
B142: Baladruz | C142: =SUMIF('DTM Dataset'!$C:$C,$B142,'DTM Dataset'!I:I) -> 75 | D142: =SUMIF('DTM Dataset'!$C:$C,$B142,'DTM Dataset'!J:J) -> 450
B143: Baquba | C143: =SUMIF('DTM Dataset'!$C:$C,$B143,'DTM Dataset'!I:I) -> 3412 | D143: =SUMIF('DTM Dataset'!$C:$C,$B143,'DTM Dataset'!J:J) -> 20472
B144: Khanaqin | C144: =SUMIF('DTM Dataset'!$C:$C,$B144,'DTM Dataset'!I:I) -> 2429 | D144: =SUMIF('DTM Dataset'!$C:$C,$B144,'DTM Dataset'!J:J) -> 14473
B145: Kifri | C145: =SUMIF('DTM Dataset'!$C:$C,$B145,'DTM Dataset'!I:I) -> 1781 | D145: =SUMIF('DTM Dataset'!$C:$C,$B145,'DTM Dataset'!J:J) -> 10686
A146: Duhok | B146: Al-Amadiya | C146: =SUMIF('DTM Dataset'!$C:$C,$B146,'DTM Dataset'!I:I) -> 890 | D146: =SUMIF('DTM Dataset'!$C:$C,$B146,'DTM Dataset'!J:J) -> 4843
B147: Duhok | C147: =SUMIF('DTM Dataset'!$C:$C,$B147,'DTM Dataset'!I:I) -> 4324 | D147: =SUMIF('DTM Dataset'!$C:$C,$B147,'DTM Dataset'!J:J) -> 25944
B148: Sumail | C148: =SUMIF('DTM Dataset'!$C:$C,$B148,'DTM Dataset'!I:I) -> 25443 | D148: =SUMIF('DTM Dataset'!$C:$C,$B148,'DTM Dataset'!J:J) -> 138564
B149: Zakho | C149: =SUMIF('DTM Dataset'!$C:$C,$B149,'DTM Dataset'!I:I) -> 14534 | D149: =SUMIF('DTM Dataset'!$C:$C,$B149,'DTM Dataset'!J:J) -> 79804
A150: Erbil | B150: Erbil | C150: =SUMIF('DTM Dataset'!$C:$C,$B150,'DTM Dataset'!I:I) -> 32513 | D150: =SUMIF('DTM Dataset'!$C:$C,$B150,'DTM Dataset'!J:J) -> 193824
B151: Koysinjaq | C151: =SUMIF('DTM Dataset'!$C:$C,$B151,'DTM Dataset'!I:I) -> 428 | D151: =SUMIF('DTM Dataset'!$C:$C,$B151,'DTM Dataset'!J:J) -> 2568
B152: Makhmour | C152: =SUMIF('DTM Dataset'!$C:$C,$B152,'DTM Dataset'!I:I) -> 1396 | D152: =SUMIF('DTM Dataset'!$C:$C,$B152,'DTM Dataset'!J:J) -> 6980
B153: Rawanduz | C153: =SUMIF('DTM Dataset'!$C:$C,$B153,'DTM Dataset'!I:I) -> 326 | D153: =SUMIF('DTM Dataset'!$C:$C,$B153,'DTM Dataset'!J:J) -> 1956
B154: Shaqlawa | C154: =SUMIF('DTM Dataset'!$C:$C,$B154,'DTM Dataset'!I:I) -> 829 | D154: =SUMIF('DTM Dataset'!$C:$C,$B154,'DTM Dataset'!J:J) -> 4974
A155: Kerbala | B155: Ain Al-Tamur | C155: =SUMIF('DTM Dataset'!$C:$C,$B155,'DTM Dataset'!I:I) -> 23 | D155: =SUMIF('DTM Dataset'!$C:$C,$B155,'DTM Dataset'!J:J) -> 138
B156: Al-Hindiya | C156: =SUMIF('DTM Dataset'!$C:$C,$B156,'DTM Dataset'!I:I) -> 143 | D156: =SUMIF('DTM Dataset'!$C:$C,$B156,'DTM Dataset'!J:J) -> 858
B157: Kerbela | C157: =SUMIF('DTM Dataset'!$C:$C,$B157,'DTM Dataset'!I:I) -> 1621 | D157: =SUMIF('DTM Dataset'!$C:$C,$B157,'DTM Dataset'!J:J) -> 9726
A158: Kirkuk | B158: Al-Hawiga | C158: =SUMIF('DTM Dataset'!$C:$C,$B158,'DTM Dataset'!I:I) -> 146 | D158: =SUMIF('DTM Dataset'!$C:$C,$B158,'DTM Dataset'!J:J) -> 876
B159: Daquq | C159: =SUMIF('DTM Dataset'!$C:$C,$B159,'DTM Dataset'!I:I) -> 859 | D159: =SUMIF('DTM Dataset'!$C:$C,$B159,'DTM Dataset'!J:J) -> 5154
B160: Dibis | C160: =SUMIF('DTM Dataset'!$C:$C,$B160,'DTM Dataset'!I:I) -> 332 | D160: =SUMIF('DTM Dataset'!$C:$C,$B160,'DTM Dataset'!J:J) -> 1992
B161: Kirkuk | C161: =SUMIF('DTM Dataset'!$C:$C,$B161,'DTM Dataset'!I:I) -> 14009 | D161: =SUMIF('DTM Dataset'!$C:$C,$B161,'DTM Dataset'!J:J) -> 84054
A162: Maysan | B162: Al-Amara | C162: =SUMIF('DTM Dataset'!$C:$C,$B162,'DTM Dataset'!I:I) -> 5 | D162: =SUMIF('DTM Dataset'!$C:$C,$B162,'DTM Dataset'!J:J) -> 30
B163: Ali Al-Gharbi | C163: =SUMIF('DTM Dataset'!$C:$C,$B163,'DTM Dataset'!I:I) -> 10 | D163: =SUMIF('DTM Dataset'!$C:$C,$B163,'DTM Dataset'!J:J) -> 60
B164: Al-Kahla | C164: =SUMIF('DTM Dataset'!$C:$C,$B164,'DTM Dataset'!I:I) -> 249 | D164: =SUMIF('DTM Dataset'!$C:$C,$B164,'DTM Dataset'!J:J) -> 1494
B165: Al-Maimouna | C165: =SUMIF('DTM Dataset'!$C:$C,$B165,'DTM Dataset'!I:I) -> 2 | D165: =SUMIF('DTM Dataset'!$C:$C,$B165,'DTM Dataset'!J:J) -> 12
B166: Al-Mejar Al-Kabir | C166: =SUMIF('DTM Dataset'!$C:$C,$B166,'DTM Dataset'!I:I) -> 24 | D166: =SUMIF('DTM Dataset'!$C:$C,$B166,'DTM Dataset'!J:J) -> 144
B167: Qalat Saleh | C167: =SUMIF('DTM Dataset'!$C:$C,$B167,'DTM Dataset'!I:I) -> 17 | D167: =SUMIF('DTM Dataset'!$C:$C,$B167,'DTM Dataset'!J:J) -> 102
A168: Ninewa | B168: Al-Baaj | C168: =SUMIF('DTM Dataset'!$C:$C,$B168,'DTM Dataset'!I:I) -> 1259 | D168: =SUMIF('DTM Dataset'!$C:$C,$B168,'DTM Dataset'!J:J) -> 7554
B169: Al-Hamdaniya | C169: =SUMIF('DTM Dataset'!$C:$C,$B169,'DTM Dataset'!I:I) -> 7488 | D169: =SUMIF('DTM Dataset'!$C:$C,$B169,'DTM Dataset'!J:J) -> 41759
B170: Al-Hatra | C170: =SUMIF('DTM Dataset'!$C:$C,$B170,'DTM Dataset'!I:I) -> 690 | D170: =SUMIF('DTM Dataset'!$C:$C,$B170,'DTM Dataset'!J:J) -> 4140
B171: Al-Mosul | C171: =SUMIF('DTM Dataset'!$C:$C,$B171,'DTM Dataset'!I:I) -> 15133 | D171: =SUMIF('DTM Dataset'!$C:$C,$B171,'DTM Dataset'!J:J) -> 89885
B172: Al-Shikhan | C172: =SUMIF('DTM Dataset'!$C:$C,$B172,'DTM Dataset'!I:I) -> 7932 | D172: =SUMIF('DTM Dataset'!$C:$C,$B172,'DTM Dataset'!J:J) -> 42837
B173: Aqra | C173: =SUMIF('DTM Dataset'!$C:$C,$B173,'DTM Dataset'!I:I) -> 4091 | D173: =SUMIF('DTM Dataset'!$C:$C,$B173,'DTM Dataset'!J:J) -> 24380
B174: Sinjar | C174: =SUMIF('DTM Dataset'!$C:$C,$B174,'DTM Dataset'!I:I) -> 6033 | D174: =SUMIF('DTM Dataset'!$C:$C,$B174,'DTM Dataset'!J:J) -> 36198
B175: Telafar | C175: =SUMIF('DTM Dataset'!$C:$C,$B175,'DTM Dataset'!I:I) -> 1513 | D175: =SUMIF('DTM Dataset'!$C:$C,$B175,'DTM Dataset'!J:J) -> 9078
B176: Tilkaef | C176: =SUMIF('DTM Dataset'!$C:$C,$B176,'DTM Dataset'!I:I) -> 2882 | D176: =SUMIF('DTM Dataset'!$C:$C,$B176,'DTM Dataset'!J:J) -> 17292
A177: Salah al-Din | B177: Al-Daur | C177: =SUMIF('DTM Dataset'!$C:$C,$B177,'DTM Dataset'!I:I) -> 11 | D177: =SUMIF('DTM Dataset'!$C:$C,$B177,'DTM Dataset'!J:J) -> 66
B178: Al-Shirqat | C178: =SUMIF('DTM Dataset'!$C:$C,$B178,'DTM Dataset'!I:I) -> 43 | D178: =SUMIF('DTM Dataset'!$C:$C,$B178,'DTM Dataset'!J:J) -> 258
B179: Balad | C179: =SUMIF('DTM Dataset'!$C:$C,$B179,'DTM Dataset'!I:I) -> 824 | D179: =SUMIF('DTM Dataset'!$C:$C,$B179,'DTM Dataset'!J:J) -> 4944
B180: Beygee | C180: =SUMIF('DTM Dataset'!$C:$C,$B180,'DTM Dataset'!I:I) -> 177 | D180: =SUMIF('DTM Dataset'!$C:$C,$B180,'DTM Dataset'!J:J) -> 1062
B181: Samarra | C181: =SUMIF('DTM Dataset'!$C:$C,$B181,'DTM Dataset'!I:I) -> 2564 | D181: =SUMIF('DTM Dataset'!$C:$C,$B181,'DTM Dataset'!J:J) -> 15384
B182: Tikrit | C182: =SUMIF('DTM Dataset'!$C:$C,$B182,'DTM Dataset'!I:I) -> 2235 | D182: =SUMIF('DTM Dataset'!$C:$C,$B182,'DTM Dataset'!J:J) -> 13410
B183: Tooz Khurmato | C183: =SUMIF('DTM Dataset'!$C:$C,$B183,'DTM Dataset'!I:I) -> 3211 | D183: =SUMIF('DTM Dataset'!$C:$C,$B183,'DTM Dataset'!J:J) -> 19266
A184: Thi Qar | B184: Al-Chibayish | C184: =SUMIF('DTM Dataset'!$C:$C,$B184,'DTM Dataset'!I:I) -> 4 | D184: =SUMIF('DTM Dataset'!$C:$C,$B184,'DTM Dataset'!J:J) -> 24
B185: Al-Nasiriya | C185: =SUMIF('DTM Dataset'!$C:$C,$B185,'DTM Dataset'!I:I) -> 291 | D185: =SUMIF('DTM Dataset'!$C:$C,$B185,'DTM Dataset'!J:J) -> 1746
B186: Al-Rifai | C186: =SUMIF('DTM Dataset'!$C:$C,$B186,'DTM Dataset'!I:I) -> 116 | D186: =SUMIF('DTM Dataset'!$C:$C,$B186,'DTM Dataset'!J:J) -> 696
B187: Al-Shatra | C187: =SUMIF('DTM Dataset'!$C:$C,$B187,'DTM Dataset'!I:I) -> 25 | D187: =SUMIF('DTM Dataset'!$C:$C,$B187,'DTM Dataset'!J:J) -> 150
B188: Suq Al-Shoyokh | C188: =SUMIF('DTM Dataset'!$C:$C,$B188,'DTM Dataset'!I:I) -> 78 | D188: =SUMIF('DTM Dataset'!$C:$C,$B188,'DTM Dataset'!J:J) -> 468
A189: Wassit | B189: Al-Hai | C189: =SUMIF('DTM Dataset'!$C:$C,$B189,'DTM Dataset'!I:I) -> 42 | D189: =SUMIF('DTM Dataset'!$C:$C,$B189,'DTM Dataset'!J:J) -> 252
B190: Al-Kut | C190: =SUMIF('DTM Dataset'!$C:$C,$B190,'DTM Dataset'!I:I) -> 475 | D190: =SUMIF('DTM Dataset'!$C:$C,$B190,'DTM Dataset'!J:J) -> 2850
B191: Al-Namaniya | C191: =SUMIF('DTM Dataset'!$C:$C,$B191,'DTM Dataset'!I:I) -> 45 | D191: =SUMIF('DTM Dataset'!$C:$C,$B191,'DTM Dataset'!J:J) -> 270
B192: Al-Suwaira | C192: =SUMIF('DTM Dataset'!$C:$C,$B192,'DTM Dataset'!I:I) -> 122 | D192: =SUMIF('DTM Dataset'!$C:$C,$B192,'DTM Dataset'!J:J) -> 732
B193: Badra | C193: =SUMIF('DTM Dataset'!$C:$C,$B193,'DTM Dataset'!I:I) -> 32 | D193: =SUMIF('DTM Dataset'!$C:$C,$B193,'DTM Dataset'!J:J) -> 192
A194: Total | C194: =SUM(C94:C193) -> 202206 | D194: =SUM(D94:D193) -> 1177234

Sheet DTM Dataset
A1: DTM : IDP Master List 30-06-2022
A2: Location of Displacement | I2: Total # of IDPs | K2: New arrivals | M2: Shelter type (in red, classified as critical shelters) | Z2: Governorate of origin (Number of Individuals) | AR2: Period of displacement (Number of Individuals) | BD2: Link for Map
A3: Place id | B3: Governorate | C3: District | D3: Sub-district | E3: Location name in English | F3: Location name in Arabic | G3: Latitude | H3: Longitude | I3: Households | J3: Individuals | K3: Individuals displaced for a 1st time | L3: Individuals arriving from other location of displacement | M3: Camp | N3: Host families | O3: Hotel/Motel or short-term rental | P3: Own Property | Q3: Apartment/House (not owned) (habitable) | R3: Apartment/House (not owned)(uninhabitable) | S3: Tent/Caravan/makeshift shelter/mud or block house | T3: Unfinished/Abandoned building | U3: Public Buildings or Collective shelters | V3: Religious building | W3: School building | X3: Other Critical shelter | Y3: Unknown shelter type | Z3: Al-Anbar | AA3: Babil | AB3: Baghdad | AC3: Al-Basrah | AD3: Duhok | AE3: Diyala | AF3: Erbil | AG3: Kerbala | AH3: Kirkuk | AI3: Maysan | AJ3: Al-Muthanna | AK3: Najaf | AL3: Ninewa | AM3: Qadissiya | AN3: Salah al-Din | AO3: Al-Sulaymaniyah | AP3: Thi Qar | AQ3: Wassit | AR3: Pre-June14 | AS3: June-July14 | AT3: August14 | AU3: Post September14 | AV3: Post April15 | AW3: Post March16 | AX3: Post 17 October16 | AY3: July 17 | AZ3: Jan 19 | BA3: ـJan 20 | BB3: Jan2021 | BC3: Jan 2022 | BD3: Open Street Map | BE3: Google Map | BF3: Bing Map
A4: 23791 | B4: Al-Anbar | C4: Al-Kaim | D4: Al-Karabla | E4: Al Nahda Al-Sharqiyah | F4: حي النهضة الشرقية | G4: 34.36827894 | H4: 41.05775748 | I4: 15 | J4: 90 | K4: 0 | L4: 0 | M4: 0 | N4: 6 | O4: 0 | P4: 0 | Q4: 84 | R4: 0 | S4: 0 | T4: 0 | U4: 0 | V4: 0 | W4: 0 | X4: 0 | Y4: 0 | Z4: 90 | AA4: 0 | AB4: 0 | AC4: 0 | AD4: 0 | AE4: 0 | AF4: 0 | AG4: 0 | AH4: 0 | AI4: 0 | AJ4: 0 | AK4: 0 | AL4: 0 | AM4: 0 | AN4: 0 | AO4: 0 | AP4: 0 | AQ4: 0 | AR4: 0 | AS4: 0 | AT4: 0 | AU4: 0 | AV4: 0 | AW4: 90 | AX4: 0 | AY4: 0 | AZ4: 0 | BA4: 0 | BB4: 0 | BC4: 0 | BD4: =HYPERLINK("http://www.openstreetmap.org/?mlat=34.3683&mlon=41.0578&zoom=12#map=12/34.3683/41.0578","Maplink1") -> Maplink1 | BE4: =HYPERLINK("https://www.google.iq/maps/search/+34.3683,41.0578/@34.3683,41.0578,14z?hl=en","Maplink2") -> Maplink2 | BF4: =HYPERLINK("http://www.bing.com/maps/?lvl=14&sty=h&cp=34.3683~41.0578&sp=point.34.3683_41.0578","Maplink3") -> Maplink3
A5: 90 | B5: Al-Anbar | C5: Al-Kaim | D5: Al-Obiadi | E5: Al Ubaydi-1 | F5: العبيدي-مرحلة أولى | G5: 34.42921424 | H5: 41.22633253 | I5: 36 | J5: 216 | K5: 0 | L5: 0 | M5: 0 | N5: 0 | O5: 0 | P5: 0 | Q5: 216 | R5: 0 | S5: 0 | T5: 0 | U5: 0 | V5: 0 | W5: 0 | X5: 0 | Y5: 0 | Z5: 216 | AA5: 0 | AB5: 0 | AC5: 0 | AD5: 0 | AE5: 0 | AF5: 0 | AG5: 0 | AH5: 0 | AI5: 0 | AJ5: 0 | AK5: 0 | AL5: 0 | AM5: 0 | AN5: 0 | AO5: 0 | AP5: 0 | AQ5: 0 | AR5: 0 | AS5: 0 | AT5: 0 | AU5: 0 | AV5: 180 | AW5: 0 | AX5: 36 | AY5: 0 | AZ5: 0 | BA5: 0 | BB5: 0 | BC5: 0 | BD5: =HYPERLINK("http://www.openstreetmap.org/?mlat=34.4292&mlon=41.2263&zoom=12#map=12/34.4292/41.2263","Maplink1") -> Maplink1 | BE5: =HYPERLINK("https://www.google.iq/maps/search/+34.4292,41.2263/@34.4292,41.2263,14z?hl=en","Maplink2") -> Maplink2 | BF5: =HYPERLINK("http://www.bing.com/maps/?lvl=14&sty=h&cp=34.4292~41.2263&sp=point.34.4292_41.2263","Maplink3") -> Maplink3
A6: 23797 | B6: Al-Anbar | C6: Al-Kaim | D6: Al-Rummaneh | E6: Al Ubaydi-2 | F6: مرحلة الثانية | G6: 34.43464907 | H6: 41.22600695 | I6: 41 | J6: 246 | K6: 0 | L6: 0 | M6: 0 | N6: 0 | O6: 0 | P6: 0 | Q6: 246 | R6: 0 | S6: 0 | T6: 0 | U6: 0 | V6: 0 | W6: 0 | X6: 0 | Y6: 0 | Z6: 246 | AA6: 0 | AB6: 0 | AC6: 0 | AD6: 0 | AE6: 0 | AF6: 0 | AG6: 0 | AH6: 0 | AI6: 0 | AJ6: 0 | AK6: 0 | AL6: 0 | AM6: 0 | AN6: 0 | AO6: 0 | AP6: 0 | AQ6: 0 | AR6: 0 | AS6: 0 | AT6: 0 | AU6: 0 | AV6: 174 | AW6: 0 | AX6: 72 | AY6: 0 | AZ6: 0 | BA6: 0 | BB6: 0 | BC6: 0 | BD6: =HYPERLINK("http://www.openstreetmap.org/?mlat=34.4346&mlon=41.226&zoom=12#map=12/34.4346/41.226","Maplink1") -> Maplink1 | BE6: =HYPERLINK("https://www.google.iq/maps/search/+34.4346,41.226/@34.4346,41.226,14z?hl=en","Maplink2") -> Maplink2 | BF6: =HYPERLINK("http://www.bing.com/maps/?lvl=14&sty=h&cp=34.4346~41.226&sp=point.34.4346_41.226","Maplink3") -> Maplink3
A7: 164 | B7: Al-Anbar | C7: Al-Kaim | D7: Al-Obiadi | E7: Al Ubaydi-3 | F7: العبيدي-مرحلة ثالثة | G7: 34.43659527 | H7: 41.23289955 | I7: 66 | J7: 396 | K7: 0 | L7: 0 | M7: 0 | N7: 0 | O7: 0 | P7: 0 | Q7: 396 | R7: 0 | S7: 0 | T7: 0 | U7: 0 | V7: 0 | W7: 0 | X7: 0 | Y7: 0 | Z7: 396 | AA7: 0 | AB7: 0 | AC7: 0 | AD7: 0 | AE7: 0 | AF7: 0 | AG7: 0 | AH7: 0 | AI7: 0 | AJ7: 0 | AK7: 0 | AL7: 0 | AM7: 0 | AN7: 0 | AO7: 0 | AP7: 0 | AQ7: 0 | AR7: 0 | AS7: 0 | AT7: 0 | AU7: 0 | AV7: 288 | AW7: 24 | AX7: 84 | AY7: 0 | AZ7: 0 | BA7: 0 | BB7: 0 | BC7: 0 | BD7: =HYPERLINK("http://www.openstreetmap.org/?mlat=34.4366&mlon=41.2329&zoom=12#map=12/34.4366/41.2329","Maplink1") -> Maplink1 | BE7: =HYPERLINK("https://www.google.iq/maps/search/+34.4366,41.2329/@34.4366,41.2329,14z?hl=en","Maplink2") -> Maplink2 | BF7: =HYPERLINK("http://www.bing.com/maps/?lvl=14&sty=h&cp=34.4366~41.2329&sp=point.34.4366_41.2329","Maplink3") -> Maplink3
A8: 274 | B8: Al-Anbar | C8: Al-Kaim | D8: Al-Rummaneh | E8: Al-Rabet | F8: قرية الربط | G8: 34.42667147 | H8: 41.04013607 | I8: 1 | J8: 6 | K8: NA | L8: NA | M8: 0 | N8: 6 | O8: 0 | P8: 0 | Q8: 0 | R8: 0 | S8: 0 | T8: 0 | U8: 0 | V8: 0 | W8: 0 | X8: 0 | Y8: 0 | Z8: 6 | AA8: 0 | AB8: 0 | AC8: 0 | AD8: 0 | AE8: 0 | AF8: 0 | AG8: 0 | AH8: 0 | AI8: 0 | AJ8: 0 | AK8: 0 | AL8: 0 | AM8: 0 | AN8: 0 | AO8: 0 | AP8: 0 | AQ8: 0 | AR8: 0 | AS8: 0 | AT8: 0 | AU8: 0 | AV8: 6 | AW8: 0 | AX8: 0 | AY8: 0 | AZ8: 0 | BA8: 0 | BB8: 0 | BC8: 0 | BD8: =HYPERLINK("http://www.openstreetmap.org/?mlat=34.4267&mlon=41.0401&zoom=12#map=12/34.4267/41.0401","Maplink1") -> Maplink1 | BE8: =HYPERLINK("https://www.google.iq/maps/search/+34.4267,41.0401/@34.4267,41.0401,14z?hl=en","Maplink2") -> Maplink2 | BF8: =HYPERLINK("http://www.bing.com/maps/?lvl=14&sty=h&cp=34.4267~41.0401&sp=point.34.4267_41.0401","Maplink3") -> Maplink3
A9: 272 | B9: Al-Anbar | C9: Al-Kaim | D9: Al-Rummaneh | E9: Hay 12 Rabee Alawal | F9: حي 12ربيع الاول | G9: 34.39208833 | H9: 40.98504599 | I9: 4 | J9: 24 | K9: NA | L9: NA | M9: 0 | N9: 0 | O9: 0 | P9: 0 | Q9: 24 | R9: 0 | S9: 0 | T9: 0 | U9: 0 | V9: 0 | W9: 0 | X9: 0 | Y9: 0 | Z9: 24 | AA9: 0 | AB9: 0 | AC9: 0 | AD9: 0 | AE9: 0 | AF9: 0 | AG9: 0 | AH9: 0 | AI9: 0 | AJ9: 0 | AK9: 0 | AL9: 0 | AM9: 0 | AN9: 0 | AO9: 0 | AP9: 0 | AQ9: 0 | AR9: 0 | AS9: 0 | AT9: 0 | AU9: 0 | AV9: 0 | AW9: 24 | AX9: 0 | AY9: 0 | AZ9: 0 | BA9: 0 | BB9: 0 | BC9: 0 | BD9: =HYPERLINK("http://www.openstreetmap.org/?mlat=34.3921&mlon=40.985&zoom=12#map=12/34.3921/40.985","Maplink1") -> Maplink1 | BE9: =HYPERLINK("https://www.google.iq/maps/search/+34.3921,40.985/@34.3921,40.985,14z?hl=en","Maplink2") -> Maplink2 | BF9: =HYPERLINK("http://www.bing.com/maps/?lvl=14&sty=h&cp=34.3921~40.985&sp=point.34.3921_40.985","Maplink3") -> Maplink3
A10: 23790 | B10: Al-Anbar | C10: Al-Kaim | D10: Al-Karabla | E10: Hay Al Shuhadaa | F10: حي الشهداء | G10: 34.3737901 | H10: 41.06328701 | I10: 38 | J10: 228 | K10: 0 | L10: 0 | M10: 0 | N10: 30 | O10: 0 | P10: 0 | Q10: 198 | R10: 0 | S10: 0 | T10: 0 | U10: 0 | V10: 0 | W10: 0 | X10: 0 | Y10: 0 | Z10: 228 | AA10: 0 | AB10: 0 | AC10: 0 | AD10: 0 | AE10: 0 | AF10: 0 | AG10: 0 | AH10: 0 | AI10: 0 | AJ10: 0 | AK10: 0 | AL10: 0 | AM10: 0 | AN10: 0 | AO10: 0 | AP10: 0 | AQ10: 0 | AR10: 0 | AS10: 0 | AT10: 0 | AU10: 0 | AV10: 0 | AW10: 168 | AX10: 60 | AY10: 0 | AZ10: 0 | BA10: 0 | BB10: 0 | BC10: 0 | BD10: =HYPERLINK("http://www.openstreetmap.org/?mlat=34.3738&mlon=41.0633&zoom=12#map=12/34.3738/41.0633","Maplink1") -> Maplink1 | BE10: =HYPERLINK("https://www.google.iq/maps/search/+34.3738,41.0633/@34.3738,41.0633,14z?hl=en","Maplink2") -> Maplink2 | BF10: =HYPERLINK("http://www.bing.com/maps/?lvl=14&sty=h&cp=34.3738~41.0633&sp=point.34.3738_41.0633","Maplink3") -> Maplink3
A11: 277 | B11: Al-Anbar | C11: Al-Kaim | D11: Al-Rummaneh | E11: Hay Al-Maamon | F11: حي المامون | G11: 34.39362133 | H11: 41.000431 | I11: 3 | J11: 18 | K11: NA | L11: NA | M11: 0 | N11: 6 | O11: 0 | P11: 0 | Q11: 12 | R11: 0 | S11: 0 | T11: 0 | U11: 0 | V11: 0 | W11: 0 | X11: 0 | Y11: 0 | Z11: 18 | AA11: 0 | AB11: 0 | AC11: 0 | AD11: 0 | AE11: 0 | AF11: 0 | AG11: 0 | AH11: 0 | AI11: 0 | AJ11: 0 | AK11: 0 | AL11: 0 | AM11: 0 | AN11: 0 | AO11: 0 | AP11: 0 | AQ11: 0 | AR11: 0 | AS11: 0 | AT11: 0 | AU11: 0 | AV11: 0 | AW11: 12 | AX11: 6 | AY11: 0 | AZ11: 0 | BA11: 0 | BB11: 0 | BC11: 0 | BD11: =HYPERLINK("http://www.openstreetmap.org/?mlat=34.3936&mlon=41.0004&zoom=12#map=12/34.3936/41.0004","Maplink1") -> Maplink1 | BE11: =HYPERLINK("https://www.google.iq/maps/search/+34.3936,41.0004/@34.3936,41.0004,14z?hl=en","Maplink2") -> Maplink2 | BF11: =HYPERLINK("http://www.bing.com/maps/?lvl=14&sty=h&cp=34.3936~41.0004&sp=point.34.3936_41.0004","Maplink3") -> Maplink3
A12: 66 | B12: Al-Anbar | C12: Al-Kaim | D12: Al-Karabla | E12: Sadah | F12: قرية سعده | G12: 34.36995574 | H12: 41.09281041 | I12: 59 | J12: 354 | K12: 0 | L12: 0 | M12: 0 | N12: 30 | O12: 0 | P12: 0 | Q12: 324 | R12: 0 | S12: 0 | T12: 0 | U12: 0 | V12: 0 | W12: 0 | X12: 0 | Y12: 0 | Z12: 354 | AA12: 0 | AB12: 0 | AC12: 0 | AD12: 0 | AE12: 0 | AF12: 0 | AG12: 0 | AH12: 0 | AI12: 0 | AJ12: 0 | AK12: 0 | AL12: 0 | AM12: 0 | AN12: 0 | AO12: 0 | AP12: 0 | AQ12: 0 | AR12: 0 | AS12: 0 | AT12: 0 | AU12: 12 | AV12: 90 | AW12: 186 | AX12: 66 | AY12: 0 | AZ12: 0 | BA12: 0 | BB12: 0 | BC12: 0 | BD12: =HYPERLINK("http://www.openstreetmap.org/?mlat=34.37&mlon=41.0928&zoom=12#map=12/34.37/41.0928","Maplink1") -> Maplink1 | BE12: =HYPERLINK("https://www.google.iq/maps/search/+34.37,41.0928/@34.37,41.0928,14z?hl=en","Maplink2") -> Maplink2 | BF12: =HYPERLINK("http://www.bing.com/maps/?lvl=14&sty=h&cp=34.37~41.0928&sp=point.34.37_41.0928","Maplink3") -> Maplink3
A13: 156 | B13: Al-Anbar | C13: Al-Kaim | D13: Al-Karabla | E13: Wazeeriya | F13: حي الوزيرية | G13: 34.38141702 | H13: 41.03964076 | I13: 32 | J13: 192 | K13: 0 | L13: 0 | M13: 0 | N13: 36 | O13: 0 | P13: 0 | Q13: 156 | R13: 0 | S13: 0 | T13: 0 | U13: 0 | V13: 0 | W13: 0 | X13: 0 | Y13: 0 | Z13: 192 | AA13: 0 | AB13: 0 | AC13: 0 | AD13: 0 | AE13: 0 | AF13: 0 | AG13: 0 | AH13: 0 | AI13: 0 | AJ13: 0 | AK13: 0 | AL13: 0 | AM13: 0 | AN13: 0 | AO13: 0 | AP13: 0 | AQ13: 0 | AR13: 0 | AS13: 0 | AT13: 0 | AU13: 0 | AV13: 48 | AW13: 144 | AX13: 0 | AY13: 0 | AZ13: 0 | BA13: 0 | BB13: 0 | BC13: 0 | BD13: =HYPERLINK("http://www.openstreetmap.org/?mlat=34.3814&mlon=41.0396&zoom=12#map=12/34.3814/41.0396","Maplink1") -> Maplink1 | BE13: =HYPERLINK("https://www.google.iq/maps/search/+34.3814,41.0396/@34.3814,41.0396,14z?hl=en","Maplink2") -> Maplink2 | BF13: =HYPERLINK("http://www.bing.com/maps/?lvl=14&sty=h&cp=34.3814~41.0396&sp=point.34.3814_41.0396","Maplink3") -> Maplink3
A14: 33778 | B14: Al-Anbar | C14: Al-Kaim | D14: Al-Obiadi | E14: AI Ubaydi-4 | F14: العبيدي-المرحلة الرابعة السمت | G14: 34.43304333 | H14: 41.23414281 | I14: 20 | J14: 120 | K14: 0 | L14: 0 | M14: 0 | N14: 0 | O14: 0 | P14: 0 | Q14: 120 | R14: 0 | S14: 0 | T14: 0 | U14: 0 | V14: 0 | W14: 0 | X14: 0 | Y14: 0 | Z14: 120 | AA14: 0 | AB14: 0 | AC14: 0 | AD14: 0 | AE14: 0 | AF14: 0 | AG14: 0 | AH14: 0 | AI14: 0 | AJ14: 0 | AK14: 0 | AL14: 0 | AM14: 0 | AN14: 0 | AO14: 0 | AP14: 0 | AQ14: 0 | AR14: 0 | AS14: 0 | AT14: 0 | AU14: 0 | AV14: 0 | AW14: 78 | AX14: 6 | AY14: 36 | AZ14: 0 | BA14: 0 | BB14: 0 | BC14: 0 | BD14: =HYPERLINK("http://www.openstreetmap.org/?mlat=34.433&mlon=41.2341&zoom=12#map=12/34.433/41.2341","Maplink1") -> Maplink1 | BE14: =HYPERLINK("https://www.google.iq/maps/search/+34.433,41.2341/@34.433,41.2341,14z?hl=en","Maplink2") -> Maplink2 | BF14: =HYPERLINK("http://www.bing.com/maps/?lvl=14&sty=h&cp=34.433~41.2341&sp=point.34.433_41.2341","Maplink3") -> Maplink3
A15: 33816 | B15: Al-Anbar | C15: Al-Kaim | D15: Al-Rummaneh | E15: Hay Al Forat | F15: حي الفرات | G15: 34.4117274 | H15: 41.0047866 | I15: 4 | J15: 24 | K15: NA | L15: NA | M15: 0 | N15: 0 | O15: 0 | P15: 0 | Q15: 24 | R15: 0 | S15: 0 | T15: 0 | U15: 0 | V15: 0 | W15: 0 | X15: 0 | Y15: 0 | Z15: 24 | AA15: 0 | AB15: 0 | AC15: 0 | AD15: 0 | AE15: 0 | AF15: 0 | AG15: 0 | AH15: 0 | AI15: 0 | AJ15: 0 | AK15: 0 | AL15: 0 | AM15: 0 | AN15: 0 | AO15: 0 | AP15: 0 | AQ15: 0 | AR15: 0 | AS15: 0 | AT15: 0 | AU15: 0 | AV15: 0 | AW15: 0 | AX15: 24 | AY15: 0 | AZ15: 0 | BA15: 0 | BB15: 0 | BC15: 0 | BD15: =HYPERLINK("http://www.openstreetmap.org/?mlat=34.4117&mlon=41.0048&zoom=12#map=12/34.4117/41.0048","Maplink1") -> Maplink1 | BE15: =HYPERLINK("https://www.google.iq/maps/search/+34.4117,41.0048/@34.4117,41.0048,14z?hl=en","Maplink2") -> Maplink2 | BF15: =HYPERLINK("http://www.bing.com/maps/?lvl=14&sty=h&cp=34.4117~41.0048&sp=point.34.4117_41.0048","Maplink3") -> Maplink3
A16: 33947 | B16: Al-Anbar | C16: Al-Kaim | D16: Al-Karabla | E16: Swehil Village | F16: قرية سويحل | G16: 34.37330748 | H16: 41.07333197 | I16: 22 | J16: 132 | K16: 0 | L16: 0 | M16: 0 | N16: 30 | O16: 0 | P16: 0 | Q16: 102 | R16: 0 | S16: 0 | T16: 0 | U16: 0 | V16: 0 | W16: 0 | X16: 0 | Y16: 0 | Z16: 132 | AA16: 0 | AB16: 0 | AC16: 0 | AD16: 0 | AE16: 0 | AF16: 0 | AG16: 0 | AH16: 0 | AI16: 0 | AJ16: 0 | AK16: 0 | AL16: 0 | AM16: 0 | AN16: 0 | AO16: 0 | AP16: 0 | AQ16: 0 | AR16: 0 | AS16: 0 | AT16: 0 | AU16: 18 | AV16: 0 | AW16: 96 | AX16: 18 | AY16: 0 | AZ16: 0 | BA16: 0 | BB16: 0 | BC16: 0 | BD16: =HYPERLINK("http://www.openstreetmap.org/?mlat=34.3733&mlon=41.0733&zoom=12#map=12/34.3733/41.0733","Maplink1") -> Maplink1 | BE16: =HYPERLINK("https://www.google.iq/maps/search/+34.3733,41.0733/@34.3733,41.0733,14z?hl=en","Maplink2") -> Maplink2 | BF16: =HYPERLINK("http://www.bing.com/maps/?lvl=14&sty=h&cp=34.3733~41.0733&sp=point.34.3733_41.0733","Maplink3") -> Maplink3
A17: 34249 | B17: Al-Anbar | C17: Al-Kaim | D17: Al-Karabla | E17: complex of Phosphate company | F17: المجمع السكني لموظفي شركة الفوسفات | G17: 34.33593631 | H17: 41.19326271 | I17: 7 | J17: 42 | K17: NA | L17: NA | M17: 0 | N17: 0 | O17: 0 | P17: 0 | Q17: 0 | R17: 0 | S17: 42 | T17: 0 | U17: 0 | V17: 0 | W17: 0 | X17: 0 | Y17: 0 | Z17: 42 | AA17: 0 | AB17: 0 | AC17: 0 | AD17: 0 | AE17: 0 | AF17: 0 | AG17: 0 | AH17: 0 | AI17: 0 | AJ17: 0 | AK17: 0 | AL17: 0 | AM17: 0 | AN17: 0 | AO17: 0 | AP17: 0 | AQ17: 0 | AR17: 0 | AS17: 0 | AT17: 0 | AU17: 42 | AV17: 0 | AW17: 0 | AX17: 0 | AY17: 0 | AZ17: 0 | BA17: 0 | BB17: 0 | BC17: 0 | BD17: =HYPERLINK("http://www.openstreetmap.org/?mlat=34.3359&mlon=41.1933&zoom=12#map=12/34.3359/41.1933","Maplink1") -> Maplink1 | BE17: =HYPERLINK("https://www.google.iq/maps/search/+34.3359,41.1933/@34.3359,41.1933,14z?hl=en","Maplink2") -> Maplink2 | BF17: =HYPERLINK("http://www.bing.com/maps/?lvl=14&sty=h&cp=34.3359~41.1933&sp=point.34.3359_41.1933","Maplink3") -> Maplink3
A18: 165 | B18: Al-Anbar | C18: Al-Rutba | D18: Markaz Al-Rutba | E18: Al Askaree | F18: حي العسكري | G18: 33.03800189 | H18: 40.30263444 | I18: 57 | J18: 342 | K18: 0 | L18: 0 | M18: 0 | N18: 0 | O18: 0 | P18: 0 | Q18: 288 | R18: 0 | S18: 0 | T18: 54 | U18: 0 | V18: 0 | W18: 0 | X18: 0 | Y18: 0 | Z18: 342 | AA18: 0 | AB18: 0 | AC18: 0 | AD18: 0 | AE18: 0 | AF18: 0 | AG18: 0 | AH18: 0 | AI18: 0 | AJ18: 0 | AK18: 0 | AL18: 0 | AM18: 0 | AN18: 0 | AO18: 0 | AP18: 0 | AQ18: 0 | AR18: 0 | AS18: 0 | AT18: 0 | AU18: 0 | AV18: 0 | AW18: 0 | AX18: 0 | AY18: 54 | AZ18: 288 | BA18: 0 | BB18: 0 | BC18: 0 | BD18: =HYPERLINK("http://www.openstreetmap.org/?mlat=33.038&mlon=40.3026&zoom=12#map=12/33.038/40.3026","Maplink1") -> Maplink1 | BE18: =HYPERLINK("https://www.google.iq/maps/search/+33.038,40.3026/@33.038,40.3026,14z?hl=en","Maplink2") -> Maplink2 | BF18: =HYPERLINK("http://www.bing.com/maps/?lvl=14&sty=h&cp=33.038~40.3026&sp=point.33.038_40.3026","Maplink3") -> Maplink3
A19: 150 | B19: Al-Anbar | C19: Al-Rutba | D19: Markaz Al-Rutba | E19: Al Haara | F19: حي الحارة | G19: 33.03761591 | H19: 40.28426443 | I19: 49 | J19: 294 | K19: 0 | L19: 0 | M19: 0 | N19: 0 | O19: 0 | P19: 0 | Q19: 246 | R19: 0 | S19: 0 | T19: 48 | U19: 0 | V19: 0 | W19: 0 | X19: 0 | Y19: 0 | Z19: 294 | AA19: 0 | AB19: 0 | AC19: 0 | AD19: 0 | AE19: 0 | AF19: 0 | AG19: 0 | AH19: 0 | AI19: 0 | AJ19: 0 | AK19: 0 | AL19: 0 | AM19: 0 | AN19: 0 | AO19: 0 | AP19: 0 | AQ19: 0 | AR19: 0 | AS19: 0 | AT19: 0 | AU19: 0 | AV19: 0 | AW19: 0 | AX19: 0 | AY19: 24 | AZ19: 270 | BA19: 0 | BB19: 0 | BC19: 0 | BD19: =HYPERLINK("http://www.openstreetmap.org/?mlat=33.0376&mlon=40.2843&zoom=12#map=12/33.0376/40.2843","Maplink1") -> Maplink1 | BE19: =HYPERLINK("https://www.google.iq/maps/search/+33.0376,40.2843/@33.0376,40.2843,14z?hl=en","Maplink2") -> Maplink2 | BF19: =HYPERLINK("http://www.bing.com/maps/?lvl=14&sty=h&cp=33.0376~40.2843&sp=point.33.0376_40.2843","Maplink3") -> Maplink3
A20: 231 | B20: Al-Anbar | C20: Al-Rutba | D20: Markaz Al-Rutba | E20: Al Wadi | F20: حي الوادي | G20: 33.03966421 | H20: 40.28365262 | I20: 69 | J20: 414 | K20: 0 | L20: 0 | M20: 0 | N20: 0 | O20: 0 | P20: 0 | Q20: 360 | R20: 0 | S20: 0 | T20: 54 | U20: 0 | V20: 0 | W20: 0 | X20: 0 | Y20: 0 | Z20: 414 | AA20: 0 | AB20: 0 | AC20: 0 | AD20: 0 | AE20: 0 | AF20: 0 | AG20: 0 | AH20: 0 | AI20: 0 | AJ20: 0 | AK20: 0 | AL20: 0 | AM20: 0 | AN20: 0 | AO20: 0 | AP20: 0 | AQ20: 0 | AR20: 0 | AS20: 0 | AT20: 0 | AU20: 0 | AV20: 0 | AW20: 0 | AX20: 0 | AY20: 30 | AZ20: 384 | BA20: 0 | BB20: 0 | BC20: 0 | BD20: =HYPERLINK("http://www.openstreetmap.org/?mlat=33.0397&mlon=40.2837&zoom=12#map=12/33.0397/40.2837","Maplink1") -> Maplink1 | BE20: =HYPERLINK("https://www.google.iq/maps/search/+33.0397,40.2837/@33.0397,40.2837,14z?hl=en","Maplink2") -> Maplink2 | BF20: =HYPERLINK("http://www.bing.com/maps/?lvl=14&sty=h&cp=33.0397~40.2837&sp=point.33.0397_40.2837","Maplink3") -> Maplink3
A21: 23935 | B21: Al-Anbar | C21: Al-Rutba | D21: Markaz Al-Rutba | E21: Al-Daraemah Village | F21: قرية الدراعمة | G21: 33.04302668 | H21: 40.38038346 | I21: 50 | J21: 300 | K21: 0 | L21: 0 | M21: 0 | N21: 0 | O21: 0 | P21: 300 | Q21: 0 | R21: 0 | S21: 0 | T21: 0 | U21: 0 | V21: 0 | W21: 0 | X21: 0 | Y21: 0 | Z21: 300 | AA21: 0 | AB21: 0 | AC21: 0 | AD21: 0 | AE21: 0 | AF21: 0 | AG21: 0 | AH21: 0 | AI21: 0 | AJ21: 0 | AK21: 0 | AL21: 0 | AM21: 0 | AN21: 0 | AO21: 0 | AP21: 0 | AQ21: 0 | AR21: 0 | AS21: 0 | AT21: 0 | AU21: 0 | AV21: 0 | AW21: 0 | AX21: 0 | AY21: 0 | AZ21: 300 | BA21: 0 | BB21: 0 | BC21: 0 | BD21: =HYPERLINK("http://www.openstreetmap.org/?mlat=33.043&mlon=40.3804&zoom=12#map=12/33.043/40.3804","Maplink1") -> Maplink1 | BE21: =HYPERLINK("https://www.google.iq/maps/search/+33.043,40.3804/@33.043,40.3804,14z?hl=en","Maplink2") -> Maplink2 | BF21: =HYPERLINK("http://www.bing.com/maps/?lvl=14&sty=h&cp=33.043~40.3804&sp=point.33.043_40.3804","Maplink3") -> Maplink3
A22: 167 | B22: Al-Anbar | C22: Al-Rutba | D22: Markaz Al-Rutba | E22: Antesar | F22: حي الانتصار | G22: 33.03126564 | H22: 40.29901479 | I22: 53 | J22: 318 | K22: 0 | L22: 0 | M22: 0 | N22: 0 | O22: 0 | P22: 0 | Q22: 252 | R22: 0 | S22: 0 | T22: 66 | U22: 0 | V22: 0 | W22: 0 | X22: 0 | Y22: 0 | Z22: 318 | AA22: 0 | AB22: 0 | AC22: 0 | AD22: 0 | AE22: 0 | AF22: 0 | AG22: 0 | AH22: 0 | AI22: 0 | AJ22: 0 | AK22: 0 | AL22: 0 | AM22: 0 | AN22: 0 | AO22: 0 | AP22: 0 | AQ22: 0 | AR22: 0 | AS22: 0 | AT22: 0 | AU22: 0 | AV22: 0 | AW22: 0 | AX22: 0 | AY22: 120 | AZ22: 198 | BA22: 0 | BB22: 0 | BC22: 0 | BD22: =HYPERLINK("http://www.openstreetmap.org/?mlat=33.0313&mlon=40.299&zoom=12#map=12/33.0313/40.299","Maplink1") -> Maplink1 | BE22: =HYPERLINK("https://www.google.iq/maps/search/+33.0313,40.299/@33.0313,40.299,14z?hl=en","Maplink2") -> Maplink2 | BF22: =HYPERLINK("http://www.bing.com/maps/?lvl=14&sty=h&cp=33.0313~40.299&sp=point.33.0313_40.299","Maplink3") -> Maplink3
A23: 23888 | B23: Al-Anbar | C23: Al-Rutba | D23: Markaz Al-Rutba | E23: Gharb Al-Wadi | F23: حي غرب الوادي | G23: 33.04245523 | H23: 40.27803907 | I23: 13 | J23: 78 | K23: 0 | L23: 0 | M23: 0 | N23: 0 | O23: 0 | P23: 0 | Q23: 78 | R23: 0 | S23: 0 | T23: 0 | U23: 0 | V23: 0 | W23: 0 | X23: 0 | Y23: 0 | Z23: 78 | AA23: 0 | AB23: 0 | AC23: 0 | AD23: 0 | AE23: 0 | AF23: 0 | AG23: 0 | AH23: 0 | AI23: 0 | AJ23: 0 | AK23: 0 | AL23: 0 | AM23: 0 | AN23: 0 | AO23: 0 | AP23: 0 | AQ23: 0 | AR23: 0 | AS23: 0 | AT23: 0 | AU23: 0 | AV23: 0 | AW23: 0 | AX23: 0 | AY23: 0 | AZ23: 78 | BA23: 0 | BB23: 0 | BC23: 0 | BD23: =HYPERLINK("http://www.openstreetmap.org/?mlat=33.0425&mlon=40.278&zoom=12#map=12/33.0425/40.278","Maplink1") -> Maplink1 | BE23: =HYPERLINK("https://www.google.iq/maps/search/+33.0425,40.278/@33.0425,40.278,14z?hl=en","Maplink2") -> Maplink2 | BF23: =HYPERLINK("http://www.bing.com/maps/?lvl=14&sty=h&cp=33.0425~40.278&sp=point.33.0425_40.278","Maplink3") -> Maplink3
A24: 166 | B24: Al-Anbar | C24: Al-Rutba | D24: Markaz Al-Rutba | E24: Hay Al Meethagh | F24: حي الميثاق | G24: 33.03197354 | H24: 40.29047217 | I24: 70 | J24: 420 | K24: 0 | L24: 0 | M24: 0 | N24: 0 | O24: 0 | P24: 0 | Q24: 318 | R24: 0 | S24: 0 | T24: 102 | U24: 0 | V24: 0 | W24: 0 | X24: 0 | Y24: 0 | Z24: 420 | AA24: 0 | AB24: 0 | AC24: 0 | AD24: 0 | AE24: 0 | AF24: 0 | AG24: 0 | AH24: 0 | AI24: 0 | AJ24: 0 | AK24: 0 | AL24: 0 | AM24: 0 | AN24: 0 | AO24: 0 | AP24: 0 | AQ24: 0 | AR24: 0 | AS24: 0 | AT24: 0 | AU24: 0 | AV24: 0 | AW24: 0 | AX24: 0 | AY24: 36 | AZ24: 384 | BA24: 0 | BB24: 0 | BC24: 0 | BD24: =HYPERLINK("http://www.openstreetmap.org/?mlat=33.032&mlon=40.2905&zoom=12#map=12/33.032/40.2905","Maplink1") -> Maplink1 | BE24: =HYPERLINK("https://www.google.iq/maps/search/+33.032,40.2905/@33.032,40.2905,14z?hl=en","Maplink2") -> Maplink2 | BF24: =HYPERLINK("http://www.bing.com/maps/?lvl=14&sty=h&cp=33.032~40.2905&sp=point.33.032_40.2905","Maplink3") -> Maplink3
A25: 233 | B25: Al-Anbar | C25: Al-Rutba | D25: Markaz Al-Rutba | E25: Hay Al-Matar | F25: حي المطار | G25: 33.03461084 | H25: 40.28668013 | I25: 54 | J25: 324 | K25: 0 | L25: 0 | M25: 0 | N25: 0 | O25: 0 | P25: 0 | Q25: 252 | R25: 0 | S25: 0 | T25: 72 | U25: 0 | V25: 0 | W25: 0 | X25: 0 | Y25: 0 | Z25: 324 | AA25: 0 | AB25: 0 | AC25: 0 | AD25: 0 | AE25: 0 | AF25: 0 | AG25: 0 | AH25: 0 | AI25: 0 | AJ25: 0 | AK25: 0 | AL25: 0 | AM25: 0 | AN25: 0 | AO25: 0 | AP25: 0 | AQ25: 0 | AR25: 0 | AS25: 0 | AT25: 0 | AU25: 0 | AV25: 0 | AW25: 0 | AX25: 0 | AY25: 60 | AZ25: 264 | BA25: 0 | BB25: 0 | BC25: 0 | BD25: =HYPERLINK("http://www.openstreetmap.org/?mlat=33.0346&mlon=40.2867&zoom=12#map=12/33.0346/40.2867","Maplink1") -> Maplink1 | BE25: =HYPERLINK("https://www.google.iq/maps/search/+33.0346,40.2867/@33.0346,40.2867,14z?hl=en","Maplink2") -> Maplink2 | BF25: =HYPERLINK("http://www.bing.com/maps/?lvl=14&sty=h&cp=33.0346~40.2867&sp=point.33.0346_40.2867","Maplink3") -> Maplink3
A26: 23936 | B26: Al-Anbar | C26: Al-Rutba | D26: Markaz Al-Rutba | E26: Rumilah Village | F26: قرية رميلة | G26: 33.06022091 | H26: 40.34556629 | I26: 30 | J26: 180 | K26: 0 | L26: 0 | M26: 0 | N26: 0 | O26: 0 | P26: 0 | Q26: 144 | R26: 0 | S26: 0 | T26: 36 | U26: 0 | V26: 0 | W26: 0 | X26: 0 | Y26: 0 | Z26: 180 | AA26: 0 | AB26: 0 | AC26: 0 | AD26: 0 | AE26: 0 | AF26: 0 | AG26: 0 | AH26: 0 | AI26: 0 | AJ26: 0 | AK26: 0 | AL26: 0 | AM26: 0 | AN26: 0 | AO26: 0 | AP26: 0 | AQ26: 0 | AR26: 0 | AS26: 0 | AT26: 0 | AU26: 0 | AV26: 0 | AW26: 0 | AX26: 0 | AY26: 0 | AZ26: 180 | BA26: 0 | BB26: 0 | BC26: 0 | BD26: =HYPERLINK("http://www.openstreetmap.org/?mlat=33.0602&mlon=40.3456&zoom=12#map=12/33.0602/40.3456","Maplink1") -> Maplink1 | BE26: =HYPERLINK("https://www.google.iq/maps/search/+33.0602,40.3456/@33.0602,40.3456,14z?hl=en","Maplink2") -> Maplink2 | BF26: =HYPERLINK("http://www.bing.com/maps/?lvl=14&sty=h&cp=33.0602~40.3456&sp=point.33.0602_40.3456","Maplink3") -> Maplink3
A27: 248 | B27: Al-Anbar | C27: Ana | D27: Markaz Ana | E27: Al bor (Shishan) | F27: حي العبور | G27: 34.36678805 | H27: 41.97078314 | I27: 141 | J27: 846 | K27: 0 | L27: 0 | M27: 0 | N27: 0 | O27: 0 | P27: 0 | Q27: 798 | R27: 48 | S27: 0 | T27: 0 | U27: 0 | V27: 0 | W27: 0 | X27: 0 | Y27: 0 | Z27: 738 | AA27: 0 | AB27: 108 | AC27: 0 | AD27: 0 | AE27: 0 | AF27: 0 | AG27: 0 | AH27: 0 | AI27: 0 | AJ27: 0 | AK27: 0 | AL27: 0 | AM27: 0 | AN27: 0 | AO27: 0 | AP27: 0 | AQ27: 0 | AR27: 0 | AS27: 180 | AT27: 0 | AU27: 0 | AV27: 0 | AW27: 0 | AX27: 78 | AY27: 534 | AZ27: 0 | BA27: 48 | BB27: 6 | BC27: 0 | BD27: =HYPERLINK("http://www.openstreetmap.org/?mlat=34.3668&mlon=41.9708&zoom=12#map=12/34.3668/41.9708","Maplink1") -> Maplink1 | BE27: =HYPERLINK("https://www.google.iq/maps/search/+34.3668,41.9708/@34.3668,41.9708,14z?hl=en","Maplink2") -> Maplink2 | BF27: =HYPERLINK("http://www.bing.com/maps/?lvl=14&sty=h&cp=34.3668~41.9708&sp=point.34.3668_41.9708","Maplink3") -> Maplink3
A28: 252 | B28: Al-Anbar | C28: Ana | D28: Markaz Ana | E28: Al Tadamon | F28: حي التضامن | G28: 34.36089741 | H28: 41.98314586 | I28: 86 | J28: 516 | K28: 0 | L28: 0 | M28: 0 | N28: 0 | O28: 0 | P28: 0 | Q28: 474 | R28: 42 | S28: 0 | T28: 0 | U28: 0 | V28: 0 | W28: 0 | X28: 0 | Y28: 0 | Z28: 456 | AA28: 0 | AB28: 60 | AC28: 0 | AD28: 0 | AE28: 0 | AF28: 0 | AG28: 0 | AH28: 0 | AI28: 0 | AJ28: 0 | AK28: 0 | AL28: 0 | AM28: 0 | AN28: 0 | AO28: 0 | AP28: 0 | AQ28: 0 | AR28: 0 | AS28: 72 | AT28: 0 | AU28: 0 | AV28: 0 | AW28: 0 | AX28: 24 | AY28: 390 | AZ28: 0 | BA28: 30 | BB28: 0 | BC28: 0 | BD28: =HYPERLINK("http://www.openstreetmap.org/?mlat=34.3609&mlon=41.9831&zoom=12#map=12/34.3609/41.9831","Maplink1") -> Maplink1 | BE28: =HYPERLINK("https://www.google.iq/maps/search/+34.3609,41.9831/@34.3609,41.9831,14z?hl=en","Maplink2") -> Maplink2 | BF28: =HYPERLINK("http://www.bing.com/maps/?lvl=14&sty=h&cp=34.3609~41.9831&sp=point.34.3609_41.9831","Maplink3") -> Maplink3
A29: 250 | B29: Al-Anbar | C29: Ana | D29: Markaz Ana | E29: Hay Al Nasir | F29: حي النصر | G29: 34.36660363 | H29: 41.9883185 | I29: 15 | J29: 90 | K29: 0 | L29: 0 | M29: 0 | N29: 0 | O29: 0 | P29: 0 | Q29: 90 | R29: 0 | S29: 0 | T29: 0 | U29: 0 | V29: 0 | W29: 0 | X29: 0 | Y29: 0 | Z29: 90 | AA29: 0 | AB29: 0 | AC29: 0 | AD29: 0 | AE29: 0 | AF29: 0 | AG29: 0 | AH29: 0 | AI29: 0 | AJ29: 0 | AK29: 0 | AL29: 0 | AM29: 0 | AN29: 0 | AO29: 0 | AP29: 0 | AQ29: 0 | AR29: 0 | AS29: 0 | AT29: 0 | AU29: 0 | AV29: 0 | AW29: 0 | AX29: 0 | AY29: 90 | AZ29: 0 | BA29: 0 | BB29: 0 | BC29: 0 | BD29: =HYPERLINK("http://www.openstreetmap.org/?mlat=34.3666&mlon=41.9883&zoom=12#map=12/34.3666/41.9883","Maplink1") -> Maplink1 | BE29: =HYPERLINK("https://www.google.iq/maps/search/+34.3666,41.9883/@34.3666,41.9883,14z?hl=en","Maplink2") -> Maplink2 | BF29: =HYPERLINK("http://www.bing.com/maps/?lvl=14&sty=h&cp=34.3666~41.9883&sp=point.34.3666_41.9883","Maplink3") -> Maplink3
A30: 251 | B30: Al-Anbar | C30: Ana | D30: Markaz Ana | E30: Hay Al Qadissiyah | F30: حي القادسية | G30: 34.37651192 | H30: 41.98403304 | I30: 7 | J30: 42 | K30: 0 | L30: 0 | M30: 0 | N30: 0 | O30: 0 | P30: 0 | Q30: 42 | R30: 0 | S30: 0 | T30: 0 | U30: 0 | V30: 0 | W30: 0 | X30: 0 | Y30: 0 | Z30: 42 | AA30: 0 | AB30: 0 | AC30: 0 | AD30: 0 | AE30: 0 | AF30: 0 | AG30: 0 | AH30: 0 | AI30: 0 | AJ30: 0 | AK30: 0 | AL30: 0 | AM30: 0 | AN30: 0 | AO30: 0 | AP30: 0 | AQ30: 0 | AR30: 0 | AS30: 0 | AT30: 0 | AU30: 0 | AV30: 0 | AW30: 0 | AX30: 0 | AY30: 42 | AZ30: 0 | BA30: 0 | BB30: 0 | BC30: 0 | BD30: =HYPERLINK("http://www.openstreetmap.org/?mlat=34.3765&mlon=41.984&zoom=12#map=12/34.3765/41.984","Maplink1") -> Maplink1 | BE30: =HYPERLINK("https://www.google.iq/maps/search/+34.3765,41.984/@34.3765,41.984,14z?hl=en","Maplink2") -> Maplink2 | BF30: =HYPERLINK("http://www.bing.com/maps/?lvl=14&sty=h&cp=34.3765~41.984&sp=point.34.3765_41.984","Maplink3") -> Maplink3
A31: 253 | B31: Al-Anbar | C31: Ana | D31: Markaz Ana | E31: Hay Al Salam | F31: حي السلام | G31: 34.37212521 | H31: 41.97703066 | I31: 37 | J31: 222 | K31: 0 | L31: 0 | M31: 0 | N31: 0 | O31: 0 | P31: 0 | Q31: 186 | R31: 36 | S31: 0 | T31: 0 | U31: 0 | V31: 0 | W31: 0 | X31: 0 | Y31: 0 | Z31: 204 | AA31: 0 | AB31: 18 | AC31: 0 | AD31: 0 | AE31: 0 | AF31: 0 | AG31: 0 | AH31: 0 | AI31: 0 | AJ31: 0 | AK31: 0 | AL31: 0 | AM31: 0 | AN31: 0 | AO31: 0 | AP31: 0 | AQ31: 0 | AR31: 0 | AS31: 66 | AT31: 0 | AU31: 0 | AV31: 0 | AW31: 0 | AX31: 42 | AY31: 102 | AZ31: 0 | BA31: 12 | BB31: 0 | BC31: 0 | BD31: =HYPERLINK("http://www.openstreetmap.org/?mlat=34.3721&mlon=41.977&zoom=12#map=12/34.3721/41.977","Maplink1") -> Maplink1 | BE31: =HYPERLINK("https://www.google.iq/maps/search/+34.3721,41.977/@34.3721,41.977,14z?hl=en","Maplink2") -> Maplink2 | BF31: =HYPERLINK("http://www.bing.com/maps/?lvl=14&sty=h&cp=34.3721~41.977&sp=point.34.3721_41.977","Maplink3") -> Maplink3
A32: 247 | B32: Al-Anbar | C32: Ana | D32: Markaz Ana | E32: Hay Al-Rayhana | F32: حي الريحانه | G32: 34.34150615 | H32: 42.02845263 | I32: 29 | J32: 174 | K32: 0 | L32: 0 | M32: 0 | N32: 0 | O32: 0 | P32: 0 | Q32: 174 | R32: 0 | S32: 0 | T32: 0 | U32: 0 | V32: 0 | W32: 0 | X32: 0 | Y32: 0 | Z32: 174 | AA32: 0 | AB32: 0 | AC32: 0 | AD32: 0 | AE32: 0 | AF32: 0 | AG32: 0 | AH32: 0 | AI32: 0 | AJ32: 0 | AK32: 0 | AL32: 0 | AM32: 0 | AN32: 0 | AO32: 0 | AP32: 0 | AQ32: 0 | AR32: 0 | AS32: 0 | AT32: 0 | AU32: 0 | AV32: 0 | AW32: 0 | AX32: 0 | AY32: 174 | AZ32: 0 | BA32: 0 | BB32: 0 | BC32: 0 | BD32: =HYPERLINK("http://www.openstreetmap.org/?mlat=34.3415&mlon=42.0285&zoom=12#map=12/34.3415/42.0285","Maplink1") -> Maplink1 | BE32: =HYPERLINK("https://www.google.iq/maps/search/+34.3415,42.0285/@34.3415,42.0285,14z?hl=en","Maplink2") -> Maplink2 | BF32: =HYPERLINK("http://www.bing.com/maps/?lvl=14&sty=h&cp=34.3415~42.0285&sp=point.34.3415_42.0285","Maplink3") -> Maplink3
A33: 109 | B33: Al-Anbar | C33: Ana | D33: Markaz Ana | E33: Yarmouk | F33: حي اليرموك | G33: 34.37323995 | H33: 41.98722613 | I33: 4 | J33: 24 | K33: NA | L33: NA | M33: 0 | N33: 0 | O33: 0 | P33: 0 | Q33: 24 | R33: 0 | S33: 0 | T33: 0 | U33: 0 | V33: 0 | W33: 0 | X33: 0 | Y33: 0 | Z33: 24 | AA33: 0 | AB33: 0 | AC33: 0 | AD33: 0 | AE33: 0 | AF33: 0 | AG33: 0 | AH33: 0 | AI33: 0 | AJ33: 0 | AK33: 0 | AL33: 0 | AM33: 0 | AN33: 0 | AO33: 0 | AP33: 0 | AQ33: 0 | AR33: 0 | AS33: 0 | AT33: 0 | AU33: 0 | AV33: 0 | AW33: 0 | AX33: 0 | AY33: 24 | AZ33: 0 | BA33: 0 | BB33: 0 | BC33: 0 | BD33: =HYPERLINK("http://www.openstreetmap.org/?mlat=34.3732&mlon=41.9872&zoom=12#map=12/34.3732/41.9872","Maplink1") -> Maplink1 | BE33: =HYPERLINK("https://www.google.iq/maps/search/+34.3732,41.9872/@34.3732,41.9872,14z?hl=en","Maplink2") -> Maplink2 | BF33: =HYPERLINK("http://www.bing.com/maps/?lvl=14&sty=h&cp=34.3732~41.9872&sp=point.34.3732_41.9872","Maplink3") -> Maplink3
A34: 107 | B34: Al-Anbar | C34: Al-Falluja | D34: Al-Amirya | E34: Al Amiriyah | F34: العامرية | G34: 33.1787573 | H34: 43.85698918 | I34: 317 | J34: 1,902 | K34: 0 | L34: 0 | M34: 0 | N34: 0 | O34: 0 | P34: 0 | Q34: 1,200 | R34: 60 | S34: 642 | T34: 0 | U34: 0 | V34: 0 | W34: 0 | X34: 0 | Y34: 0 | Z34: 246 | AA34: 1,656 | AB34: 0 | AC34: 0 | AD34: 0 | AE34: 0 | AF34: 0 | AG34: 0 | AH34: 0 | AI34: 0 | AJ34: 0 | AK34: 0 | AL34: 0 | AM34: 0 | AN34: 0 | AO34: 0 | AP34: 0 | AQ34: 0 | AR34: 0 | AS34: 0 | AT34: 0 | AU34: 1,644 | AV34: 258 | AW34: 0 | AX34: 0 | AY34: 0 | AZ34: 0 | BA34: 0 | BB34: 0 | BC34: 0 | BD34: =HYPERLINK("http://www.openstreetmap.org/?mlat=33.1788&mlon=43.857&zoom=12#map=12/33.1788/43.857","Maplink1") -> Maplink1 | BE34: =HYPERLINK("https://www.google.iq/maps/search/+33.1788,43.857/@33.1788,43.857,14z?hl=en","Maplink2") -> Maplink2 | BF34: =HYPERLINK("http://www.bing.com/maps/?lvl=14&sty=h&cp=33.1788~43.857&sp=point.33.1788_43.857","Maplink3") -> Maplink3
A35: 23276 | B35: Al-Anbar | C35: Al-Falluja | D35: Al-Amirya | E35: HTC | F35: مخيم المدينة السياحية الحبانية | G35: 33.25344803 | H35: 43.58454996 | I35: 75 | J35: 450 | K35: NA | L35: NA | M35: 0 | N35: 0 | O35: 0 | P35: 0 | Q35: 0 | R35: 0 | S35: 450 | T35: 0 | U35: 0 | V35: 0 | W35: 0 | X35: 0 | Y35: 0 | Z35: 450 | AA35: 0 | AB35: 0 | AC35: 0 | AD35: 0 | AE35: 0 | AF35: 0 | AG35: 0 | AH35: 0 | AI35: 0 | AJ35: 0 | AK35: 0 | AL35: 0 | AM35: 0 | AN35: 0 | AO35: 0 | AP35: 0 | AQ35: 0 | AR35: 0 | AS35: 0 | AT35: 0 | AU35: 0 | AV35: 0 | AW35: 186 | AX35: 0 | AY35: 264 | AZ35: 0 | BA35: 0 | BB35: 0 | BC35: 0 | BD35: =HYPERLINK("http://www.openstreetmap.org/?mlat=33.2534&mlon=43.5845&zoom=12#map=12/33.2534/43.5845","Maplink1") -> Maplink1 | BE35: =HYPERLINK("https://www.google.iq/maps/search/+33.2534,43.5845/@33.2534,43.5845,14z?hl=en","Maplink2") -> Maplink2 | BF35: =HYPERLINK("http://www.bing.com/maps/?lvl=14&sty=h&cp=33.2534~43.5845&sp=point.33.2534_43.5845","Maplink3") -> Maplink3
A36: 26036 | B36: Al-Anbar | C36: Al-Falluja | D36: Al-Amirya | E36: Al-Amirya-Albu Jasim | F36: البوجاسم | G36: 33.201389 | H36: 43.9 | I36: 20 | J36: 120 | K36: 0 | L36: 0 | M36: 0 | N36: 0 | O36: 0 | P36: 0 | Q36: 0 | R36: 0 | S36: 120 | T36: 0 | U36: 0 | V36: 0 | W36: 0 | X36: 0 | Y36: 0 | Z36: 30 | AA36: 90 | AB36: 0 | AC36: 0 | AD36: 0 | AE36: 0 | AF36: 0 | AG36: 0 | AH36: 0 | AI36: 0 | AJ36: 0 | AK36: 0 | AL36: 0 | AM36: 0 | AN36: 0 | AO36: 0 | AP36: 0 | AQ36: 0 | AR36: 0 | AS36: 0 | AT36: 0 | AU36: 0 | AV36: 120 | AW36: 0 | AX36: 0 | AY36: 0 | AZ36: 0 | BA36: 0 | BB36: 0 | BC36: 0 | BD36: =HYPERLINK("http://www.openstreetmap.org/?mlat=33.2014&mlon=43.9&zoom=12#map=12/33.2014/43.9","Maplink1") -> Maplink1 | BE36: =HYPERLINK("https://www.google.iq/maps/search/+33.2014,43.9/@33.2014,43.9,14z?hl=en","Maplink2") -> Maplink2 | BF36: =HYPERLINK("http://www.bing.com/maps/?lvl=14&sty=h&cp=33.2014~43.9&sp=point.33.2014_43.9","Maplink3") -> Maplink3
A37: 26037 | B37: Al-Anbar | C37: Al-Falluja | D37: Al-Amirya | E37: Al-Amirya-Albu Jwad | F37: البوجواد | G37: 33.15082044 | H37: 43.99869936 | I37: 150 | J37: 900 | K37: 0 | L37: 0 | M37: 0 | N37: 0 | O37: 0 | P37: 0 | Q37: 0 | R37: 18 | S37: 882 | T37: 0 | U37: 0 | V37: 0 | W37: 0 | X37: 0 | Y37: 0 | Z37: 54 | AA37: 846 | AB37: 0 | AC37: 0 | AD37: 0 | AE37: 0 | AF37: 0 | AG37: 0 | AH37: 0 | AI37: 0 | AJ37: 0 | AK37: 0 | AL37: 0 | AM37: 0 | AN37: 0 | AO37: 0 | AP37: 0 | AQ37: 0 | AR37: 0 | AS37: 0 | AT37: 0 | AU37: 132 | AV37: 384 | AW37: 384 | AX37: 0 | AY37: 0 | AZ37: 0 | BA37: 0 | BB37: 0 | BC37: 0 | BD37: =HYPERLINK("http://www.openstreetmap.org/?mlat=33.1508&mlon=43.9987&zoom=12#map=12/33.1508/43.9987","Maplink1") -> Maplink1 | BE37: =HYPERLINK("https://www.google.iq/maps/search/+33.1508,43.9987/@33.1508,43.9987,14z?hl=en","Maplink2") -> Maplink2 | BF37: =HYPERLINK("http://www.bing.com/maps/?lvl=14&sty=h&cp=33.1508~43.9987&sp=point.33.1508_43.9987","Maplink3") -> Maplink3
A38: 21226 | B38: Al-Anbar | C38: Al-Falluja | D38: Al-Amirya | E38: Albu Hori | F38: البوحوري | G38: 33.15845385 | H38: 43.8916234 | I38: 109 | J38: 654 | K38: 0 | L38: 0 | M38: 0 | N38: 0 | O38: 0 | P38: 0 | Q38: 0 | R38: 0 | S38: 624 | T38: 0 | U38: 12 | V38: 18 | W38: 0 | X38: 0 | Y38: 0 | Z38: 276 | AA38: 378 | AB38: 0 | AC38: 0 | AD38: 0 | AE38: 0 | AF38: 0 | AG38: 0 | AH38: 0 | AI38: 0 | AJ38: 0 | AK38: 0 | AL38: 0 | AM38: 0 | AN38: 0 | AO38: 0 | AP38: 0 | AQ38: 0 | AR38: 0 | AS38: 0 | AT38: 0 | AU38: 0 | AV38: 654 | AW38: 0 | AX38: 0 | AY38: 0 | AZ38: 0 | BA38: 0 | BB38: 0 | BC38: 0 | BD38: =HYPERLINK("http://www.openstreetmap.org/?mlat=33.1585&mlon=43.8916&zoom=12#map=12/33.1585/43.8916","Maplink1") -> Maplink1 | BE38: =HYPERLINK("https://www.google.iq/maps/search/+33.1585,43.8916/@33.1585,43.8916,14z?hl=en","Maplink2") -> Maplink2 | BF38: =HYPERLINK("http://www.bing.com/maps/?lvl=14&sty=h&cp=33.1585~43.8916&sp=point.33.1585_43.8916","Maplink3") -> Maplink3
A39: 21410 | B39: Al-Anbar | C39: Al-Falluja | D39: Al-Amirya | E39: Albo Jaar | F39: البو جار | G39: 33.14913484 | H39: 43.98714161 | I39: 49 | J39: 294 | K39: 0 | L39: 0 | M39: 0 | N39: 0 | O39: 0 | P39: 0 | Q39: 0 | R39: 0 | S39: 294 | T39: 0 | U39: 0 | V39: 0 | W39: 0 | X39: 0 | Y39: 0 | Z39: 138 | AA39: 156 | AB39: 0 | AC39: 0 | AD39: 0 | AE39: 0 | AF39: 0 | AG39: 0 | AH39: 0 | AI39: 0 | AJ39: 0 | AK39: 0 | AL39: 0 | AM39: 0 | AN39: 0 | AO39: 0 | AP39: 0 | AQ39: 0 | AR39: 0 | AS39: 0 | AT39: 0 | AU39: 0 | AV39: 294 | AW39: 0 | AX39: 0 | AY39: 0 | AZ39: 0 | BA39: 0 | BB39: 0 | BC39: 0 | BD39: =HYPERLINK("http://www.openstreetmap.org/?mlat=33.1491&mlon=43.9871&zoom=12#map=12/33.1491/43.9871","Maplink1") -> Maplink1 | BE39: =HYPERLINK("https://www.google.iq/maps/search/+33.1491,43.9871/@33.1491,43.9871,14z?hl=en","Maplink2") -> Maplink2 | BF39: =HYPERLINK("http://www.bing.com/maps/?lvl=14&sty=h&cp=33.1491~43.9871&sp=point.33.1491_43.9871","Maplink3") -> Maplink3
A40: 142 | B40: Al-Anbar | C40: Al-Falluja | D40: Markaz Al-Falluja | E40: Al-shahabi-2 | F40: الشهابي الثانية | G40: 33.3822032 | H40: 43.8862189 | I40: 85 | J40: 510 | K40: 0 | L40: 90 | M40: 0 | N40: 0 | O40: 0 | P40: 0 | Q40: 0 | R40: 0 | S40: 0 | T40: 0 | U40: 510 | V40: 0 | W40: 0 | X40: 0 | Y40: 0 | Z40: 480 | AA40: 0 | AB40: 30 | AC40: 0 | AD40: 0 | AE40: 0 | AF40: 0 | AG40: 0 | AH40: 0 | AI40: 0 | AJ40: 0 | AK40: 0 | AL40: 0 | AM40: 0 | AN40: 0 | AO40: 0 | AP40: 0 | AQ40: 0 | AR40: 138 | AS40: 114 | AT40: 0 | AU40: 78 | AV40: 180 | AW40: 0 | AX40: 0 | AY40: 0 | AZ40: 0 | BA40: 0 | BB40: 0 | BC40: 0 | BD40: =HYPERLINK("http://www.openstreetmap.org/?mlat=33.3822&mlon=43.8862&zoom=12#map=12/33.3822/43.8862","Maplink1") -> Maplink1 | BE40: =HYPERLINK("https://www.google.iq/maps/search/+33.3822,43.8862/@33.3822,43.8862,14z?hl=en","Maplink2") -> Maplink2 | BF40: =HYPERLINK("http://www.bing.com/maps/?lvl=14&sty=h&cp=33.3822~43.8862&sp=point.33.3822_43.8862","Maplink3") -> Maplink3
A41: 319 | B41: Al-Anbar | C41: Al-Falluja | D41: Markaz Al-Falluja | E41: Al-Zuwayiah | F41: قرية الزوية | G41: 33.33883032 | H41: 43.74762946 | I41: 9 | J41: 54 | K41: 0 | L41: 0 | M41: 0 | N41: 0 | O41: 0 | P41: 0 | Q41: 54 | R41: 0 | S41: 0 | T41: 0 | U41: 0 | V41: 0 | W41: 0 | X41: 0 | Y41: 0 | Z41: 30 | AA41: 24 | AB41: 0 | AC41: 0 | AD41: 0 | AE41: 0 | AF41: 0 | AG41: 0 | AH41: 0 | AI41: 0 | AJ41: 0 | AK41: 0 | AL41: 0 | AM41: 0 | AN41: 0 | AO41: 0 | AP41: 0 | AQ41: 0 | AR41: 0 | AS41: 0 | AT41: 0 | AU41: 0 | AV41: 54 | AW41: 0 | AX41: 0 | AY41: 0 | AZ41: 0 | BA41: 0 | BB41: 0 | BC41: 0 | BD41: =HYPERLINK("http://www.openstreetmap.org/?mlat=33.3388&mlon=43.7476&zoom=12#map=12/33.3388/43.7476","Maplink1") -> Maplink1 | BE41: =HYPERLINK("https://www.google.iq/maps/search/+33.3388,43.7476/@33.3388,43.7476,14z?hl=en","Maplink2") -> Maplink2 | BF41: =HYPERLINK("http://www.bing.com/maps/?lvl=14&sty=h&cp=33.3388~43.7476&sp=point.33.3388_43.7476","Maplink3") -> Maplink3
A42: 26084 | B42: Al-Anbar | C42: Al-Falluja | D42: Al-Amirya | E42: Beizeibz_sector1 | F42: بزيبز_القطاع الاول | G42: 33.11973987 | H42: 44.04292247 | I42: 103 | J42: 618 | K42: NA | L42: NA | M42: 0 | N42: 0 | O42: 0 | P42: 0 | Q42: 0 | R42: 0 | S42: 618 | T42: 0 | U42: 0 | V42: 0 | W42: 0 | X42: 0 | Y42: 0 | Z42: 360 | AA42: 258 | AB42: 0 | AC42: 0 | AD42: 0 | AE42: 0 | AF42: 0 | AG42: 0 | AH42: 0 | AI42: 0 | AJ42: 0 | AK42: 0 | AL42: 0 | AM42: 0 | AN42: 0 | AO42: 0 | AP42: 0 | AQ42: 0 | AR42: 0 | AS42: 0 | AT42: 0 | AU42: 0 | AV42: 618 | AW42: 0 | AX42: 0 | AY42: 0 | AZ42: 0 | BA42: 0 | BB42: 0 | BC42: 0 | BD42: =HYPERLINK("http://www.openstreetmap.org/?mlat=33.1197&mlon=44.0429&zoom=12#map=12/33.1197/44.0429","Maplink1") -> Maplink1 | BE42: =HYPERLINK("https://www.google.iq/maps/search/+33.1197,44.0429/@33.1197,44.0429,14z?hl=en","Maplink2") -> Maplink2 | BF42: =HYPERLINK("http://www.bing.com/maps/?lvl=14&sty=h&cp=33.1197~44.0429&sp=point.33.1197_44.0429","Maplink3") -> Maplink3
A43: 26091 | B43: Al-Anbar | C43: Al-Falluja | D43: Al-Amirya | E43: Al-Amirya-Al Hmedin | F43: الحميدين | G43: 33.15689845 | H43: 43.9318996 | I43: 110 | J43: 660 | K43: 0 | L43: 0 | M43: 0 | N43: 12 | O43: 0 | P43: 0 | Q43: 0 | R43: 0 | S43: 648 | T43: 0 | U43: 0 | V43: 0 | W43: 0 | X43: 0 | Y43: 0 | Z43: 102 | AA43: 558 | AB43: 0 | AC43: 0 | AD43: 0 | AE43: 0 | AF43: 0 | AG43: 0 | AH43: 0 | AI43: 0 | AJ43: 0 | AK43: 0 | AL43: 0 | AM43: 0 | AN43: 0 | AO43: 0 | AP43: 0 | AQ43: 0 | AR43: 0 | AS43: 0 | AT43: 0 | AU43: 558 | AV43: 102 | AW43: 0 | AX43: 0 | AY43: 0 | AZ43: 0 | BA43: 0 | BB43: 0 | BC43: 0 | BD43: =HYPERLINK("http://www.openstreetmap.org/?mlat=33.1569&mlon=43.9319&zoom=12#map=12/33.1569/43.9319","Maplink1") -> Maplink1 | BE43: =HYPERLINK("https://www.google.iq/maps/search/+33.1569,43.9319/@33.1569,43.9319,14z?hl=en","Maplink2") -> Maplink2 | BF43: =HYPERLINK("http://www.bing.com/maps/?lvl=14&sty=h&cp=33.1569~43.9319&sp=point.33.1569_43.9319","Maplink3") -> Maplink3
A44: 26092 | B44: Al-Anbar | C44: Al-Falluja | D44: Al-Amirya | E44: Al-Amirya-Al Mouilha | F44: المويلحة | G44: 33.14119036 | H44: 43.95571249 | I44: 265 | J44: 1,590 | K44: 0 | L44: 0 | M44: 0 | N44: 0 | O44: 0 | P44: 0 | Q44: 0 | R44: 0 | S44: 1,446 | T44: 0 | U44: 0 | V44: 144 | W44: 0 | X44: 0 | Y44: 0 | Z44: 150 | AA44: 1,440 | AB44: 0 | AC44: 0 | AD44: 0 | AE44: 0 | AF44: 0 | AG44: 0 | AH44: 0 | AI44: 0 | AJ44: 0 | AK44: 0 | AL44: 0 | AM44: 0 | AN44: 0 | AO44: 0 | AP44: 0 | AQ44: 0 | AR44: 510 | AS44: 0 | AT44: 0 | AU44: 240 | AV44: 840 | AW44: 0 | AX44: 0 | AY44: 0 | AZ44: 0 | BA44: 0 | BB44: 0 | BC44: 0 | BD44: =HYPERLINK("http://www.openstreetmap.org/?mlat=33.1412&mlon=43.9557&zoom=12#map=12/33.1412/43.9557","Maplink1") -> Maplink1 | BE44: =HYPERLINK("https://www.google.iq/maps/search/+33.1412,43.9557/@33.1412,43.9557,14z?hl=en","Maplink2") -> Maplink2 | BF44: =HYPERLINK("http://www.bing.com/maps/?lvl=14&sty=h&cp=33.1412~43.9557&sp=point.33.1412_43.9557","Maplink3") -> Maplink3
A45: 26085 | B45: Al-Anbar | C45: Al-Falluja | D45: Al-Amirya | E45: Beizeibz_sector2 | F45: بزيبز_القطاع الثاني | G45: 33.13481251 | H45: 44.02670737 | I45: 215 | J45: 1,290 | K45: NA | L45: NA | M45: 0 | N45: 0 | O45: 0 | P45: 0 | Q45: 0 | R45: 0 | S45: 1,290 | T45: 0 | U45: 0 | V45: 0 | W45: 0 | X45: 0 | Y45: 0 | Z45: 786 | AA45: 504 | AB45: 0 | AC45: 0 | AD45: 0 | AE45: 0 | AF45: 0 | AG45: 0 | AH45: 0 | AI45: 0 | AJ45: 0 | AK45: 0 | AL45: 0 | AM45: 0 | AN45: 0 | AO45: 0 | AP45: 0 | AQ45: 0 | AR45: 0 | AS45: 0 | AT45: 0 | AU45: 504 | AV45: 786 | AW45: 0 | AX45: 0 | AY45: 0 | AZ45: 0 | BA45: 0 | BB45: 0 | BC45: 0 | BD45: =HYPERLINK("http://www.openstreetmap.org/?mlat=33.1348&mlon=44.0267&zoom=12#map=12/33.1348/44.0267","Maplink1") -> Maplink1 | BE45: =HYPERLINK("https://www.google.iq/maps/search/+33.1348,44.0267/@33.1348,44.0267,14z?hl=en","Maplink2") -> Maplink2 | BF45: =HYPERLINK("http://www.bing.com/maps/?lvl=14&sty=h&cp=33.1348~44.0267&sp=point.33.1348_44.0267","Maplink3") -> Maplink3
A46: 26088 | B46: Al-Anbar | C46: Al-Falluja | D46: Al-Amirya | E46: Beizeibz_Ahl Al-Ramadi 74 | F46: بزيبز_اهل الرمادي 74 | G46: 33.14673327 | H46: 44.01503204 | I46: 68 | J46: 408 | K46: NA | L46: NA | M46: 0 | N46: 0 | O46: 0 | P46: 0 | Q46: 0 | R46: 0 | S46: 408 | T46: 0 | U46: 0 | V46: 0 | W46: 0 | X46: 0 | Y46: 0 | Z46: 408 | AA46: 0 | AB46: 0 | AC46: 0 | AD46: 0 | AE46: 0 | AF46: 0 | AG46: 0 | AH46: 0 | AI46: 0 | AJ46: 0 | AK46: 0 | AL46: 0 | AM46: 0 | AN46: 0 | AO46: 0 | AP46: 0 | AQ46: 0 | AR46: 0 | AS46: 0 | AT46: 0 | AU46: 378 | AV46: 30 | AW46: 0 | AX46: 0 | AY46: 0 | AZ46: 0 | BA46: 0 | BB46: 0 | BC46: 0 | BD46: =HYPERLINK("http://www.openstreetmap.org/?mlat=33.1467&mlon=44.015&zoom=12#map=12/33.1467/44.015","Maplink1") -> Maplink1 | BE46: =HYPERLINK("https://www.google.iq/maps/search/+33.1467,44.015/@33.1467,44.015,14z?hl=en","Maplink2") -> Maplink2 | BF46: =HYPERLINK("http://www.bing.com/maps/?lvl=14&sty=h&cp=33.1467~44.015&sp=point.33.1467_44.015","Maplink3") -> Maplink3
A47: 26087 | B47: Al-Anbar | C47: Al-Falluja | D47: Al-Amirya | E47: Al-Amirya-Albu Salman | F47: البوسليمان | G47: 33.15382888 | H47: 44.00612418 | I47: 151 | J47: 906 | K47: 0 | L47: 0 | M47: 0 | N47: 6 | O47: 0 | P47: 0 | Q47: 0 | R47: 0 | S47: 900 | T47: 0 | U47: 0 | V47: 0 | W47: 0 | X47: 0 | Y47: 0 | Z47: 360 | AA47: 546 | AB47: 0 | AC47: 0 | AD47: 0 | AE47: 0 | AF47: 0 | AG47: 0 | AH47: 0 | AI47: 0 | AJ47: 0 | AK47: 0 | AL47: 0 | AM47: 0 | AN47: 0 | AO47: 0 | AP47: 0 | AQ47: 0 | AR47: 0 | AS47: 0 | AT47: 0 | AU47: 360 | AV47: 546 | AW47: 0 | AX47: 0 | AY47: 0 | AZ47: 0 | BA47: 0 | BB47: 0 | BC47: 0 | BD47: =HYPERLINK("http://www.openstreetmap.org/?mlat=33.1538&mlon=44.0061&zoom=12#map=12/33.1538/44.0061","Maplink1") -> Maplink1 | BE47: =HYPERLINK("https://www.google.iq/maps/search/+33.1538,44.0061/@33.1538,44.0061,14z?hl=en","Maplink2") -> Maplink2 | BF47: =HYPERLINK("http://www.bing.com/maps/?lvl=14&sty=h&cp=33.1538~44.0061&sp=point.33.1538_44.0061","Maplink3") -> Maplink3
A48: 26093 | B48: Al-Anbar | C48: Al-Falluja | D48: Al-Amirya | E48: Al-Amirya-Tal Ghatas | F48: تل غطاس | G48: 33.18427359 | H48: 43.92571116 | I48: 34 | J48: 204 | K48: 0 | L48: 0 | M48: 0 | N48: 0 | O48: 0 | P48: 0 | Q48: 0 | R48: 0 | S48: 204 | T48: 0 | U48: 0 | V48: 0 | W48: 0 | X48: 0 | Y48: 0 | Z48: 0 | AA48: 204 | AB48: 0 | AC48: 0 | AD48: 0 | AE48: 0 | AF48: 0 | AG48: 0 | AH48: 0 | AI48: 0 | AJ48: 0 | AK48: 0 | AL48: 0 | AM48: 0 | AN48: 0 | AO48: 0 | AP48: 0 | AQ48: 0 | AR48: 0 | AS48: 0 | AT48: 0 | AU48: 0 | AV48: 204 | AW48: 0 | AX48: 0 | AY48: 0 | AZ48: 0 | BA48: 0 | BB48: 0 | BC48: 0 | BD48: =HYPERLINK("http://www.openstreetmap.org/?mlat=33.1843&mlon=43.9257&zoom=12#map=12/33.1843/43.9257","Maplink1") -> Maplink1 | BE48: =HYPERLINK("https://www.google.iq/maps/search/+33.1843,43.9257/@33.1843,43.9257,14z?hl=en","Maplink2") -> Maplink2 | BF48: =HYPERLINK("http://www.bing.com/maps/?lvl=14&sty=h&cp=33.1843~43.9257&sp=point.33.1843_43.9257","Maplink3") -> Maplink3
A49: 26089 | B49: Al-Anbar | C49: Al-Falluja | D49: Al-Amirya | E49: Albu Dhaher-Albu Dhaher | F49: البوظاهر | G49: 33.18863084 | H49: 43.90689915 | I49: 18 | J49: 108 | K49: 0 | L49: 0 | M49: 0 | N49: 0 | O49: 0 | P49: 0 | Q49: 0 | R49: 0 | S49: 108 | T49: 0 | U49: 0 | V49: 0 | W49: 0 | X49: 0 | Y49: 0 | Z49: 18 | AA49: 90 | AB49: 0 | AC49: 0 | AD49: 0 | AE49: 0 | AF49: 0 | AG49: 0 | AH49: 0 | AI49: 0 | AJ49: 0 | AK49: 0 | AL49: 0 | AM49: 0 | AN49: 0 | AO49: 0 | AP49: 0 | AQ49: 0 | AR49: 0 | AS49: 0 | AT49: 0 | AU49: 0 | AV49: 108 | AW49: 0 | AX49: 0 | AY49: 0 | AZ49: 0 | BA49: 0 | BB49: 0 | BC49: 0 | BD49: =HYPERLINK("http://www.openstreetmap.org/?mlat=33.1886&mlon=43.9069&zoom=12#map=12/33.1886/43.9069","Maplink1") -> Maplink1 | BE49: =HYPERLINK("https://www.google.iq/maps/search/+33.1886,43.9069/@33.1886,43.9069,14z?hl=en","Maplink2") -> Maplink2 | BF49: =HYPERLINK("http://www.bing.com/maps/?lvl=14&sty=h&cp=33.1886~43.9069&sp=point.33.1886_43.9069","Maplink3") -> Maplink3
A50: 27246 | B50: Al-Anbar | C50: Al-Falluja | D50: Al-Amirya | E50: AAF | F50: مخيم عامرية الفلوجة | G50: 33.14654372 | H50: 43.84855916 | I50: 323 | J50: 1,938 | K50: NA | L50: NA | M50: 0 | N50: 0 | O50: 0 | P50: 0 | Q50: 0 | R50: 0 | S50: 1,938 | T50: 0 | U50: 0 | V50: 0 | W50: 0 | X50: 0 | Y50: 0 | Z50: 1,692 | AA50: 246 | AB50: 0 | AC50: 0 | AD50: 0 | AE50: 0 | AF50: 0 | AG50: 0 | AH50: 0 | AI50: 0 | AJ50: 0 | AK50: 0 | AL50: 0 | AM50: 0 | AN50: 0 | AO50: 0 | AP50: 0 | AQ50: 0 | AR50: 0 | AS50: 0 | AT50: 0 | AU50: 0 | AV50: 246 | AW50: 540 | AX50: 540 | AY50: 612 | AZ50: 0 | BA50: 0 | BB50: 0 | BC50: 0 | BD50: =HYPERLINK("http://www.openstreetmap.org/?mlat=33.1465&mlon=43.8486&zoom=12#map=12/33.1465/43.8486","Maplink1") -> Maplink1 | BE50: =HYPERLINK("https://www.google.iq/maps/search/+33.1465,43.8486/@33.1465,43.8486,14z?hl=en","Maplink2") -> Maplink2 | BF50: =HYPERLINK("http://www.bing.com/maps/?lvl=14&sty=h&cp=33.1465~43.8486&sp=point.33.1465_43.8486","Maplink3") -> Maplink3
A51: 29700 | B51: Al-Anbar | C51: Al-Falluja | D51: Markaz Al-Falluja | E51: Al Jaghify Al Thaniya | F51: الجغيفي الثانية | G51: 33.37333871 | H51: 43.80034976 | I51: 2 | J51: 12 | K51: NA | L51: NA | M51: 0 | N51: 0 | O51: 0 | P51: 0 | Q51: 12 | R51: 0 | S51: 0 | T51: 0 | U51: 0 | V51: 0 | W51: 0 | X51: 0 | Y51: 0 | Z51: 12 | AA51: 0 | AB51: 0 | AC51: 0 | AD51: 0 | AE51: 0 | AF51: 0 | AG51: 0 | AH51: 0 | AI51: 0 | AJ51: 0 | AK51: 0 | AL51: 0 | AM51: 0 | AN51: 0 | AO51: 0 | AP51: 0 | AQ51: 0 | AR51: 12 | AS51: 0 | AT51: 0 | AU51: 0 | AV51: 0 | AW51: 0 | AX51: 0 | AY51: 0 | AZ51: 0 | BA51: 0 | BB51: 0 | BC51: 0 | BD51: =HYPERLINK("http://www.openstreetmap.org/?mlat=33.3733&mlon=43.8003&zoom=12#map=12/33.3733/43.8003","Maplink1") -> Maplink1 | BE51: =HYPERLINK("https://www.google.iq/maps/search/+33.3733,43.8003/@33.3733,43.8003,14z?hl=en","Maplink2") -> Maplink2 | BF51: =HYPERLINK("http://www.bing.com/maps/?lvl=14&sty=h&cp=33.3733~43.8003&sp=point.33.3733_43.8003","Maplink3") -> Maplink3
A52: 21809 | B52: Al-Anbar | C52: Al-Falluja | D52: Markaz Al-Falluja | E52: Hay Al Shuhadaa | F52: حي الشهداء | G52: 33.33269749 | H52: 43.79237357 | I52: 8 | J52: 48 | K52: 0 | L52: 0 | M52: 0 | N52: 0 | O52: 0 | P52: 0 | Q52: 48 | R52: 0 | S52: 0 | T52: 0 | U52: 0 | V52: 0 | W52: 0 | X52: 0 | Y52: 0 | Z52: 48 | AA52: 0 | AB52: 0 | AC52: 0 | AD52: 0 | AE52: 0 | AF52: 0 | AG52: 0 | AH52: 0 | AI52: 0 | AJ52: 0 | AK52: 0 | AL52: 0 | AM52: 0 | AN52: 0 | AO52: 0 | AP52: 0 | AQ52: 0 | AR52: 48 | AS52: 0 | AT52: 0 | AU52: 0 | AV52: 0 | AW52: 0 | AX52: 0 | AY52: 0 | AZ52: 0 | BA52: 0 | BB52: 0 | BC52: 0 | BD52: =HYPERLINK("http://www.openstreetmap.org/?mlat=33.3327&mlon=43.7924&zoom=12#map=12/33.3327/43.7924","Maplink1") -> Maplink1 | BE52: =HYPERLINK("https://www.google.iq/maps/search/+33.3327,43.7924/@33.3327,43.7924,14z?hl=en","Maplink2") -> Maplink2 | BF52: =HYPERLINK("http://www.bing.com/maps/?lvl=14&sty=h&cp=33.3327~43.7924&sp=point.33.3327_43.7924","Maplink3") -> Maplink3
A53: 21613 | B53: Al-Anbar | C53: Al-Falluja | D53: Markaz Al-Falluja | E53: Abu Sideera | F53: ابو سديرة | G53: 33.4073968 | H53: 43.7644993 | I53: 6 | J53: 36 | K53: 0 | L53: 0 | M53: 0 | N53: 0 | O53: 0 | P53: 0 | Q53: 36 | R53: 0 | S53: 0 | T53: 0 | U53: 0 | V53: 0 | W53: 0 | X53: 0 | Y53: 0 | Z53: 36 | AA53: 0 | AB53: 0 | AC53: 0 | AD53: 0 | AE53: 0 | AF53: 0 | AG53: 0 | AH53: 0 | AI53: 0 | AJ53: 0 | AK53: 0 | AL53: 0 | AM53: 0 | AN53: 0 | AO53: 0 | AP53: 0 | AQ53: 0 | AR53: 36 | AS53: 0 | AT53: 0 | AU53: 0 | AV53: 0 | AW53: 0 | AX53: 0 | AY53: 0 | AZ53: 0 | BA53: 0 | BB53: 0 | BC53: 0 | BD53: =HYPERLINK("http://www.openstreetmap.org/?mlat=33.4074&mlon=43.7645&zoom=12#map=12/33.4074/43.7645","Maplink1") -> Maplink1 | BE53: =HYPERLINK("https://www.google.iq/maps/search/+33.4074,43.7645/@33.4074,43.7645,14z?hl=en","Maplink2") -> Maplink2 | BF53: =HYPERLINK("http://www.bing.com/maps/?lvl=14&sty=h&cp=33.4074~43.7645&sp=point.33.4074_43.7645","Maplink3") -> Maplink3
A54: 31877 | B54: Al-Anbar | C54: Al-Falluja | D54: Al-Amirya | E54: Al-Ekhaa Compaund | F54: مجمع الاخاء السكني | G54: 33.16421174 | H54: 43.86426257 | I54: 81 | J54: 486 | K54: 0 | L54: 0 | M54: 0 | N54: 0 | O54: 0 | P54: 0 | Q54: 486 | R54: 0 | S54: 0 | T54: 0 | U54: 0 | V54: 0 | W54: 0 | X54: 0 | Y54: 0 | Z54: 390 | AA54: 96 | AB54: 0 | AC54: 0 | AD54: 0 | AE54: 0 | AF54: 0 | AG54: 0 | AH54: 0 | AI54: 0 | AJ54: 0 | AK54: 0 | AL54: 0 | AM54: 0 | AN54: 0 | AO54: 0 | AP54: 0 | AQ54: 0 | AR54: 0 | AS54: 0 | AT54: 0 | AU54: 0 | AV54: 486 | AW54: 0 | AX54: 0 | AY54: 0 | AZ54: 0 | BA54: 0 | BB54: 0 | BC54: 0 | BD54: =HYPERLINK("http://www.openstreetmap.org/?mlat=33.1642&mlon=43.8643&zoom=12#map=12/33.1642/43.8643","Maplink1") -> Maplink1 | BE54: =HYPERLINK("https://www.google.iq/maps/search/+33.1642,43.8643/@33.1642,43.8643,14z?hl=en","Maplink2") -> Maplink2 | BF54: =HYPERLINK("http://www.bing.com/maps/?lvl=14&sty=h&cp=33.1642~43.8643&sp=point.33.1642_43.8643","Maplink3") -> Maplink3
A55: 33342 | B55: Al-Anbar | C55: Al-Falluja | D55: Markaz Al-Falluja | E55: Hay Jbeal | F55: حي جبيل | G55: 33.33467 | H55: 43.77630407 | I55: 5 | J55: 30 | K55: 0 | L55: 0 | M55: 0 | N55: 0 | O55: 0 | P55: 0 | Q55: 30 | R55: 0 | S55: 0 | T55: 0 | U55: 0 | V55: 0 | W55: 0 | X55: 0 | Y55: 0 | Z55: 30 | AA55: 0 | AB55: 0 | AC55: 0 | AD55: 0 | AE55: 0 | AF55: 0 | AG55: 0 | AH55: 0 | AI55: 0 | AJ55: 0 | AK55: 0 | AL55: 0 | AM55: 0 | AN55: 0 | AO55: 0 | AP55: 0 | AQ55: 0 | AR55: 30 | AS55: 0 | AT55: 0 | AU55: 0 | AV55: 0 | AW55: 0 | AX55: 0 | AY55: 0 | AZ55: 0 | BA55: 0 | BB55: 0 | BC55: 0 | BD55: =HYPERLINK("http://www.openstreetmap.org/?mlat=33.3347&mlon=43.7763&zoom=12#map=12/33.3347/43.7763","Maplink1") -> Maplink1 | BE55: =HYPERLINK("https://www.google.iq/maps/search/+33.3347,43.7763/@33.3347,43.7763,14z?hl=en","Maplink2") -> Maplink2 | BF55: =HYPERLINK("http://www.bing.com/maps/?lvl=14&sty=h&cp=33.3347~43.7763&sp=point.33.3347_43.7763","Maplink3") -> Maplink3
A56: 295 | B56: Al-Anbar | C56: Al-Falluja | D56: Markaz Al-Falluja | E56: Hay Al-Ameen | F56: حي الامين | G56: 33.33566667 | H56: 43.80362841 | I56: 2 | J56: 12 | K56: NA | L56: NA | M56: 0 | N56: 0 | O56: 0 | P56: 0 | Q56: 12 | R56: 0 | S56: 0 | T56: 0 | U56: 0 | V56: 0 | W56: 0 | X56: 0 | Y56: 0 | Z56: 12 | AA56: 0 | AB56: 0 | AC56: 0 | AD56: 0 | AE56: 0 | AF56: 0 | AG56: 0 | AH56: 0 | AI56: 0 | AJ56: 0 | AK56: 0 | AL56: 0 | AM56: 0 | AN56: 0 | AO56: 0 | AP56: 0 | AQ56: 0 | AR56: 12 | AS56: 0 | AT56: 0 | AU56: 0 | AV56: 0 | AW56: 0 | AX56: 0 | AY56: 0 | AZ56: 0 | BA56: 0 | BB56: 0 | BC56: 0 | BD56: =HYPERLINK("http://www.openstreetmap.org/?mlat=33.3357&mlon=43.8036&zoom=12#map=12/33.3357/43.8036","Maplink1") -> Maplink1 | BE56: =HYPERLINK("https://www.google.iq/maps/search/+33.3357,43.8036/@33.3357,43.8036,14z?hl=en","Maplink2") -> Maplink2 | BF56: =HYPERLINK("http://www.bing.com/maps/?lvl=14&sty=h&cp=33.3357~43.8036&sp=point.33.3357_43.8036","Maplink3") -> Maplink3
A57: 33939 | B57: Al-Anbar | C57: Al-Falluja | D57: Al-Amirya | E57: Beizeibz_sector 4 | F57: بزيبز_القطاع الرابع | G57: 33.145831 | H57: 44.015278 | I57: 129 | J57: 774 | K57: NA | L57: NA | M57: 0 | N57: 0 | O57: 0 | P57: 0 | Q57: 0 | R57: 0 | S57: 774 | T57: 0 | U57: 0 | V57: 0 | W57: 0 | X57: 0 | Y57: 0 | Z57: 408 | AA57: 366 | AB57: 0 | AC57: 0 | AD57: 0 | AE57: 0 | AF57: 0 | AG57: 0 | AH57: 0 | AI57: 0 | AJ57: 0 | AK57: 0 | AL57: 0 | AM57: 0 | AN57: 0 | AO57: 0 | AP57: 0 | AQ57: 0 | AR57: 0 | AS57: 0 | AT57: 0 | AU57: 0 | AV57: 774 | AW57: 0 | AX57: 0 | AY57: 0 | AZ57: 0 | BA57: 0 | BB57: 0 | BC57: 0 | BD57: =HYPERLINK("http://www.openstreetmap.org/?mlat=33.1458&mlon=44.0153&zoom=12#map=12/33.1458/44.0153","Maplink1") -> Maplink1 | BE57: =HYPERLINK("https://www.google.iq/maps/search/+33.1458,44.0153/@33.1458,44.0153,14z?hl=en","Maplink2") -> Maplink2 | BF57: =HYPERLINK("http://www.bing.com/maps/?lvl=14&sty=h&cp=33.1458~44.0153&sp=point.33.1458_44.0153","Maplink3") -> Maplink3
A58: 33940 | B58: Al-Anbar | C58: Al-Falluja | D58: Al-Amirya | E58: Beizeibz_sector 3 | F58: بزيبز_القطاع الثالث | G58: 33.14162138 | H58: 44.01803577 | I58: 106 | J58: 636 | K58: NA | L58: NA | M58: 0 | N58: 0 | O58: 0 | P58: 0 | Q58: 0 | R58: 0 | S58: 636 | T58: 0 | U58: 0 | V58: 0 | W58: 0 | X58: 0 | Y58: 0 | Z58: 210 | AA58: 426 | AB58: 0 | AC58: 0 | AD58: 0 | AE58: 0 | AF58: 0 | AG58: 0 | AH58: 0 | AI58: 0 | AJ58: 0 | AK58: 0 | AL58: 0 | AM58: 0 | AN58: 0 | AO58: 0 | AP58: 0 | AQ58: 0 | AR58: 0 | AS58: 0 | AT58: 0 | AU58: 0 | AV58: 426 | AW58: 210 | AX58: 0 | AY58: 0 | AZ58: 0 | BA58: 0 | BB58: 0 | BC58: 0 | BD58: =HYPERLINK("http://www.openstreetmap.org/?mlat=33.1416&mlon=44.018&zoom=12#map=12/33.1416/44.018","Maplink1") -> Maplink1 | BE58: =HYPERLINK("https://www.google.iq/maps/search/+33.1416,44.018/@33.1416,44.018,14z?hl=en","Maplink2") -> Maplink2 | BF58: =HYPERLINK("http://www.bing.com/maps/?lvl=14&sty=h&cp=33.1416~44.018&sp=point.33.1416_44.018","Maplink3") -> Maplink3
A59: 33941 | B59: Al-Anbar | C59: Al-Falluja | D59: Al-Amirya | E59: Beizeibz_sector 50 | F59: بزيبز_قطاع الخمسين | G59: 33.14731684 | H59: 44.01389114 | I59: 83 | J59: 498 | K59: NA | L59: NA | M59: 0 | N59: 0 | O59: 0 | P59: 0 | Q59: 0 | R59: 0 | S59: 498 | T59: 0 | U59: 0 | V59: 0 | W59: 0 | X59: 0 | Y59: 0 | Z59: 18 | AA59: 480 | AB59: 0 | AC59: 0 | AD59: 0 | AE59: 0 | AF59: 0 | AG59: 0 | AH59: 0 | AI59: 0 | AJ59: 0 | AK59: 0 | AL59: 0 | AM59: 0 | AN59: 0 | AO59: 0 | AP59: 0 | AQ59: 0 | AR59: 0 | AS59: 0 | AT59: 0 | AU59: 480 | AV59: 0 | AW59: 18 | AX59: 0 | AY59: 0 | AZ59: 0 | BA59: 0 | BB59: 0 | BC59: 0 | BD59: =HYPERLINK("http://www.openstreetmap.org/?mlat=33.1473&mlon=44.0139&zoom=12#map=12/33.1473/44.0139","Maplink1") -> Maplink1 | BE59: =HYPERLINK("https://www.google.iq/maps/search/+33.1473,44.0139/@33.1473,44.0139,14z?hl=en","Maplink2") -> Maplink2 | BF59: =HYPERLINK("http://www.bing.com/maps/?lvl=14&sty=h&cp=33.1473~44.0139&sp=point.33.1473_44.0139","Maplink3") -> Maplink3
A60: 34228 | B60: Al-Anbar | C60: Al-Falluja | D60: Al-Amirya | E60: low-costs houses/Habbaniah | F60: دور واطئه الكلفه \الحبانيه | G60: 33.25546254 | H60: 43.65109069 | I60: 250 | J60: 1,500 | K60: NA | L60: NA | M60: 0 | N60: 0 | O60: 0 | P60: 0 | Q60: 0 | R60: 0 | S60: 342 | T60: 0 | U60: 1,158 | V60: 0 | W60: 0 | X60: 0 | Y60: 0 | Z60: 1,500 | AA60: 0 | AB60: 0 | AC60: 0 | AD60: 0 | AE60: 0 | AF60: 0 | AG60: 0 | AH60: 0 | AI60: 0 | AJ60: 0 | AK60: 0 | AL60: 0 | AM60: 0 | AN60: 0 | AO60: 0 | AP60: 0 | AQ60: 0 | AR60: 1,500 | AS60: 0 | AT60: 0 | AU60: 0 | AV60: 0 | AW60: 0 | AX60: 0 | AY60: 0 | AZ60: 0 | BA60: 0 | BB60: 0 | BC60: 0 | BD60: =HYPERLINK("http://www.openstreetmap.org/?mlat=33.2555&mlon=43.6511&zoom=12#map=12/33.2555/43.6511","Maplink1") -> Maplink1 | BE60: =HYPERLINK("https://www.google.iq/maps/search/+33.2555,43.6511/@33.2555,43.6511,14z?hl=en","Maplink2") -> Maplink2 | BF60: =HYPERLINK("http://www.bing.com/maps/?lvl=14&sty=h&cp=33.2555~43.6511&sp=point.33.2555_43.6511","Maplink3") -> Maplink3
A61: 34290 | B61: Al-Anbar | C61: Al-Falluja | D61: Al-Amirya | E61: Hay Al-Salam | F61: حي السلام | G61: 33.17218 | H61: 43.86378 | I61: 122 | J61: 732 | K61: 0 | L61: 0 | M61: 0 | N61: 0 | O61: 0 | P61: 0 | Q61: 0 | R61: 0 | S61: 732 | T61: 0 | U61: 0 | V61: 0 | W61: 0 | X61: 0 | Y61: 0 | Z61: 522 | AA61: 210 | AB61: 0 | AC61: 0 | AD61: 0 | AE61: 0 | AF61: 0 | AG61: 0 | AH61: 0 | AI61: 0 | AJ61: 0 | AK61: 0 | AL61: 0 | AM61: 0 | AN61: 0 | AO61: 0 | AP61: 0 | AQ61: 0 | AR61: 0 | AS61: 0 | AT61: 0 | AU61: 210 | AV61: 522 | AW61: 0 | AX61: 0 | AY61: 0 | AZ61: 0 | BA61: 0 | BB61: 0 | BC61: 0 | BD61: =HYPERLINK("http://www.openstreetmap.org/?mlat=33.1722&mlon=43.8638&zoom=12#map=12/33.1722/43.8638","Maplink1") -> Maplink1 | BE61: =HYPERLINK("https://www.google.iq/maps/search/+33.1722,43.8638/@33.1722,43.8638,14z?hl=en","Maplink2") -> Maplink2 | BF61: =HYPERLINK("http://www.bing.com/maps/?lvl=14&sty=h&cp=33.1722~43.8638&sp=point.33.1722_43.8638","Maplink3") -> Maplink3
A62: 34291 | B62: Al-Anbar | C62: Al-Falluja | D62: Al-Amirya | E62: Hay Al-Maleab | F62: حي الملعب | G62: 33.17337 | H62: 43.84332 | I62: 230 | J62: 1,380 | K62: 0 | L62: 0 | M62: 0 | N62: 0 | O62: 0 | P62: 0 | Q62: 0 | R62: 60 | S62: 1,320 | T62: 0 | U62: 0 | V62: 0 | W62: 0 | X62: 0 | Y62: 0 | Z62: 900 | AA62: 480 | AB62: 0 | AC62: 0 | AD62: 0 | AE62: 0 | AF62: 0 | AG62: 0 | AH62: 0 | AI62: 0 | AJ62: 0 | AK62: 0 | AL62: 0 | AM62: 0 | AN62: 0 | AO62: 0 | AP62: 0 | AQ62: 0 | AR62: 0 | AS62: 0 | AT62: 0 | AU62: 480 | AV62: 900 | AW62: 0 | AX62: 0 | AY62: 0 | AZ62: 0 | BA62: 0 | BB62: 0 | BC62: 0 | BD62: =HYPERLINK("http://www.openstreetmap.org/?mlat=33.1734&mlon=43.8433&zoom=12#map=12/33.1734/43.8433","Maplink1") -> Maplink1 | BE62: =HYPERLINK("https://www.google.iq/maps/search/+33.1734,43.8433/@33.1734,43.8433,14z?hl=en","Maplink2") -> Maplink2 | BF62: =HYPERLINK("http://www.bing.com/maps/?lvl=14&sty=h&cp=33.1734~43.8433&sp=point.33.1734_43.8433","Maplink3") -> Maplink3
A63: 24111 | B63: Al-Anbar | C63: Haditha | D63: Al-Haqlaniya | E63: Al-Khafajiyah Village | F63: قرية الخفاجية | G63: 34.0640349 | H63: 42.38011484 | I63: 2 | J63: 12 | K63: NA | L63: NA | M63: 0 | N63: 0 | O63: 0 | P63: 0 | Q63: 12 | R63: 0 | S63: 0 | T63: 0 | U63: 0 | V63: 0 | W63: 0 | X63: 0 | Y63: 0 | Z63: 12 | AA63: 0 | AB63: 0 | AC63: 0 | AD63: 0 | AE63: 0 | AF63: 0 | AG63: 0 | AH63: 0 | AI63: 0 | AJ63: 0 | AK63: 0 | AL63: 0 | AM63: 0 | AN63: 0 | AO63: 0 | AP63: 0 | AQ63: 0 | AR63: 0 | AS63: 12 | AT63: 0 | AU63: 0 | AV63: 0 | AW63: 0 | AX63: 0 | AY63: 0 | AZ63: 0 | BA63: 0 | BB63: 0 | BC63: 0 | BD63: =HYPERLINK("http://www.openstreetmap.org/?mlat=34.064&mlon=42.3801&zoom=12#map=12/34.064/42.3801","Maplink1") -> Maplink1 | BE63: =HYPERLINK("https://www.google.iq/maps/search/+34.064,42.3801/@34.064,42.3801,14z?hl=en","Maplink2") -> Maplink2 | BF63: =HYPERLINK("http://www.bing.com/maps/?lvl=14&sty=h&cp=34.064~42.3801&sp=point.34.064_42.3801","Maplink3") -> Maplink3
A64: 24117 | B64: Al-Anbar | C64: Haditha | D64: Al-Haqlaniya | E64: Haqlaniyah-Hay Al-Faroq | F64: حي الفاروق-حقلانية | G64: 34.08592765 | H64: 42.35917116 | I64: 4 | J64: 24 | K64: NA | L64: NA | M64: 0 | N64: 0 | O64: 0 | P64: 0 | Q64: 24 | R64: 0 | S64: 0 | T64: 0 | U64: 0 | V64: 0 | W64: 0 | X64: 0 | Y64: 0 | Z64: 24 | AA64: 0 | AB64: 0 | AC64: 0 | AD64: 0 | AE64: 0 | AF64: 0 | AG64: 0 | AH64: 0 | AI64: 0 | AJ64: 0 | AK64: 0 | AL64: 0 | AM64: 0 | AN64: 0 | AO64: 0 | AP64: 0 | AQ64: 0 | AR64: 0 | AS64: 24 | AT64: 0 | AU64: 0 | AV64: 0 | AW64: 0 | AX64: 0 | AY64: 0 | AZ64: 0 | BA64: 0 | BB64: 0 | BC64: 0 | BD64: =HYPERLINK("http://www.openstreetmap.org/?mlat=34.0859&mlon=42.3592&zoom=12#map=12/34.0859/42.3592","Maplink1") -> Maplink1 | BE64: =HYPERLINK("https://www.google.iq/maps/search/+34.0859,42.3592/@34.0859,42.3592,14z?hl=en","Maplink2") -> Maplink2 | BF64: =HYPERLINK("http://www.bing.com/maps/?lvl=14&sty=h&cp=34.0859~42.3592&sp=point.34.0859_42.3592","Maplink3") -> Maplink3
A65: 23819 | B65: Al-Anbar | C65: Haditha | D65: Barwana | E65: Hay Al Haqlaniyah Qadim | F65: حي حقلانية القديمة | G65: 34.08674866 | H65: 42.36835937 | I65: 8 | J65: 48 | K65: 0 | L65: 0 | M65: 0 | N65: 0 | O65: 0 | P65: 0 | Q65: 48 | R65: 0 | S65: 0 | T65: 0 | U65: 0 | V65: 0 | W65: 0 | X65: 0 | Y65: 0 | Z65: 42 | AA65: 0 | AB65: 0 | AC65: 0 | AD65: 0 | AE65: 0 | AF65: 0 | AG65: 0 | AH65: 0 | AI65: 0 | AJ65: 0 | AK65: 0 | AL65: 0 | AM65: 0 | AN65: 6 | AO65: 0 | AP65: 0 | AQ65: 0 | AR65: 0 | AS65: 48 | AT65: 0 | AU65: 0 | AV65: 0 | AW65: 0 | AX65: 0 | AY65: 0 | AZ65: 0 | BA65: 0 | BB65: 0 | BC65: 0 | BD65: =HYPERLINK("http://www.openstreetmap.org/?mlat=34.0867&mlon=42.3684&zoom=12#map=12/34.0867/42.3684","Maplink1") -> Maplink1 | BE65: =HYPERLINK("https://www.google.iq/maps/search/+34.0867,42.3684/@34.0867,42.3684,14z?hl=en","Maplink2") -> Maplink2 | BF65: =HYPERLINK("http://www.bing.com/maps/?lvl=14&sty=h&cp=34.0867~42.3684&sp=point.34.0867_42.3684","Maplink3") -> Maplink3
A66: 24315 | B66: Al-Anbar | C66: Haditha | D66: Barwana | E66: Hay Al Rahman | F66: حي الرحمن | G66: 34.100625 | H66: 42.38768178 | I66: 5 | J66: 30 | K66: 0 | L66: 0 | M66: 0 | N66: 0 | O66: 0 | P66: 0 | Q66: 30 | R66: 0 | S66: 0 | T66: 0 | U66: 0 | V66: 0 | W66: 0 | X66: 0 | Y66: 0 | Z66: 12 | AA66: 0 | AB66: 0 | AC66: 0 | AD66: 0 | AE66: 0 | AF66: 0 | AG66: 0 | AH66: 0 | AI66: 0 | AJ66: 0 | AK66: 0 | AL66: 0 | AM66: 0 | AN66: 18 | AO66: 0 | AP66: 0 | AQ66: 0 | AR66: 0 | AS66: 0 | AT66: 0 | AU66: 30 | AV66: 0 | AW66: 0 | AX66: 0 | AY66: 0 | AZ66: 0 | BA66: 0 | BB66: 0 | BC66: 0 | BD66: =HYPERLINK("http://www.openstreetmap.org/?mlat=34.1006&mlon=42.3877&zoom=12#map=12/34.1006/42.3877","Maplink1") -> Maplink1 | BE66: =HYPERLINK("https://www.google.iq/maps/search/+34.1006,42.3877/@34.1006,42.3877,14z?hl=en","Maplink2") -> Maplink2 | BF66: =HYPERLINK("http://www.bing.com/maps/?lvl=14&sty=h&cp=34.1006~42.3877&sp=point.34.1006_42.3877","Maplink3") -> Maplink3
A67: 24316 | B67: Al-Anbar | C67: Haditha | D67: Al-Haqlaniya | E67: Hay Al Salam | F67: حي السلام | G67: 34.0907524 | H67: 42.3623321 | I67: 17 | J67: 102 | K67: 0 | L67: 0 | M67: 0 | N67: 0 | O67: 0 | P67: 0 | Q67: 102 | R67: 0 | S67: 0 | T67: 0 | U67: 0 | V67: 0 | W67: 0 | X67: 0 | Y67: 0 | Z67: 78 | AA67: 0 | AB67: 0 | AC67: 0 | AD67: 0 | AE67: 0 | AF67: 0 | AG67: 0 | AH67: 0 | AI67: 0 | AJ67: 0 | AK67: 0 | AL67: 24 | AM67: 0 | AN67: 0 | AO67: 0 | AP67: 0 | AQ67: 0 | AR67: 0 | AS67: 102 | AT67: 0 | AU67: 0 | AV67: 0 | AW67: 0 | AX67: 0 | AY67: 0 | AZ67: 0 | BA67: 0 | BB67: 0 | BC67: 0 | BD67: =HYPERLINK("http://www.openstreetmap.org/?mlat=34.0908&mlon=42.3623&zoom=12#map=12/34.0908/42.3623","Maplink1") -> Maplink1 | BE67: =HYPERLINK("https://www.google.iq/maps/search/+34.0908,42.3623/@34.0908,42.3623,14z?hl=en","Maplink2") -> Maplink2 | BF67: =HYPERLINK("http://www.bing.com/maps/?lvl=14&sty=h&cp=34.0908~42.3623&sp=point.34.0908_42.3623","Maplink3") -> Maplink3
A68: 236 | B68: Al-Anbar | C68: Haditha | D68: Barwana | E68: Hay Al Saray | F68: حي السراي | G68: 34.14146603 | H68: 42.37947003 | I68: 7 | J68: 42 | K68: 0 | L68: 0 | M68: 0 | N68: 0 | O68: 0 | P68: 0 | Q68: 42 | R68: 0 | S68: 0 | T68: 0 | U68: 0 | V68: 0 | W68: 0 | X68: 0 | Y68: 0 | Z68: 42 | AA68: 0 | AB68: 0 | AC68: 0 | AD68: 0 | AE68: 0 | AF68: 0 | AG68: 0 | AH68: 0 | AI68: 0 | AJ68: 0 | AK68: 0 | AL68: 0 | AM68: 0 | AN68: 0 | AO68: 0 | AP68: 0 | AQ68: 0 | AR68: 0 | AS68: 42 | AT68: 0 | AU68: 0 | AV68: 0 | AW68: 0 | AX68: 0 | AY68: 0 | AZ68: 0 | BA68: 0 | BB68: 0 | BC68: 0 | BD68: =HYPERLINK("http://www.openstreetmap.org/?mlat=34.1415&mlon=42.3795&zoom=12#map=12/34.1415/42.3795","Maplink1") -> Maplink1 | BE68: =HYPERLINK("https://www.google.iq/maps/search/+34.1415,42.3795/@34.1415,42.3795,14z?hl=en","Maplink2") -> Maplink2 | BF68: =HYPERLINK("http://www.bing.com/maps/?lvl=14&sty=h&cp=34.1415~42.3795&sp=point.34.1415_42.3795","Maplink3") -> Maplink3
A69: 23813 | B69: Al-Anbar | C69: Haditha | D69: Barwana | E69: Hay Al Shuhadaa | F69: حي الشهداء | G69: 34.0930789 | H69: 42.38991793 | I69: 5 | J69: 30 | K69: 0 | L69: 0 | M69: 0 | N69: 0 | O69: 0 | P69: 0 | Q69: 30 | R69: 0 | S69: 0 | T69: 0 | U69: 0 | V69: 0 | W69: 0 | X69: 0 | Y69: 0 | Z69: 24 | AA69: 0 | AB69: 0 | AC69: 0 | AD69: 0 | AE69: 0 | AF69: 0 | AG69: 0 | AH69: 0 | AI69: 0 | AJ69: 0 | AK69: 0 | AL69: 0 | AM69: 0 | AN69: 6 | AO69: 0 | AP69: 0 | AQ69: 0 | AR69: 0 | AS69: 0 | AT69: 0 | AU69: 30 | AV69: 0 | AW69: 0 | AX69: 0 | AY69: 0 | AZ69: 0 | BA69: 0 | BB69: 0 | BC69: 0 | BD69: =HYPERLINK("http://www.openstreetmap.org/?mlat=34.0931&mlon=42.3899&zoom=12#map=12/34.0931/42.3899","Maplink1") -> Maplink1 | BE69: =HYPERLINK("https://www.google.iq/maps/search/+34.0931,42.3899/@34.0931,42.3899,14z?hl=en","Maplink2") -> Maplink2 | BF69: =HYPERLINK("http://www.bing.com/maps/?lvl=14&sty=h&cp=34.0931~42.3899&sp=point.34.0931_42.3899","Maplink3") -> Maplink3
A70: 241 | B70: Al-Anbar | C70: Haditha | D70: Barwana | E70: Hay Al Shurta | F70: حي الشرطة | G70: 34.10453095 | H70: 42.37396045 | I70: 11 | J70: 66 | K70: 0 | L70: 0 | M70: 0 | N70: 0 | O70: 0 | P70: 0 | Q70: 66 | R70: 0 | S70: 0 | T70: 0 | U70: 0 | V70: 0 | W70: 0 | X70: 0 | Y70: 0 | Z70: 42 | AA70: 0 | AB70: 0 | AC70: 0 | AD70: 0 | AE70: 0 | AF70: 0 | AG70: 0 | AH70: 0 | AI70: 0 | AJ70: 0 | AK70: 0 | AL70: 0 | AM70: 0 | AN70: 24 | AO70: 0 | AP70: 0 | AQ70: 0 | AR70: 0 | AS70: 66 | AT70: 0 | AU70: 0 | AV70: 0 | AW70: 0 | AX70: 0 | AY70: 0 | AZ70: 0 | BA70: 0 | BB70: 0 | BC70: 0 | BD70: =HYPERLINK("http://www.openstreetmap.org/?mlat=34.1045&mlon=42.374&zoom=12#map=12/34.1045/42.374","Maplink1") -> Maplink1 | BE70: =HYPERLINK("https://www.google.iq/maps/search/+34.1045,42.374/@34.1045,42.374,14z?hl=en","Maplink2") -> Maplink2 | BF70: =HYPERLINK("http://www.bing.com/maps/?lvl=14&sty=h&cp=34.1045~42.374&sp=point.34.1045_42.374","Maplink3") -> Maplink3
A71: 244 | B71: Al-Anbar | C71: Haditha | D71: Al-Haqlaniya | E71: Hay Al Yarmuk | F71: حي اليرموك | G71: 34.14210658 | H71: 42.37362766 | I71: 41 | J71: 246 | K71: 0 | L71: 0 | M71: 0 | N71: 0 | O71: 0 | P71: 0 | Q71: 246 | R71: 0 | S71: 0 | T71: 0 | U71: 0 | V71: 0 | W71: 0 | X71: 0 | Y71: 0 | Z71: 246 | AA71: 0 | AB71: 0 | AC71: 0 | AD71: 0 | AE71: 0 | AF71: 0 | AG71: 0 | AH71: 0 | AI71: 0 | AJ71: 0 | AK71: 0 | AL71: 0 | AM71: 0 | AN71: 0 | AO71: 0 | AP71: 0 | AQ71: 0 | AR71: 0 | AS71: 246 | AT71: 0 | AU71: 0 | AV71: 0 | AW71: 0 | AX71: 0 | AY71: 0 | AZ71: 0 | BA71: 0 | BB71: 0 | BC71: 0 | BD71: =HYPERLINK("http://www.openstreetmap.org/?mlat=34.1421&mlon=42.3736&zoom=12#map=12/34.1421/42.3736","Maplink1") -> Maplink1 | BE71: =HYPERLINK("https://www.google.iq/maps/search/+34.1421,42.3736/@34.1421,42.3736,14z?hl=en","Maplink2") -> Maplink2 | BF71: =HYPERLINK("http://www.bing.com/maps/?lvl=14&sty=h&cp=34.1421~42.3736&sp=point.34.1421_42.3736","Maplink3") -> Maplink3
A72: 23806 | B72: Al-Anbar | C72: Haditha | D72: Al-Haqlaniya | E72: Hay Al-Mulameen | F72: حي المعلمين | G72: 34.13540931 | H72: 42.36541286 | I72: 15 | J72: 90 | K72: 0 | L72: 0 | M72: 0 | N72: 0 | O72: 0 | P72: 0 | Q72: 90 | R72: 0 | S72: 0 | T72: 0 | U72: 0 | V72: 0 | W72: 0 | X72: 0 | Y72: 0 | Z72: 72 | AA72: 0 | AB72: 0 | AC72: 0 | AD72: 0 | AE72: 0 | AF72: 0 | AG72: 0 | AH72: 0 | AI72: 0 | AJ72: 0 | AK72: 0 | AL72: 0 | AM72: 0 | AN72: 18 | AO72: 0 | AP72: 0 | AQ72: 0 | AR72: 0 | AS72: 90 | AT72: 0 | AU72: 0 | AV72: 0 | AW72: 0 | AX72: 0 | AY72: 0 | AZ72: 0 | BA72: 0 | BB72: 0 | BC72: 0 | BD72: =HYPERLINK("http://www.openstreetmap.org/?mlat=34.1354&mlon=42.3654&zoom=12#map=12/34.1354/42.3654","Maplink1") -> Maplink1 | BE72: =HYPERLINK("https://www.google.iq/maps/search/+34.1354,42.3654/@34.1354,42.3654,14z?hl=en","Maplink2") -> Maplink2 | BF72: =HYPERLINK("http://www.bing.com/maps/?lvl=14&sty=h&cp=34.1354~42.3654&sp=point.34.1354_42.3654","Maplink3") -> Maplink3
A73: 24110 | B73: Al-Anbar | C73: Haditha | D73: Al-Haqlaniya | E73: Hay Al-Mutasem | F73: حي المعتصم | G73: 34.08312798 | H73: 42.36857003 | I73: 6 | J73: 36 | K73: 0 | L73: 0 | M73: 0 | N73: 0 | O73: 0 | P73: 0 | Q73: 36 | R73: 0 | S73: 0 | T73: 0 | U73: 0 | V73: 0 | W73: 0 | X73: 0 | Y73: 0 | Z73: 36 | AA73: 0 | AB73: 0 | AC73: 0 | AD73: 0 | AE73: 0 | AF73: 0 | AG73: 0 | AH73: 0 | AI73: 0 | AJ73: 0 | AK73: 0 | AL73: 0 | AM73: 0 | AN73: 0 | AO73: 0 | AP73: 0 | AQ73: 0 | AR73: 0 | AS73: 36 | AT73: 0 | AU73: 0 | AV73: 0 | AW73: 0 | AX73: 0 | AY73: 0 | AZ73: 0 | BA73: 0 | BB73: 0 | BC73: 0 | BD73: =HYPERLINK("http://www.openstreetmap.org/?mlat=34.0831&mlon=42.3686&zoom=12#map=12/34.0831/42.3686","Maplink1") -> Maplink1 | BE73: =HYPERLINK("https://www.google.iq/maps/search/+34.0831,42.3686/@34.0831,42.3686,14z?hl=en","Maplink2") -> Maplink2 | BF73: =HYPERLINK("http://www.bing.com/maps/?lvl=14&sty=h&cp=34.0831~42.3686&sp=point.34.0831_42.3686","Maplink3") -> Maplink3
A74: 79 | B74: Al-Anbar | C74: Haditha | D74: Barwana | E74: Hay Al-Subhani | F74: حي السبحاني | G74: 34.11596215 | H74: 42.38439105 | I74: 23 | J74: 138 | K74: 0 | L74: 0 | M74: 0 | N74: 0 | O74: 0 | P74: 0 | Q74: 138 | R74: 0 | S74: 0 | T74: 0 | U74: 0 | V74: 0 | W74: 0 | X74: 0 | Y74: 0 | Z74: 138 | AA74: 0 | AB74: 0 | AC74: 0 | AD74: 0 | AE74: 0 | AF74: 0 | AG74: 0 | AH74: 0 | AI74: 0 | AJ74: 0 | AK74: 0 | AL74: 0 | AM74: 0 | AN74: 0 | AO74: 0 | AP74: 0 | AQ74: 0 | AR74: 0 | AS74: 138 | AT74: 0 | AU74: 0 | AV74: 0 | AW74: 0 | AX74: 0 | AY74: 0 | AZ74: 0 | BA74: 0 | BB74: 0 | BC74: 0 | BD74: =HYPERLINK("http://www.openstreetmap.org/?mlat=34.116&mlon=42.3844&zoom=12#map=12/34.116/42.3844","Maplink1") -> Maplink1 | BE74: =HYPERLINK("https://www.google.iq/maps/search/+34.116,42.3844/@34.116,42.3844,14z?hl=en","Maplink2") -> Maplink2 | BF74: =HYPERLINK("http://www.bing.com/maps/?lvl=14&sty=h&cp=34.116~42.3844&sp=point.34.116_42.3844","Maplink3") -> Maplink3
A75: 23808 | B75: Al-Anbar | C75: Haditha | D75: Barwana | E75: Hay Al-Thamaniya | F75: حي الثمانية | G75: 34.14903983 | H75: 42.38131025 | I75: 5 | J75: 30 | K75: 0 | L75: 0 | M75: 0 | N75: 0 | O75: 0 | P75: 0 | Q75: 30 | R75: 0 | S75: 0 | T75: 0 | U75: 0 | V75: 0 | W75: 0 | X75: 0 | Y75: 0 | Z75: 30 | AA75: 0 | AB75: 0 | AC75: 0 | AD75: 0 | AE75: 0 | AF75: 0 | AG75: 0 | AH75: 0 | AI75: 0 | AJ75: 0 | AK75: 0 | AL75: 0 | AM75: 0 | AN75: 0 | AO75: 0 | AP75: 0 | AQ75: 0 | AR75: 0 | AS75: 30 | AT75: 0 | AU75: 0 | AV75: 0 | AW75: 0 | AX75: 0 | AY75: 0 | AZ75: 0 | BA75: 0 | BB75: 0 | BC75: 0 | BD75: =HYPERLINK("http://www.openstreetmap.org/?mlat=34.149&mlon=42.3813&zoom=12#map=12/34.149/42.3813","Maplink1") -> Maplink1 | BE75: =HYPERLINK("https://www.google.iq/maps/search/+34.149,42.3813/@34.149,42.3813,14z?hl=en","Maplink2") -> Maplink2 | BF75: =HYPERLINK("http://www.bing.com/maps/?lvl=14&sty=h&cp=34.149~42.3813&sp=point.34.149_42.3813","Maplink3") -> Maplink3
A76: 23811 | B76: Al-Anbar | C76: Haditha | D76: Barwana | E76: Hay Barwanah Al Gharbiyah | F76: حي بروانه غربيه | G76: 34.10520359 | H76: 42.39020455 | I76: 20 | J76: 120 | K76: 0 | L76: 0 | M76: 0 | N76: 0 | O76: 0 | P76: 0 | Q76: 120 | R76: 0 | S76: 0 | T76: 0 | U76: 0 | V76: 0 | W76: 0 | X76: 0 | Y76: 0 | Z76: 78 | AA76: 0 | AB76: 0 | AC76: 0 | AD76: 0 | AE76: 0 | AF76: 0 | AG76: 0 | AH76: 0 | AI76: 0 | AJ76: 0 | AK76: 0 | AL76: 0 | AM76: 0 | AN76: 42 | AO76: 0 | AP76: 0 | AQ76: 0 | AR76: 0 | AS76: 0 | AT76: 0 | AU76: 120 | AV76: 0 | AW76: 0 | AX76: 0 | AY76: 0 | AZ76: 0 | BA76: 0 | BB76: 0 | BC76: 0 | BD76: =HYPERLINK("http://www.openstreetmap.org/?mlat=34.1052&mlon=42.3902&zoom=12#map=12/34.1052/42.3902","Maplink1") -> Maplink1 | BE76: =HYPERLINK("https://www.google.iq/maps/search/+34.1052,42.3902/@34.1052,42.3902,14z?hl=en","Maplink2") -> Maplink2 | BF76: =HYPERLINK("http://www.bing.com/maps/?lvl=14&sty=h&cp=34.1052~42.3902&sp=point.34.1052_42.3902","Maplink3") -> Maplink3
A77: 23812 | B77: Al-Anbar | C77: Haditha | D77: Barwana | E77: Hay Ibn Bittar | F77: حي ابن بيطار | G77: 34.08395051 | H77: 42.38297156 | I77: 12 | J77: 72 | K77: 0 | L77: 0 | M77: 0 | N77: 0 | O77: 0 | P77: 0 | Q77: 72 | R77: 0 | S77: 0 | T77: 0 | U77: 0 | V77: 0 | W77: 0 | X77: 0 | Y77: 0 | Z77: 18 | AA77: 0 | AB77: 0 | AC77: 0 | AD77: 0 | AE77: 0 | AF77: 0 | AG77: 0 | AH77: 12 | AI77: 0 | AJ77: 0 | AK77: 0 | AL77: 6 | AM77: 0 | AN77: 36 | AO77: 0 | AP77: 0 | AQ77: 0 | AR77: 0 | AS77: 6 | AT77: 0 | AU77: 66 | AV77: 0 | AW77: 0 | AX77: 0 | AY77: 0 | AZ77: 0 | BA77: 0 | BB77: 0 | BC77: 0 | BD77: =HYPERLINK("http://www.openstreetmap.org/?mlat=34.084&mlon=42.383&zoom=12#map=12/34.084/42.383","Maplink1") -> Maplink1 | BE77: =HYPERLINK("https://www.google.iq/maps/search/+34.084,42.383/@34.084,42.383,14z?hl=en","Maplink2") -> Maplink2 | BF77: =HYPERLINK("http://www.bing.com/maps/?lvl=14&sty=h&cp=34.084~42.383&sp=point.34.084_42.383","Maplink3") -> Maplink3
A78: 24724 | B78: Al-Anbar | C78: Heet | D78: Markaz Heet | E78: Al dawarah Al Gharbiyah | F78: الدوارة الغربية | G78: 33.6395497 | H78: 42.8309288 | I78: 3 | J78: 18 | K78: NA | L78: NA | M78: 0 | N78: 0 | O78: 0 | P78: 0 | Q78: 18 | R78: 0 | S78: 0 | T78: 0 | U78: 0 | V78: 0 | W78: 0 | X78: 0 | Y78: 0 | Z78: 18 | AA78: 0 | AB78: 0 | AC78: 0 | AD78: 0 | AE78: 0 | AF78: 0 | AG78: 0 | AH78: 0 | AI78: 0 | AJ78: 0 | AK78: 0 | AL78: 0 | AM78: 0 | AN78: 0 | AO78: 0 | AP78: 0 | AQ78: 0 | AR78: 0 | AS78: 0 | AT78: 0 | AU78: 0 | AV78: 0 | AW78: 18 | AX78: 0 | AY78: 0 | AZ78: 0 | BA78: 0 | BB78: 0 | BC78: 0 | BD78: =HYPERLINK("http://www.openstreetmap.org/?mlat=33.6395&mlon=42.8309&zoom=12#map=12/33.6395/42.8309","Maplink1") -> Maplink1 | BE78: =HYPERLINK("https://www.google.iq/maps/search/+33.6395,42.8309/@33.6395,42.8309,14z?hl=en","Maplink2") -> Maplink2 | BF78: =HYPERLINK("http://www.bing.com/maps/?lvl=14&sty=h&cp=33.6395~42.8309&sp=point.33.6395_42.8309","Maplink3") -> Maplink3
A79: 152 | B79: Al-Anbar | C79: Heet | D79: Al-Forat | E79: Al Muhamdee | F79: المحمدي | G79: 33.5509502 | H79: 42.9018178 | I79: 28 | J79: 168 | K79: 0 | L79: 0 | M79: 0 | N79: 0 | O79: 0 | P79: 0 | Q79: 168 | R79: 0 | S79: 0 | T79: 0 | U79: 0 | V79: 0 | W79: 0 | X79: 0 | Y79: 0 | Z79: 168 | AA79: 0 | AB79: 0 | AC79: 0 | AD79: 0 | AE79: 0 | AF79: 0 | AG79: 0 | AH79: 0 | AI79: 0 | AJ79: 0 | AK79: 0 | AL79: 0 | AM79: 0 | AN79: 0 | AO79: 0 | AP79: 0 | AQ79: 0 | AR79: 30 | AS79: 0 | AT79: 0 | AU79: 0 | AV79: 0 | AW79: 0 | AX79: 0 | AY79: 138 | AZ79: 0 | BA79: 0 | BB79: 0 | BC79: 0 | BD79: =HYPERLINK("http://www.openstreetmap.org/?mlat=33.551&mlon=42.9018&zoom=12#map=12/33.551/42.9018","Maplink1") -> Maplink1 | BE79: =HYPERLINK("https://www.google.iq/maps/search/+33.551,42.9018/@33.551,42.9018,14z?hl=en","Maplink2") -> Maplink2 | BF79: =HYPERLINK("http://www.bing.com/maps/?lvl=14&sty=h&cp=33.551~42.9018&sp=point.33.551_42.9018","Maplink3") -> Maplink3
A80: 23832 | B80: Al-Anbar | C80: Heet | D80: Markaz Heet | E80: Al-Mamora | F80: المعمورة | G80: 33.6297942 | H80: 42.7974282 | I80: 1 | J80: 6 | K80: NA | L80: NA | M80: 0 | N80: 0 | O80: 0 | P80: 0 | Q80: 6 | R80: 0 | S80: 0 | T80: 0 | U80: 0 | V80: 0 | W80: 0 | X80: 0 | Y80: 0 | Z80: 6 | AA80: 0 | AB80: 0 | AC80: 0 | AD80: 0 | AE80: 0 | AF80: 0 | AG80: 0 | AH80: 0 | AI80: 0 | AJ80: 0 | AK80: 0 | AL80: 0 | AM80: 0 | AN80: 0 | AO80: 0 | AP80: 0 | AQ80: 0 | AR80: 6 | AS80: 0 | AT80: 0 | AU80: 0 | AV80: 0 | AW80: 0 | AX80: 0 | AY80: 0 | AZ80: 0 | BA80: 0 | BB80: 0 | BC80: 0 | BD80: =HYPERLINK("http://www.openstreetmap.org/?mlat=33.6298&mlon=42.7974&zoom=12#map=12/33.6298/42.7974","Maplink1") -> Maplink1 | BE80: =HYPERLINK("https://www.google.iq/maps/search/+33.6298,42.7974/@33.6298,42.7974,14z?hl=en","Maplink2") -> Maplink2 | BF80: =HYPERLINK("http://www.bing.com/maps/?lvl=14&sty=h&cp=33.6298~42.7974&sp=point.33.6298_42.7974","Maplink3") -> Maplink3
A81: 23890 | B81: Al-Anbar | C81: Heet | D81: Al-Baghdady | E81: Al-Mashhad | F81: المشهد | G81: 33.8746847 | H81: 42.5213031 | I81: 1 | J81: 6 | K81: NA | L81: NA | M81: 0 | N81: 0 | O81: 0 | P81: 0 | Q81: 6 | R81: 0 | S81: 0 | T81: 0 | U81: 0 | V81: 0 | W81: 0 | X81: 0 | Y81: 0 | Z81: 6 | AA81: 0 | AB81: 0 | AC81: 0 | AD81: 0 | AE81: 0 | AF81: 0 | AG81: 0 | AH81: 0 | AI81: 0 | AJ81: 0 | AK81: 0 | AL81: 0 | AM81: 0 | AN81: 0 | AO81: 0 | AP81: 0 | AQ81: 0 | AR81: 0 | AS81: 0 | AT81: 0 | AU81: 0 | AV81: 0 | AW81: 0 | AX81: 6 | AY81: 0 | AZ81: 0 | BA81: 0 | BB81: 0 | BC81: 0 | BD81: =HYPERLINK("http://www.openstreetmap.org/?mlat=33.8747&mlon=42.5213&zoom=12#map=12/33.8747/42.5213","Maplink1") -> Maplink1 | BE81: =HYPERLINK("https://www.google.iq/maps/search/+33.8747,42.5213/@33.8747,42.5213,14z?hl=en","Maplink2") -> Maplink2 | BF81: =HYPERLINK("http://www.bing.com/maps/?lvl=14&sty=h&cp=33.8747~42.5213&sp=point.33.8747_42.5213","Maplink3") -> Maplink3
A82: 21323 | B82: Al-Anbar | C82: Heet | D82: Al-Baghdady | E82: Al-Mujama Al-Sakani | F82: الحي السكني | G82: 33.9220136 | H82: 42.5240107 | I82: 4 | J82: 24 | K82: NA | L82: NA | M82: 0 | N82: 0 | O82: 0 | P82: 0 | Q82: 24 | R82: 0 | S82: 0 | T82: 0 | U82: 0 | V82: 0 | W82: 0 | X82: 0 | Y82: 0 | Z82: 24 | AA82: 0 | AB82: 0 | AC82: 0 | AD82: 0 | AE82: 0 | AF82: 0 | AG82: 0 | AH82: 0 | AI82: 0 | AJ82: 0 | AK82: 0 | AL82: 0 | AM82: 0 | AN82: 0 | AO82: 0 | AP82: 0 | AQ82: 0 | AR82: 0 | AS82: 0 | AT82: 0 | AU82: 18 | AV82: 0 | AW82: 0 | AX82: 6 | AY82: 0 | AZ82: 0 | BA82: 0 | BB82: 0 | BC82: 0 | BD82: =HYPERLINK("http://www.openstreetmap.org/?mlat=33.922&mlon=42.524&zoom=12#map=12/33.922/42.524","Maplink1") -> Maplink1 | BE82: =HYPERLINK("https://www.google.iq/maps/search/+33.922,42.524/@33.922,42.524,14z?hl=en","Maplink2") -> Maplink2 | BF82: =HYPERLINK("http://www.bing.com/maps/?lvl=14&sty=h&cp=33.922~42.524&sp=point.33.922_42.524","Maplink3") -> Maplink3
A83: 23827 | B83: Al-Anbar | C83: Heet | D83: Markaz Heet | E83: Al-Qalqalah | F83: القلقة | G83: 33.64174 | H83: 42.82417 | I83: 2 | J83: 12 | K83: NA | L83: NA | M83: 0 | N83: 0 | O83: 0 | P83: 0 | Q83: 12 | R83: 0 | S83: 0 | T83: 0 | U83: 0 | V83: 0 | W83: 0 | X83: 0 | Y83: 0 | Z83: 12 | AA83: 0 | AB83: 0 | AC83: 0 | AD83: 0 | AE83: 0 | AF83: 0 | AG83: 0 | AH83: 0 | AI83: 0 | AJ83: 0 | AK83: 0 | AL83: 0 | AM83: 0 | AN83: 0 | AO83: 0 | AP83: 0 | AQ83: 0 | AR83: 0 | AS83: 0 | AT83: 0 | AU83: 0 | AV83: 0 | AW83: 0 | AX83: 6 | AY83: 6 | AZ83: 0 | BA83: 0 | BB83: 0 | BC83: 0 | BD83: =HYPERLINK("http://www.openstreetmap.org/?mlat=33.6417&mlon=42.8242&zoom=12#map=12/33.6417/42.8242","Maplink1") -> Maplink1 | BE83: =HYPERLINK("https://www.google.iq/maps/search/+33.6417,42.8242/@33.6417,42.8242,14z?hl=en","Maplink2") -> Maplink2 | BF83: =HYPERLINK("http://www.bing.com/maps/?lvl=14&sty=h&cp=33.6417~42.8242&sp=point.33.6417_42.8242","Maplink3") -> Maplink3
A84: 136 | B84: Al-Anbar | C84: Heet | D84: Al-Baghdady | E84: Al-shuhdaa | F84: الشهداء | G84: 33.8888209 | H84: 42.5233638 | I84: 3 | J84: 18 | K84: NA | L84: NA | M84: 0 | N84: 0 | O84: 0 | P84: 0 | Q84: 18 | R84: 0 | S84: 0 | T84: 0 | U84: 0 | V84: 0 | W84: 0 | X84: 0 | Y84: 0 | Z84: 18 | AA84: 0 | AB84: 0 | AC84: 0 | AD84: 0 | AE84: 0 | AF84: 0 | AG84: 0 | AH84: 0 | AI84: 0 | AJ84: 0 | AK84: 0 | AL84: 0 | AM84: 0 | AN84: 0 | AO84: 0 | AP84: 0 | AQ84: 0 | AR84: 0 | AS84: 0 | AT84: 0 | AU84: 0 | AV84: 0 | AW84: 18 | AX84: 0 | AY84: 0 | AZ84: 0 | BA84: 0 | BB84: 0 | BC84: 0 | BD84: =HYPERLINK("http://www.openstreetmap.org/?mlat=33.8888&mlon=42.5234&zoom=12#map=12/33.8888/42.5234","Maplink1") -> Maplink1 | BE84: =HYPERLINK("https://www.google.iq/maps/search/+33.8888,42.5234/@33.8888,42.5234,14z?hl=en","Maplink2") -> Maplink2 | BF84: =HYPERLINK("http://www.bing.com/maps/?lvl=14&sty=h&cp=33.8888~42.5234&sp=point.33.8888_42.5234","Maplink3") -> Maplink3
A85: 23831 | B85: Al-Anbar | C85: Heet | D85: Markaz Heet | E85: Al-Sikak | F85: السكك | G85: 33.6289434 | H85: 42.8247151 | I85: 6 | J85: 36 | K85: 0 | L85: 0 | M85: 0 | N85: 0 | O85: 0 | P85: 0 | Q85: 36 | R85: 0 | S85: 0 | T85: 0 | U85: 0 | V85: 0 | W85: 0 | X85: 0 | Y85: 0 | Z85: 36 | AA85: 0 | AB85: 0 | AC85: 0 | AD85: 0 | AE85: 0 | AF85: 0 | AG85: 0 | AH85: 0 | AI85: 0 | AJ85: 0 | AK85: 0 | AL85: 0 | AM85: 0 | AN85: 0 | AO85: 0 | AP85: 0 | AQ85: 0 | AR85: 0 | AS85: 0 | AT85: 0 | AU85: 6 | AV85: 30 | AW85: 0 | AX85: 0 | AY85: 0 | AZ85: 0 | BA85: 0 | BB85: 0 | BC85: 0 | BD85: =HYPERLINK("http://www.openstreetmap.org/?mlat=33.6289&mlon=42.8247&zoom=12#map=12/33.6289/42.8247","Maplink1") -> Maplink1 | BE85: =HYPERLINK("https://www.google.iq/maps/search/+33.6289,42.8247/@33.6289,42.8247,14z?hl=en","Maplink2") -> Maplink2 | BF85: =HYPERLINK("http://www.bing.com/maps/?lvl=14&sty=h&cp=33.6289~42.8247&sp=point.33.6289_42.8247","Maplink3") -> Maplink3
A86: 312 | B86: Al-Anbar | C86: Heet | D86: Markaz Heet | E86: Al-Ummal | F86: العمال | G86: 33.6354222 | H86: 42.8280804 | I86: 14 | J86: 84 | K86: 0 | L86: 0 | M86: 0 | N86: 0 | O86: 0 | P86: 0 | Q86: 84 | R86: 0 | S86: 0 | T86: 0 | U86: 0 | V86: 0 | W86: 0 | X86: 0 | Y86: 0 | Z86: 84 | AA86: 0 | AB86: 0 | AC86: 0 | AD86: 0 | AE86: 0 | AF86: 0 | AG86: 0 | AH86: 0 | AI86: 0 | AJ86: 0 | AK86: 0 | AL86: 0 | AM86: 0 | AN86: 0 | AO86: 0 | AP86: 0 | AQ86: 0 | AR86: 24 | AS86: 0 | AT86: 0 | AU86: 54 | AV86: 0 | AW86: 0 | AX86: 0 | AY86: 6 | AZ86: 0 | BA86: 0 | BB86: 0 | BC86: 0 | BD86: =HYPERLINK("http://www.openstreetmap.org/?mlat=33.6354&mlon=42.8281&zoom=12#map=12/33.6354/42.8281","Maplink1") -> Maplink1 | BE86: =HYPERLINK("https://www.google.iq/maps/search/+33.6354,42.8281/@33.6354,42.8281,14z?hl=en","Maplink2") -> Maplink2 | BF86: =HYPERLINK("http://www.bing.com/maps/?lvl=14&sty=h&cp=33.6354~42.8281&sp=point.33.6354_42.8281","Maplink3") -> Maplink3
A87: 21264 | B87: Al-Anbar | C87: Heet | D87: Markaz Heet | E87: Basair | F87: البصائر | G87: 33.6527316 | H87: 42.8084941 | I87: 2 | J87: 12 | K87: NA | L87: NA | M87: 0 | N87: 0 | O87: 0 | P87: 0 | Q87: 12 | R87: 0 | S87: 0 | T87: 0 | U87: 0 | V87: 0 | W87: 0 | X87: 0 | Y87: 0 | Z87: 12 | AA87: 0 | AB87: 0 | AC87: 0 | AD87: 0 | AE87: 0 | AF87: 0 | AG87: 0 | AH87: 0 | AI87: 0 | AJ87: 0 | AK87: 0 | AL87: 0 | AM87: 0 | AN87: 0 | AO87: 0 | AP87: 0 | AQ87: 0 | AR87: 0 | AS87: 0 | AT87: 0 | AU87: 12 | AV87: 0 | AW87: 0 | AX87: 0 | AY87: 0 | AZ87: 0 | BA87: 0 | BB87: 0 | BC87: 0 | BD87: =HYPERLINK("http://www.openstreetmap.org/?mlat=33.6527&mlon=42.8085&zoom=12#map=12/33.6527/42.8085","Maplink1") -> Maplink1 | BE87: =HYPERLINK("https://www.google.iq/maps/search/+33.6527,42.8085/@33.6527,42.8085,14z?hl=en","Maplink2") -> Maplink2 | BF87: =HYPERLINK("http://www.bing.com/maps/?lvl=14&sty=h&cp=33.6527~42.8085&sp=point.33.6527_42.8085","Maplink3") -> Maplink3
A88: 23838 | B88: Al-Anbar | C88: Heet | D88: Kubaisa | E88: Hay Al Farouq | F88: حي الفاروق | G88: 33.5910779 | H88: 42.6223471 | I88: 2 | J88: 12 | K88: NA | L88: NA | M88: 0 | N88: 0 | O88: 0 | P88: 0 | Q88: 12 | R88: 0 | S88: 0 | T88: 0 | U88: 0 | V88: 0 | W88: 0 | X88: 0 | Y88: 0 | Z88: 12 | AA88: 0 | AB88: 0 | AC88: 0 | AD88: 0 | AE88: 0 | AF88: 0 | AG88: 0 | AH88: 0 | AI88: 0 | AJ88: 0 | AK88: 0 | AL88: 0 | AM88: 0 | AN88: 0 | AO88: 0 | AP88: 0 | AQ88: 0 | AR88: 0 | AS88: 0 | AT88: 0 | AU88: 0 | AV88: 12 | AW88: 0 | AX88: 0 | AY88: 0 | AZ88: 0 | BA88: 0 | BB88: 0 | BC88: 0 | BD88: =HYPERLINK("http://www.openstreetmap.org/?mlat=33.5911&mlon=42.6223&zoom=12#map=12/33.5911/42.6223","Maplink1") -> Maplink1 | BE88: =HYPERLINK("https://www.google.iq/maps/search/+33.5911,42.6223/@33.5911,42.6223,14z?hl=en","Maplink2") -> Maplink2 | BF88: =HYPERLINK("http://www.bing.com/maps/?lvl=14&sty=h&cp=33.5911~42.6223&sp=point.33.5911_42.6223","Maplink3") -> Maplink3
A89: 228 | B89: Al-Anbar | C89: Heet | D89: Markaz Heet | E89: Hay al Jury | F89: الجري | G89: 33.6403175 | H89: 42.8214436 | I89: 4 | J89: 24 | K89: NA | L89: NA | M89: 0 | N89: 0 | O89: 0 | P89: 0 | Q89: 24 | R89: 0 | S89: 0 | T89: 0 | U89: 0 | V89: 0 | W89: 0 | X89: 0 | Y89: 0 | Z89: 24 | AA89: 0 | AB89: 0 | AC89: 0 | AD89: 0 | AE89: 0 | AF89: 0 | AG89: 0 | AH89: 0 | AI89: 0 | AJ89: 0 | AK89: 0 | AL89: 0 | AM89: 0 | AN89: 0 | AO89: 0 | AP89: 0 | AQ89: 0 | AR89: 0 | AS89: 0 | AT89: 0 | AU89: 0 | AV89: 0 | AW89: 0 | AX89: 6 | AY89: 18 | AZ89: 0 | BA89: 0 | BB89: 0 | BC89: 0 | BD89: =HYPERLINK("http://www.openstreetmap.org/?mlat=33.6403&mlon=42.8214&zoom=12#map=12/33.6403/42.8214","Maplink1") -> Maplink1 | BE89: =HYPERLINK("https://www.google.iq/maps/search/+33.6403,42.8214/@33.6403,42.8214,14z?hl=en","Maplink2") -> Maplink2 | BF89: =HYPERLINK("http://www.bing.com/maps/?lvl=14&sty=h&cp=33.6403~42.8214&sp=point.33.6403_42.8214","Maplink3") -> Maplink3
A90: 21469 | B90: Al-Anbar | C90: Heet | D90: Al-Baghdady | E90: Hay Al Salam | F90: السلام | G90: 33.8439322 | H90: 42.5561587 | I90: 8 | J90: 48 | K90: 0 | L90: 0 | M90: 0 | N90: 0 | O90: 0 | P90: 0 | Q90: 48 | R90: 0 | S90: 0 | T90: 0 | U90: 0 | V90: 0 | W90: 0 | X90: 0 | Y90: 0 | Z90: 42 | AA90: 0 | AB90: 0 | AC90: 0 | AD90: 0 | AE90: 0 | AF90: 0 | AG90: 0 | AH90: 0 | AI90: 0 | AJ90: 0 | AK90: 0 | AL90: 0 | AM90: 0 | AN90: 6 | AO90: 0 | AP90: 0 | AQ90: 0 | AR90: 6 | AS90: 0 | AT90: 0 | AU90: 24 | AV90: 0 | AW90: 18 | AX90: 0 | AY90: 0 | AZ90: 0 | BA90: 0 | BB90: 0 | BC90: 0 | BD90: =HYPERLINK("http://www.openstreetmap.org/?mlat=33.8439&mlon=42.5562&zoom=12#map=12/33.8439/42.5562","Maplink1") -> Maplink1 | BE90: =HYPERLINK("https://www.google.iq/maps/search/+33.8439,42.5562/@33.8439,42.5562,14z?hl=en","Maplink2") -> Maplink2 | BF90: =HYPERLINK("http://www.bing.com/maps/?lvl=14&sty=h&cp=33.8439~42.5562&sp=point.33.8439_42.5562","Maplink3") -> Maplink3
A91: 218 | B91: Al-Anbar | C91: Heet | D91: Markaz Heet | E91: Hay Al-Etfaa | F91: حي الاطفاء | G91: 33.6317935 | H91: 42.8322699 | I91: 8 | J91: 48 | K91: 0 | L91: 0 | M91: 0 | N91: 0 | O91: 0 | P91: 0 | Q91: 48 | R91: 0 | S91: 0 | T91: 0 | U91: 0 | V91: 0 | W91: 0 | X91: 0 | Y91: 0 | Z91: 48 | AA91: 0 | AB91: 0 | AC91: 0 | AD91: 0 | AE91: 0 | AF91: 0 | AG91: 0 | AH91: 0 | AI91: 0 | AJ91: 0 | AK91: 0 | AL91: 0 | AM91: 0 | AN91: 0 | AO91: 0 | AP91: 0 | AQ91: 0 | AR91: 0 | AS91: 0 | AT91: 0 | AU91: 0 | AV91: 0 | AW91: 0 | AX91: 48 | AY91: 0 | AZ91: 0 | BA91: 0 | BB91: 0 | BC91: 0 | BD91: =HYPERLINK("http://www.openstreetmap.org/?mlat=33.6318&mlon=42.8323&zoom=12#map=12/33.6318/42.8323","Maplink1") -> Maplink1 | BE91: =HYPERLINK("https://www.google.iq/maps/search/+33.6318,42.8323/@33.6318,42.8323,14z?hl=en","Maplink2") -> Maplink2 | BF91: =HYPERLINK("http://www.bing.com/maps/?lvl=14&sty=h&cp=33.6318~42.8323&sp=point.33.6318_42.8323","Maplink3") -> Maplink3
A92: 219 | B92: Al-Anbar | C92: Heet | D92: Markaz Heet | E92: Hay Al-Jabal | F92: الجبل | G92: 33.6352777 | H92: 42.8202338 | I92: 44 | J92: 264 | K92: 0 | L92: 0 | M92: 0 | N92: 0 | O92: 0 | P92: 0 | Q92: 264 | R92: 0 | S92: 0 | T92: 0 | U92: 0 | V92: 0 | W92: 0 | X92: 0 | Y92: 0 | Z92: 264 | AA92: 0 | AB92: 0 | AC92: 0 | AD92: 0 | AE92: 0 | AF92: 0 | AG92: 0 | AH92: 0 | AI92: 0 | AJ92: 0 | AK92: 0 | AL92: 0 | AM92: 0 | AN92: 0 | AO92: 0 | AP92: 0 | AQ92: 0 | AR92: 0 | AS92: 0 | AT92: 0 | AU92: 0 | AV92: 0 | AW92: 102 | AX92: 108 | AY92: 54 | AZ92: 0 | BA92: 0 | BB92: 0 | BC92: 0 | BD92: =HYPERLINK("http://www.openstreetmap.org/?mlat=33.6353&mlon=42.8202&zoom=12#map=12/33.6353/42.8202","Maplink1") -> Maplink1 | BE92: =HYPERLINK("https://www.google.iq/maps/search/+33.6353,42.8202/@33.6353,42.8202,14z?hl=en","Maplink2") -> Maplink2 | BF92: =HYPERLINK("http://www.bing.com/maps/?lvl=14&sty=h&cp=33.6353~42.8202&sp=point.33.6353_42.8202","Maplink3") -> Maplink3
A93: 23885 | B93: Al-Anbar | C93: Heet | D93: Markaz Heet | E93: Hay Al-jamyah 2 | F93: الجمعية الثانية | G93: 33.6298282 | H93: 42.8462612 | I93: 13 | J93: 78 | K93: 0 | L93: 0 | M93: 0 | N93: 0 | O93: 0 | P93: 0 | Q93: 78 | R93: 0 | S93: 0 | T93: 0 | U93: 0 | V93: 0 | W93: 0 | X93: 0 | Y93: 0 | Z93: 78 | AA93: 0 | AB93: 0 | AC93: 0 | AD93: 0 | AE93: 0 | AF93: 0 | AG93: 0 | AH93: 0 | AI93: 0 | AJ93: 0 | AK93: 0 | AL93: 0 | AM93: 0 | AN93: 0 | AO93: 0 | AP93: 0 | AQ93: 0 | AR93: 0 | AS93: 0 | AT93: 0 | AU93: 0 | AV93: 78 | AW93: 0 | AX93: 0 | AY93: 0 | AZ93: 0 | BA93: 0 | BB93: 0 | BC93: 0 | BD93: =HYPERLINK("http://www.openstreetmap.org/?mlat=33.6298&mlon=42.8463&zoom=12#map=12/33.6298/42.8463","Maplink1") -> Maplink1 | BE93: =HYPERLINK("https://www.google.iq/maps/search/+33.6298,42.8463/@33.6298,42.8463,14z?hl=en","Maplink2") -> Maplink2 | BF93: =HYPERLINK("http://www.bing.com/maps/?lvl=14&sty=h&cp=33.6298~42.8463&sp=point.33.6298_42.8463","Maplink3") -> Maplink3
A94: 21231 | B94: Al-Anbar | C94: Heet | D94: Markaz Heet | E94: Hay Al-Qadisiyah | F94: القادسية | G94: 33.6367959 | H94: 42.835274 | I94: 2 | J94: 12 | K94: NA | L94: NA | M94: 0 | N94: 0 | O94: 0 | P94: 0 | Q94: 12 | R94: 0 | S94: 0 | T94: 0 | U94: 0 | V94: 0 | W94: 0 | X94: 0 | Y94: 0 | Z94: 12 | AA94: 0 | AB94: 0 | AC94: 0 | AD94: 0 | AE94: 0 | AF94: 0 | AG94: 0 | AH94: 0 | AI94: 0 | AJ94: 0 | AK94: 0 | AL94: 0 | AM94: 0 | AN94: 0 | AO94: 0 | AP94: 0 | AQ94: 0 | AR94: 0 | AS94: 0 | AT94: 0 | AU94: 0 | AV94: 12 | AW94: 0 | AX94: 0 | AY94: 0 | AZ94: 0 | BA94: 0 | BB94: 0 | BC94: 0 | BD94: =HYPERLINK("http://www.openstreetmap.org/?mlat=33.6368&mlon=42.8353&zoom=12#map=12/33.6368/42.8353","Maplink1") -> Maplink1 | BE94: =HYPERLINK("https://www.google.iq/maps/search/+33.6368,42.8353/@33.6368,42.8353,14z?hl=en","Maplink2") -> Maplink2 | BF94: =HYPERLINK("http://www.bing.com/maps/?lvl=14&sty=h&cp=33.6368~42.8353&sp=point.33.6368_42.8353","Maplink3") -> Maplink3
A95: 21408 | B95: Al-Anbar | C95: Heet | D95: Al-Baghdady | E95: Hay Al-Quds | F95: القدس | G95: 33.8777732 | H95: 42.5295779 | I95: 4 | J95: 24 | K95: NA | L95: NA | M95: 0 | N95: 0 | O95: 0 | P95: 0 | Q95: 24 | R95: 0 | S95: 0 | T95: 0 | U95: 0 | V95: 0 | W95: 0 | X95: 0 | Y95: 0 | Z95: 12 | AA95: 0 | AB95: 0 | AC95: 0 | AD95: 0 | AE95: 6 | AF95: 0 | AG95: 0 | AH95: 6 | AI95: 0 | AJ95: 0 | AK95: 0 | AL95: 0 | AM95: 0 | AN95: 0 | AO95: 0 | AP95: 0 | AQ95: 0 | AR95: 0 | AS95: 0 | AT95: 0 | AU95: 0 | AV95: 6 | AW95: 6 | AX95: 0 | AY95: 0 | AZ95: 0 | BA95: 12 | BB95: 0 | BC95: 0 | BD95: =HYPERLINK("http://www.openstreetmap.org/?mlat=33.8778&mlon=42.5296&zoom=12#map=12/33.8778/42.5296","Maplink1") -> Maplink1 | BE95: =HYPERLINK("https://www.google.iq/maps/search/+33.8778,42.5296/@33.8778,42.5296,14z?hl=en","Maplink2") -> Maplink2 | BF95: =HYPERLINK("http://www.bing.com/maps/?lvl=14&sty=h&cp=33.8778~42.5296&sp=point.33.8778_42.5296","Maplink3") -> Maplink3
A96: 5 | B96: Al-Anbar | C96: Heet | D96: Kubaisa | E96: Kubaisa Al-qadimah | F96: كبيسة القديمة | G96: 33.59211 | H96: 42.6105 | I96: 8 | J96: 48 | K96: 0 | L96: 12 | M96: 0 | N96: 0 | O96: 0 | P96: 0 | Q96: 48 | R96: 0 | S96: 0 | T96: 0 | U96: 0 | V96: 0 | W96: 0 | X96: 0 | Y96: 0 | Z96: 42 | AA96: 0 | AB96: 6 | AC96: 0 | AD96: 0 | AE96: 0 | AF96: 0 | AG96: 0 | AH96: 0 | AI96: 0 | AJ96: 0 | AK96: 0 | AL96: 0 | AM96: 0 | AN96: 0 | AO96: 0 | AP96: 0 | AQ96: 0 | AR96: 0 | AS96: 0 | AT96: 0 | AU96: 48 | AV96: 0 | AW96: 0 | AX96: 0 | AY96: 0 | AZ96: 0 | BA96: 0 | BB96: 0 | BC96: 0 | BD96: =HYPERLINK("http://www.openstreetmap.org/?mlat=33.5921&mlon=42.6105&zoom=12#map=12/33.5921/42.6105","Maplink1") -> Maplink1 | BE96: =HYPERLINK("https://www.google.iq/maps/search/+33.5921,42.6105/@33.5921,42.6105,14z?hl=en","Maplink2") -> Maplink2 | BF96: =HYPERLINK("http://www.bing.com/maps/?lvl=14&sty=h&cp=33.5921~42.6105&sp=point.33.5921_42.6105","Maplink3") -> Maplink3
A97: 194 | B97: Al-Anbar | C97: Heet | D97: Markaz Heet | E97: The first jamaiya | F97: الجمعية الاولى | G97: 33.633242 | H97: 42.8415123 | I97: 2 | J97: 12 | K97: NA | L97: NA | M97: 0 | N97: 0 | O97: 0 | P97: 0 | Q97: 12 | R97: 0 | S97: 0 | T97: 0 | U97: 0 | V97: 0 | W97: 0 | X97: 0 | Y97: 0 | Z97: 12 | AA97: 0 | AB97: 0 | AC97: 0 | AD97: 0 | AE97: 0 | AF97: 0 | AG97: 0 | AH97: 0 | AI97: 0 | AJ97: 0 | AK97: 0 | AL97: 0 | AM97: 0 | AN97: 0 | AO97: 0 | AP97: 0 | AQ97: 0 | AR97: 0 | AS97: 0 | AT97: 0 | AU97: 0 | AV97: 12 | AW97: 0 | AX97: 0 | AY97: 0 | AZ97: 0 | BA97: 0 | BB97: 0 | BC97: 0 | BD97: =HYPERLINK("http://www.openstreetmap.org/?mlat=33.6332&mlon=42.8415&zoom=12#map=12/33.6332/42.8415","Maplink1") -> Maplink1 | BE97: =HYPERLINK("https://www.google.iq/maps/search/+33.6332,42.8415/@33.6332,42.8415,14z?hl=en","Maplink2") -> Maplink2 | BF97: =HYPERLINK("http://www.bing.com/maps/?lvl=14&sty=h&cp=33.6332~42.8415&sp=point.33.6332_42.8415","Maplink3") -> Maplink3
A98: 29535 | B98: Al-Anbar | C98: Heet | D98: Kubaisa | E98: Hay Al-Askari | F98: الحي العسكري | G98: 33.5881136 | H98: 42.6157354 | I98: 4 | J98: 24 | K98: NA | L98: NA | M98: 0 | N98: 0 | O98: 0 | P98: 0 | Q98: 24 | R98: 0 | S98: 0 | T98: 0 | U98: 0 | V98: 0 | W98: 0 | X98: 0 | Y98: 0 | Z98: 24 | AA98: 0 | AB98: 0 | AC98: 0 | AD98: 0 | AE98: 0 | AF98: 0 | AG98: 0 | AH98: 0 | AI98: 0 | AJ98: 0 | AK98: 0 | AL98: 0 | AM98: 0 | AN98: 0 | AO98: 0 | AP98: 0 | AQ98: 0 | AR98: 0 | AS98: 0 | AT98: 0 | AU98: 24 | AV98: 0 | AW98: 0 | AX98: 0 | AY98: 0 | AZ98: 0 | BA98: 0 | BB98: 0 | BC98: 0 | BD98: =HYPERLINK("http://www.openstreetmap.org/?mlat=33.5881&mlon=42.6157&zoom=12#map=12/33.5881/42.6157","Maplink1") -> Maplink1 | BE98: =HYPERLINK("https://www.google.iq/maps/search/+33.5881,42.6157/@33.5881,42.6157,14z?hl=en","Maplink2") -> Maplink2 | BF98: =HYPERLINK("http://www.bing.com/maps/?lvl=14&sty=h&cp=33.5881~42.6157&sp=point.33.5881_42.6157","Maplink3") -> Maplink3
A99: 29536 | B99: Al-Anbar | C99: Heet | D99: Kubaisa | E99: Hay Al-Khudhir | F99: الخضر | G99: 33.5877891 | H99: 42.6111353 | I99: 3 | J99: 18 | K99: NA | L99: NA | M99: 0 | N99: 0 | O99: 0 | P99: 0 | Q99: 18 | R99: 0 | S99: 0 | T99: 0 | U99: 0 | V99: 0 | W99: 0 | X99: 0 | Y99: 0 | Z99: 18 | AA99: 0 | AB99: 0 | AC99: 0 | AD99: 0 | AE99: 0 | AF99: 0 | AG99: 0 | AH99: 0 | AI99: 0 | AJ99: 0 | AK99: 0 | AL99: 0 | AM99: 0 | AN99: 0 | AO99: 0 | AP99: 0 | AQ99: 0 | AR99: 0 | AS99: 0 | AT99: 0 | AU99: 18 | AV99: 0 | AW99: 0 | AX99: 0 | AY99: 0 | AZ99: 0 | BA99: 0 | BB99: 0 | BC99: 0 | BD99: =HYPERLINK("http://www.openstreetmap.org/?mlat=33.5878&mlon=42.6111&zoom=12#map=12/33.5878/42.6111","Maplink1") -> Maplink1 | BE99: =HYPERLINK("https://www.google.iq/maps/search/+33.5878,42.6111/@33.5878,42.6111,14z?hl=en","Maplink2") -> Maplink2 | BF99: =HYPERLINK("http://www.bing.com/maps/?lvl=14&sty=h&cp=33.5878~42.6111&sp=point.33.5878_42.6111","Maplink3") -> Maplink3
A100: 33822 | B100: Al-Anbar | C100: Heet | D100: Markaz Heet | E100: Hay- Amina | F100: حي أمينة | G100: 33.6505584 | H100: 42.7973219 | I100: 17 | J100: 102 | K100: 0 | L100: 0 | M100: 0 | N100: 0 | O100: 0 | P100: 0 | Q100: 102 | R100: 0 | S100: 0 | T100: 0 | U100: 0 | V100: 0 | W100: 0 | X100: 0 | Y100: 0 | Z100: 90 | AA100: 0 | AB100: 0 | AC100: 0 | AD100: 0 | AE100: 0 | AF100: 0 | AG100: 0 | AH100: 0 | AI100: 0 | AJ100: 0 | AK100: 0 | AL100: 12 | AM100: 0 | AN100: 0 | AO100: 0 | AP100: 0 | AQ100: 0 | AR100: 0 | AS100: 0 | AT100: 0 | AU100: 12 | AV100: 48 | AW100: 30 | AX100: 0 | AY100: 0 | AZ100: 0 | BA100: 12 | BB100: 0 | BC100: 0 | BD100: =HYPERLINK("http://www.openstreetmap.org/?mlat=33.6506&mlon=42.7973&zoom=12#map=12/33.6506/42.7973","Maplink1") -> Maplink1 | BE100: =HYPERLINK("https://www.google.iq/maps/search/+33.6506,42.7973/@33.6506,42.7973,14z?hl=en","Maplink2") -> Maplink2 | BF100: =HYPERLINK("http://www.bing.com/maps/?lvl=14&sty=h&cp=33.6506~42.7973&sp=point.33.6506_42.7973","Maplink3") -> Maplink3
A101: 33824 | B101: Al-Anbar | C101: Heet | D101: Markaz Heet | E101: Hay AL-zihoor | F101: حي الزهور | G101: 33.6290703 | H101: 42.8390802 | I101: 9 | J101: 54 | K101: 0 | L101: 0 | M101: 0 | N101: 0 | O101: 0 | P101: 0 | Q101: 54 | R101: 0 | S101: 0 | T101: 0 | U101: 0 | V101: 0 | W101: 0 | X101: 0 | Y101: 0 | Z101: 54 | AA101: 0 | AB101: 0 | AC101: 0 | AD101: 0 | AE101: 0 | AF101: 0 | AG101: 0 | AH101: 0 | AI101: 0 | AJ101: 0 | AK101: 0 | AL101: 0 | AM101: 0 | AN101: 0 | AO101: 0 | AP101: 0 | AQ101: 0 | AR101: 0 | AS101: 0 | AT101: 0 | AU101: 0 | AV101: 48 | AW101: 6 | AX101: 0 | AY101: 0 | AZ101: 0 | BA101: 0 | BB101: 0 | BC101: 0 | BD101: =HYPERLINK("http://www.openstreetmap.org/?mlat=33.6291&mlon=42.8391&zoom=12#map=12/33.6291/42.8391","Maplink1") -> Maplink1 | BE101: =HYPERLINK("https://www.google.iq/maps/search/+33.6291,42.8391/@33.6291,42.8391,14z?hl=en","Maplink2") -> Maplink2 | BF101: =HYPERLINK("http://www.bing.com/maps/?lvl=14&sty=h&cp=33.6291~42.8391&sp=point.33.6291_42.8391","Maplink3") -> Maplink3
A102: 33825 | B102: Al-Anbar | C102: Heet | D102: Markaz Heet | E102: Hay Al-Askary | F102: حي العسكري | G102: 33.6244991 | H102: 42.8278815 | I102: 11 | J102: 66 | K102: 0 | L102: 0 | M102: 0 | N102: 0 | O102: 0 | P102: 0 | Q102: 54 | R102: 0 | S102: 0 | T102: 12 | U102: 0 | V102: 0 | W102: 0 | X102: 0 | Y102: 0 | Z102: 42 | AA102: 0 | AB102: 0 | AC102: 0 | AD102: 0 | AE102: 0 | AF102: 0 | AG102: 0 | AH102: 0 | AI102: 0 | AJ102: 0 | AK102: 0 | AL102: 0 | AM102: 0 | AN102: 24 | AO102: 0 | AP102: 0 | AQ102: 0 | AR102: 0 | AS102: 0 | AT102: 0 | AU102: 0 | AV102: 42 | AW102: 24 | AX102: 0 | AY102: 0 | AZ102: 0 | BA102: 0 | BB102: 0 | BC102: 0 | BD102: =HYPERLINK("http://www.openstreetmap.org/?mlat=33.6245&mlon=42.8279&zoom=12#map=12/33.6245/42.8279","Maplink1") -> Maplink1 | BE102: =HYPERLINK("https://www.google.iq/maps/search/+33.6245,42.8279/@33.6245,42.8279,14z?hl=en","Maplink2") -> Maplink2 | BF102: =HYPERLINK("http://www.bing.com/maps/?lvl=14&sty=h&cp=33.6245~42.8279&sp=point.33.6245_42.8279","Maplink3") -> Maplink3
A103: 34002 | B103: Al-Anbar | C103: Heet | D103: Al-Baghdady | E103: Al-shuhdaa 1 | F103: الشهداء الاولى | G103: 33.8824866 | H103: 42.526058 | I103: 28 | J103: 168 | K103: 0 | L103: 0 | M103: 0 | N103: 0 | O103: 0 | P103: 0 | Q103: 168 | R103: 0 | S103: 0 | T103: 0 | U103: 0 | V103: 0 | W103: 0 | X103: 0 | Y103: 0 | Z103: 162 | AA103: 0 | AB103: 0 | AC103: 0 | AD103: 0 | AE103: 0 | AF103: 0 | AG103: 0 | AH103: 6 | AI103: 0 | AJ103: 0 | AK103: 0 | AL103: 0 | AM103: 0 | AN103: 0 | AO103: 0 | AP103: 0 | AQ103: 0 | AR103: 0 | AS103: 0 | AT103: 0 | AU103: 30 | AV103: 132 | AW103: 0 | AX103: 6 | AY103: 0 | AZ103: 0 | BA103: 0 | BB103: 0 | BC103: 0 | BD103: =HYPERLINK("http://www.openstreetmap.org/?mlat=33.8825&mlon=42.5261&zoom=12#map=12/33.8825/42.5261","Maplink1") -> Maplink1 | BE103: =HYPERLINK("https://www.google.iq/maps/search/+33.8825,42.5261/@33.8825,42.5261,14z?hl=en","Maplink2") -> Maplink2 | BF103: =HYPERLINK("http://www.bing.com/maps/?lvl=14&sty=h&cp=33.8825~42.5261&sp=point.33.8825_42.5261","Maplink3") -> Maplink3
A104: 33950 | B104: Al-Anbar | C104: Heet | D104: Markaz Heet | E104: khazraj | F104: خزرج | G104: 33.7727886 | H104: 42.72808 | I104: 2 | J104: 12 | K104: NA | L104: NA | M104: 0 | N104: 0 | O104: 0 | P104: 0 | Q104: 12 | R104: 0 | S104: 0 | T104: 0 | U104: 0 | V104: 0 | W104: 0 | X104: 0 | Y104: 0 | Z104: 12 | AA104: 0 | AB104: 0 | AC104: 0 | AD104: 0 | AE104: 0 | AF104: 0 | AG104: 0 | AH104: 0 | AI104: 0 | AJ104: 0 | AK104: 0 | AL104: 0 | AM104: 0 | AN104: 0 | AO104: 0 | AP104: 0 | AQ104: 0 | AR104: 0 | AS104: 0 | AT104: 0 | AU104: 0 | AV104: 0 | AW104: 12 | AX104: 0 | AY104: 0 | AZ104: 0 | BA104: 0 | BB104: 0 | BC104: 0 | BD104: =HYPERLINK("http://www.openstreetmap.org/?mlat=33.7728&mlon=42.7281&zoom=12#map=12/33.7728/42.7281","Maplink1") -> Maplink1 | BE104: =HYPERLINK("https://www.google.iq/maps/search/+33.7728,42.7281/@33.7728,42.7281,14z?hl=en","Maplink2") -> Maplink2 | BF104: =HYPERLINK("http://www.bing.com/maps/?lvl=14&sty=h&cp=33.7728~42.7281&sp=point.33.7728_42.7281","Maplink3") -> Maplink3
A105: 308 | B105: Al-Anbar | C105: Al-Ramadi | D105: Markaz Al-Ramadi | E105: 5 Kilo | F105: الخمسة كيلو | G105: 33.4210806 | H105: 43.2475353 | I105: 48 | J105: 288 | K105: 0 | L105: 0 | M105: 0 | N105: 288 | O105: 0 | P105: 0 | Q105: 0 | R105: 0 | S105: 0 | T105: 0 | U105: 0 | V105: 0 | W105: 0 | X105: 0 | Y105: 0 | Z105: 288 | AA105: 0 | AB105: 0 | AC105: 0 | AD105: 0 | AE105: 0 | AF105: 0 | AG105: 0 | AH105: 0 | AI105: 0 | AJ105: 0 | AK105: 0 | AL105: 0 | AM105: 0 | AN105: 0 | AO105: 0 | AP105: 0 | AQ105: 0 | AR105: 0 | AS105: 0 | AT105: 0 | AU105: 0 | AV105: 0 | AW105: 0 | AX105: 0 | AY105: 288 | AZ105: 0 | BA105: 0 | BB105: 0 | BC105: 0 | BD105: =HYPERLINK("http://www.openstreetmap.org/?mlat=33.4211&mlon=43.2475&zoom=12#map=12/33.4211/43.2475","Maplink1") -> Maplink1 | BE105: =HYPERLINK("https://www.google.iq/maps/search/+33.4211,43.2475/@33.4211,43.2475,14z?hl=en","Maplink2") -> Maplink2 | BF105: =HYPERLINK("http://www.bing.com/maps/?lvl=14&sty=h&cp=33.4211~43.2475&sp=point.33.4211_43.2475","Maplink3") -> Maplink3
A106: 23889 | B106: Al-Anbar | C106: Al-Ramadi | D106: Markaz Al-Ramadi | E106: 7 Killo-al-mojamaa al-sakany | F106: السبعة كيلو-المجمع السكني | G106: 33.4165942 | H106: 43.1924283 | I106: 550 | J106: 3,300 | K106: NA | L106: NA | M106: 0 | N106: 0 | O106: 0 | P106: 0 | Q106: 0 | R106: 0 | S106: 0 | T106: 36 | U106: 3,252 | V106: 0 | W106: 12 | X106: 0 | Y106: 0 | Z106: 3,300 | AA106: 0 | AB106: 0 | AC106: 0 | AD106: 0 | AE106: 0 | AF106: 0 | AG106: 0 | AH106: 0 | AI106: 0 | AJ106: 0 | AK106: 0 | AL106: 0 | AM106: 0 | AN106: 0 | AO106: 0 | AP106: 0 | AQ106: 0 | AR106: 216 | AS106: 300 | AT106: 0 | AU106: 1,908 | AV106: 876 | AW106: 0 | AX106: 0 | AY106: 0 | AZ106: 0 | BA106: 0 | BB106: 0 | BC106: 0 | BD106: =HYPERLINK("http://www.openstreetmap.org/?mlat=33.4166&mlon=43.1924&zoom=12#map=12/33.4166/43.1924","Maplink1") -> Maplink1 | BE106: =HYPERLINK("https://www.google.iq/maps/search/+33.4166,43.1924/@33.4166,43.1924,14z?hl=en","Maplink2") -> Maplink2 | BF106: =HYPERLINK("http://www.bing.com/maps/?lvl=14&sty=h&cp=33.4166~43.1924&sp=point.33.4166_43.1924","Maplink3") -> Maplink3
A107: 23858 | B107: Al-Anbar | C107: Al-Ramadi | D107: Al-Habbaniya | E107: Abu Fless | F107: ابو فليس | G107: 33.3900169 | H107: 43.5387663 | I107: 57 | J107: 342 | K107: 0 | L107: 0 | M107: 0 | N107: 342 | O107: 0 | P107: 0 | Q107: 0 | R107: 0 | S107: 0 | T107: 0 | U107: 0 | V107: 0 | W107: 0 | X107: 0 | Y107: 0 | Z107: 228 | AA107: 54 | AB107: 60 | AC107: 0 | AD107: 0 | AE107: 0 | AF107: 0 | AG107: 0 | AH107: 0 | AI107: 0 | AJ107: 0 | AK107: 0 | AL107: 0 | AM107: 0 | AN107: 0 | AO107: 0 | AP107: 0 | AQ107: 0 | AR107: 0 | AS107: 0 | AT107: 0 | AU107: 342 | AV107: 0 | AW107: 0 | AX107: 0 | AY107: 0 | AZ107: 0 | BA107: 0 | BB107: 0 | BC107: 0 | BD107: =HYPERLINK("http://www.openstreetmap.org/?mlat=33.39&mlon=43.5388&zoom=12#map=12/33.39/43.5388","Maplink1") -> Maplink1 | BE107: =HYPERLINK("https://www.google.iq/maps/search/+33.39,43.5388/@33.39,43.5388,14z?hl=en","Maplink2") -> Maplink2 | BF107: =HYPERLINK("http://www.bing.com/maps/?lvl=14&sty=h&cp=33.39~43.5388&sp=point.33.39_43.5388","Maplink3") -> Maplink3
A108: 24730 | B108: Al-Anbar | C108: Al-Ramadi | D108: Al-Habbaniya | E108: Al Khulafaa | F108: الخلفاء | G108: 33.39229 | H108: 43.5145674 | I108: 21 | J108: 126 | K108: 0 | L108: 0 | M108: 0 | N108: 126 | O108: 0 | P108: 0 | Q108: 0 | R108: 0 | S108: 0 | T108: 0 | U108: 0 | V108: 0 | W108: 0 | X108: 0 | Y108: 0 | Z108: 126 | AA108: 0 | AB108: 0 | AC108: 0 | AD108: 0 | AE108: 0 | AF108: 0 | AG108: 0 | AH108: 0 | AI108: 0 | AJ108: 0 | AK108: 0 | AL108: 0 | AM108: 0 | AN108: 0 | AO108: 0 | AP108: 0 | AQ108: 0 | AR108: 0 | AS108: 0 | AT108: 0 | AU108: 126 | AV108: 0 | AW108: 0 | AX108: 0 | AY108: 0 | AZ108: 0 | BA108: 0 | BB108: 0 | BC108: 0 | BD108: =HYPERLINK("http://www.openstreetmap.org/?mlat=33.3923&mlon=43.5146&zoom=12#map=12/33.3923/43.5146","Maplink1") -> Maplink1 | BE108: =HYPERLINK("https://www.google.iq/maps/search/+33.3923,43.5146/@33.3923,43.5146,14z?hl=en","Maplink2") -> Maplink2 | BF108: =HYPERLINK("http://www.bing.com/maps/?lvl=14&sty=h&cp=33.3923~43.5146&sp=point.33.3923_43.5146","Maplink3") -> Maplink3
A109: 115 | B109: Al-Anbar | C109: Al-Ramadi | D109: Markaz Al-Ramadi | E109: Al Sofeya | F109: الصوفية | G109: 33.4404787 | H109: 43.3289589 | I109: 70 | J109: 420 | K109: 0 | L109: 0 | M109: 0 | N109: 420 | O109: 0 | P109: 0 | Q109: 0 | R109: 0 | S109: 0 | T109: 0 | U109: 0 | V109: 0 | W109: 0 | X109: 0 | Y109: 0 | Z109: 420 | AA109: 0 | AB109: 0 | AC109: 0 | AD109: 0 | AE109: 0 | AF109: 0 | AG109: 0 | AH109: 0 | AI109: 0 | AJ109: 0 | AK109: 0 | AL109: 0 | AM109: 0 | AN109: 0 | AO109: 0 | AP109: 0 | AQ109: 0 | AR109: 0 | AS109: 0 | AT109: 0 | AU109: 0 | AV109: 0 | AW109: 0 | AX109: 0 | AY109: 420 | AZ109: 0 | BA109: 0 | BB109: 0 | BC109: 0 | BD109: =HYPERLINK("http://www.openstreetmap.org/?mlat=33.4405&mlon=43.329&zoom=12#map=12/33.4405/43.329","Maplink1") -> Maplink1 | BE109: =HYPERLINK("https://www.google.iq/maps/search/+33.4405,43.329/@33.4405,43.329,14z?hl=en","Maplink2") -> Maplink2 | BF109: =HYPERLINK("http://www.bing.com/maps/?lvl=14&sty=h&cp=33.4405~43.329&sp=point.33.4405_43.329","Maplink3") -> Maplink3
A110: 24729 | B110: Al-Anbar | C110: Al-Ramadi | D110: Al-Habbaniya | E110: Al Urobah | F110: العروبة | G110: 33.3917654 | H110: 43.5097282 | I110: 22 | J110: 132 | K110: 0 | L110: 0 | M110: 0 | N110: 132 | O110: 0 | P110: 0 | Q110: 0 | R110: 0 | S110: 0 | T110: 0 | U110: 0 | V110: 0 | W110: 0 | X110: 0 | Y110: 0 | Z110: 132 | AA110: 0 | AB110: 0 | AC110: 0 | AD110: 0 | AE110: 0 | AF110: 0 | AG110: 0 | AH110: 0 | AI110: 0 | AJ110: 0 | AK110: 0 | AL110: 0 | AM110: 0 | AN110: 0 | AO110: 0 | AP110: 0 | AQ110: 0 | AR110: 0 | AS110: 0 | AT110: 0 | AU110: 24 | AV110: 108 | AW110: 0 | AX110: 0 | AY110: 0 | AZ110: 0 | BA110: 0 | BB110: 0 | BC110: 0 | BD110: =HYPERLINK("http://www.openstreetmap.org/?mlat=33.3918&mlon=43.5097&zoom=12#map=12/33.3918/43.5097","Maplink1") -> Maplink1 | BE110: =HYPERLINK("https://www.google.iq/maps/search/+33.3918,43.5097/@33.3918,43.5097,14z?hl=en","Maplink2") -> Maplink2 | BF110: =HYPERLINK("http://www.bing.com/maps/?lvl=14&sty=h&cp=33.3918~43.5097&sp=point.33.3918_43.5097","Maplink3") -> Maplink3
A111: 23853 | B111: Al-Anbar | C111: Al-Falluja | D111: Markaz Al-Falluja | E111: Hay Al-Madani | F111: الحي المدني | G111: 33.3782902 | H111: 43.5942233 | I111: 12 | J111: 72 | K111: 0 | L111: 0 | M111: 0 | N111: 0 | O111: 0 | P111: 0 | Q111: 72 | R111: 0 | S111: 0 | T111: 0 | U111: 0 | V111: 0 | W111: 0 | X111: 0 | Y111: 0 | Z111: 72 | AA111: 0 | AB111: 0 | AC111: 0 | AD111: 0 | AE111: 0 | AF111: 0 | AG111: 0 | AH111: 0 | AI111: 0 | AJ111: 0 | AK111: 0 | AL111: 0 | AM111: 0 | AN111: 0 | AO111: 0 | AP111: 0 | AQ111: 0 | AR111: 48 | AS111: 0 | AT111: 0 | AU111: 0 | AV111: 0 | AW111: 0 | AX111: 0 | AY111: 24 | AZ111: 0 | BA111: 0 | BB111: 0 | BC111: 0 | BD111: =HYPERLINK("http://www.openstreetmap.org/?mlat=33.3783&mlon=43.5942&zoom=12#map=12/33.3783/43.5942","Maplink1") -> Maplink1 | BE111: =HYPERLINK("https://www.google.iq/maps/search/+33.3783,43.5942/@33.3783,43.5942,14z?hl=en","Maplink2") -> Maplink2 | BF111: =HYPERLINK("http://www.bing.com/maps/?lvl=14&sty=h&cp=33.3783~43.5942&sp=point.33.3783_43.5942","Maplink3") -> Maplink3
A112: 21409 | B112: Al-Anbar | C112: Al-Ramadi | D112: Al-Habbaniya | E112: Hay Al-Salam | F112: السلام | G112: 33.3716154 | H112: 43.5342575 | I112: 15 | J112: 90 | K112: 0 | L112: 0 | M112: 0 | N112: 90 | O112: 0 | P112: 0 | Q112: 0 | R112: 0 | S112: 0 | T112: 0 | U112: 0 | V112: 0 | W112: 0 | X112: 0 | Y112: 0 | Z112: 90 | AA112: 0 | AB112: 0 | AC112: 0 | AD112: 0 | AE112: 0 | AF112: 0 | AG112: 0 | AH112: 0 | AI112: 0 | AJ112: 0 | AK112: 0 | AL112: 0 | AM112: 0 | AN112: 0 | AO112: 0 | AP112: 0 | AQ112: 0 | AR112: 0 | AS112: 0 | AT112: 0 | AU112: 90 | AV112: 0 | AW112: 0 | AX112: 0 | AY112: 0 | AZ112: 0 | BA112: 0 | BB112: 0 | BC112: 0 | BD112: =HYPERLINK("http://www.openstreetmap.org/?mlat=33.3716&mlon=43.5343&zoom=12#map=12/33.3716/43.5343","Maplink1") -> Maplink1 | BE112: =HYPERLINK("https://www.google.iq/maps/search/+33.3716,43.5343/@33.3716,43.5343,14z?hl=en","Maplink2") -> Maplink2 | BF112: =HYPERLINK("http://www.bing.com/maps/?lvl=14&sty=h&cp=33.3716~43.5343&sp=point.33.3716_43.5343","Maplink3") -> Maplink3
A113: 23855 | B113: Al-Anbar | C113: Al-Falluja | D113: Markaz Al-Falluja | E113: Hay Al-Umal | F113: حي العمال | G113: 33.3868638 | H113: 43.6001825 | I113: 15 | J113: 90 | K113: 0 | L113: 0 | M113: 0 | N113: 90 | O113: 0 | P113: 0 | Q113: 0 | R113: 0 | S113: 0 | T113: 0 | U113: 0 | V113: 0 | W113: 0 | X113: 0 | Y113: 0 | Z113: 90 | AA113: 0 | AB113: 0 | AC113: 0 | AD113: 0 | AE113: 0 | AF113: 0 | AG113: 0 | AH113: 0 | AI113: 0 | AJ113: 0 | AK113: 0 | AL113: 0 | AM113: 0 | AN113: 0 | AO113: 0 | AP113: 0 | AQ113: 0 | AR113: 90 | AS113: 0 | AT113: 0 | AU113: 0 | AV113: 0 | AW113: 0 | AX113: 0 | AY113: 0 | AZ113: 0 | BA113: 0 | BB113: 0 | BC113: 0 | BD113: =HYPERLINK("http://www.openstreetmap.org/?mlat=33.3869&mlon=43.6002&zoom=12#map=12/33.3869/43.6002","Maplink1") -> Maplink1 | BE113: =HYPERLINK("https://www.google.iq/maps/search/+33.3869,43.6002/@33.3869,43.6002,14z?hl=en","Maplink2") -> Maplink2 | BF113: =HYPERLINK("http://www.bing.com/maps/?lvl=14&sty=h&cp=33.3869~43.6002&sp=point.33.3869_43.6002","Maplink3") -> Maplink3
A114: 182 | B114: Al-Anbar | C114: Al-Ramadi | D114: Markaz Al-Ramadi | E114: Qadisiya-1 | F114: القادسية الاولى | G114: 33.4134102 | H114: 43.2749409 | I114: 37 | J114: 222 | K114: 0 | L114: 0 | M114: 0 | N114: 222 | O114: 0 | P114: 0 | Q114: 0 | R114: 0 | S114: 0 | T114: 0 | U114: 0 | V114: 0 | W114: 0 | X114: 0 | Y114: 0 | Z114: 222 | AA114: 0 | AB114: 0 | AC114: 0 | AD114: 0 | AE114: 0 | AF114: 0 | AG114: 0 | AH114: 0 | AI114: 0 | AJ114: 0 | AK114: 0 | AL114: 0 | AM114: 0 | AN114: 0 | AO114: 0 | AP114: 0 | AQ114: 0 | AR114: 0 | AS114: 0 | AT114: 0 | AU114: 0 | AV114: 0 | AW114: 0 | AX114: 0 | AY114: 222 | AZ114: 0 | BA114: 0 | BB114: 0 | BC114: 0 | BD114: =HYPERLINK("http://www.openstreetmap.org/?mlat=33.4134&mlon=43.2749&zoom=12#map=12/33.4134/43.2749","Maplink1") -> Maplink1 | BE114: =HYPERLINK("https://www.google.iq/maps/search/+33.4134,43.2749/@33.4134,43.2749,14z?hl=en","Maplink2") -> Maplink2 | BF114: =HYPERLINK("http://www.bing.com/maps/?lvl=14&sty=h&cp=33.4134~43.2749&sp=point.33.4134_43.2749","Maplink3") -> Maplink3
A115: 20901 | B115: Al-Anbar | C115: Al-Falluja | D115: Markaz Al-Falluja | E115: Sin Al-Thubban | F115: سن الذبان | G115: 33.3715804 | H115: 43.6107139 | I115: 4 | J115: 24 | K115: NA | L115: NA | M115: 0 | N115: 24 | O115: 0 | P115: 0 | Q115: 0 | R115: 0 | S115: 0 | T115: 0 | U115: 0 | V115: 0 | W115: 0 | X115: 0 | Y115: 0 | Z115: 24 | AA115: 0 | AB115: 0 | AC115: 0 | AD115: 0 | AE115: 0 | AF115: 0 | AG115: 0 | AH115: 0 | AI115: 0 | AJ115: 0 | AK115: 0 | AL115: 0 | AM115: 0 | AN115: 0 | AO115: 0 | AP115: 0 | AQ115: 0 | AR115: 0 | AS115: 0 | AT115: 0 | AU115: 24 | AV115: 0 | AW115: 0 | AX115: 0 | AY115: 0 | AZ115: 0 | BA115: 0 | BB115: 0 | BC115: 0 | BD115: =HYPERLINK("http://www.openstreetmap.org/?mlat=33.3716&mlon=43.6107&zoom=12#map=12/33.3716/43.6107","Maplink1") -> Maplink1 | BE115: =HYPERLINK("https://www.google.iq/maps/search/+33.3716,43.6107/@33.3716,43.6107,14z?hl=en","Maplink2") -> Maplink2 | BF115: =HYPERLINK("http://www.bing.com/maps/?lvl=14&sty=h&cp=33.3716~43.6107&sp=point.33.3716_43.6107","Maplink3") -> Maplink3
A116: 29475 | B116: Al-Anbar | C116: Al-Ramadi | D116: Markaz Al-Ramadi | E116: Zankura | F116: زنكورة | G116: 33.4680522 | H116: 43.175753 | I116: 5 | J116: 30 | K116: 0 | L116: 0 | M116: 0 | N116: 0 | O116: 0 | P116: 0 | Q116: 30 | R116: 0 | S116: 0 | T116: 0 | U116: 0 | V116: 0 | W116: 0 | X116: 0 | Y116: 0 | Z116: 0 | AA116: 0 | AB116: 0 | AC116: 0 | AD116: 0 | AE116: 0 | AF116: 0 | AG116: 0 | AH116: 0 | AI116: 0 | AJ116: 0 | AK116: 0 | AL116: 30 | AM116: 0 | AN116: 0 | AO116: 0 | AP116: 0 | AQ116: 0 | AR116: 0 | AS116: 0 | AT116: 0 | AU116: 0 | AV116: 0 | AW116: 30 | AX116: 0 | AY116: 0 | AZ116: 0 | BA116: 0 | BB116: 0 | BC116: 0 | BD116: =HYPERLINK("http://www.openstreetmap.org/?mlat=33.4681&mlon=43.1758&zoom=12#map=12/33.4681/43.1758","Maplink1") -> Maplink1 | BE116: =HYPERLINK("https://www.google.iq/maps/search/+33.4681,43.1758/@33.4681,43.1758,14z?hl=en","Maplink2") -> Maplink2 | BF116: =HYPERLINK("http://www.bing.com/maps/?lvl=14&sty=h&cp=33.4681~43.1758&sp=point.33.4681_43.1758","Maplink3") -> Maplink3
A117: 23856 | B117: Al-Anbar | C117: Al-Falluja | D117: Markaz Al-Falluja | E117: Zoyaha Al-Thuban | F117: زوية الذبان | G117: 33.3820523 | H117: 43.6061712 | I117: 10 | J117: 60 | K117: 0 | L117: 0 | M117: 0 | N117: 60 | O117: 0 | P117: 0 | Q117: 0 | R117: 0 | S117: 0 | T117: 0 | U117: 0 | V117: 0 | W117: 0 | X117: 0 | Y117: 0 | Z117: 60 | AA117: 0 | AB117: 0 | AC117: 0 | AD117: 0 | AE117: 0 | AF117: 0 | AG117: 0 | AH117: 0 | AI117: 0 | AJ117: 0 | AK117: 0 | AL117: 0 | AM117: 0 | AN117: 0 | AO117: 0 | AP117: 0 | AQ117: 0 | AR117: 0 | AS117: 0 | AT117: 0 | AU117: 0 | AV117: 60 | AW117: 0 | AX117: 0 | AY117: 0 | AZ117: 0 | BA117: 0 | BB117: 0 | BC117: 0 | BD117: =HYPERLINK("http://www.openstreetmap.org/?mlat=33.3821&mlon=43.6062&zoom=12#map=12/33.3821/43.6062","Maplink1") -> Maplink1 | BE117: =HYPERLINK("https://www.google.iq/maps/search/+33.3821,43.6062/@33.3821,43.6062,14z?hl=en","Maplink2") -> Maplink2 | BF117: =HYPERLINK("http://www.bing.com/maps/?lvl=14&sty=h&cp=33.3821~43.6062&sp=point.33.3821_43.6062","Maplink3") -> Maplink3
A118: 33826 | B118: Al-Anbar | C118: Al-Ramadi | D118: Markaz Al-Ramadi | E118: AL-Karama complex | F118: مجمع الكرامه | G118: 33.3885532 | H118: 43.0969749 | I118: 153 | J118: 918 | K118: NA | L118: NA | M118: 0 | N118: 0 | O118: 0 | P118: 0 | Q118: 0 | R118: 0 | S118: 918 | T118: 0 | U118: 0 | V118: 0 | W118: 0 | X118: 0 | Y118: 0 | Z118: 918 | AA118: 0 | AB118: 0 | AC118: 0 | AD118: 0 | AE118: 0 | AF118: 0 | AG118: 0 | AH118: 0 | AI118: 0 | AJ118: 0 | AK118: 0 | AL118: 0 | AM118: 0 | AN118: 0 | AO118: 0 | AP118: 0 | AQ118: 0 | AR118: 384 | AS118: 0 | AT118: 0 | AU118: 0 | AV118: 0 | AW118: 0 | AX118: 0 | AY118: 534 | AZ118: 0 | BA118: 0 | BB118: 0 | BC118: 0 | BD118: =HYPERLINK("http://www.openstreetmap.org/?mlat=33.3886&mlon=43.097&zoom=12#map=12/33.3886/43.097","Maplink1") -> Maplink1 | BE118: =HYPERLINK("https://www.google.iq/maps/search/+33.3886,43.097/@33.3886,43.097,14z?hl=en","Maplink2") -> Maplink2 | BF118: =HYPERLINK("http://www.bing.com/maps/?lvl=14&sty=h&cp=33.3886~43.097&sp=point.33.3886_43.097","Maplink3") -> Maplink3
A119: 188 | B119: Al-Anbar | C119: Al-Ramadi | D119: Al-Habbaniya | E119: Hay AlQuds | F119: حي القدس | G119: 33.3811774 | H119: 43.5382654 | I119: 53 | J119: 318 | K119: 0 | L119: 0 | M119: 0 | N119: 318 | O119: 0 | P119: 0 | Q119: 0 | R119: 0 | S119: 0 | T119: 0 | U119: 0 | V119: 0 | W119: 0 | X119: 0 | Y119: 0 | Z119: 318 | AA119: 0 | AB119: 0 | AC119: 0 | AD119: 0 | AE119: 0 | AF119: 0 | AG119: 0 | AH119: 0 | AI119: 0 | AJ119: 0 | AK119: 0 | AL119: 0 | AM119: 0 | AN119: 0 | AO119: 0 | AP119: 0 | AQ119: 0 | AR119: 0 | AS119: 0 | AT119: 0 | AU119: 318 | AV119: 0 | AW119: 0 | AX119: 0 | AY119: 0 | AZ119: 0 | BA119: 0 | BB119: 0 | BC119: 0 | BD119: =HYPERLINK("http://www.openstreetmap.org/?mlat=33.3812&mlon=43.5383&zoom=12#map=12/33.3812/43.5383","Maplink1") -> Maplink1 | BE119: =HYPERLINK("https://www.google.iq/maps/search/+33.3812,43.5383/@33.3812,43.5383,14z?hl=en","Maplink2") -> Maplink2 | BF119: =HYPERLINK("http://www.bing.com/maps/?lvl=14&sty=h&cp=33.3812~43.5383&sp=point.33.3812_43.5383","Maplink3") -> Maplink3
A120: 34178 | B120: Al-Anbar | C120: Al-Ramadi | D120: Markaz Al-Ramadi | E120: 9 Kilo | F120: 9 كيلو | G120: 33.4096587 | H120: 43.1680676 | I120: 64 | J120: 384 | K120: NA | L120: NA | M120: 0 | N120: 0 | O120: 0 | P120: 0 | Q120: 0 | R120: 0 | S120: 0 | T120: 384 | U120: 0 | V120: 0 | W120: 0 | X120: 0 | Y120: 0 | Z120: 384 | AA120: 0 | AB120: 0 | AC120: 0 | AD120: 0 | AE120: 0 | AF120: 0 | AG120: 0 | AH120: 0 | AI120: 0 | AJ120: 0 | AK120: 0 | AL120: 0 | AM120: 0 | AN120: 0 | AO120: 0 | AP120: 0 | AQ120: 0 | AR120: 0 | AS120: 0 | AT120: 0 | AU120: 0 | AV120: 0 | AW120: 384 | AX120: 0 | AY120: 0 | AZ120: 0 | BA120: 0 | BB120: 0 | BC120: 0 | BD120: =HYPERLINK("http://www.openstreetmap.org/?mlat=33.4097&mlon=43.1681&zoom=12#map=12/33.4097/43.1681","Maplink1") -> Maplink1 | BE120: =HYPERLINK("https://www.google.iq/maps/search/+33.4097,43.1681/@33.4097,43.1681,14z?hl=en","Maplink2") -> Maplink2 | BF120: =HYPERLINK("http://www.bing.com/maps/?lvl=14&sty=h&cp=33.4097~43.1681&sp=point.33.4097_43.1681","Maplink3") -> Maplink3
A121: 24228 | B121: Al-Basrah | C121: Abu Al-Khaseeb | D121: Markaz Abu Al-Khaseeb | E121: Abo Jawzy | F121: البصرة-ابو الخصيب-ابو الجوزي | G121: 30.48202522 | H121: 47.86243516 | I121: 2 | J121: 12 | K121: NA | L121: NA | M121: 0 | N121: 0 | O121: 0 | P121: 0 | Q121: 12 | R121: 0 | S121: 0 | T121: 0 | U121: 0 | V121: 0 | W121: 0 | X121: 0 | Y121: 0 | Z121: 0 | AA121: 0 | AB121: 0 | AC121: 0 | AD121: 0 | AE121: 0 | AF121: 0 | AG121: 0 | AH121: 0 | AI121: 0 | AJ121: 0 | AK121: 0 | AL121: 0 | AM121: 0 | AN121: 12 | AO121: 0 | AP121: 0 | AQ121: 0 | AR121: 0 | AS121: 0 | AT121: 0 | AU121: 12 | AV121: 0 | AW121: 0 | AX121: 0 | AY121: 0 | AZ121: 0 | BA121: 0 | BB121: 0 | BC121: 0 | BD121: =HYPERLINK("http://www.openstreetmap.org/?mlat=30.482&mlon=47.8624&zoom=12#map=12/30.482/47.8624","Maplink1") -> Maplink1 | BE121: =HYPERLINK("https://www.google.iq/maps/search/+30.482,47.8624/@30.482,47.8624,14z?hl=en","Maplink2") -> Maplink2 | BF121: =HYPERLINK("http://www.bing.com/maps/?lvl=14&sty=h&cp=30.482~47.8624&sp=point.30.482_47.8624","Maplink3") -> Maplink3
A122: 792 | B122: Al-Basrah | C122: Abu Al-Khaseeb | D122: Markaz Abu Al-Khaseeb | E122: Abu flos | F122: البصرة-ابو الخصيب-ابو فلوس | G122: 30.44115491 | H122: 48.01367941 | I122: 2 | J122: 12 | K122: NA | L122: NA | M122: 0 | N122: 6 | O122: 0 | P122: 0 | Q122: 6 | R122: 0 | S122: 0 | T122: 0 | U122: 0 | V122: 0 | W122: 0 | X122: 0 | Y122: 0 | Z122: 12 | AA122: 0 | AB122: 0 | AC122: 0 | AD122: 0 | AE122: 0 | AF122: 0 | AG122: 0 | AH122: 0 | AI122: 0 | AJ122: 0 | AK122: 0 | AL122: 0 | AM122: 0 | AN122: 0 | AO122: 0 | AP122: 0 | AQ122: 0 | AR122: 12 | AS122: 0 | AT122: 0 | AU122: 0 | AV122: 0 | AW122: 0 | AX122: 0 | AY122: 0 | AZ122: 0 | BA122: 0 | BB122: 0 | BC122: 0 | BD122: =HYPERLINK("http://www.openstreetmap.org/?mlat=30.4412&mlon=48.0137&zoom=12#map=12/30.4412/48.0137","Maplink1") -> Maplink1 | BE122: =HYPERLINK("https://www.google.iq/maps/search/+30.4412,48.0137/@30.4412,48.0137,14z?hl=en","Maplink2") -> Maplink2 | BF122: =HYPERLINK("http://www.bing.com/maps/?lvl=14&sty=h&cp=30.4412~48.0137&sp=point.30.4412_48.0137","Maplink3") -> Maplink3
A123: 25540 | B123: Al-Basrah | C123: Abu Al-Khaseeb | D123: Markaz Abu Al-Khaseeb | E123: Abu Kusra | F123: ابو كوصره | G123: 30.44208917 | H123: 47.95938752 | I123: 5 | J123: 30 | K123: 0 | L123: 0 | M123: 0 | N123: 12 | O123: 0 | P123: 0 | Q123: 18 | R123: 0 | S123: 0 | T123: 0 | U123: 0 | V123: 0 | W123: 0 | X123: 0 | Y123: 0 | Z123: 12 | AA123: 0 | AB123: 0 | AC123: 0 | AD123: 0 | AE123: 0 | AF123: 0 | AG123: 0 | AH123: 0 | AI123: 0 | AJ123: 0 | AK123: 0 | AL123: 0 | AM123: 0 | AN123: 18 | AO123: 0 | AP123: 0 | AQ123: 0 | AR123: 12 | AS123: 6 | AT123: 0 | AU123: 12 | AV123: 0 | AW123: 0 | AX123: 0 | AY123: 0 | AZ123: 0 | BA123: 0 | BB123: 0 | BC123: 0 | BD123: =HYPERLINK("http://www.openstreetmap.org/?mlat=30.4421&mlon=47.9594&zoom=12#map=12/30.4421/47.9594","Maplink1") -> Maplink1 | BE123: =HYPERLINK("https://www.google.iq/maps/search/+30.4421,47.9594/@30.4421,47.9594,14z?hl=en","Maplink2") -> Maplink2 | BF123: =HYPERLINK("http://www.bing.com/maps/?lvl=14&sty=h&cp=30.4421~47.9594&sp=point.30.4421_47.9594","Maplink3") -> Maplink3
A124: 601 | B124: Al-Basrah | C124: Abu Al-Khaseeb | D124: Markaz Abu Al-Khaseeb | E124: Abu magheera | F124: ابو مغيره | G124: 30.46081635 | H124: 47.96092515 | I124: 4 | J124: 24 | K124: NA | L124: NA | M124: 0 | N124: 24 | O124: 0 | P124: 0 | Q124: 0 | R124: 0 | S124: 0 | T124: 0 | U124: 0 | V124: 0 | W124: 0 | X124: 0 | Y124: 0 | Z124: 0 | AA124: 0 | AB124: 0 | AC124: 0 | AD124: 0 | AE124: 0 | AF124: 0 | AG124: 0 | AH124: 0 | AI124: 0 | AJ124: 0 | AK124: 0 | AL124: 0 | AM124: 0 | AN124: 24 | AO124: 0 | AP124: 0 | AQ124: 0 | AR124: 0 | AS124: 18 | AT124: 0 | AU124: 6 | AV124: 0 | AW124: 0 | AX124: 0 | AY124: 0 | AZ124: 0 | BA124: 0 | BB124: 0 | BC124: 0 | BD124: =HYPERLINK("http://www.openstreetmap.org/?mlat=30.4608&mlon=47.9609&zoom=12#map=12/30.4608/47.9609","Maplink1") -> Maplink1 | BE124: =HYPERLINK("https://www.google.iq/maps/search/+30.4608,47.9609/@30.4608,47.9609,14z?hl=en","Maplink2") -> Maplink2 | BF124: =HYPERLINK("http://www.bing.com/maps/?lvl=14&sty=h&cp=30.4608~47.9609&sp=point.30.4608_47.9609","Maplink3") -> Maplink3
A125: 25970 | B125: Al-Basrah | C125: Abu Al-Khaseeb | D125: Markaz Abu Al-Khaseeb | E125: Al Ibraheem | F125: ال ابراهيم | G125: 30.44988053 | H125: 47.98638591 | I125: 6 | J125: 36 | K125: 0 | L125: 0 | M125: 0 | N125: 6 | O125: 0 | P125: 0 | Q125: 30 | R125: 0 | S125: 0 | T125: 0 | U125: 0 | V125: 0 | W125: 0 | X125: 0 | Y125: 0 | Z125: 12 | AA125: 0 | AB125: 0 | AC125: 0 | AD125: 0 | AE125: 6 | AF125: 0 | AG125: 0 | AH125: 6 | AI125: 0 | AJ125: 0 | AK125: 0 | AL125: 12 | AM125: 0 | AN125: 0 | AO125: 0 | AP125: 0 | AQ125: 0 | AR125: 0 | AS125: 24 | AT125: 6 | AU125: 0 | AV125: 6 | AW125: 0 | AX125: 0 | AY125: 0 | AZ125: 0 | BA125: 0 | BB125: 0 | BC125: 0 | BD125: =HYPERLINK("http://www.openstreetmap.org/?mlat=30.4499&mlon=47.9864&zoom=12#map=12/30.4499/47.9864","Maplink1") -> Maplink1 | BE125: =HYPERLINK("https://www.google.iq/maps/search/+30.4499,47.9864/@30.4499,47.9864,14z?hl=en","Maplink2") -> Maplink2 | BF125: =HYPERLINK("http://www.bing.com/maps/?lvl=14&sty=h&cp=30.4499~47.9864&sp=point.30.4499_47.9864","Maplink3") -> Maplink3
A126: 23896 | B126: Al-Basrah | C126: Abu Al-Khaseeb | D126: Markaz Abu Al-Khaseeb | E126: Al-Abdaliyan | F126: البصرة-ابو الخصيب-العبدليان | G126: 30.47631252 | H126: 47.86616654 | I126: 2 | J126: 12 | K126: NA | L126: NA | M126: 0 | N126: 0 | O126: 0 | P126: 0 | Q126: 12 | R126: 0 | S126: 0 | T126: 0 | U126: 0 | V126: 0 | W126: 0 | X126: 0 | Y126: 0 | Z126: 12 | AA126: 0 | AB126: 0 | AC126: 0 | AD126: 0 | AE126: 0 | AF126: 0 | AG126: 0 | AH126: 0 | AI126: 0 | AJ126: 0 | AK126: 0 | AL126: 0 | AM126: 0 | AN126: 0 | AO126: 0 | AP126: 0 | AQ126: 0 | AR126: 12 | AS126: 0 | AT126: 0 | AU126: 0 | AV126: 0 | AW126: 0 | AX126: 0 | AY126: 0 | AZ126: 0 | BA126: 0 | BB126: 0 | BC126: 0 | BD126: =HYPERLINK("http://www.openstreetmap.org/?mlat=30.4763&mlon=47.8662&zoom=12#map=12/30.4763/47.8662","Maplink1") -> Maplink1 | BE126: =HYPERLINK("https://www.google.iq/maps/search/+30.4763,47.8662/@30.4763,47.8662,14z?hl=en","Maplink2") -> Maplink2 | BF126: =HYPERLINK("http://www.bing.com/maps/?lvl=14&sty=h&cp=30.4763~47.8662&sp=point.30.4763_47.8662","Maplink3") -> Maplink3
A127: 23895 | B127: Al-Basrah | C127: Abu Al-Khaseeb | D127: Markaz Abu Al-Khaseeb | E127: Al-Awjah | F127: البصرة-ابو الخصيب-العوجه | G127: 30.43387026 | H127: 47.9649064 | I127: 3 | J127: 18 | K127: NA | L127: NA | M127: 0 | N127: 12 | O127: 0 | P127: 0 | Q127: 6 | R127: 0 | S127: 0 | T127: 0 | U127: 0 | V127: 0 | W127: 0 | X127: 0 | Y127: 0 | Z127: 0 | AA127: 0 | AB127: 0 | AC127: 0 | AD127: 0 | AE127: 0 | AF127: 0 | AG127: 0 | AH127: 0 | AI127: 0 | AJ127: 0 | AK127: 0 | AL127: 0 | AM127: 0 | AN127: 18 | AO127: 0 | AP127: 0 | AQ127: 0 | AR127: 0 | AS127: 12 | AT127: 6 | AU127: 0 | AV127: 0 | AW127: 0 | AX127: 0 | AY127: 0 | AZ127: 0 | BA127: 0 | BB127: 0 | BC127: 0 | BD127: =HYPERLINK("http://www.openstreetmap.org/?mlat=30.4339&mlon=47.9649&zoom=12#map=12/30.4339/47.9649","Maplink1") -> Maplink1 | BE127: =HYPERLINK("https://www.google.iq/maps/search/+30.4339,47.9649/@30.4339,47.9649,14z?hl=en","Maplink2") -> Maplink2 | BF127: =HYPERLINK("http://www.bing.com/maps/?lvl=14&sty=h&cp=30.4339~47.9649&sp=point.30.4339_47.9649","Maplink3") -> Maplink3
A128: 587 | B128: Al-Basrah | C128: Abu Al-Khaseeb | D128: Markaz Abu Al-Khaseeb | E128: Al-bahadria | F128: البهادرية | G128: 30.47255888 | H128: 47.86672518 | I128: 4 | J128: 24 | K128: NA | L128: NA | M128: 0 | N128: 6 | O128: 0 | P128: 0 | Q128: 18 | R128: 0 | S128: 0 | T128: 0 | U128: 0 | V128: 0 | W128: 0 | X128: 0 | Y128: 0 | Z128: 0 | AA128: 0 | AB128: 0 | AC128: 0 | AD128: 0 | AE128: 6 | AF128: 0 | AG128: 0 | AH128: 12 | AI128: 0 | AJ128: 0 | AK128: 0 | AL128: 6 | AM128: 0 | AN128: 0 | AO128: 0 | AP128: 0 | AQ128: 0 | AR128: 6 | AS128: 0 | AT128: 12 | AU128: 6 | AV128: 0 | AW128: 0 | AX128: 0 | AY128: 0 | AZ128: 0 | BA128: 0 | BB128: 0 | BC128: 0 | BD128: =HYPERLINK("http://www.openstreetmap.org/?mlat=30.4726&mlon=47.8667&zoom=12#map=12/30.4726/47.8667","Maplink1") -> Maplink1 | BE128: =HYPERLINK("https://www.google.iq/maps/search/+30.4726,47.8667/@30.4726,47.8667,14z?hl=en","Maplink2") -> Maplink2 | BF128: =HYPERLINK("http://www.bing.com/maps/?lvl=14&sty=h&cp=30.4726~47.8667&sp=point.30.4726_47.8667","Maplink3") -> Maplink3
A129: 780 | B129: Al-Basrah | C129: Abu Al-Khaseeb | D129: Markaz Abu Al-Khaseeb | E129: Al-Dhaheeria | F129: ظاهرية | G129: 30.4314722 | H129: 47.97240561 | I129: 4 | J129: 24 | K129: NA | L129: NA | M129: 0 | N129: 0 | O129: 0 | P129: 12 | Q129: 12 | R129: 0 | S129: 0 | T129: 0 | U129: 0 | V129: 0 | W129: 0 | X129: 0 | Y129: 0 | Z129: 24 | AA129: 0 | AB129: 0 | AC129: 0 | AD129: 0 | AE129: 0 | AF129: 0 | AG129: 0 | AH129: 0 | AI129: 0 | AJ129: 0 | AK129: 0 | AL129: 0 | AM129: 0 | AN129: 0 | AO129: 0 | AP129: 0 | AQ129: 0 | AR129: 0 | AS129: 18 | AT129: 0 | AU129: 6 | AV129: 0 | AW129: 0 | AX129: 0 | AY129: 0 | AZ129: 0 | BA129: 0 | BB129: 0 | BC129: 0 | BD129: =HYPERLINK("http://www.openstreetmap.org/?mlat=30.4315&mlon=47.9724&zoom=12#map=12/30.4315/47.9724","Maplink1") -> Maplink1 | BE129: =HYPERLINK("https://www.google.iq/maps/search/+30.4315,47.9724/@30.4315,47.9724,14z?hl=en","Maplink2") -> Maplink2 | BF129: =HYPERLINK("http://www.bing.com/maps/?lvl=14&sty=h&cp=30.4315~47.9724&sp=point.30.4315_47.9724","Maplink3") -> Maplink3
A130: 820 | B130: Al-Basrah | C130: Abu Al-Khaseeb | D130: Markaz Abu Al-Khaseeb | E130: Al-jadida | F130: البصرة-ابو الخصيب-الجُديدا | G130: 30.45001648 | H130: 47.90488097 | I130: 5 | J130: 30 | K130: 0 | L130: 0 | M130: 0 | N130: 6 | O130: 0 | P130: 0 | Q130: 24 | R130: 0 | S130: 0 | T130: 0 | U130: 0 | V130: 0 | W130: 0 | X130: 0 | Y130: 0 | Z130: 12 | AA130: 0 | AB130: 0 | AC130: 0 | AD130: 0 | AE130: 0 | AF130: 0 | AG130: 0 | AH130: 0 | AI130: 0 | AJ130: 0 | AK130: 0 | AL130: 12 | AM130: 0 | AN130: 6 | AO130: 0 | AP130: 0 | AQ130: 0 | AR130: 0 | AS130: 0 | AT130: 0 | AU130: 30 | AV130: 0 | AW130: 0 | AX130: 0 | AY130: 0 | AZ130: 0 | BA130: 0 | BB130: 0 | BC130: 0 | BD130: =HYPERLINK("http://www.openstreetmap.org/?mlat=30.45&mlon=47.9049&zoom=12#map=12/30.45/47.9049","Maplink1") -> Maplink1 | BE130: =HYPERLINK("https://www.google.iq/maps/search/+30.45,47.9049/@30.45,47.9049,14z?hl=en","Maplink2") -> Maplink2 | BF130: =HYPERLINK("http://www.bing.com/maps/?lvl=14&sty=h&cp=30.45~47.9049&sp=point.30.45_47.9049","Maplink3") -> Maplink3
A131: 607 | B131: Al-Basrah | C131: Abu Al-Khaseeb | D131: Markaz Abu Al-Khaseeb | E131: Al-Sankar | F131: الصنكر | G131: 30.46424735 | H131: 47.94125156 | I131: 4 | J131: 24 | K131: NA | L131: NA | M131: 0 | N131: 12 | O131: 0 | P131: 0 | Q131: 12 | R131: 0 | S131: 0 | T131: 0 | U131: 0 | V131: 0 | W131: 0 | X131: 0 | Y131: 0 | Z131: 6 | AA131: 0 | AB131: 0 | AC131: 0 | AD131: 0 | AE131: 0 | AF131: 0 | AG131: 0 | AH131: 0 | AI131: 0 | AJ131: 0 | AK131: 0 | AL131: 6 | AM131: 0 | AN131: 12 | AO131: 0 | AP131: 0 | AQ131: 0 | AR131: 0 | AS131: 0 | AT131: 6 | AU131: 18 | AV131: 0 | AW131: 0 | AX131: 0 | AY131: 0 | AZ131: 0 | BA131: 0 | BB131: 0 | BC131: 0 | BD131: =HYPERLINK("http://www.openstreetmap.org/?mlat=30.4642&mlon=47.9413&zoom=12#map=12/30.4642/47.9413","Maplink1") -> Maplink1 | BE131: =HYPERLINK("https://www.google.iq/maps/search/+30.4642,47.9413/@30.4642,47.9413,14z?hl=en","Maplink2") -> Maplink2 | BF131: =HYPERLINK("http://www.bing.com/maps/?lvl=14&sty=h&cp=30.4642~47.9413&sp=point.30.4642_47.9413","Maplink3") -> Maplink3
A132: 1307 | B132: Al-Basrah | C132: Abu Al-Khaseeb | D132: Markaz Abu Al-Khaseeb | E132: Al-Sibiliat | F132: السيبيليات | G132: 30.45698086 | H132: 47.95114342 | I132: 2 | J132: 12 | K132: NA | L132: NA | M132: 0 | N132: 0 | O132: 0 | P132: 0 | Q132: 12 | R132: 0 | S132: 0 | T132: 0 | U132: 0 | V132: 0 | W132: 0 | X132: 0 | Y132: 0 | Z132: 0 | AA132: 0 | AB132: 6 | AC132: 0 | AD132: 0 | AE132: 6 | AF132: 0 | AG132: 0 | AH132: 0 | AI132: 0 | AJ132: 0 | AK132: 0 | AL132: 0 | AM132: 0 | AN132: 0 | AO132: 0 | AP132: 0 | AQ132: 0 | AR132: 0 | AS132: 0 | AT132: 0 | AU132: 0 | AV132: 0 | AW132: 0 | AX132: 12 | AY132: 0 | AZ132: 0 | BA132: 0 | BB132: 0 | BC132: 0 | BD132: =HYPERLINK("http://www.openstreetmap.org/?mlat=30.457&mlon=47.9511&zoom=12#map=12/30.457/47.9511","Maplink1") -> Maplink1 | BE132: =HYPERLINK("https://www.google.iq/maps/search/+30.457,47.9511/@30.457,47.9511,14z?hl=en","Maplink2") -> Maplink2 | BF132: =HYPERLINK("http://www.bing.com/maps/?lvl=14&sty=h&cp=30.457~47.9511&sp=point.30.457_47.9511","Maplink3") -> Maplink3
A133: 841 | B133: Al-Basrah | C133: Abu Al-Khaseeb | D133: Markaz Abu Al-Khaseeb | E133: Awaisian | F133: عويسيان | G133: 30.48419877 | H133: 47.85767879 | I133: 7 | J133: 42 | K133: 0 | L133: 0 | M133: 0 | N133: 18 | O133: 0 | P133: 0 | Q133: 24 | R133: 0 | S133: 0 | T133: 0 | U133: 0 | V133: 0 | W133: 0 | X133: 0 | Y133: 0 | Z133: 12 | AA133: 0 | AB133: 0 | AC133: 0 | AD133: 0 | AE133: 6 | AF133: 0 | AG133: 0 | AH133: 6 | AI133: 0 | AJ133: 0 | AK133: 0 | AL133: 18 | AM133: 0 | AN133: 0 | AO133: 0 | AP133: 0 | AQ133: 0 | AR133: 0 | AS133: 0 | AT133: 12 | AU133: 18 | AV133: 0 | AW133: 0 | AX133: 12 | AY133: 0 | AZ133: 0 | BA133: 0 | BB133: 0 | BC133: 0 | BD133: =HYPERLINK("http://www.openstreetmap.org/?mlat=30.4842&mlon=47.8577&zoom=12#map=12/30.4842/47.8577","Maplink1") -> Maplink1 | BE133: =HYPERLINK("https://www.google.iq/maps/search/+30.4842,47.8577/@30.4842,47.8577,14z?hl=en","Maplink2") -> Maplink2 | BF133: =HYPERLINK("http://www.bing.com/maps/?lvl=14&sty=h&cp=30.4842~47.8577&sp=point.30.4842_47.8577","Maplink3") -> Maplink3
A134: 809 | B134: Al-Basrah | C134: Abu Al-Khaseeb | D134: Markaz Abu Al-Khaseeb | E134: Bab al-dabagh | F134: باب دباغ | G134: 30.44533689 | H134: 47.99518675 | I134: 5 | J134: 30 | K134: 0 | L134: 0 | M134: 0 | N134: 18 | O134: 0 | P134: 0 | Q134: 12 | R134: 0 | S134: 0 | T134: 0 | U134: 0 | V134: 0 | W134: 0 | X134: 0 | Y134: 0 | Z134: 6 | AA134: 0 | AB134: 0 | AC134: 0 | AD134: 0 | AE134: 0 | AF134: 0 | AG134: 0 | AH134: 18 | AI134: 0 | AJ134: 0 | AK134: 0 | AL134: 0 | AM134: 0 | AN134: 6 | AO134: 0 | AP134: 0 | AQ134: 0 | AR134: 0 | AS134: 24 | AT134: 0 | AU134: 0 | AV134: 6 | AW134: 0 | AX134: 0 | AY134: 0 | AZ134: 0 | BA134: 0 | BB134: 0 | BC134: 0 | BD134: =HYPERLINK("http://www.openstreetmap.org/?mlat=30.4453&mlon=47.9952&zoom=12#map=12/30.4453/47.9952","Maplink1") -> Maplink1 | BE134: =HYPERLINK("https://www.google.iq/maps/search/+30.4453,47.9952/@30.4453,47.9952,14z?hl=en","Maplink2") -> Maplink2 | BF134: =HYPERLINK("http://www.bing.com/maps/?lvl=14&sty=h&cp=30.4453~47.9952&sp=point.30.4453_47.9952","Maplink3") -> Maplink3
A135: 512 | B135: Al-Basrah | C135: Abu Al-Khaseeb | D135: Markaz Abu Al-Khaseeb | E135: Bab midan | F135: باب ميدان | G135: 30.45678281 | H135: 47.99421588 | I135: 5 | J135: 30 | K135: 0 | L135: 0 | M135: 0 | N135: 0 | O135: 0 | P135: 0 | Q135: 30 | R135: 0 | S135: 0 | T135: 0 | U135: 0 | V135: 0 | W135: 0 | X135: 0 | Y135: 0 | Z135: 0 | AA135: 0 | AB135: 0 | AC135: 0 | AD135: 0 | AE135: 0 | AF135: 0 | AG135: 0 | AH135: 0 | AI135: 0 | AJ135: 0 | AK135: 0 | AL135: 12 | AM135: 0 | AN135: 18 | AO135: 0 | AP135: 0 | AQ135: 0 | AR135: 0 | AS135: 12 | AT135: 0 | AU135: 18 | AV135: 0 | AW135: 0 | AX135: 0 | AY135: 0 | AZ135: 0 | BA135: 0 | BB135: 0 | BC135: 0 | BD135: =HYPERLINK("http://www.openstreetmap.org/?mlat=30.4568&mlon=47.9942&zoom=12#map=12/30.4568/47.9942","Maplink1") -> Maplink1 | BE135: =HYPERLINK("https://www.google.iq/maps/search/+30.4568,47.9942/@30.4568,47.9942,14z?hl=en","Maplink2") -> Maplink2 | BF135: =HYPERLINK("http://www.bing.com/maps/?lvl=14&sty=h&cp=30.4568~47.9942&sp=point.30.4568_47.9942","Maplink3") -> Maplink3
A136: 811 | B136: Al-Basrah | C136: Abu Al-Khaseeb | D136: Markaz Abu Al-Khaseeb | E136: Bab sulaiman | F136: باب سليمان | G136: 30.44936934 | H136: 47.99809076 | I136: 7 | J136: 42 | K136: 0 | L136: 0 | M136: 0 | N136: 6 | O136: 0 | P136: 0 | Q136: 36 | R136: 0 | S136: 0 | T136: 0 | U136: 0 | V136: 0 | W136: 0 | X136: 0 | Y136: 0 | Z136: 12 | AA136: 0 | AB136: 0 | AC136: 0 | AD136: 0 | AE136: 0 | AF136: 0 | AG136: 0 | AH136: 0 | AI136: 0 | AJ136: 0 | AK136: 0 | AL136: 0 | AM136: 0 | AN136: 30 | AO136: 0 | AP136: 0 | AQ136: 0 | AR136: 0 | AS136: 12 | AT136: 12 | AU136: 12 | AV136: 6 | AW136: 0 | AX136: 0 | AY136: 0 | AZ136: 0 | BA136: 0 | BB136: 0 | BC136: 0 | BD136: =HYPERLINK("http://www.openstreetmap.org/?mlat=30.4494&mlon=47.9981&zoom=12#map=12/30.4494/47.9981","Maplink1") -> Maplink1 | BE136: =HYPERLINK("https://www.google.iq/maps/search/+30.4494,47.9981/@30.4494,47.9981,14z?hl=en","Maplink2") -> Maplink2 | BF136: =HYPERLINK("http://www.bing.com/maps/?lvl=14&sty=h&cp=30.4494~47.9981&sp=point.30.4494_47.9981","Maplink3") -> Maplink3
A137: 797 | B137: Al-Basrah | C137: Abu Al-Khaseeb | D137: Markaz Abu Al-Khaseeb | E137: Bab taweel | F137: البصرة-ابو الخصيب-باب طويل | G137: 30.43864226 | H137: 47.98704318 | I137: 3 | J137: 18 | K137: NA | L137: NA | M137: 0 | N137: 12 | O137: 0 | P137: 0 | Q137: 6 | R137: 0 | S137: 0 | T137: 0 | U137: 0 | V137: 0 | W137: 0 | X137: 0 | Y137: 0 | Z137: 0 | AA137: 0 | AB137: 0 | AC137: 0 | AD137: 0 | AE137: 0 | AF137: 0 | AG137: 0 | AH137: 0 | AI137: 0 | AJ137: 0 | AK137: 0 | AL137: 6 | AM137: 0 | AN137: 12 | AO137: 0 | AP137: 0 | AQ137: 0 | AR137: 0 | AS137: 0 | AT137: 0 | AU137: 12 | AV137: 0 | AW137: 0 | AX137: 0 | AY137: 6 | AZ137: 0 | BA137: 0 | BB137: 0 | BC137: 0 | BD137: =HYPERLINK("http://www.openstreetmap.org/?mlat=30.4386&mlon=47.987&zoom=12#map=12/30.4386/47.987","Maplink1") -> Maplink1 | BE137: =HYPERLINK("https://www.google.iq/maps/search/+30.4386,47.987/@30.4386,47.987,14z?hl=en","Maplink2") -> Maplink2 | BF137: =HYPERLINK("http://www.bing.com/maps/?lvl=14&sty=h&cp=30.4386~47.987&sp=point.30.4386_47.987","Maplink3") -> Maplink3
A138: 20783 | B138: Al-Basrah | C138: Abu Al-Khaseeb | D138: Markaz Abu Al-Khaseeb | E138: Balad Sultan | F138: ابو الخصيب-بلد سلطان | G138: 30.45303149 | H138: 47.98892154 | I138: 2 | J138: 12 | K138: NA | L138: NA | M138: 0 | N138: 0 | O138: 0 | P138: 0 | Q138: 12 | R138: 0 | S138: 0 | T138: 0 | U138: 0 | V138: 0 | W138: 0 | X138: 0 | Y138: 0 | Z138: 0 | AA138: 0 | AB138: 0 | AC138: 0 | AD138: 0 | AE138: 0 | AF138: 0 | AG138: 0 | AH138: 0 | AI138: 0 | AJ138: 0 | AK138: 0 | AL138: 12 | AM138: 0 | AN138: 0 | AO138: 0 | AP138: 0 | AQ138: 0 | AR138: 0 | AS138: 12 | AT138: 0 | AU138: 0 | AV138: 0 | AW138: 0 | AX138: 0 | AY138: 0 | AZ138: 0 | BA138: 0 | BB138: 0 | BC138: 0 | BD138: =HYPERLINK("http://www.openstreetmap.org/?mlat=30.453&mlon=47.9889&zoom=12#map=12/30.453/47.9889","Maplink1") -> Maplink1 | BE138: =HYPERLINK("https://www.google.iq/maps/search/+30.453,47.9889/@30.453,47.9889,14z?hl=en","Maplink2") -> Maplink2 | BF138: =HYPERLINK("http://www.bing.com/maps/?lvl=14&sty=h&cp=30.453~47.9889&sp=point.30.453_47.9889","Maplink3") -> Maplink3
A139: 24480 | B139: Al-Basrah | C139: Abu Al-Khaseeb | D139: Al-Siba | E139: Door Alasmeadh | F139: البصرة-ابو الخصيب-دور الاسمدة | G139: 30.44464488 | H139: 48.0252697 | I139: 1 | J139: 6 | K139: NA | L139: NA | M139: 0 | N139: 0 | O139: 0 | P139: 0 | Q139: 6 | R139: 0 | S139: 0 | T139: 0 | U139: 0 | V139: 0 | W139: 0 | X139: 0 | Y139: 0 | Z139: 0 | AA139: 0 | AB139: 0 | AC139: 0 | AD139: 0 | AE139: 0 | AF139: 0 | AG139: 0 | AH139: 0 | AI139: 0 | AJ139: 0 | AK139: 0 | AL139: 0 | AM139: 0 | AN139: 6 | AO139: 0 | AP139: 0 | AQ139: 0 | AR139: 0 | AS139: 0 | AT139: 6 | AU139: 0 | AV139: 0 | AW139: 0 | AX139: 0 | AY139: 0 | AZ139: 0 | BA139: 0 | BB139: 0 | BC139: 0 | BD139: =HYPERLINK("http://www.openstreetmap.org/?mlat=30.4446&mlon=48.0253&zoom=12#map=12/30.4446/48.0253","Maplink1") -> Maplink1 | BE139: =HYPERLINK("https://www.google.iq/maps/search/+30.4446,48.0253/@30.4446,48.0253,14z?hl=en","Maplink2") -> Maplink2 | BF139: =HYPERLINK("http://www.bing.com/maps/?lvl=14&sty=h&cp=30.4446~48.0253&sp=point.30.4446_48.0253","Maplink3") -> Maplink3
A140: 381 | B140: Al-Basrah | C140: Abu Al-Khaseeb | D140: Markaz Abu Al-Khaseeb | E140: Hamdan | F140: البصرة-ابو الخصيب-حمدن | G140: 30.45667583 | H140: 47.891183 | I140: 39 | J140: 234 | K140: 0 | L140: 0 | M140: 0 | N140: 78 | O140: 0 | P140: 0 | Q140: 156 | R140: 0 | S140: 0 | T140: 0 | U140: 0 | V140: 0 | W140: 0 | X140: 0 | Y140: 0 | Z140: 66 | AA140: 0 | AB140: 0 | AC140: 0 | AD140: 0 | AE140: 0 | AF140: 0 | AG140: 0 | AH140: 0 | AI140: 0 | AJ140: 0 | AK140: 0 | AL140: 84 | AM140: 0 | AN140: 84 | AO140: 0 | AP140: 0 | AQ140: 0 | AR140: 0 | AS140: 132 | AT140: 36 | AU140: 42 | AV140: 12 | AW140: 0 | AX140: 12 | AY140: 0 | AZ140: 0 | BA140: 0 | BB140: 0 | BC140: 0 | BD140: =HYPERLINK("http://www.openstreetmap.org/?mlat=30.4567&mlon=47.8912&zoom=12#map=12/30.4567/47.8912","Maplink1") -> Maplink1 | BE140: =HYPERLINK("https://www.google.iq/maps/search/+30.4567,47.8912/@30.4567,47.8912,14z?hl=en","Maplink2") -> Maplink2 | BF140: =HYPERLINK("http://www.bing.com/maps/?lvl=14&sty=h&cp=30.4567~47.8912&sp=point.30.4567_47.8912","Maplink3") -> Maplink3
A141: 505 | B141: Al-Basrah | C141: Abu Al-Khaseeb | D141: Markaz Abu Al-Khaseeb | E141: Hay Al Askarye | F141: الحي العسكري | G141: 30.43503388 | H141: 47.94050875 | I141: 13 | J141: 78 | K141: 0 | L141: 0 | M141: 0 | N141: 18 | O141: 0 | P141: 0 | Q141: 60 | R141: 0 | S141: 0 | T141: 0 | U141: 0 | V141: 0 | W141: 0 | X141: 0 | Y141: 0 | Z141: 12 | AA141: 0 | AB141: 0 | AC141: 0 | AD141: 0 | AE141: 0 | AF141: 0 | AG141: 0 | AH141: 36 | AI141: 0 | AJ141: 0 | AK141: 0 | AL141: 0 | AM141: 0 | AN141: 30 | AO141: 0 | AP141: 0 | AQ141: 0 | AR141: 6 | AS141: 24 | AT141: 0 | AU141: 36 | AV141: 12 | AW141: 0 | AX141: 0 | AY141: 0 | AZ141: 0 | BA141: 0 | BB141: 0 | BC141: 0 | BD141: =HYPERLINK("http://www.openstreetmap.org/?mlat=30.435&mlon=47.9405&zoom=12#map=12/30.435/47.9405","Maplink1") -> Maplink1 | BE141: =HYPERLINK("https://www.google.iq/maps/search/+30.435,47.9405/@30.435,47.9405,14z?hl=en","Maplink2") -> Maplink2 | BF141: =HYPERLINK("http://www.bing.com/maps/?lvl=14&sty=h&cp=30.435~47.9405&sp=point.30.435_47.9405","Maplink3") -> Maplink3
A142: 24158 | B142: Al-Basrah | C142: Abu Al-Khaseeb | D142: Markaz Abu Al-Khaseeb | E142: Kut Al Solhy | F142: ابو الخصيب-كوت الصلحي | G142: 30.44771468 | H142: 47.90975432 | I142: 8 | J142: 48 | K142: 0 | L142: 0 | M142: 0 | N142: 18 | O142: 0 | P142: 0 | Q142: 30 | R142: 0 | S142: 0 | T142: 0 | U142: 0 | V142: 0 | W142: 0 | X142: 0 | Y142: 0 | Z142: 6 | AA142: 0 | AB142: 0 | AC142: 0 | AD142: 0 | AE142: 0 | AF142: 0 | AG142: 0 | AH142: 0 | AI142: 0 | AJ142: 0 | AK142: 0 | AL142: 18 | AM142: 0 | AN142: 24 | AO142: 0 | AP142: 0 | AQ142: 0 | AR142: 12 | AS142: 12 | AT142: 6 | AU142: 0 | AV142: 0 | AW142: 0 | AX142: 18 | AY142: 0 | AZ142: 0 | BA142: 0 | BB142: 0 | BC142: 0 | BD142: =HYPERLINK("http://www.openstreetmap.org/?mlat=30.4477&mlon=47.9098&zoom=12#map=12/30.4477/47.9098","Maplink1") -> Maplink1 | BE142: =HYPERLINK("https://www.google.iq/maps/search/+30.4477,47.9098/@30.4477,47.9098,14z?hl=en","Maplink2") -> Maplink2 | BF142: =HYPERLINK("http://www.bing.com/maps/?lvl=14&sty=h&cp=30.4477~47.9098&sp=point.30.4477_47.9098","Maplink3") -> Maplink3
A143: 813 | B143: Al-Basrah | C143: Abu Al-Khaseeb | D143: Markaz Abu Al-Khaseeb | E143: Kut thewainy | F143: كوت ثويني | G143: 30.46328636 | H143: 47.89009441 | I143: 1 | J143: 6 | K143: NA | L143: NA | M143: 0 | N143: 6 | O143: 0 | P143: 0 | Q143: 0 | R143: 0 | S143: 0 | T143: 0 | U143: 0 | V143: 0 | W143: 0 | X143: 0 | Y143: 0 | Z143: 0 | AA143: 0 | AB143: 0 | AC143: 0 | AD143: 0 | AE143: 0 | AF143: 0 | AG143: 0 | AH143: 0 | AI143: 0 | AJ143: 0 | AK143: 0 | AL143: 0 | AM143: 0 | AN143: 6 | AO143: 0 | AP143: 0 | AQ143: 0 | AR143: 0 | AS143: 6 | AT143: 0 | AU143: 0 | AV143: 0 | AW143: 0 | AX143: 0 | AY143: 0 | AZ143: 0 | BA143: 0 | BB143: 0 | BC143: 0 | BD143: =HYPERLINK("http://www.openstreetmap.org/?mlat=30.4633&mlon=47.8901&zoom=12#map=12/30.4633/47.8901","Maplink1") -> Maplink1 | BE143: =HYPERLINK("https://www.google.iq/maps/search/+30.4633,47.8901/@30.4633,47.8901,14z?hl=en","Maplink2") -> Maplink2 | BF143: =HYPERLINK("http://www.bing.com/maps/?lvl=14&sty=h&cp=30.4633~47.8901&sp=point.30.4633_47.8901","Maplink3") -> Maplink3
A144: 583 | B144: Al-Basrah | C144: Abu Al-Khaseeb | D144: Markaz Abu Al-Khaseeb | E144: Mehila | F144: محيلة | G144: 30.4607108 | H144: 47.92919733 | I144: 10 | J144: 60 | K144: 0 | L144: 6 | M144: 0 | N144: 18 | O144: 0 | P144: 0 | Q144: 42 | R144: 0 | S144: 0 | T144: 0 | U144: 0 | V144: 0 | W144: 0 | X144: 0 | Y144: 0 | Z144: 30 | AA144: 0 | AB144: 0 | AC144: 0 | AD144: 0 | AE144: 0 | AF144: 0 | AG144: 0 | AH144: 18 | AI144: 0 | AJ144: 0 | AK144: 0 | AL144: 6 | AM144: 0 | AN144: 6 | AO144: 0 | AP144: 0 | AQ144: 0 | AR144: 0 | AS144: 0 | AT144: 18 | AU144: 42 | AV144: 0 | AW144: 0 | AX144: 0 | AY144: 0 | AZ144: 0 | BA144: 0 | BB144: 0 | BC144: 0 | BD144: =HYPERLINK("http://www.openstreetmap.org/?mlat=30.4607&mlon=47.9292&zoom=12#map=12/30.4607/47.9292","Maplink1") -> Maplink1 | BE144: =HYPERLINK("https://www.google.iq/maps/search/+30.4607,47.9292/@30.4607,47.9292,14z?hl=en","Maplink2") -> Maplink2 | BF144: =HYPERLINK("http://www.bing.com/maps/?lvl=14&sty=h&cp=30.4607~47.9292&sp=point.30.4607_47.9292","Maplink3") -> Maplink3
A145: 24526 | B145: Al-Basrah | C145: Abu Al-Khaseeb | D145: Markaz Abu Al-Khaseeb | E145: Mhjeran | F145: مهيجران | G145: 30.46864635 | H145: 47.88034336 | I145: 11 | J145: 66 | K145: 0 | L145: 0 | M145: 0 | N145: 12 | O145: 0 | P145: 0 | Q145: 54 | R145: 0 | S145: 0 | T145: 0 | U145: 0 | V145: 0 | W145: 0 | X145: 0 | Y145: 0 | Z145: 6 | AA145: 0 | AB145: 6 | AC145: 0 | AD145: 0 | AE145: 0 | AF145: 0 | AG145: 0 | AH145: 0 | AI145: 0 | AJ145: 0 | AK145: 0 | AL145: 12 | AM145: 0 | AN145: 42 | AO145: 0 | AP145: 0 | AQ145: 0 | AR145: 0 | AS145: 6 | AT145: 18 | AU145: 30 | AV145: 6 | AW145: 0 | AX145: 0 | AY145: 6 | AZ145: 0 | BA145: 0 | BB145: 0 | BC145: 0 | BD145: =HYPERLINK("http://www.openstreetmap.org/?mlat=30.4686&mlon=47.8803&zoom=12#map=12/30.4686/47.8803","Maplink1") -> Maplink1 | BE145: =HYPERLINK("https://www.google.iq/maps/search/+30.4686,47.8803/@30.4686,47.8803,14z?hl=en","Maplink2") -> Maplink2 | BF145: =HYPERLINK("http://www.bing.com/maps/?lvl=14&sty=h&cp=30.4686~47.8803&sp=point.30.4686_47.8803","Maplink3") -> Maplink3
A146: 599 | B146: Al-Basrah | C146: Abu Al-Khaseeb | D146: Markaz Abu Al-Khaseeb | E146: Nahir khuz | F146: نهر خوز | G146: 30.45769442 | H146: 47.97011302 | I146: 4 | J146: 24 | K146: NA | L146: NA | M146: 0 | N146: 0 | O146: 0 | P146: 0 | Q146: 24 | R146: 0 | S146: 0 | T146: 0 | U146: 0 | V146: 0 | W146: 0 | X146: 0 | Y146: 0 | Z146: 6 | AA146: 0 | AB146: 0 | AC146: 0 | AD146: 0 | AE146: 0 | AF146: 0 | AG146: 0 | AH146: 0 | AI146: 0 | AJ146: 0 | AK146: 0 | AL146: 0 | AM146: 0 | AN146: 18 | AO146: 0 | AP146: 0 | AQ146: 0 | AR146: 6 | AS146: 12 | AT146: 0 | AU146: 6 | AV146: 0 | AW146: 0 | AX146: 0 | AY146: 0 | AZ146: 0 | BA146: 0 | BB146: 0 | BC146: 0 | BD146: =HYPERLINK("http://www.openstreetmap.org/?mlat=30.4577&mlon=47.9701&zoom=12#map=12/30.4577/47.9701","Maplink1") -> Maplink1 | BE146: =HYPERLINK("https://www.google.iq/maps/search/+30.4577,47.9701/@30.4577,47.9701,14z?hl=en","Maplink2") -> Maplink2 | BF146: =HYPERLINK("http://www.bing.com/maps/?lvl=14&sty=h&cp=30.4577~47.9701&sp=point.30.4577_47.9701","Maplink3") -> Maplink3
A147: 622 | B147: Al-Basrah | C147: Abu Al-Khaseeb | D147: Markaz Abu Al-Khaseeb | E147: Yousifan | F147: البصرة-ابو الخصيب-يوسفان | G147: 30.47054873 | H147: 47.89712425 | I147: 6 | J147: 36 | K147: 0 | L147: 0 | M147: 0 | N147: 18 | O147: 0 | P147: 6 | Q147: 12 | R147: 0 | S147: 0 | T147: 0 | U147: 0 | V147: 0 | W147: 0 | X147: 0 | Y147: 0 | Z147: 18 | AA147: 0 | AB147: 0 | AC147: 0 | AD147: 0 | AE147: 0 | AF147: 0 | AG147: 0 | AH147: 0 | AI147: 0 | AJ147: 0 | AK147: 0 | AL147: 0 | AM147: 0 | AN147: 18 | AO147: 0 | AP147: 0 | AQ147: 0 | AR147: 6 | AS147: 6 | AT147: 0 | AU147: 24 | AV147: 0 | AW147: 0 | AX147: 0 | AY147: 0 | AZ147: 0 | BA147: 0 | BB147: 0 | BC147: 0 | BD147: =HYPERLINK("http://www.openstreetmap.org/?mlat=30.4705&mlon=47.8971&zoom=12#map=12/30.4705/47.8971","Maplink1") -> Maplink1 | BE147: =HYPERLINK("https://www.google.iq/maps/search/+30.4705,47.8971/@30.4705,47.8971,14z?hl=en","Maplink2") -> Maplink2 | BF147: =HYPERLINK("http://www.bing.com/maps/?lvl=14&sty=h&cp=30.4705~47.8971&sp=point.30.4705_47.8971","Maplink3") -> Maplink3
A148: 834 | B148: Al-Basrah | C148: Abu Al-Khaseeb | D148: Markaz Abu Al-Khaseeb | E148: Al-romia | F148: الرومية | G148: 30.45704638 | H148: 47.91647494 | I148: 5 | J148: 30 | K148: 0 | L148: 0 | M148: 0 | N148: 6 | O148: 0 | P148: 6 | Q148: 18 | R148: 0 | S148: 0 | T148: 0 | U148: 0 | V148: 0 | W148: 0 | X148: 0 | Y148: 0 | Z148: 12 | AA148: 0 | AB148: 0 | AC148: 0 | AD148: 0 | AE148: 0 | AF148: 0 | AG148: 0 | AH148: 0 | AI148: 0 | AJ148: 0 | AK148: 0 | AL148: 0 | AM148: 0 | AN148: 18 | AO148: 0 | AP148: 0 | AQ148: 0 | AR148: 0 | AS148: 0 | AT148: 0 | AU148: 30 | AV148: 0 | AW148: 0 | AX148: 0 | AY148: 0 | AZ148: 0 | BA148: 0 | BB148: 0 | BC148: 0 | BD148: =HYPERLINK("http://www.openstreetmap.org/?mlat=30.457&mlon=47.9165&zoom=12#map=12/30.457/47.9165","Maplink1") -> Maplink1 | BE148: =HYPERLINK("https://www.google.iq/maps/search/+30.457,47.9165/@30.457,47.9165,14z?hl=en","Maplink2") -> Maplink2 | BF148: =HYPERLINK("http://www.bing.com/maps/?lvl=14&sty=h&cp=30.457~47.9165&sp=point.30.457_47.9165","Maplink3") -> Maplink3
A149: 793 | B149: Al-Basrah | C149: Abu Al-Khaseeb | D149: Markaz Abu Al-Khaseeb | E149: Al-Nizelah | F149: النزيلة | G149: 30.43716886 | H149: 47.97703979 | I149: 4 | J149: 24 | K149: NA | L149: NA | M149: 0 | N149: 6 | O149: 0 | P149: 0 | Q149: 18 | R149: 0 | S149: 0 | T149: 0 | U149: 0 | V149: 0 | W149: 0 | X149: 0 | Y149: 0 | Z149: 0 | AA149: 0 | AB149: 0 | AC149: 0 | AD149: 0 | AE149: 0 | AF149: 0 | AG149: 0 | AH149: 0 | AI149: 0 | AJ149: 0 | AK149: 0 | AL149: 12 | AM149: 0 | AN149: 12 | AO149: 0 | AP149: 0 | AQ149: 0 | AR149: 0 | AS149: 0 | AT149: 0 | AU149: 0 | AV149: 18 | AW149: 0 | AX149: 0 | AY149: 6 | AZ149: 0 | BA149: 0 | BB149: 0 | BC149: 0 | BD149: =HYPERLINK("http://www.openstreetmap.org/?mlat=30.4372&mlon=47.977&zoom=12#map=12/30.4372/47.977","Maplink1") -> Maplink1 | BE149: =HYPERLINK("https://www.google.iq/maps/search/+30.4372,47.977/@30.4372,47.977,14z?hl=en","Maplink2") -> Maplink2 | BF149: =HYPERLINK("http://www.bing.com/maps/?lvl=14&sty=h&cp=30.4372~47.977&sp=point.30.4372_47.977","Maplink3") -> Maplink3
A150: 22266 | B150: Al-Basrah | C150: Abu Al-Khaseeb | D150: Al-Siba | E150: Markas AlSiba | F150: مركز السيبة | G150: 30.31971979 | H150: 48.24580379 | I150: 2 | J150: 12 | K150: NA | L150: NA | M150: 0 | N150: 0 | O150: 0 | P150: 0 | Q150: 12 | R150: 0 | S150: 0 | T150: 0 | U150: 0 | V150: 0 | W150: 0 | X150: 0 | Y150: 0 | Z150: 0 | AA150: 0 | AB150: 0 | AC150: 0 | AD150: 0 | AE150: 0 | AF150: 0 | AG150: 0 | AH150: 0 | AI150: 0 | AJ150: 0 | AK150: 0 | AL150: 12 | AM150: 0 | AN150: 0 | AO150: 0 | AP150: 0 | AQ150: 0 | AR150: 0 | AS150: 0 | AT150: 12 | AU150: 0 | AV150: 0 | AW150: 0 | AX150: 0 | AY150: 0 | AZ150: 0 | BA150: 0 | BB150: 0 | BC150: 0 | BD150: =HYPERLINK("http://www.openstreetmap.org/?mlat=30.3197&mlon=48.2458&zoom=12#map=12/30.3197/48.2458","Maplink1") -> Maplink1 | BE150: =HYPERLINK("https://www.google.iq/maps/search/+30.3197,48.2458/@30.3197,48.2458,14z?hl=en","Maplink2") -> Maplink2 | BF150: =HYPERLINK("http://www.bing.com/maps/?lvl=14&sty=h&cp=30.3197~48.2458&sp=point.30.3197_48.2458","Maplink3") -> Maplink3
A151: 835 | B151: Al-Basrah | C151: Abu Al-Khaseeb | D151: Markaz Abu Al-Khaseeb | E151: Jekor | F151: جيكور | G151: 30.45374176 | H151: 48.00347826 | I151: 1 | J151: 6 | K151: NA | L151: NA | M151: 0 | N151: 0 | O151: 0 | P151: 0 | Q151: 6 | R151: 0 | S151: 0 | T151: 0 | U151: 0 | V151: 0 | W151: 0 | X151: 0 | Y151: 0 | Z151: 0 | AA151: 0 | AB151: 0 | AC151: 0 | AD151: 0 | AE151: 0 | AF151: 0 | AG151: 0 | AH151: 0 | AI151: 0 | AJ151: 0 | AK151: 0 | AL151: 0 | AM151: 0 | AN151: 6 | AO151: 0 | AP151: 0 | AQ151: 0 | AR151: 0 | AS151: 6 | AT151: 0 | AU151: 0 | AV151: 0 | AW151: 0 | AX151: 0 | AY151: 0 | AZ151: 0 | BA151: 0 | BB151: 0 | BC151: 0 | BD151: =HYPERLINK("http://www.openstreetmap.org/?mlat=30.4537&mlon=48.0035&zoom=12#map=12/30.4537/48.0035","Maplink1") -> Maplink1 | BE151: =HYPERLINK("https://www.google.iq/maps/search/+30.4537,48.0035/@30.4537,48.0035,14z?hl=en","Maplink2") -> Maplink2 | BF151: =HYPERLINK("http://www.bing.com/maps/?lvl=14&sty=h&cp=30.4537~48.0035&sp=point.30.4537_48.0035","Maplink3") -> Maplink3
A152: 832 | B152: Al-Basrah | C152: Abu Al-Khaseeb | D152: Markaz Abu Al-Khaseeb | E152: Jelab | F152: جلاب | G152: 30.45209877 | H152: 47.99099889 | I152: 4 | J152: 24 | K152: NA | L152: NA | M152: 0 | N152: 0 | O152: 0 | P152: 0 | Q152: 24 | R152: 0 | S152: 0 | T152: 0 | U152: 0 | V152: 0 | W152: 0 | X152: 0 | Y152: 0 | Z152: 12 | AA152: 0 | AB152: 0 | AC152: 0 | AD152: 0 | AE152: 0 | AF152: 0 | AG152: 0 | AH152: 0 | AI152: 0 | AJ152: 0 | AK152: 0 | AL152: 0 | AM152: 0 | AN152: 12 | AO152: 0 | AP152: 0 | AQ152: 0 | AR152: 12 | AS152: 0 | AT152: 0 | AU152: 12 | AV152: 0 | AW152: 0 | AX152: 0 | AY152: 0 | AZ152: 0 | BA152: 0 | BB152: 0 | BC152: 0 | BD152: =HYPERLINK("http://www.openstreetmap.org/?mlat=30.4521&mlon=47.991&zoom=12#map=12/30.4521/47.991","Maplink1") -> Maplink1 | BE152: =HYPERLINK("https://www.google.iq/maps/search/+30.4521,47.991/@30.4521,47.991,14z?hl=en","Maplink2") -> Maplink2 | BF152: =HYPERLINK("http://www.bing.com/maps/?lvl=14&sty=h&cp=30.4521~47.991&sp=point.30.4521_47.991","Maplink3") -> Maplink3
A153: 1168 | B153: Al-Basrah | C153: Al-Midaina | D153: Markaz Al-Midaina | E153: Abo Shaoui | F153: ابو شاوي | G153: 30.94935597 | H153: 47.25997662 | I153: 4 | J153: 24 | K153: NA | L153: NA | M153: 0 | N153: 0 | O153: 0 | P153: 6 | Q153: 18 | R153: 0 | S153: 0 | T153: 0 | U153: 0 | V153: 0 | W153: 0 | X153: 0 | Y153: 0 | Z153: 0 | AA153: 0 | AB153: 0 | AC153: 0 | AD153: 0 | AE153: 12 | AF153: 0 | AG153: 0 | AH153: 0 | AI153: 0 | AJ153: 0 | AK153: 0 | AL153: 6 | AM153: 0 | AN153: 6 | AO153: 0 | AP153: 0 | AQ153: 0 | AR153: 0 | AS153: 6 | AT153: 0 | AU153: 12 | AV153: 0 | AW153: 6 | AX153: 0 | AY153: 0 | AZ153: 0 | BA153: 0 | BB153: 0 | BC153: 0 | BD153: =HYPERLINK("http://www.openstreetmap.org/?mlat=30.9494&mlon=47.26&zoom=12#map=12/30.9494/47.26","Maplink1") -> Maplink1 | BE153: =HYPERLINK("https://www.google.iq/maps/search/+30.9494,47.26/@30.9494,47.26,14z?hl=en","Maplink2") -> Maplink2 | BF153: =HYPERLINK("http://www.bing.com/maps/?lvl=14&sty=h&cp=30.9494~47.26&sp=point.30.9494_47.26","Maplink3") -> Maplink3
A154: 24921 | B154: Al-Basrah | C154: Al-Midaina | D154: Markaz Al-Midaina | E154: Al Khas | F154: الخاص | G154: 30.96699605 | H154: 47.30117399 | I154: 11 | J154: 66 | K154: 0 | L154: 0 | M154: 0 | N154: 0 | O154: 0 | P154: 30 | Q154: 36 | R154: 0 | S154: 0 | T154: 0 | U154: 0 | V154: 0 | W154: 0 | X154: 0 | Y154: 0 | Z154: 0 | AA154: 0 | AB154: 0 | AC154: 0 | AD154: 0 | AE154: 0 | AF154: 0 | AG154: 0 | AH154: 0 | AI154: 0 | AJ154: 0 | AK154: 0 | AL154: 0 | AM154: 0 | AN154: 66 | AO154: 0 | AP154: 0 | AQ154: 0 | AR154: 0 | AS154: 0 | AT154: 48 | AU154: 18 | AV154: 0 | AW154: 0 | AX154: 0 | AY154: 0 | AZ154: 0 | BA154: 0 | BB154: 0 | BC154: 0 | BD154: =HYPERLINK("http://www.openstreetmap.org/?mlat=30.967&mlon=47.3012&zoom=12#map=12/30.967/47.3012","Maplink1") -> Maplink1 | BE154: =HYPERLINK("https://www.google.iq/maps/search/+30.967,47.3012/@30.967,47.3012,14z?hl=en","Maplink2") -> Maplink2 | BF154: =HYPERLINK("http://www.bing.com/maps/?lvl=14&sty=h&cp=30.967~47.3012&sp=point.30.967_47.3012","Maplink3") -> Maplink3
A155: 1120 | B155: Al-Basrah | C155: Al-Midaina | D155: Talha | E155: Al-rahmaniyah | F155: الرحمانية | G155: 30.9278035 | H155: 47.29664601 | I155: 1 | J155: 6 | K155: NA | L155: NA | M155: 0 | N155: 0 | O155: 0 | P155: 6 | Q155: 0 | R155: 0 | S155: 0 | T155: 0 | U155: 0 | V155: 0 | W155: 0 | X155: 0 | Y155: 0 | Z155: 6 | AA155: 0 | AB155: 0 | AC155: 0 | AD155: 0 | AE155: 0 | AF155: 0 | AG155: 0 | AH155: 0 | AI155: 0 | AJ155: 0 | AK155: 0 | AL155: 0 | AM155: 0 | AN155: 0 | AO155: 0 | AP155: 0 | AQ155: 0 | AR155: 0 | AS155: 0 | AT155: 6 | AU155: 0 | AV155: 0 | AW155: 0 | AX155: 0 | AY155: 0 | AZ155: 0 | BA155: 0 | BB155: 0 | BC155: 0 | BD155: =HYPERLINK("http://www.openstreetmap.org/?mlat=30.9278&mlon=47.2966&zoom=12#map=12/30.9278/47.2966","Maplink1") -> Maplink1 | BE155: =HYPERLINK("https://www.google.iq/maps/search/+30.9278,47.2966/@30.9278,47.2966,14z?hl=en","Maplink2") -> Maplink2 | BF155: =HYPERLINK("http://www.bing.com/maps/?lvl=14&sty=h&cp=30.9278~47.2966&sp=point.30.9278_47.2966","Maplink3") -> Maplink3
A156: 354 | B156: Al-Basrah | C156: Al-Midaina | D156: Markaz Al-Midaina | E156: Badran | F156: البصرة-المدينة-البدران | G156: 30.9384589 | H156: 47.2608006 | I156: 1 | J156: 6 | K156: NA | L156: NA | M156: 0 | N156: 0 | O156: 0 | P156: 0 | Q156: 6 | R156: 0 | S156: 0 | T156: 0 | U156: 0 | V156: 0 | W156: 0 | X156: 0 | Y156: 0 | Z156: 0 | AA156: 0 | AB156: 0 | AC156: 0 | AD156: 0 | AE156: 0 | AF156: 0 | AG156: 0 | AH156: 0 | AI156: 0 | AJ156: 0 | AK156: 0 | AL156: 6 | AM156: 0 | AN156: 0 | AO156: 0 | AP156: 0 | AQ156: 0 | AR156: 0 | AS156: 6 | AT156: 0 | AU156: 0 | AV156: 0 | AW156: 0 | AX156: 0 | AY156: 0 | AZ156: 0 | BA156: 0 | BB156: 0 | BC156: 0 | BD156: =HYPERLINK("http://www.openstreetmap.org/?mlat=30.9385&mlon=47.2608&zoom=12#map=12/30.9385/47.2608","Maplink1") -> Maplink1 | BE156: =HYPERLINK("https://www.google.iq/maps/search/+30.9385,47.2608/@30.9385,47.2608,14z?hl=en","Maplink2") -> Maplink2 | BF156: =HYPERLINK("http://www.bing.com/maps/?lvl=14&sty=h&cp=30.9385~47.2608&sp=point.30.9385_47.2608","Maplink3") -> Maplink3
A157: 491 | B157: Al-Basrah | C157: Al-Midaina | D157: Markaz Al-Midaina | E157: Shuwayj | F157: ام الشويج | G157: 30.99786318 | H157: 47.28779223 | I157: 5 | J157: 30 | K157: 0 | L157: 0 | M157: 0 | N157: 0 | O157: 0 | P157: 0 | Q157: 30 | R157: 0 | S157: 0 | T157: 0 | U157: 0 | V157: 0 | W157: 0 | X157: 0 | Y157: 0 | Z157: 0 | AA157: 0 | AB157: 0 | AC157: 0 | AD157: 0 | AE157: 0 | AF157: 0 | AG157: 0 | AH157: 0 | AI157: 0 | AJ157: 0 | AK157: 0 | AL157: 0 | AM157: 0 | AN157: 30 | AO157: 0 | AP157: 0 | AQ157: 0 | AR157: 0 | AS157: 0 | AT157: 18 | AU157: 12 | AV157: 0 | AW157: 0 | AX157: 0 | AY157: 0 | AZ157: 0 | BA157: 0 | BB157: 0 | BC157: 0 | BD157: =HYPERLINK("http://www.openstreetmap.org/?mlat=30.9979&mlon=47.2878&zoom=12#map=12/30.9979/47.2878","Maplink1") -> Maplink1 | BE157: =HYPERLINK("https://www.google.iq/maps/search/+30.9979,47.2878/@30.9979,47.2878,14z?hl=en","Maplink2") -> Maplink2 | BF157: =HYPERLINK("http://www.bing.com/maps/?lvl=14&sty=h&cp=30.9979~47.2878&sp=point.30.9979_47.2878","Maplink3") -> Maplink3
A158: 1129 | B158: Al-Basrah | C158: Al-Midaina | D158: Talha | E158: Alwan | F158: مدينة-العلوان | G158: 30.9322847 | H158: 47.2757481 | I158: 1 | J158: 6 | K158: NA | L158: NA | M158: 0 | N158: 6 | O158: 0 | P158: 0 | Q158: 0 | R158: 0 | S158: 0 | T158: 0 | U158: 0 | V158: 0 | W158: 0 | X158: 0 | Y158: 0 | Z158: 0 | AA158: 0 | AB158: 0 | AC158: 0 | AD158: 0 | AE158: 0 | AF158: 0 | AG158: 0 | AH158: 0 | AI158: 0 | AJ158: 0 | AK158: 0 | AL158: 6 | AM158: 0 | AN158: 0 | AO158: 0 | AP158: 0 | AQ158: 0 | AR158: 0 | AS158: 0 | AT158: 6 | AU158: 0 | AV158: 0 | AW158: 0 | AX158: 0 | AY158: 0 | AZ158: 0 | BA158: 0 | BB158: 0 | BC158: 0 | BD158: =HYPERLINK("http://www.openstreetmap.org/?mlat=30.9323&mlon=47.2757&zoom=12#map=12/30.9323/47.2757","Maplink1") -> Maplink1 | BE158: =HYPERLINK("https://www.google.iq/maps/search/+30.9323,47.2757/@30.9323,47.2757,14z?hl=en","Maplink2") -> Maplink2 | BF158: =HYPERLINK("http://www.bing.com/maps/?lvl=14&sty=h&cp=30.9323~47.2757&sp=point.30.9323_47.2757","Maplink3") -> Maplink3
A159: 33763 | B159: Al-Basrah | C159: Al-Qurna | D159: Al-Thagar | E159: Markaz AL-Nahiya | F159: مركز الناحية | G159: 30.968056 | H159: 47.386389 | I159: 2 | J159: 12 | K159: NA | L159: NA | M159: 0 | N159: 0 | O159: 0 | P159: 0 | Q159: 12 | R159: 0 | S159: 0 | T159: 0 | U159: 0 | V159: 0 | W159: 0 | X159: 0 | Y159: 0 | Z159: 0 | AA159: 0 | AB159: 0 | AC159: 0 | AD159: 0 | AE159: 0 | AF159: 0 | AG159: 0 | AH159: 0 | AI159: 0 | AJ159: 0 | AK159: 0 | AL159: 12 | AM159: 0 | AN159: 0 | AO159: 0 | AP159: 0 | AQ159: 0 | AR159: 0 | AS159: 0 | AT159: 0 | AU159: 12 | AV159: 0 | AW159: 0 | AX159: 0 | AY159: 0 | AZ159: 0 | BA159: 0 | BB159: 0 | BC159: 0 | BD159: =HYPERLINK("http://www.openstreetmap.org/?mlat=30.9681&mlon=47.3864&zoom=12#map=12/30.9681/47.3864","Maplink1") -> Maplink1 | BE159: =HYPERLINK("https://www.google.iq/maps/search/+30.9681,47.3864/@30.9681,47.3864,14z?hl=en","Maplink2") -> Maplink2 | BF159: =HYPERLINK("http://www.bing.com/maps/?lvl=14&sty=h&cp=30.9681~47.3864&sp=point.30.9681_47.3864","Maplink3") -> Maplink3
A160: 1203 | B160: Al-Basrah | C160: Al-Qurna | D160: Markaz Al-Qurna | E160: Al-Sabeeha | F160: الصبيحة | G160: 30.98 | H160: 47.3975 | I160: 4 | J160: 24 | K160: NA | L160: NA | M160: 0 | N160: 24 | O160: 0 | P160: 0 | Q160: 0 | R160: 0 | S160: 0 | T160: 0 | U160: 0 | V160: 0 | W160: 0 | X160: 0 | Y160: 0 | Z160: 0 | AA160: 0 | AB160: 0 | AC160: 0 | AD160: 0 | AE160: 0 | AF160: 0 | AG160: 0 | AH160: 0 | AI160: 0 | AJ160: 0 | AK160: 0 | AL160: 0 | AM160: 0 | AN160: 24 | AO160: 0 | AP160: 0 | AQ160: 0 | AR160: 0 | AS160: 0 | AT160: 24 | AU160: 0 | AV160: 0 | AW160: 0 | AX160: 0 | AY160: 0 | AZ160: 0 | BA160: 0 | BB160: 0 | BC160: 0 | BD160: =HYPERLINK("http://www.openstreetmap.org/?mlat=30.98&mlon=47.3975&zoom=12#map=12/30.98/47.3975","Maplink1") -> Maplink1 | BE160: =HYPERLINK("https://www.google.iq/maps/search/+30.98,47.3975/@30.98,47.3975,14z?hl=en","Maplink2") -> Maplink2 | BF160: =HYPERLINK("http://www.bing.com/maps/?lvl=14&sty=h&cp=30.98~47.3975&sp=point.30.98_47.3975","Maplink3") -> Maplink3
A161: 25012 | B161: Al-Basrah | C161: Al-Qurna | D161: Markaz Al-Qurna | E161: Al Jelaa | F161: البصره-القرنه-الجلعه | G161: 30.97159063 | H161: 47.45333957 | I161: 9 | J161: 54 | K161: 0 | L161: 0 | M161: 0 | N161: 6 | O161: 0 | P161: 18 | Q161: 30 | R161: 0 | S161: 0 | T161: 0 | U161: 0 | V161: 0 | W161: 0 | X161: 0 | Y161: 0 | Z161: 6 | AA161: 0 | AB161: 0 | AC161: 0 | AD161: 0 | AE161: 0 | AF161: 0 | AG161: 0 | AH161: 18 | AI161: 0 | AJ161: 0 | AK161: 0 | AL161: 6 | AM161: 0 | AN161: 24 | AO161: 0 | AP161: 0 | AQ161: 0 | AR161: 6 | AS161: 6 | AT161: 18 | AU161: 12 | AV161: 12 | AW161: 0 | AX161: 0 | AY161: 0 | AZ161: 0 | BA161: 0 | BB161: 0 | BC161: 0 | BD161: =HYPERLINK("http://www.openstreetmap.org/?mlat=30.9716&mlon=47.4533&zoom=12#map=12/30.9716/47.4533","Maplink1") -> Maplink1 | BE161: =HYPERLINK("https://www.google.iq/maps/search/+30.9716,47.4533/@30.9716,47.4533,14z?hl=en","Maplink2") -> Maplink2 | BF161: =HYPERLINK("http://www.bing.com/maps/?lvl=14&sty=h&cp=30.9716~47.4533&sp=point.30.9716_47.4533","Maplink3") -> Maplink3
A162: 1251 | B162: Al-Basrah | C162: Al-Qurna | D162: Al-Thagar | E162: Al Thagar-Al-Nekhelat | F162: الثغر-النخيلات | G162: 31.12263473 | H162: 47.42534338 | I162: 4 | J162: 24 | K162: NA | L162: NA | M162: 0 | N162: 24 | O162: 0 | P162: 0 | Q162: 0 | R162: 0 | S162: 0 | T162: 0 | U162: 0 | V162: 0 | W162: 0 | X162: 0 | Y162: 0 | Z162: 0 | AA162: 24 | AB162: 0 | AC162: 0 | AD162: 0 | AE162: 0 | AF162: 0 | AG162: 0 | AH162: 0 | AI162: 0 | AJ162: 0 | AK162: 0 | AL162: 0 | AM162: 0 | AN162: 0 | AO162: 0 | AP162: 0 | AQ162: 0 | AR162: 0 | AS162: 0 | AT162: 24 | AU162: 0 | AV162: 0 | AW162: 0 | AX162: 0 | AY162: 0 | AZ162: 0 | BA162: 0 | BB162: 0 | BC162: 0 | BD162: =HYPERLINK("http://www.openstreetmap.org/?mlat=31.1226&mlon=47.4253&zoom=12#map=12/31.1226/47.4253","Maplink1") -> Maplink1 | BE162: =HYPERLINK("https://www.google.iq/maps/search/+31.1226,47.4253/@31.1226,47.4253,14z?hl=en","Maplink2") -> Maplink2 | BF162: =HYPERLINK("http://www.bing.com/maps/?lvl=14&sty=h&cp=31.1226~47.4253&sp=point.31.1226_47.4253","Maplink3") -> Maplink3
A163: 1239 | B163: Al-Basrah | C163: Al-Qurna | D163: Markaz Al-Qurna | E163: Al-mezearah | F163: القرنة-المزيرعة | G163: 31.0064472 | H163: 47.451953 | I163: 3 | J163: 18 | K163: NA | L163: NA | M163: 0 | N163: 0 | O163: 0 | P163: 0 | Q163: 18 | R163: 0 | S163: 0 | T163: 0 | U163: 0 | V163: 0 | W163: 0 | X163: 0 | Y163: 0 | Z163: 0 | AA163: 0 | AB163: 0 | AC163: 0 | AD163: 0 | AE163: 0 | AF163: 0 | AG163: 0 | AH163: 18 | AI163: 0 | AJ163: 0 | AK163: 0 | AL163: 0 | AM163: 0 | AN163: 0 | AO163: 0 | AP163: 0 | AQ163: 0 | AR163: 0 | AS163: 0 | AT163: 0 | AU163: 18 | AV163: 0 | AW163: 0 | AX163: 0 | AY163: 0 | AZ163: 0 | BA163: 0 | BB163: 0 | BC163: 0 | BD163: =HYPERLINK("http://www.openstreetmap.org/?mlat=31.0064&mlon=47.452&zoom=12#map=12/31.0064/47.452","Maplink1") -> Maplink1 | BE163: =HYPERLINK("https://www.google.iq/maps/search/+31.0064,47.452/@31.0064,47.452,14z?hl=en","Maplink2") -> Maplink2 | BF163: =HYPERLINK("http://www.bing.com/maps/?lvl=14&sty=h&cp=31.0064~47.452&sp=point.31.0064_47.452","Maplink3") -> Maplink3
A164: 1241 | B164: Al-Basrah | C164: Al-Qurna | D164: Markaz Al-Qurna | E164: Al-nehairat | F164: النهيرات | G164: 31.01992565 | H164: 47.43127376 | I164: 3 | J164: 18 | K164: NA | L164: NA | M164: 0 | N164: 0 | O164: 0 | P164: 0 | Q164: 18 | R164: 0 | S164: 0 | T164: 0 | U164: 0 | V164: 0 | W164: 0 | X164: 0 | Y164: 0 | Z164: 0 | AA164: 0 | AB164: 0 | AC164: 0 | AD164: 0 | AE164: 0 | AF164: 0 | AG164: 0 | AH164: 12 | AI164: 0 | AJ164: 0 | AK164: 0 | AL164: 6 | AM164: 0 | AN164: 0 | AO164: 0 | AP164: 0 | AQ164: 0 | AR164: 0 | AS164: 0 | AT164: 0 | AU164: 18 | AV164: 0 | AW164: 0 | AX164: 0 | AY164: 0 | AZ164: 0 | BA164: 0 | BB164: 0 | BC164: 0 | BD164: =HYPERLINK("http://www.openstreetmap.org/?mlat=31.0199&mlon=47.4313&zoom=12#map=12/31.0199/47.4313","Maplink1") -> Maplink1 | BE164: =HYPERLINK("https://www.google.iq/maps/search/+31.0199,47.4313/@31.0199,47.4313,14z?hl=en","Maplink2") -> Maplink2 | BF164: =HYPERLINK("http://www.bing.com/maps/?lvl=14&sty=h&cp=31.0199~47.4313&sp=point.31.0199_47.4313","Maplink3") -> Maplink3
A165: 1236 | B165: Al-Basrah | C165: Al-Qurna | D165: Markaz Al-Qurna | E165: Al-nesaer | F165: النصير | G165: 31.00821191 | H165: 47.4199855 | I165: 1 | J165: 6 | K165: NA | L165: NA | M165: 0 | N165: 0 | O165: 0 | P165: 0 | Q165: 6 | R165: 0 | S165: 0 | T165: 0 | U165: 0 | V165: 0 | W165: 0 | X165: 0 | Y165: 0 | Z165: 6 | AA165: 0 | AB165: 0 | AC165: 0 | AD165: 0 | AE165: 0 | AF165: 0 | AG165: 0 | AH165: 0 | AI165: 0 | AJ165: 0 | AK165: 0 | AL165: 0 | AM165: 0 | AN165: 0 | AO165: 0 | AP165: 0 | AQ165: 0 | AR165: 0 | AS165: 0 | AT165: 0 | AU165: 6 | AV165: 0 | AW165: 0 | AX165: 0 | AY165: 0 | AZ165: 0 | BA165: 0 | BB165: 0 | BC165: 0 | BD165: =HYPERLINK("http://www.openstreetmap.org/?mlat=31.0082&mlon=47.42&zoom=12#map=12/31.0082/47.42","Maplink1") -> Maplink1 | BE165: =HYPERLINK("https://www.google.iq/maps/search/+31.0082,47.42/@31.0082,47.42,14z?hl=en","Maplink2") -> Maplink2 | BF165: =HYPERLINK("http://www.bing.com/maps/?lvl=14&sty=h&cp=31.0082~47.42&sp=point.31.0082_47.42","Maplink3") -> Maplink3
A166: 1110 | B166: Al-Basrah | C166: Al-Qurna | D166: Al-Dair | E166: Al-shannanh | F166: الشنانه | G166: 30.9052966 | H166: 47.4983116 | I166: 1 | J166: 6 | K166: NA | L166: NA | M166: 0 | N166: 6 | O166: 0 | P166: 0 | Q166: 0 | R166: 0 | S166: 0 | T166: 0 | U166: 0 | V166: 0 | W166: 0 | X166: 0 | Y166: 0 | Z166: 0 | AA166: 0 | AB166: 0 | AC166: 0 | AD166: 0 | AE166: 0 | AF166: 0 | AG166: 0 | AH166: 6 | AI166: 0 | AJ166: 0 | AK166: 0 | AL166: 0 | AM166: 0 | AN166: 0 | AO166: 0 | AP166: 0 | AQ166: 0 | AR166: 0 | AS166: 0 | AT166: 0 | AU166: 6 | AV166: 0 | AW166: 0 | AX166: 0 | AY166: 0 | AZ166: 0 | BA166: 0 | BB166: 0 | BC166: 0 | BD166: =HYPERLINK("http://www.openstreetmap.org/?mlat=30.9053&mlon=47.4983&zoom=12#map=12/30.9053/47.4983","Maplink1") -> Maplink1 | BE166: =HYPERLINK("https://www.google.iq/maps/search/+30.9053,47.4983/@30.9053,47.4983,14z?hl=en","Maplink2") -> Maplink2 | BF166: =HYPERLINK("http://www.bing.com/maps/?lvl=14&sty=h&cp=30.9053~47.4983&sp=point.30.9053_47.4983","Maplink3") -> Maplink3
A167: 1240 | B167: Al-Basrah | C167: Al-Qurna | D167: Markaz Al-Qurna | E167: Hay al-juma_a | F167: البصرة-القرنة-حي جمعة | G167: 31.01618894 | H167: 47.42847747 | I167: 8 | J167: 48 | K167: 0 | L167: 0 | M167: 0 | N167: 6 | O167: 0 | P167: 12 | Q167: 30 | R167: 0 | S167: 0 | T167: 0 | U167: 0 | V167: 0 | W167: 0 | X167: 0 | Y167: 0 | Z167: 12 | AA167: 0 | AB167: 0 | AC167: 0 | AD167: 0 | AE167: 0 | AF167: 0 | AG167: 0 | AH167: 12 | AI167: 0 | AJ167: 0 | AK167: 0 | AL167: 18 | AM167: 0 | AN167: 6 | AO167: 0 | AP167: 0 | AQ167: 0 | AR167: 6 | AS167: 12 | AT167: 24 | AU167: 6 | AV167: 0 | AW167: 0 | AX167: 0 | AY167: 0 | AZ167: 0 | BA167: 0 | BB167: 0 | BC167: 0 | BD167: =HYPERLINK("http://www.openstreetmap.org/?mlat=31.0162&mlon=47.4285&zoom=12#map=12/31.0162/47.4285","Maplink1") -> Maplink1 | BE167: =HYPERLINK("https://www.google.iq/maps/search/+31.0162,47.4285/@31.0162,47.4285,14z?hl=en","Maplink2") -> Maplink2 | BF167: =HYPERLINK("http://www.bing.com/maps/?lvl=14&sty=h&cp=31.0162~47.4285&sp=point.31.0162_47.4285","Maplink3") -> Maplink3
A168: 25224 | B168: Al-Basrah | C168: Al-Qurna | D168: Al-Dair | E168: Hay Al-Rabeaa | F168: حي الربيع | G168: 30.7931509 | H168: 47.5770571 | I168: 1 | J168: 6 | K168: NA | L168: NA | M168: 0 | N168: 0 | O168: 0 | P168: 0 | Q168: 6 | R168: 0 | S168: 0 | T168: 0 | U168: 0 | V168: 0 | W168: 0 | X168: 0 | Y168: 0 | Z168: 0 | AA168: 0 | AB168: 0 | AC168: 0 | AD168: 0 | AE168: 0 | AF168: 0 | AG168: 0 | AH168: 0 | AI168: 0 | AJ168: 0 | AK168: 0 | AL168: 6 | AM168: 0 | AN168: 0 | AO168: 0 | AP168: 0 | AQ168: 0 | AR168: 0 | AS168: 0 | AT168: 0 | AU168: 6 | AV168: 0 | AW168: 0 | AX168: 0 | AY168: 0 | AZ168: 0 | BA168: 0 | BB168: 0 | BC168: 0 | BD168: =HYPERLINK("http://www.openstreetmap.org/?mlat=30.7932&mlon=47.5771&zoom=12#map=12/30.7932/47.5771","Maplink1") -> Maplink1 | BE168: =HYPERLINK("https://www.google.iq/maps/search/+30.7932,47.5771/@30.7932,47.5771,14z?hl=en","Maplink2") -> Maplink2 | BF168: =HYPERLINK("http://www.bing.com/maps/?lvl=14&sty=h&cp=30.7932~47.5771&sp=point.30.7932_47.5771","Maplink3") -> Maplink3
A169: 28406 | B169: Al-Basrah | C169: Al-Basrah | D169: Al-Hartha | E169: Al Dair-Hay Al-Amil | F169: الدير-حي العامل | G169: 30.7193883 | H169: 47.71799784 | I169: 3 | J169: 18 | K169: NA | L169: NA | M169: 0 | N169: 0 | O169: 0 | P169: 0 | Q169: 18 | R169: 0 | S169: 0 | T169: 0 | U169: 0 | V169: 0 | W169: 0 | X169: 0 | Y169: 0 | Z169: 0 | AA169: 0 | AB169: 0 | AC169: 0 | AD169: 0 | AE169: 0 | AF169: 0 | AG169: 0 | AH169: 0 | AI169: 0 | AJ169: 0 | AK169: 0 | AL169: 12 | AM169: 0 | AN169: 6 | AO169: 0 | AP169: 0 | AQ169: 0 | AR169: 0 | AS169: 0 | AT169: 6 | AU169: 6 | AV169: 0 | AW169: 6 | AX169: 0 | AY169: 0 | AZ169: 0 | BA169: 0 | BB169: 0 | BC169: 0 | BD169: =HYPERLINK("http://www.openstreetmap.org/?mlat=30.7194&mlon=47.718&zoom=12#map=12/30.7194/47.718","Maplink1") -> Maplink1 | BE169: =HYPERLINK("https://www.google.iq/maps/search/+30.7194,47.718/@30.7194,47.718,14z?hl=en","Maplink2") -> Maplink2 | BF169: =HYPERLINK("http://www.bing.com/maps/?lvl=14&sty=h&cp=30.7194~47.718&sp=point.30.7194_47.718","Maplink3") -> Maplink3
A170: 28407 | B170: Al-Basrah | C170: Al-Qurna | D170: Markaz Al-Qurna | E170: Al Sharsh Shalhat Al-Hassan | F170: الشرش-شلهة الحسن | G170: 30.96008686 | H170: 47.45673697 | I170: 5 | J170: 30 | K170: 0 | L170: 0 | M170: 0 | N170: 6 | O170: 0 | P170: 0 | Q170: 24 | R170: 0 | S170: 0 | T170: 0 | U170: 0 | V170: 0 | W170: 0 | X170: 0 | Y170: 0 | Z170: 0 | AA170: 0 | AB170: 0 | AC170: 0 | AD170: 0 | AE170: 0 | AF170: 0 | AG170: 0 | AH170: 0 | AI170: 0 | AJ170: 0 | AK170: 0 | AL170: 12 | AM170: 0 | AN170: 18 | AO170: 0 | AP170: 0 | AQ170: 0 | AR170: 0 | AS170: 12 | AT170: 12 | AU170: 6 | AV170: 0 | AW170: 0 | AX170: 0 | AY170: 0 | AZ170: 0 | BA170: 0 | BB170: 0 | BC170: 0 | BD170: =HYPERLINK("http://www.openstreetmap.org/?mlat=30.9601&mlon=47.4567&zoom=12#map=12/30.9601/47.4567","Maplink1") -> Maplink1 | BE170: =HYPERLINK("https://www.google.iq/maps/search/+30.9601,47.4567/@30.9601,47.4567,14z?hl=en","Maplink2") -> Maplink2 | BF170: =HYPERLINK("http://www.bing.com/maps/?lvl=14&sty=h&cp=30.9601~47.4567&sp=point.30.9601_47.4567","Maplink3") -> Maplink3
A171: 29577 | B171: Al-Basrah | C171: Al-Qurna | D171: Al-Dair | E171: Al Dair-Al-sharamkha | F171: الدير-الشرامخة | G171: 30.8386162 | H171: 47.545998 | I171: 2 | J171: 12 | K171: NA | L171: NA | M171: 0 | N171: 0 | O171: 0 | P171: 0 | Q171: 12 | R171: 0 | S171: 0 | T171: 0 | U171: 0 | V171: 0 | W171: 0 | X171: 0 | Y171: 0 | Z171: 0 | AA171: 0 | AB171: 0 | AC171: 0 | AD171: 0 | AE171: 12 | AF171: 0 | AG171: 0 | AH171: 0 | AI171: 0 | AJ171: 0 | AK171: 0 | AL171: 0 | AM171: 0 | AN171: 0 | AO171: 0 | AP171: 0 | AQ171: 0 | AR171: 0 | AS171: 6 | AT171: 6 | AU171: 0 | AV171: 0 | AW171: 0 | AX171: 0 | AY171: 0 | AZ171: 0 | BA171: 0 | BB171: 0 | BC171: 0 | BD171: =HYPERLINK("http://www.openstreetmap.org/?mlat=30.8386&mlon=47.546&zoom=12#map=12/30.8386/47.546","Maplink1") -> Maplink1 | BE171: =HYPERLINK("https://www.google.iq/maps/search/+30.8386,47.546/@30.8386,47.546,14z?hl=en","Maplink2") -> Maplink2 | BF171: =HYPERLINK("http://www.bing.com/maps/?lvl=14&sty=h&cp=30.8386~47.546&sp=point.30.8386_47.546","Maplink3") -> Maplink3
A172: 496 | B172: Al-Basrah | C172: Al-Qurna | D172: Al-Dair | E172: Shifia | F172: شيفيا | G172: 30.8153737 | H172: 47.5650991 | I172: 2 | J172: 12 | K172: NA | L172: NA | M172: 0 | N172: 6 | O172: 0 | P172: 0 | Q172: 6 | R172: 0 | S172: 0 | T172: 0 | U172: 0 | V172: 0 | W172: 0 | X172: 0 | Y172: 0 | Z172: 0 | AA172: 0 | AB172: 0 | AC172: 0 | AD172: 0 | AE172: 0 | AF172: 0 | AG172: 0 | AH172: 0 | AI172: 0 | AJ172: 0 | AK172: 0 | AL172: 12 | AM172: 0 | AN172: 0 | AO172: 0 | AP172: 0 | AQ172: 0 | AR172: 0 | AS172: 0 | AT172: 0 | AU172: 12 | AV172: 0 | AW172: 0 | AX172: 0 | AY172: 0 | AZ172: 0 | BA172: 0 | BB172: 0 | BC172: 0 | BD172: =HYPERLINK("http://www.openstreetmap.org/?mlat=30.8154&mlon=47.5651&zoom=12#map=12/30.8154/47.5651","Maplink1") -> Maplink1 | BE172: =HYPERLINK("https://www.google.iq/maps/search/+30.8154,47.5651/@30.8154,47.5651,14z?hl=en","Maplink2") -> Maplink2 | BF172: =HYPERLINK("http://www.bing.com/maps/?lvl=14&sty=h&cp=30.8154~47.5651&sp=point.30.8154_47.5651","Maplink3") -> Maplink3
A173: 24279 | B173: Al-Basrah | C173: Al-Zubair | D173: Markaz Al-Zubair | E173: Al Dawajin | F173: الزبير-الدواجن | G173: 30.35144349 | H173: 47.74198489 | I173: 1 | J173: 6 | K173: NA | L173: NA | M173: 0 | N173: 0 | O173: 0 | P173: 0 | Q173: 6 | R173: 0 | S173: 0 | T173: 0 | U173: 0 | V173: 0 | W173: 0 | X173: 0 | Y173: 0 | Z173: 0 | AA173: 0 | AB173: 0 | AC173: 0 | AD173: 0 | AE173: 0 | AF173: 0 | AG173: 0 | AH173: 0 | AI173: 0 | AJ173: 0 | AK173: 0 | AL173: 0 | AM173: 0 | AN173: 6 | AO173: 0 | AP173: 0 | AQ173: 0 | AR173: 0 | AS173: 6 | AT173: 0 | AU173: 0 | AV173: 0 | AW173: 0 | AX173: 0 | AY173: 0 | AZ173: 0 | BA173: 0 | BB173: 0 | BC173: 0 | BD173: =HYPERLINK("http://www.openstreetmap.org/?mlat=30.3514&mlon=47.742&zoom=12#map=12/30.3514/47.742","Maplink1") -> Maplink1 | BE173: =HYPERLINK("https://www.google.iq/maps/search/+30.3514,47.742/@30.3514,47.742,14z?hl=en","Maplink2") -> Maplink2 | BF173: =HYPERLINK("http://www.bing.com/maps/?lvl=14&sty=h&cp=30.3514~47.742&sp=point.30.3514_47.742","Maplink3") -> Maplink3
A174: 367 | B174: Al-Basrah | C174: Al-Zubair | D174: Markaz Al-Zubair | E174: Al Dirhamiyah 1 | F174: البصرة-الزبير-الدرهمية 1 | G174: 30.37768547 | H174: 47.71766546 | I174: 2 | J174: 12 | K174: NA | L174: NA | M174: 0 | N174: 0 | O174: 0 | P174: 0 | Q174: 12 | R174: 0 | S174: 0 | T174: 0 | U174: 0 | V174: 0 | W174: 0 | X174: 0 | Y174: 0 | Z174: 0 | AA174: 12 | AB174: 0 | AC174: 0 | AD174: 0 | AE174: 0 | AF174: 0 | AG174: 0 | AH174: 0 | AI174: 0 | AJ174: 0 | AK174: 0 | AL174: 0 | AM174: 0 | AN174: 0 | AO174: 0 | AP174: 0 | AQ174: 0 | AR174: 0 | AS174: 0 | AT174: 0 | AU174: 12 | AV174: 0 | AW174: 0 | AX174: 0 | AY174: 0 | AZ174: 0 | BA174: 0 | BB174: 0 | BC174: 0 | BD174: =HYPERLINK("http://www.openstreetmap.org/?mlat=30.3777&mlon=47.7177&zoom=12#map=12/30.3777/47.7177","Maplink1") -> Maplink1 | BE174: =HYPERLINK("https://www.google.iq/maps/search/+30.3777,47.7177/@30.3777,47.7177,14z?hl=en","Maplink2") -> Maplink2 | BF174: =HYPERLINK("http://www.bing.com/maps/?lvl=14&sty=h&cp=30.3777~47.7177&sp=point.30.3777_47.7177","Maplink3") -> Maplink3
A175: 24677 | B175: Al-Basrah | C175: Al-Zubair | D175: Markaz Al-Zubair | E175: Al Petro | F175: الزبير-البيترو | G175: 30.32144647 | H175: 47.72124697 | I175: 2 | J175: 12 | K175: NA | L175: NA | M175: 0 | N175: 6 | O175: 0 | P175: 0 | Q175: 6 | R175: 0 | S175: 0 | T175: 0 | U175: 0 | V175: 0 | W175: 0 | X175: 0 | Y175: 0 | Z175: 0 | AA175: 0 | AB175: 0 | AC175: 0 | AD175: 0 | AE175: 0 | AF175: 0 | AG175: 0 | AH175: 0 | AI175: 0 | AJ175: 0 | AK175: 0 | AL175: 12 | AM175: 0 | AN175: 0 | AO175: 0 | AP175: 0 | AQ175: 0 | AR175: 0 | AS175: 6 | AT175: 6 | AU175: 0 | AV175: 0 | AW175: 0 | AX175: 0 | AY175: 0 | AZ175: 0 | BA175: 0 | BB175: 0 | BC175: 0 | BD175: =HYPERLINK("http://www.openstreetmap.org/?mlat=30.3214&mlon=47.7212&zoom=12#map=12/30.3214/47.7212","Maplink1") -> Maplink1 | BE175: =HYPERLINK("https://www.google.iq/maps/search/+30.3214,47.7212/@30.3214,47.7212,14z?hl=en","Maplink2") -> Maplink2 | BF175: =HYPERLINK("http://www.bing.com/maps/?lvl=14&sty=h&cp=30.3214~47.7212&sp=point.30.3214_47.7212","Maplink3") -> Maplink3
A176: 24676 | B176: Al-Basrah | C176: Al-Zubair | D176: Markaz Al-Zubair | E176: Al Rumilah Al Shamaliyah | F176: البصرة-الزبير-الرميلة الشمالية | G176: 30.56032993 | H176: 47.37281607 | I176: 1 | J176: 6 | K176: NA | L176: NA | M176: 0 | N176: 0 | O176: 0 | P176: 0 | Q176: 6 | R176: 0 | S176: 0 | T176: 0 | U176: 0 | V176: 0 | W176: 0 | X176: 0 | Y176: 0 | Z176: 0 | AA176: 0 | AB176: 0 | AC176: 0 | AD176: 0 | AE176: 0 | AF176: 0 | AG176: 0 | AH176: 0 | AI176: 0 | AJ176: 0 | AK176: 0 | AL176: 6 | AM176: 0 | AN176: 0 | AO176: 0 | AP176: 0 | AQ176: 0 | AR176: 0 | AS176: 0 | AT176: 0 | AU176: 6 | AV176: 0 | AW176: 0 | AX176: 0 | AY176: 0 | AZ176: 0 | BA176: 0 | BB176: 0 | BC176: 0 | BD176: =HYPERLINK("http://www.openstreetmap.org/?mlat=30.5603&mlon=47.3728&zoom=12#map=12/30.5603/47.3728","Maplink1") -> Maplink1 | BE176: =HYPERLINK("https://www.google.iq/maps/search/+30.5603,47.3728/@30.5603,47.3728,14z?hl=en","Maplink2") -> Maplink2 | BF176: =HYPERLINK("http://www.bing.com/maps/?lvl=14&sty=h&cp=30.5603~47.3728&sp=point.30.5603_47.3728","Maplink3") -> Maplink3
A177: 509 | B177: Al-Basrah | C177: Al-Zubair | D177: Markaz Al-Zubair | E177: Al-Shemal Area | F177: البصرة-الزبير-محلة الشمال | G177: 30.39802412 | H177: 47.70896595 | I177: 42 | J177: 252 | K177: 0 | L177: 0 | M177: 0 | N177: 36 | O177: 0 | P177: 0 | Q177: 216 | R177: 0 | S177: 0 | T177: 0 | U177: 0 | V177: 0 | W177: 0 | X177: 0 | Y177: 0 | Z177: 30 | AA177: 0 | AB177: 0 | AC177: 0 | AD177: 0 | AE177: 0 | AF177: 0 | AG177: 0 | AH177: 0 | AI177: 0 | AJ177: 0 | AK177: 0 | AL177: 48 | AM177: 0 | AN177: 174 | AO177: 0 | AP177: 0 | AQ177: 0 | AR177: 48 | AS177: 54 | AT177: 42 | AU177: 66 | AV177: 0 | AW177: 18 | AX177: 24 | AY177: 0 | AZ177: 0 | BA177: 0 | BB177: 0 | BC177: 0 | BD177: =HYPERLINK("http://www.openstreetmap.org/?mlat=30.398&mlon=47.709&zoom=12#map=12/30.398/47.709","Maplink1") -> Maplink1 | BE177: =HYPERLINK("https://www.google.iq/maps/search/+30.398,47.709/@30.398,47.709,14z?hl=en","Maplink2") -> Maplink2 | BF177: =HYPERLINK("http://www.bing.com/maps/?lvl=14&sty=h&cp=30.398~47.709&sp=point.30.398_47.709","Maplink3") -> Maplink3
A178: 1281 | B178: Al-Basrah | C178: Al-Zubair | D178: Markaz Al-Zubair | E178: Al-Dur Al-Jahiza | F178: البصرة-الزبير-دور الجاهزة | G178: 30.38825927 | H178: 47.71450805 | I178: 2 | J178: 12 | K178: NA | L178: NA | M178: 0 | N178: 0 | O178: 0 | P178: 6 | Q178: 6 | R178: 0 | S178: 0 | T178: 0 | U178: 0 | V178: 0 | W178: 0 | X178: 0 | Y178: 0 | Z178: 6 | AA178: 0 | AB178: 0 | AC178: 0 | AD178: 0 | AE178: 0 | AF178: 0 | AG178: 0 | AH178: 0 | AI178: 0 | AJ178: 0 | AK178: 0 | AL178: 0 | AM178: 0 | AN178: 6 | AO178: 0 | AP178: 0 | AQ178: 0 | AR178: 0 | AS178: 0 | AT178: 0 | AU178: 6 | AV178: 6 | AW178: 0 | AX178: 0 | AY178: 0 | AZ178: 0 | BA178: 0 | BB178: 0 | BC178: 0 | BD178: =HYPERLINK("http://www.openstreetmap.org/?mlat=30.3883&mlon=47.7145&zoom=12#map=12/30.3883/47.7145","Maplink1") -> Maplink1 | BE178: =HYPERLINK("https://www.google.iq/maps/search/+30.3883,47.7145/@30.3883,47.7145,14z?hl=en","Maplink2") -> Maplink2 | BF178: =HYPERLINK("http://www.bing.com/maps/?lvl=14&sty=h&cp=30.3883~47.7145&sp=point.30.3883_47.7145","Maplink3") -> Maplink3
A179: 767 | B179: Al-Basrah | C179: Al-Zubair | D179: Markaz Al-Zubair | E179: Al-jamhoriyah al-olah | F179: البصرة-الزبير-الجمهورية 1 | G179: 30.39070205 | H179: 47.70858462 | I179: 6 | J179: 36 | K179: 0 | L179: 0 | M179: 0 | N179: 0 | O179: 0 | P179: 0 | Q179: 36 | R179: 0 | S179: 0 | T179: 0 | U179: 0 | V179: 0 | W179: 0 | X179: 0 | Y179: 0 | Z179: 12 | AA179: 0 | AB179: 0 | AC179: 0 | AD179: 0 | AE179: 0 | AF179: 0 | AG179: 0 | AH179: 0 | AI179: 0 | AJ179: 0 | AK179: 0 | AL179: 0 | AM179: 0 | AN179: 24 | AO179: 0 | AP179: 0 | AQ179: 0 | AR179: 0 | AS179: 0 | AT179: 6 | AU179: 30 | AV179: 0 | AW179: 0 | AX179: 0 | AY179: 0 | AZ179: 0 | BA179: 0 | BB179: 0 | BC179: 0 | BD179: =HYPERLINK("http://www.openstreetmap.org/?mlat=30.3907&mlon=47.7086&zoom=12#map=12/30.3907/47.7086","Maplink1") -> Maplink1 | BE179: =HYPERLINK("https://www.google.iq/maps/search/+30.3907,47.7086/@30.3907,47.7086,14z?hl=en","Maplink2") -> Maplink2 | BF179: =HYPERLINK("http://www.bing.com/maps/?lvl=14&sty=h&cp=30.3907~47.7086&sp=point.30.3907_47.7086","Maplink3") -> Maplink3
A180: 760 | B180: Al-Basrah | C180: Al-Zubair | D180: Markaz Al-Zubair | E180: Al-jamhoriyah al-thaniyah | F180: الجمهورية 2 | G180: 30.38889391 | H180: 47.71382996 | I180: 10 | J180: 60 | K180: 0 | L180: 0 | M180: 0 | N180: 0 | O180: 0 | P180: 0 | Q180: 60 | R180: 0 | S180: 0 | T180: 0 | U180: 0 | V180: 0 | W180: 0 | X180: 0 | Y180: 0 | Z180: 42 | AA180: 0 | AB180: 0 | AC180: 0 | AD180: 0 | AE180: 0 | AF180: 0 | AG180: 0 | AH180: 0 | AI180: 0 | AJ180: 0 | AK180: 0 | AL180: 0 | AM180: 0 | AN180: 18 | AO180: 0 | AP180: 0 | AQ180: 0 | AR180: 0 | AS180: 0 | AT180: 12 | AU180: 36 | AV180: 12 | AW180: 0 | AX180: 0 | AY180: 0 | AZ180: 0 | BA180: 0 | BB180: 0 | BC180: 0 | BD180: =HYPERLINK("http://www.openstreetmap.org/?mlat=30.3889&mlon=47.7138&zoom=12#map=12/30.3889/47.7138","Maplink1") -> Maplink1 | BE180: =HYPERLINK("https://www.google.iq/maps/search/+30.3889,47.7138/@30.3889,47.7138,14z?hl=en","Maplink2") -> Maplink2 | BF180: =HYPERLINK("http://www.bing.com/maps/?lvl=14&sty=h&cp=30.3889~47.7138&sp=point.30.3889_47.7138","Maplink3") -> Maplink3
A181: 757 | B181: Al-Basrah | C181: Al-Zubair | D181: Markaz Al-Zubair | E181: Al-marbed al-kadeem | F181: المربد القديم | G181: 30.3864505 | H181: 47.68747473 | I181: 2 | J181: 12 | K181: NA | L181: NA | M181: 0 | N181: 0 | O181: 0 | P181: 0 | Q181: 12 | R181: 0 | S181: 0 | T181: 0 | U181: 0 | V181: 0 | W181: 0 | X181: 0 | Y181: 0 | Z181: 6 | AA181: 0 | AB181: 0 | AC181: 0 | AD181: 0 | AE181: 0 | AF181: 0 | AG181: 0 | AH181: 0 | AI181: 0 | AJ181: 0 | AK181: 0 | AL181: 6 | AM181: 0 | AN181: 0 | AO181: 0 | AP181: 0 | AQ181: 0 | AR181: 0 | AS181: 6 | AT181: 0 | AU181: 0 | AV181: 0 | AW181: 0 | AX181: 6 | AY181: 0 | AZ181: 0 | BA181: 0 | BB181: 0 | BC181: 0 | BD181: =HYPERLINK("http://www.openstreetmap.org/?mlat=30.3865&mlon=47.6875&zoom=12#map=12/30.3865/47.6875","Maplink1") -> Maplink1 | BE181: =HYPERLINK("https://www.google.iq/maps/search/+30.3865,47.6875/@30.3865,47.6875,14z?hl=en","Maplink2") -> Maplink2 | BF181: =HYPERLINK("http://www.bing.com/maps/?lvl=14&sty=h&cp=30.3865~47.6875&sp=point.30.3865_47.6875","Maplink3") -> Maplink3
A182: 779 | B182: Al-Basrah | C182: Al-Zubair | D182: Markaz Al-Zubair | E182: Al-Rasheidiyah Alolh | F182: البصرة-الزبير-الرشيدية 1 | G182: 30.39688906 | H182: 47.70189995 | I182: 17 | J182: 102 | K182: 0 | L182: 0 | M182: 0 | N182: 6 | O182: 0 | P182: 0 | Q182: 96 | R182: 0 | S182: 0 | T182: 0 | U182: 0 | V182: 0 | W182: 0 | X182: 0 | Y182: 0 | Z182: 6 | AA182: 0 | AB182: 0 | AC182: 0 | AD182: 0 | AE182: 6 | AF182: 0 | AG182: 0 | AH182: 0 | AI182: 0 | AJ182: 0 | AK182: 0 | AL182: 18 | AM182: 0 | AN182: 72 | AO182: 0 | AP182: 0 | AQ182: 0 | AR182: 6 | AS182: 6 | AT182: 6 | AU182: 84 | AV182: 0 | AW182: 0 | AX182: 0 | AY182: 0 | AZ182: 0 | BA182: 0 | BB182: 0 | BC182: 0 | BD182: =HYPERLINK("http://www.openstreetmap.org/?mlat=30.3969&mlon=47.7019&zoom=12#map=12/30.3969/47.7019","Maplink1") -> Maplink1 | BE182: =HYPERLINK("https://www.google.iq/maps/search/+30.3969,47.7019/@30.3969,47.7019,14z?hl=en","Maplink2") -> Maplink2 | BF182: =HYPERLINK("http://www.bing.com/maps/?lvl=14&sty=h&cp=30.3969~47.7019&sp=point.30.3969_47.7019","Maplink3") -> Maplink3
A183: 764 | B183: Al-Basrah | C183: Al-Zubair | D183: Markaz Al-Zubair | E183: Al-rasheidiyah al-thaniyah | F183: البصرة-الزبير-الرشيدية 2 | G183: 30.39349292 | H183: 47.70441251 | I183: 5 | J183: 30 | K183: 0 | L183: 0 | M183: 0 | N183: 0 | O183: 0 | P183: 0 | Q183: 30 | R183: 0 | S183: 0 | T183: 0 | U183: 0 | V183: 0 | W183: 0 | X183: 0 | Y183: 0 | Z183: 18 | AA183: 0 | AB183: 0 | AC183: 0 | AD183: 0 | AE183: 0 | AF183: 0 | AG183: 0 | AH183: 6 | AI183: 0 | AJ183: 0 | AK183: 0 | AL183: 6 | AM183: 0 | AN183: 0 | AO183: 0 | AP183: 0 | AQ183: 0 | AR183: 0 | AS183: 0 | AT183: 6 | AU183: 12 | AV183: 6 | AW183: 0 | AX183: 6 | AY183: 0 | AZ183: 0 | BA183: 0 | BB183: 0 | BC183: 0 | BD183: =HYPERLINK("http://www.openstreetmap.org/?mlat=30.3935&mlon=47.7044&zoom=12#map=12/30.3935/47.7044","Maplink1") -> Maplink1 | BE183: =HYPERLINK("https://www.google.iq/maps/search/+30.3935,47.7044/@30.3935,47.7044,14z?hl=en","Maplink2") -> Maplink2 | BF183: =HYPERLINK("http://www.bing.com/maps/?lvl=14&sty=h&cp=30.3935~47.7044&sp=point.30.3935_47.7044","Maplink3") -> Maplink3
A184: 25463 | B184: Al-Basrah | C184: Al-Zubair | D184: Markaz Al-Zubair | E184: Al-Shuaiba Hay Al-Murtadh | F184: الشعيبة حي المرتضى | G184: 30.42955779 | H184: 47.67909692 | I184: 8 | J184: 48 | K184: 0 | L184: 0 | M184: 0 | N184: 0 | O184: 0 | P184: 0 | Q184: 48 | R184: 0 | S184: 0 | T184: 0 | U184: 0 | V184: 0 | W184: 0 | X184: 0 | Y184: 0 | Z184: 6 | AA184: 0 | AB184: 0 | AC184: 0 | AD184: 0 | AE184: 0 | AF184: 0 | AG184: 0 | AH184: 24 | AI184: 0 | AJ184: 0 | AK184: 0 | AL184: 18 | AM184: 0 | AN184: 0 | AO184: 0 | AP184: 0 | AQ184: 0 | AR184: 0 | AS184: 0 | AT184: 0 | AU184: 48 | AV184: 0 | AW184: 0 | AX184: 0 | AY184: 0 | AZ184: 0 | BA184: 0 | BB184: 0 | BC184: 0 | BD184: =HYPERLINK("http://www.openstreetmap.org/?mlat=30.4296&mlon=47.6791&zoom=12#map=12/30.4296/47.6791","Maplink1") -> Maplink1 | BE184: =HYPERLINK("https://www.google.iq/maps/search/+30.4296,47.6791/@30.4296,47.6791,14z?hl=en","Maplink2") -> Maplink2 | BF184: =HYPERLINK("http://www.bing.com/maps/?lvl=14&sty=h&cp=30.4296~47.6791&sp=point.30.4296_47.6791","Maplink3") -> Maplink3
A185: 1312 | B185: Al-Basrah | C185: Al-Zubair | D185: Markaz Al-Zubair | E185: Al-Zubair Hay AlAthar | F185: البصرة-الزبير-حي الاثار | G185: 30.39683799 | H185: 47.71799905 | I185: 1 | J185: 6 | K185: NA | L185: NA | M185: 0 | N185: 0 | O185: 0 | P185: 0 | Q185: 6 | R185: 0 | S185: 0 | T185: 0 | U185: 0 | V185: 0 | W185: 0 | X185: 0 | Y185: 0 | Z185: 0 | AA185: 6 | AB185: 0 | AC185: 0 | AD185: 0 | AE185: 0 | AF185: 0 | AG185: 0 | AH185: 0 | AI185: 0 | AJ185: 0 | AK185: 0 | AL185: 0 | AM185: 0 | AN185: 0 | AO185: 0 | AP185: 0 | AQ185: 0 | AR185: 0 | AS185: 6 | AT185: 0 | AU185: 0 | AV185: 0 | AW185: 0 | AX185: 0 | AY185: 0 | AZ185: 0 | BA185: 0 | BB185: 0 | BC185: 0 | BD185: =HYPERLINK("http://www.openstreetmap.org/?mlat=30.3968&mlon=47.718&zoom=12#map=12/30.3968/47.718","Maplink1") -> Maplink1 | BE185: =HYPERLINK("https://www.google.iq/maps/search/+30.3968,47.718/@30.3968,47.718,14z?hl=en","Maplink2") -> Maplink2 | BF185: =HYPERLINK("http://www.bing.com/maps/?lvl=14&sty=h&cp=30.3968~47.718&sp=point.30.3968_47.718","Maplink3") -> Maplink3
A186: 651 | B186: Al-Basrah | C186: Al-Zubair | D186: Um Qasr | E186: Door al-farook | F186: حي الفاروق | G186: 30.0371919 | H186: 47.9160836 | I186: 1 | J186: 6 | K186: NA | L186: NA | M186: 0 | N186: 0 | O186: 0 | P186: 0 | Q186: 6 | R186: 0 | S186: 0 | T186: 0 | U186: 0 | V186: 0 | W186: 0 | X186: 0 | Y186: 0 | Z186: 6 | AA186: 0 | AB186: 0 | AC186: 0 | AD186: 0 | AE186: 0 | AF186: 0 | AG186: 0 | AH186: 0 | AI186: 0 | AJ186: 0 | AK186: 0 | AL186: 0 | AM186: 0 | AN186: 0 | AO186: 0 | AP186: 0 | AQ186: 0 | AR186: 0 | AS186: 0 | AT186: 0 | AU186: 0 | AV186: 6 | AW186: 0 | AX186: 0 | AY186: 0 | AZ186: 0 | BA186: 0 | BB186: 0 | BC186: 0 | BD186: =HYPERLINK("http://www.openstreetmap.org/?mlat=30.0372&mlon=47.9161&zoom=12#map=12/30.0372/47.9161","Maplink1") -> Maplink1 | BE186: =HYPERLINK("https://www.google.iq/maps/search/+30.0372,47.9161/@30.0372,47.9161,14z?hl=en","Maplink2") -> Maplink2 | BF186: =HYPERLINK("http://www.bing.com/maps/?lvl=14&sty=h&cp=30.0372~47.9161&sp=point.30.0372_47.9161","Maplink3") -> Maplink3
A187: 1277 | B187: Al-Basrah | C187: Al-Zubair | D187: Markaz Al-Zubair | E187: Hay Al Hussain | F187: البصرة-الزبير-حي الحسين | G187: 30.37694328 | H187: 47.72909537 | I187: 8 | J187: 48 | K187: 0 | L187: 0 | M187: 0 | N187: 0 | O187: 0 | P187: 30 | Q187: 18 | R187: 0 | S187: 0 | T187: 0 | U187: 0 | V187: 0 | W187: 0 | X187: 0 | Y187: 0 | Z187: 6 | AA187: 0 | AB187: 0 | AC187: 0 | AD187: 0 | AE187: 0 | AF187: 0 | AG187: 0 | AH187: 12 | AI187: 0 | AJ187: 0 | AK187: 0 | AL187: 24 | AM187: 0 | AN187: 6 | AO187: 0 | AP187: 0 | AQ187: 0 | AR187: 0 | AS187: 6 | AT187: 6 | AU187: 18 | AV187: 6 | AW187: 0 | AX187: 12 | AY187: 0 | AZ187: 0 | BA187: 0 | BB187: 0 | BC187: 0 | BD187: =HYPERLINK("http://www.openstreetmap.org/?mlat=30.3769&mlon=47.7291&zoom=12#map=12/30.3769/47.7291","Maplink1") -> Maplink1 | BE187: =HYPERLINK("https://www.google.iq/maps/search/+30.3769,47.7291/@30.3769,47.7291,14z?hl=en","Maplink2") -> Maplink2 | BF187: =HYPERLINK("http://www.bing.com/maps/?lvl=14&sty=h&cp=30.3769~47.7291&sp=point.30.3769_47.7291","Maplink3") -> Maplink3
A188: 1311 | B188: Al-Basrah | C188: Al-Zubair | D188: Markaz Al-Zubair | E188: Hay Al Sajad | F188: حي السجاد | G188: 30.38376186 | H188: 47.71994148 | I188: 5 | J188: 30 | K188: 0 | L188: 0 | M188: 0 | N188: 6 | O188: 0 | P188: 0 | Q188: 24 | R188: 0 | S188: 0 | T188: 0 | U188: 0 | V188: 0 | W188: 0 | X188: 0 | Y188: 0 | Z188: 18 | AA188: 0 | AB188: 0 | AC188: 0 | AD188: 0 | AE188: 6 | AF188: 0 | AG188: 0 | AH188: 0 | AI188: 0 | AJ188: 0 | AK188: 0 | AL188: 6 | AM188: 0 | AN188: 0 | AO188: 0 | AP188: 0 | AQ188: 0 | AR188: 12 | AS188: 6 | AT188: 0 | AU188: 6 | AV188: 0 | AW188: 0 | AX188: 6 | AY188: 0 | AZ188: 0 | BA188: 0 | BB188: 0 | BC188: 0 | BD188: =HYPERLINK("http://www.openstreetmap.org/?mlat=30.3838&mlon=47.7199&zoom=12#map=12/30.3838/47.7199","Maplink1") -> Maplink1 | BE188: =HYPERLINK("https://www.google.iq/maps/search/+30.3838,47.7199/@30.3838,47.7199,14z?hl=en","Maplink2") -> Maplink2 | BF188: =HYPERLINK("http://www.bing.com/maps/?lvl=14&sty=h&cp=30.3838~47.7199&sp=point.30.3838_47.7199","Maplink3") -> Maplink3
A189: 25225 | B189: Al-Basrah | C189: Al-Zubair | D189: Markaz Al-Zubair | E189: Hay Alansar 1 | F189: البصرة-الزبير-حي الانصار 1 | G189: 30.36367558 | H189: 47.71916385 | I189: 4 | J189: 24 | K189: NA | L189: NA | M189: 0 | N189: 6 | O189: 0 | P189: 0 | Q189: 18 | R189: 0 | S189: 0 | T189: 0 | U189: 0 | V189: 0 | W189: 0 | X189: 0 | Y189: 0 | Z189: 0 | AA189: 0 | AB189: 0 | AC189: 0 | AD189: 0 | AE189: 0 | AF189: 0 | AG189: 0 | AH189: 6 | AI189: 0 | AJ189: 0 | AK189: 0 | AL189: 0 | AM189: 0 | AN189: 18 | AO189: 0 | AP189: 0 | AQ189: 0 | AR189: 0 | AS189: 12 | AT189: 12 | AU189: 0 | AV189: 0 | AW189: 0 | AX189: 0 | AY189: 0 | AZ189: 0 | BA189: 0 | BB189: 0 | BC189: 0 | BD189: =HYPERLINK("http://www.openstreetmap.org/?mlat=30.3637&mlon=47.7192&zoom=12#map=12/30.3637/47.7192","Maplink1") -> Maplink1 | BE189: =HYPERLINK("https://www.google.iq/maps/search/+30.3637,47.7192/@30.3637,47.7192,14z?hl=en","Maplink2") -> Maplink2 | BF189: =HYPERLINK("http://www.bing.com/maps/?lvl=14&sty=h&cp=30.3637~47.7192&sp=point.30.3637_47.7192","Maplink3") -> Maplink3
A190: 25226 | B190: Al-Basrah | C190: Al-Zubair | D190: Markaz Al-Zubair | E190: Hay Alansar 2 | F190: البصرة-الزبير-حي الانصار2 | G190: 30.3591869 | H190: 47.71886643 | I190: 4 | J190: 24 | K190: NA | L190: NA | M190: 0 | N190: 0 | O190: 0 | P190: 0 | Q190: 24 | R190: 0 | S190: 0 | T190: 0 | U190: 0 | V190: 0 | W190: 0 | X190: 0 | Y190: 0 | Z190: 6 | AA190: 0 | AB190: 0 | AC190: 0 | AD190: 0 | AE190: 0 | AF190: 0 | AG190: 0 | AH190: 0 | AI190: 0 | AJ190: 0 | AK190: 0 | AL190: 0 | AM190: 0 | AN190: 18 | AO190: 0 | AP190: 0 | AQ190: 0 | AR190: 12 | AS190: 0 | AT190: 0 | AU190: 6 | AV190: 6 | AW190: 0 | AX190: 0 | AY190: 0 | AZ190: 0 | BA190: 0 | BB190: 0 | BC190: 0 | BD190: =HYPERLINK("http://www.openstreetmap.org/?mlat=30.3592&mlon=47.7189&zoom=12#map=12/30.3592/47.7189","Maplink1") -> Maplink1 | BE190: =HYPERLINK("https://www.google.iq/maps/search/+30.3592,47.7189/@30.3592,47.7189,14z?hl=en","Maplink2") -> Maplink2 | BF190: =HYPERLINK("http://www.bing.com/maps/?lvl=14&sty=h&cp=30.3592~47.7189&sp=point.30.3592_47.7189","Maplink3") -> Maplink3
A191: 25227 | B191: Al-Basrah | C191: Al-Zubair | D191: Markaz Al-Zubair | E191: Hay Alansar 3 | F191: البصرة-الزبير-حي الانصار3 | G191: 30.36156456 | H191: 47.72375075 | I191: 2 | J191: 12 | K191: NA | L191: NA | M191: 0 | N191: 0 | O191: 0 | P191: 0 | Q191: 12 | R191: 0 | S191: 0 | T191: 0 | U191: 0 | V191: 0 | W191: 0 | X191: 0 | Y191: 0 | Z191: 12 | AA191: 0 | AB191: 0 | AC191: 0 | AD191: 0 | AE191: 0 | AF191: 0 | AG191: 0 | AH191: 0 | AI191: 0 | AJ191: 0 | AK191: 0 | AL191: 0 | AM191: 0 | AN191: 0 | AO191: 0 | AP191: 0 | AQ191: 0 | AR191: 0 | AS191: 12 | AT191: 0 | AU191: 0 | AV191: 0 | AW191: 0 | AX191: 0 | AY191: 0 | AZ191: 0 | BA191: 0 | BB191: 0 | BC191: 0 | BD191: =HYPERLINK("http://www.openstreetmap.org/?mlat=30.3616&mlon=47.7238&zoom=12#map=12/30.3616/47.7238","Maplink1") -> Maplink1 | BE191: =HYPERLINK("https://www.google.iq/maps/search/+30.3616,47.7238/@30.3616,47.7238,14z?hl=en","Maplink2") -> Maplink2 | BF191: =HYPERLINK("http://www.bing.com/maps/?lvl=14&sty=h&cp=30.3616~47.7238&sp=point.30.3616_47.7238","Maplink3") -> Maplink3
A192: 24229 | B192: Al-Basrah | C192: Al-Zubair | D192: Markaz Al-Zubair | E192: Hay Al-hakim 2 | F192: البصرة-الزبير-حي الحكيم-2 | G192: 30.3810332 | H192: 47.70744616 | I192: 4 | J192: 24 | K192: NA | L192: NA | M192: 0 | N192: 0 | O192: 0 | P192: 6 | Q192: 18 | R192: 0 | S192: 0 | T192: 0 | U192: 0 | V192: 0 | W192: 0 | X192: 0 | Y192: 0 | Z192: 6 | AA192: 0 | AB192: 12 | AC192: 0 | AD192: 0 | AE192: 0 | AF192: 0 | AG192: 0 | AH192: 0 | AI192: 0 | AJ192: 0 | AK192: 0 | AL192: 0 | AM192: 0 | AN192: 6 | AO192: 0 | AP192: 0 | AQ192: 0 | AR192: 12 | AS192: 6 | AT192: 6 | AU192: 0 | AV192: 0 | AW192: 0 | AX192: 0 | AY192: 0 | AZ192: 0 | BA192: 0 | BB192: 0 | BC192: 0 | BD192: =HYPERLINK("http://www.openstreetmap.org/?mlat=30.381&mlon=47.7074&zoom=12#map=12/30.381/47.7074","Maplink1") -> Maplink1 | BE192: =HYPERLINK("https://www.google.iq/maps/search/+30.381,47.7074/@30.381,47.7074,14z?hl=en","Maplink2") -> Maplink2 | BF192: =HYPERLINK("http://www.bing.com/maps/?lvl=14&sty=h&cp=30.381~47.7074&sp=point.30.381_47.7074","Maplink3") -> Maplink3
A193: 23898 | B193: Al-Basrah | C193: Al-Zubair | D193: Markaz Al-Zubair | E193: khor Al Zubair-Hay AL Hasan | F193: البصرة-الزبير-خور الزبير-حي الحسن | G193: 30.23374465 | H193: 47.76255718 | I193: 1 | J193: 6 | K193: NA | L193: NA | M193: 0 | N193: 0 | O193: 0 | P193: 0 | Q193: 6 | R193: 0 | S193: 0 | T193: 0 | U193: 0 | V193: 0 | W193: 0 | X193: 0 | Y193: 0 | Z193: 6 | AA193: 0 | AB193: 0 | AC193: 0 | AD193: 0 | AE193: 0 | AF193: 0 | AG193: 0 | AH193: 0 | AI193: 0 | AJ193: 0 | AK193: 0 | AL193: 0 | AM193: 0 | AN193: 0 | AO193: 0 | AP193: 0 | AQ193: 0 | AR193: 0 | AS193: 0 | AT193: 0 | AU193: 6 | AV193: 0 | AW193: 0 | AX193: 0 | AY193: 0 | AZ193: 0 | BA193: 0 | BB193: 0 | BC193: 0 | BD193: =HYPERLINK("http://www.openstreetmap.org/?mlat=30.2337&mlon=47.7626&zoom=12#map=12/30.2337/47.7626","Maplink1") -> Maplink1 | BE193: =HYPERLINK("https://www.google.iq/maps/search/+30.2337,47.7626/@30.2337,47.7626,14z?hl=en","Maplink2") -> Maplink2 | BF193: =HYPERLINK("http://www.bing.com/maps/?lvl=14&sty=h&cp=30.2337~47.7626&sp=point.30.2337_47.7626","Maplink3") -> Maplink3
A194: 23976 | B194: Al-Basrah | C194: Al-Zubair | D194: Markaz Al-Zubair | E194: Mahalat Al-Arab | F194: البصرة-الزبير-محلة العرب | G194: 30.39560921 | H194: 47.69201569 | I194: 25 | J194: 150 | K194: 0 | L194: 0 | M194: 0 | N194: 24 | O194: 0 | P194: 0 | Q194: 126 | R194: 0 | S194: 0 | T194: 0 | U194: 0 | V194: 0 | W194: 0 | X194: 0 | Y194: 0 | Z194: 54 | AA194: 0 | AB194: 0 | AC194: 0 | AD194: 0 | AE194: 0 | AF194: 0 | AG194: 0 | AH194: 6 | AI194: 0 | AJ194: 0 | AK194: 0 | AL194: 30 | AM194: 0 | AN194: 60 | AO194: 0 | AP194: 0 | AQ194: 0 | AR194: 0 | AS194: 42 | AT194: 12 | AU194: 18 | AV194: 60 | AW194: 0 | AX194: 18 | AY194: 0 | AZ194: 0 | BA194: 0 | BB194: 0 | BC194: 0 | BD194: =HYPERLINK("http://www.openstreetmap.org/?mlat=30.3956&mlon=47.692&zoom=12#map=12/30.3956/47.692","Maplink1") -> Maplink1 | BE194: =HYPERLINK("https://www.google.iq/maps/search/+30.3956,47.692/@30.3956,47.692,14z?hl=en","Maplink2") -> Maplink2 | BF194: =HYPERLINK("http://www.bing.com/maps/?lvl=14&sty=h&cp=30.3956~47.692&sp=point.30.3956_47.692","Maplink3") -> Maplink3
A195: 25018 | B195: Al-Basrah | C195: Al-Zubair | D195: Safwan | E195: Safwan-Hay Al Risala | F195: سفوان-حي الرساله | G195: 30.11608892 | H195: 47.71777412 | I195: 3 | J195: 18 | K195: NA | L195: NA | M195: 0 | N195: 0 | O195: 0 | P195: 0 | Q195: 18 | R195: 0 | S195: 0 | T195: 0 | U195: 0 | V195: 0 | W195: 0 | X195: 0 | Y195: 0 | Z195: 6 | AA195: 0 | AB195: 0 | AC195: 0 | AD195: 0 | AE195: 0 | AF195: 0 | AG195: 0 | AH195: 0 | AI195: 0 | AJ195: 0 | AK195: 0 | AL195: 0 | AM195: 0 | AN195: 12 | AO195: 0 | AP195: 0 | AQ195: 0 | AR195: 6 | AS195: 0 | AT195: 0 | AU195: 12 | AV195: 0 | AW195: 0 | AX195: 0 | AY195: 0 | AZ195: 0 | BA195: 0 | BB195: 0 | BC195: 0 | BD195: =HYPERLINK("http://www.openstreetmap.org/?mlat=30.1161&mlon=47.7178&zoom=12#map=12/30.1161/47.7178","Maplink1") -> Maplink1 | BE195: =HYPERLINK("https://www.google.iq/maps/search/+30.1161,47.7178/@30.1161,47.7178,14z?hl=en","Maplink2") -> Maplink2 | BF195: =HYPERLINK("http://www.bing.com/maps/?lvl=14&sty=h&cp=30.1161~47.7178&sp=point.30.1161_47.7178","Maplink3") -> Maplink3
A196: 25015 | B196: Al-Basrah | C196: Al-Zubair | D196: Safwan | E196: Safwan-Hay Al Tahreer | F196: سفوان-حي التحرير | G196: 30.11366812 | H196: 47.71533152 | I196: 1 | J196: 6 | K196: NA | L196: NA | M196: 0 | N196: 6 | O196: 0 | P196: 0 | Q196: 0 | R196: 0 | S196: 0 | T196: 0 | U196: 0 | V196: 0 | W196: 0 | X196: 0 | Y196: 0 | Z196: 0 | AA196: 0 | AB196: 0 | AC196: 0 | AD196: 0 | AE196: 0 | AF196: 0 | AG196: 0 | AH196: 0 | AI196: 0 | AJ196: 0 | AK196: 0 | AL196: 6 | AM196: 0 | AN196: 0 | AO196: 0 | AP196: 0 | AQ196: 0 | AR196: 0 | AS196: 0 | AT196: 6 | AU196: 0 | AV196: 0 | AW196: 0 | AX196: 0 | AY196: 0 | AZ196: 0 | BA196: 0 | BB196: 0 | BC196: 0 | BD196: =HYPERLINK("http://www.openstreetmap.org/?mlat=30.1137&mlon=47.7153&zoom=12#map=12/30.1137/47.7153","Maplink1") -> Maplink1 | BE196: =HYPERLINK("https://www.google.iq/maps/search/+30.1137,47.7153/@30.1137,47.7153,14z?hl=en","Maplink2") -> Maplink2 | BF196: =HYPERLINK("http://www.bing.com/maps/?lvl=14&sty=h&cp=30.1137~47.7153&sp=point.30.1137_47.7153","Maplink3") -> Maplink3
A197: 25462 | B197: Al-Basrah | C197: Al-Zubair | D197: Markaz Al-Zubair | E197: Village Al-Nakheel Al-Asria | F197: قرية النخيل العصرية | G197: 30.35660357 | H197: 47.71733993 | I197: 3 | J197: 18 | K197: NA | L197: NA | M197: 0 | N197: 0 | O197: 0 | P197: 0 | Q197: 18 | R197: 0 | S197: 0 | T197: 0 | U197: 0 | V197: 0 | W197: 0 | X197: 0 | Y197: 0 | Z197: 0 | AA197: 0 | AB197: 0 | AC197: 0 | AD197: 0 | AE197: 0 | AF197: 0 | AG197: 0 | AH197: 0 | AI197: 0 | AJ197: 0 | AK197: 0 | AL197: 0 | AM197: 0 | AN197: 18 | AO197: 0 | AP197: 0 | AQ197: 0 | AR197: 6 | AS197: 0 | AT197: 0 | AU197: 12 | AV197: 0 | AW197: 0 | AX197: 0 | AY197: 0 | AZ197: 0 | BA197: 0 | BB197: 0 | BC197: 0 | BD197: =HYPERLINK("http://www.openstreetmap.org/?mlat=30.3566&mlon=47.7173&zoom=12#map=12/30.3566/47.7173","Maplink1") -> Maplink1 | BE197: =HYPERLINK("https://www.google.iq/maps/search/+30.3566,47.7173/@30.3566,47.7173,14z?hl=en","Maplink2") -> Maplink2 | BF197: =HYPERLINK("http://www.bing.com/maps/?lvl=14&sty=h&cp=30.3566~47.7173&sp=point.30.3566_47.7173","Maplink3") -> Maplink3
A198: 26111 | B198: Al-Basrah | C198: Al-Zubair | D198: Markaz Al-Zubair | E198: Khor Al Zubir-Al Shuqaq | F198: خور الزبير-الشقق | G198: 30.22628835 | H198: 47.77661885 | I198: 6 | J198: 36 | K198: 0 | L198: 0 | M198: 0 | N198: 0 | O198: 0 | P198: 0 | Q198: 36 | R198: 0 | S198: 0 | T198: 0 | U198: 0 | V198: 0 | W198: 0 | X198: 0 | Y198: 0 | Z198: 0 | AA198: 0 | AB198: 0 | AC198: 0 | AD198: 0 | AE198: 0 | AF198: 0 | AG198: 0 | AH198: 0 | AI198: 0 | AJ198: 0 | AK198: 0 | AL198: 0 | AM198: 0 | AN198: 36 | AO198: 0 | AP198: 0 | AQ198: 0 | AR198: 0 | AS198: 18 | AT198: 6 | AU198: 0 | AV198: 6 | AW198: 6 | AX198: 0 | AY198: 0 | AZ198: 0 | BA198: 0 | BB198: 0 | BC198: 0 | BD198: =HYPERLINK("http://www.openstreetmap.org/?mlat=30.2263&mlon=47.7766&zoom=12#map=12/30.2263/47.7766","Maplink1") -> Maplink1 | BE198: =HYPERLINK("https://www.google.iq/maps/search/+30.2263,47.7766/@30.2263,47.7766,14z?hl=en","Maplink2") -> Maplink2 | BF198: =HYPERLINK("http://www.bing.com/maps/?lvl=14&sty=h&cp=30.2263~47.7766&sp=point.30.2263_47.7766","Maplink3") -> Maplink3
A199: 26107 | B199: Al-Basrah | C199: Al-Zubair | D199: Markaz Al-Zubair | E199: Khor Al zubir-Hay Al Zahra | F199: خور الزبير-حي الزهراء | G199: 30.23619542 | H199: 47.76105607 | I199: 2 | J199: 12 | K199: NA | L199: NA | M199: 0 | N199: 0 | O199: 0 | P199: 0 | Q199: 12 | R199: 0 | S199: 0 | T199: 0 | U199: 0 | V199: 0 | W199: 0 | X199: 0 | Y199: 0 | Z199: 6 | AA199: 0 | AB199: 0 | AC199: 0 | AD199: 0 | AE199: 0 | AF199: 0 | AG199: 0 | AH199: 0 | AI199: 0 | AJ199: 0 | AK199: 0 | AL199: 0 | AM199: 0 | AN199: 6 | AO199: 0 | AP199: 0 | AQ199: 0 | AR199: 0 | AS199: 0 | AT199: 0 | AU199: 6 | AV199: 0 | AW199: 6 | AX199: 0 | AY199: 0 | AZ199: 0 | BA199: 0 | BB199: 0 | BC199: 0 | BD199: =HYPERLINK("http://www.openstreetmap.org/?mlat=30.2362&mlon=47.7611&zoom=12#map=12/30.2362/47.7611","Maplink1") -> Maplink1 | BE199: =HYPERLINK("https://www.google.iq/maps/search/+30.2362,47.7611/@30.2362,47.7611,14z?hl=en","Maplink2") -> Maplink2 | BF199: =HYPERLINK("http://www.bing.com/maps/?lvl=14&sty=h&cp=30.2362~47.7611&sp=point.30.2362_47.7611","Maplink3") -> Maplink3
A200: 26109 | B200: Al-Basrah | C200: Al-Zubair | D200: Markaz Al-Zubair | E200: Khor Al zubir-Hay Al-Hakeem | F200: خور الزبير-حي الحكيم | G200: 30.22762144 | H200: 47.78421579 | I200: 2 | J200: 12 | K200: NA | L200: NA | M200: 0 | N200: 0 | O200: 0 | P200: 0 | Q200: 0 | R200: 0 | S200: 12 | T200: 0 | U200: 0 | V200: 0 | W200: 0 | X200: 0 | Y200: 0 | Z200: 0 | AA200: 0 | AB200: 0 | AC200: 0 | AD200: 0 | AE200: 0 | AF200: 0 | AG200: 0 | AH200: 6 | AI200: 0 | AJ200: 0 | AK200: 0 | AL200: 6 | AM200: 0 | AN200: 0 | AO200: 0 | AP200: 0 | AQ200: 0 | AR200: 0 | AS200: 6 | AT200: 6 | AU200: 0 | AV200: 0 | AW200: 0 | AX200: 0 | AY200: 0 | AZ200: 0 | BA200: 0 | BB200: 0 | BC200: 0 | BD200: =HYPERLINK("http://www.openstreetmap.org/?mlat=30.2276&mlon=47.7842&zoom=12#map=12/30.2276/47.7842","Maplink1") -> Maplink1 | BE200: =HYPERLINK("https://www.google.iq/maps/search/+30.2276,47.7842/@30.2276,47.7842,14z?hl=en","Maplink2") -> Maplink2 | BF200: =HYPERLINK("http://www.bing.com/maps/?lvl=14&sty=h&cp=30.2276~47.7842&sp=point.30.2276_47.7842","Maplink3") -> Maplink3
... 925 more rows

Sheet Critical Shelters
A1: DTM : IDP Master List 30-06-2022
A2: Location of Displacement | I2: Critical Shelters
A3: Place id | B3: Governorate | C3: District | D3: Sub-district | E3: Location name in English | F3: Location name in Arabic | G3: Latitude | H3: Longitude | I3: Apartment/House (not owned)(uninhabitable) | J3: Tent/Caravan/makeshift shelter/mud or block house | K3: Unfinished/Abandoned building | L3: Public Buildings or Collective shelters | M3: Religious building | N3: School building | O3: Other Critical shelter | P3: Total
A4: 34249 | B4: Al-Anbar | C4: Al-Kaim | D4: Al-Karabla | E4: complex of Phosphate company | F4: المجمع السكني لموظفي شركة الفوسفات | G4: 34.33593631 | H4: 41.19326271 | I4: 0 | J4: 42 | K4: 0 | L4: 0 | M4: 0 | N4: 0 | O4: 0 | P4: 42
A5: 165 | B5: Al-Anbar | C5: Al-Rutba | D5: Markaz Al-Rutba | E5: Al Askaree | F5: حي العسكري | G5: 33.03800189 | H5: 40.30263444 | I5: 0 | J5: 0 | K5: 54 | L5: 0 | M5: 0 | N5: 0 | O5: 0 | P5: 54
A6: 150 | B6: Al-Anbar | C6: Al-Rutba | D6: Markaz Al-Rutba | E6: Al Haara | F6: حي الحارة | G6: 33.03761591 | H6: 40.28426443 | I6: 0 | J6: 0 | K6: 48 | L6: 0 | M6: 0 | N6: 0 | O6: 0 | P6: 48
A7: 231 | B7: Al-Anbar | C7: Al-Rutba | D7: Markaz Al-Rutba | E7: Al Wadi | F7: حي الوادي | G7: 33.03966421 | H7: 40.28365262 | I7: 0 | J7: 0 | K7: 54 | L7: 0 | M7: 0 | N7: 0 | O7: 0 | P7: 54
A8: 167 | B8: Al-Anbar | C8: Al-Rutba | D8: Markaz Al-Rutba | E8: Antesar | F8: حي الانتصار | G8: 33.03126564 | H8: 40.29901479 | I8: 0 | J8: 0 | K8: 66 | L8: 0 | M8: 0 | N8: 0 | O8: 0 | P8: 66
A9: 166 | B9: Al-Anbar | C9: Al-Rutba | D9: Markaz Al-Rutba | E9: Hay Al Meethagh | F9: حي الميثاق | G9: 33.03197354 | H9: 40.29047217 | I9: 0 | J9: 0 | K9: 102 | L9: 0 | M9: 0 | N9: 0 | O9: 0 | P9: 102
A10: 233 | B10: Al-Anbar | C10: Al-Rutba | D10: Markaz Al-Rutba | E10: Hay Al-Matar | F10: حي المطار | G10: 33.03461084 | H10: 40.28668013 | I10: 0 | J10: 0 | K10: 72 | L10: 0 | M10: 0 | N10: 0 | O10: 0 | P10: 72
A11: 23936 | B11: Al-Anbar | C11: Al-Rutba | D11: Markaz Al-Rutba | E11: Rumilah Village | F11: قرية رميلة | G11: 33.06022091 | H11: 40.34556629 | I11: 0 | J11: 0 | K11: 36 | L11: 0 | M11: 0 | N11: 0 | O11: 0 | P11: 36
A12: 248 | B12: Al-Anbar | C12: Ana | D12: Markaz Ana | E12: Al bor (Shishan) | F12: حي العبور | G12: 34.36678805 | H12: 41.97078314 | I12: 48 | J12: 0 | K12: 0 | L12: 0 | M12: 0 | N12: 0 | O12: 0 | P12: 48
A13: 252 | B13: Al-Anbar | C13: Ana | D13: Markaz Ana | E13: Al Tadamon | F13: حي التضامن | G13: 34.36089741 | H13: 41.98314586 | I13: 42 | J13: 0 | K13: 0 | L13: 0 | M13: 0 | N13: 0 | O13: 0 | P13: 42
A14: 253 | B14: Al-Anbar | C14: Ana | D14: Markaz Ana | E14: Hay Al Salam | F14: حي السلام | G14: 34.37212521 | H14: 41.97703066 | I14: 36 | J14: 0 | K14: 0 | L14: 0 | M14: 0 | N14: 0 | O14: 0 | P14: 36
A15: 107 | B15: Al-Anbar | C15: Al-Falluja | D15: Al-Amirya | E15: Al Amiriyah | F15: العامرية | G15: 33.1787573 | H15: 43.85698918 | I15: 60 | J15: 642 | K15: 0 | L15: 0 | M15: 0 | N15: 0 | O15: 0 | P15: 702
A16: 23276 | B16: Al-Anbar | C16: Al-Falluja | D16: Al-Amirya | E16: HTC | F16: مخيم المدينة السياحية الحبانية | G16: 33.25344803 | H16: 43.58454996 | I16: 0 | J16: 450 | K16: 0 | L16: 0 | M16: 0 | N16: 0 | O16: 0 | P16: 450
A17: 26036 | B17: Al-Anbar | C17: Al-Falluja | D17: Al-Amirya | E17: Al-Amirya-Albu Jasim | F17: البوجاسم | G17: 33.201389 | H17: 43.9 | I17: 0 | J17: 120 | K17: 0 | L17: 0 | M17: 0 | N17: 0 | O17: 0 | P17: 120
A18: 26037 | B18: Al-Anbar | C18: Al-Falluja | D18: Al-Amirya | E18: Al-Amirya-Albu Jwad | F18: البوجواد | G18: 33.15082044 | H18: 43.99869936 | I18: 18 | J18: 882 | K18: 0 | L18: 0 | M18: 0 | N18: 0 | O18: 0 | P18: 900
A19: 21226 | B19: Al-Anbar | C19: Al-Falluja | D19: Al-Amirya | E19: Albu Hori | F19: البوحوري | G19: 33.15845385 | H19: 43.8916234 | I19: 0 | J19: 624 | K19: 0 | L19: 12 | M19: 18 | N19: 0 | O19: 0 | P19: 654
A20: 21410 | B20: Al-Anbar | C20: Al-Falluja | D20: Al-Amirya | E20: Albo Jaar | F20: البو جار | G20: 33.14913484 | H20: 43.98714161 | I20: 0 | J20: 294 | K20: 0 | L20: 0 | M20: 0 | N20: 0 | O20: 0 | P20: 294
A21: 142 | B21: Al-Anbar | C21: Al-Falluja | D21: Markaz Al-Falluja | E21: Al-shahabi-2 | F21: الشهابي الثانية | G21: 33.3822032 | H21: 43.8862189 | I21: 0 | J21: 0 | K21: 0 | L21: 510 | M21: 0 | N21: 0 | O21: 0 | P21: 510
A22: 26084 | B22: Al-Anbar | C22: Al-Falluja | D22: Al-Amirya | E22: Beizeibz_sector1 | F22: بزيبز_القطاع الاول | G22: 33.11973987 | H22: 44.04292247 | I22: 0 | J22: 618 | K22: 0 | L22: 0 | M22: 0 | N22: 0 | O22: 0 | P22: 618
A23: 26091 | B23: Al-Anbar | C23: Al-Falluja | D23: Al-Amirya | E23: Al-Amirya-Al Hmedin | F23: الحميدين | G23: 33.15689845 | H23: 43.9318996 | I23: 0 | J23: 648 | K23: 0 | L23: 0 | M23: 0 | N23: 0 | O23: 0 | P23: 648
A24: 26092 | B24: Al-Anbar | C24: Al-Falluja | D24: Al-Amirya | E24: Al-Amirya-Al Mouilha | F24: المويلحة | G24: 33.14119036 | H24: 43.95571249 | I24: 0 | J24: 1,446 | K24: 0 | L24: 0 | M24: 144 | N24: 0 | O24: 0 | P24: 1,590
A25: 26085 | B25: Al-Anbar | C25: Al-Falluja | D25: Al-Amirya | E25: Beizeibz_sector2 | F25: بزيبز_القطاع الثاني | G25: 33.13481251 | H25: 44.02670737 | I25: 0 | J25: 1,290 | K25: 0 | L25: 0 | M25: 0 | N25: 0 | O25: 0 | P25: 1,290
A26: 26088 | B26: Al-Anbar | C26: Al-Falluja | D26: Al-Amirya | E26: Beizeibz_Ahl Al-Ramadi 74 | F26: بزيبز_اهل الرمادي 74 | G26: 33.14673327 | H26: 44.01503204 | I26: 0 | J26: 408 | K26: 0 | L26: 0 | M26: 0 | N26: 0 | O26: 0 | P26: 408
A27: 26087 | B27: Al-Anbar | C27: Al-Falluja | D27: Al-Amirya | E27: Al-Amirya-Albu Salman | F27: البوسليمان | G27: 33.15382888 | H27: 44.00612418 | I27: 0 | J27: 900 | K27: 0 | L27: 0 | M27: 0 | N27: 0 | O27: 0 | P27: 900
A28: 26093 | B28: Al-Anbar | C28: Al-Falluja | D28: Al-Amirya | E28: Al-Amirya-Tal Ghatas | F28: تل غطاس | G28: 33.18427359 | H28: 43.92571116 | I28: 0 | J28: 204 | K28: 0 | L28: 0 | M28: 0 | N28: 0 | O28: 0 | P28: 204
A29: 26089 | B29: Al-Anbar | C29: Al-Falluja | D29: Al-Amirya | E29: Albu Dhaher-Albu Dhaher | F29: البوظاهر | G29: 33.18863084 | H29: 43.90689915 | I29: 0 | J29: 108 | K29: 0 | L29: 0 | M29: 0 | N29: 0 | O29: 0 | P29: 108
A30: 27246 | B30: Al-Anbar | C30: Al-Falluja | D30: Al-Amirya | E30: AAF | F30: مخيم عامرية الفلوجة | G30: 33.14654372 | H30: 43.84855916 | I30: 0 | J30: 1,938 | K30: 0 | L30: 0 | M30: 0 | N30: 0 | O30: 0 | P30: 1,938
A31: 33939 | B31: Al-Anbar | C31: Al-Falluja | D31: Al-Amirya | E31: Beizeibz_sector 4 | F31: بزيبز_القطاع الرابع | G31: 33.145831 | H31: 44.015278 | I31: 0 | J31: 774 | K31: 0 | L31: 0 | M31: 0 | N31: 0 | O31: 0 | P31: 774
A32: 33940 | B32: Al-Anbar | C32: Al-Falluja | D32: Al-Amirya | E32: Beizeibz_sector 3 | F32: بزيبز_القطاع الثالث | G32: 33.14162138 | H32: 44.01803577 | I32: 0 | J32: 636 | K32: 0 | L32: 0 | M32: 0 | N32: 0 | O32: 0 | P32: 636
A33: 33941 | B33: Al-Anbar | C33: Al-Falluja | D33: Al-Amirya | E33: Beizeibz_sector 50 | F33: بزيبز_قطاع الخمسين | G33: 33.14731684 | H33: 44.01389114 | I33: 0 | J33: 498 | K33: 0 | L33: 0 | M33: 0 | N33: 0 | O33: 0 | P33: 498
A34: 34228 | B34: Al-Anbar | C34: Al-Falluja | D34: Al-Amirya | E34: low-costs houses/Habbaniah | F34: دور واطئه الكلفه \الحبانيه | G34: 33.25546254 | H34: 43.65109069 | I34: 0 | J34: 342 | K34: 0 | L34: 1,158 | M34: 0 | N34: 0 | O34: 0 | P34: 1,500
A35: 34290 | B35: Al-Anbar | C35: Al-Falluja | D35: Al-Amirya | E35: Hay Al-Salam | F35: حي السلام | G35: 33.17218 | H35: 43.86378 | I35: 0 | J35: 732 | K35: 0 | L35: 0 | M35: 0 | N35: 0 | O35: 0 | P35: 732
A36: 34291 | B36: Al-Anbar | C36: Al-Falluja | D36: Al-Amirya | E36: Hay Al-Maleab | F36: حي الملعب | G36: 33.17337 | H36: 43.84332 | I36: 60 | J36: 1,320 | K36: 0 | L36: 0 | M36: 0 | N36: 0 | O36: 0 | P36: 1,380
A37: 33825 | B37: Al-Anbar | C37: Heet | D37: Markaz Heet | E37: Hay Al-Askary | F37: حي العسكري | G37: 33.6244991 | H37: 42.8278815 | I37: 0 | J37: 0 | K37: 12 | L37: 0 | M37: 0 | N37: 0 | O37: 0 | P37: 12
A38: 23889 | B38: Al-Anbar | C38: Al-Ramadi | D38: Markaz Al-Ramadi | E38: 7 Killo-al-mojamaa al-sakany | F38: السبعة كيلو-المجمع السكني | G38: 33.4165942 | H38: 43.1924283 | I38: 0 | J38: 0 | K38: 36 | L38: 3,252 | M38: 0 | N38: 12 | O38: 0 | P38: 3,300
A39: 33826 | B39: Al-Anbar | C39: Al-Ramadi | D39: Markaz Al-Ramadi | E39: AL-Karama complex | F39: مجمع الكرامه | G39: 33.3885532 | H39: 43.0969749 | I39: 0 | J39: 918 | K39: 0 | L39: 0 | M39: 0 | N39: 0 | O39: 0 | P39: 918
A40: 34178 | B40: Al-Anbar | C40: Al-Ramadi | D40: Markaz Al-Ramadi | E40: 9 Kilo | F40: 9 كيلو | G40: 33.4096587 | H40: 43.1680676 | I40: 0 | J40: 0 | K40: 384 | L40: 0 | M40: 0 | N40: 0 | O40: 0 | P40: 384
A41: 26109 | B41: Al-Basrah | C41: Al-Zubair | D41: Markaz Al-Zubair | E41: Khor Al zubir-Hay Al-Hakeem | F41: خور الزبير-حي الحكيم | G41: 30.22762144 | H41: 47.78421579 | I41: 0 | J41: 12 | K41: 0 | L41: 0 | M41: 0 | N41: 0 | O41: 0 | P41: 12
A42: 24182 | B42: Al-Basrah | C42: Al-Basrah | D42: Markaz Al-Basrah | E42: Casino Lebnan | F42: البصرة-كازينو لبنان | G42: 30.50763974 | H42: 47.80824986 | I42: 0 | J42: 66 | K42: 0 | L42: 0 | M42: 0 | N42: 0 | O42: 0 | P42: 66
A43: 854 | B43: Al-Basrah | C43: Al-Basrah | D43: Markaz Al-Basrah | E43: Hai al-kafa_at | F43: البصرة-حي الكفاءات | G43: 30.4999937 | H43: 47.81254713 | I43: 6 | J43: 0 | K43: 0 | L43: 0 | M43: 0 | N43: 0 | O43: 0 | P43: 6
A44: 23897 | B44: Al-Basrah | C44: Abu Al-Khaseeb | D44: Markaz Abu Al-Khaseeb | E44: Hay AL Hussainyia | F44: البصرة-حي الحسينية | G44: 30.47850797 | H44: 47.82951009 | I44: 0 | J44: 18 | K44: 0 | L44: 0 | M44: 0 | N44: 0 | O44: 0 | P44: 18
A45: 24595 | B45: Al-Basrah | C45: Abu Al-Khaseeb | D45: Markaz Abu Al-Khaseeb | E45: Hay Al Zaiton | F45: حي الزيتون | G45: 30.4746484 | H45: 47.8260349 | I45: 0 | J45: 6 | K45: 0 | L45: 0 | M45: 0 | N45: 0 | O45: 0 | P45: 6
A46: 885 | B46: Al-Basrah | C46: Al-Basrah | D46: Markaz Al-Basrah | E46: Al Khaleej2 | F46: البصرة-الجمعيات-حي الخليج 2 | G46: 30.49501922 | H46: 47.78894843 | I46: 0 | J46: 6 | K46: 0 | L46: 0 | M46: 0 | N46: 0 | O46: 0 | P46: 6
A47: 29595 | B47: Al-Basrah | C47: Al-Basrah | D47: Markaz Al-Basrah | E47: Al Maqil-Al-Farancea | F47: المعقل-الفرنسية | G47: 30.5503418 | H47: 47.78019919 | I47: 0 | J47: 6 | K47: 0 | L47: 0 | M47: 0 | N47: 0 | O47: 0 | P47: 6
A48: 31724 | B48: Al-Basrah | C48: Al-Basrah | D48: Markaz Al-Basrah | E48: Shafqat Al-Amil | F48: شفقة العامل | G48: 30.54920854 | H48: 47.78601974 | I48: 0 | J48: 18 | K48: 0 | L48: 0 | M48: 0 | N48: 0 | O48: 0 | P48: 18
A49: 960 | B49: Al-Basrah | C49: Shat Al-Arab | D49: Markaz Shat Al-Arab | E49: Hay al-jami_a | F49: البصرة-شط العرب-حي الجامعة | G49: 30.54042316 | H49: 47.85516922 | I49: 0 | J49: 18 | K49: 0 | L49: 0 | M49: 0 | N49: 0 | O49: 0 | P49: 18
A50: 1991 | B50: Al-Muthanna | C50: Al-Rumaitha | D50: Markaz Al-Rumaitha | E50: Al-Muthlem Village | F50: قرية المظلم | G50: 31.53967617 | H50: 45.18345896 | I50: 0 | J50: 0 | K50: 24 | L50: 0 | M50: 0 | N50: 0 | O50: 0 | P50: 24
A51: 2026 | B51: Al-Muthanna | C51: Al-Rumaitha | D51: Markaz Al-Rumaitha | E51: Al Ardhyat | F51: العارضيات | G51: 31.55655975 | H51: 45.14773046 | I51: 0 | J51: 0 | K51: 0 | L51: 0 | M51: 6 | N51: 0 | O51: 0 | P51: 6
A52: 1609 | B52: Al-Muthanna | C52: Al-Samawa | D52: Al-Sowair | E52: Al Basateen Al Gharbia | F52: البساتين الغربية | G52: 31.32623435 | H52: 45.27061561 | I52: 0 | J52: 0 | K52: 0 | L52: 0 | M52: 6 | N52: 0 | O52: 0 | P52: 6
A53: 20128 | B53: Al-Najaf | C53: Al-Najaf | D53: Markaz Al-Najaf | E53: Al-Qasim 3 | F53: حي القاسم 3 | G53: 32.05167393 | H53: 44.31446708 | I53: 18 | J53: 0 | K53: 0 | L53: 0 | M53: 0 | N53: 0 | O53: 0 | P53: 18
A54: 29598 | B54: Al-Najaf | C54: Al-Najaf | D54: Al-Haydariya | E54: Al Salam Complex | F54: مجمع السلام | G54: 32.174145 | H54: 44.307526 | I54: 0 | J54: 0 | K54: 0 | L54: 540 | M54: 0 | N54: 0 | O54: 0 | P54: 540
A55: 3392 | B55: Al-Qadissiya | C55: Afaq | D55: Markaz Afaq | E55: AL-Qati | F55: القاطع | G55: 32.05376398 | H55: 45.23339976 | I55: 0 | J55: 0 | K55: 0 | L55: 0 | M55: 6 | N55: 0 | O55: 0 | P55: 6
A56: 25382 | B56: Al-Qadissiya | C56: Afaq | D56: Markaz Afaq | E56: Hay Al-Hussein | F56: حي الحسين | G56: 32.06277559 | H56: 45.25461952 | I56: 0 | J56: 0 | K56: 0 | L56: 0 | M56: 18 | N56: 0 | O56: 0 | P56: 18
A57: 2749 | B57: Al-Qadissiya | C57: Al-Shamiya | D57: Al-Mihanawiya | E57: Hay Al-aaskary al-gharby | F57: حي العسكري الغربي | G57: 31.95724825 | H57: 44.57361613 | I57: 0 | J57: 0 | K57: 0 | L57: 0 | M57: 6 | N57: 0 | O57: 0 | P57: 6
A58: 22326 | B58: Al-Qadissiya | C58: Al-Diwaniya | D58: Markaz Al-Diwaniya | E58: Al Mojamaa Al Sakani | F58: المجمع السكني | G58: 31.98188312 | H58: 44.97298646 | I58: 0 | J58: 0 | K58: 0 | L58: 126 | M58: 0 | N58: 0 | O58: 0 | P58: 126
A59: 2943 | B59: Al-Qadissiya | C59: Al-Diwaniya | D59: Markaz Al-Diwaniya | E59: Al hamad village | F59: قرية الحمد | G59: 32.00409165 | H59: 44.99900237 | I59: 0 | J59: 0 | K59: 0 | L59: 0 | M59: 24 | N59: 0 | O59: 0 | P59: 24
A60: 24905 | B60: Al-Qadissiya | C60: Al-Diwaniya | D60: Al-Saniya | E60: Al himran village | F60: قرية الحمران | G60: 32.03778581 | H60: 44.78347317 | I60: 0 | J60: 0 | K60: 0 | L60: 0 | M60: 24 | N60: 0 | O60: 0 | P60: 24
A61: 24904 | B61: Al-Qadissiya | C61: Al-Diwaniya | D61: Al-Shafeia | E61: Um tibashi village | F61: قرية ام طباشي | G61: 32.00728063 | H61: 44.85389521 | I61: 0 | J61: 0 | K61: 0 | L61: 0 | M61: 12 | N61: 0 | O61: 0 | P61: 12
A62: 24436 | B62: Al-Qadissiya | C62: Al-Diwaniya | D62: Al-Saniya | E62: Albo Hasan village | F62: قرية البو حسن | G62: 32.02082742 | H62: 44.81889837 | I62: 0 | J62: 0 | K62: 0 | L62: 0 | M62: 12 | N62: 0 | O62: 0 | P62: 12
A63: 2621 | B63: Al-Qadissiya | C63: Al-Diwaniya | D63: Al-Saniya | E63: Albu Khnefis village | F63: قرية البو خنيفس | G63: 32.02096534 | H63: 44.86054918 | I63: 0 | J63: 0 | K63: 0 | L63: 0 | M63: 12 | N63: 0 | O63: 0 | P63: 12
A64: 25370 | B64: Al-Qadissiya | C64: Al-Diwaniya | D64: Markaz Al-Diwaniya | E64: Al-Mawqee Al-Askary | F64: الموقع العسكري | G64: 31.98093842 | H64: 44.92415211 | I64: 0 | J64: 6 | K64: 18 | L64: 0 | M64: 0 | N64: 0 | O64: 0 | P64: 24
A65: 25071 | B65: Al-Qadissiya | C65: Al-Diwaniya | D65: Al-Saniya | E65: Al-Jabaar village | F65: قرية ال جبار | G65: 32.03198909 | H65: 44.7900744 | I65: 0 | J65: 0 | K65: 0 | L65: 0 | M65: 24 | N65: 0 | O65: 0 | P65: 24
A66: 25070 | B66: Al-Qadissiya | C66: Al-Diwaniya | D66: Al-Saniya | E66: Hay Al-Hussain | F66: حي الحسين | G66: 32.0701463 | H66: 44.76765688 | I66: 0 | J66: 0 | K66: 0 | L66: 0 | M66: 18 | N66: 0 | O66: 0 | P66: 18
A67: 24381 | B67: Al-Qadissiya | C67: Al-Diwaniya | D67: Al-Shafeia | E67: Al-Taqiya 2 | F67: التقية الثانية | G67: 31.97036245 | H67: 44.89118747 | I67: 0 | J67: 0 | K67: 0 | L67: 0 | M67: 12 | N67: 0 | O67: 0 | P67: 12
A68: 24739 | B68: Al-Qadissiya | C68: Al-Diwaniya | D68: Al-Daghara | E68: Hay Al Mulmeen | F68: حي المعلمين | G68: 32.13624244 | H68: 44.93634447 | I68: 0 | J68: 0 | K68: 0 | L68: 0 | M68: 12 | N68: 0 | O68: 0 | P68: 12
A69: 24149 | B69: Al-Qadissiya | C69: Al-Diwaniya | D69: Al-Daghara | E69: Hay Al Shahada | F69: حي الشهداء | G69: 32.13574978 | H69: 44.9305148 | I69: 0 | J69: 0 | K69: 0 | L69: 0 | M69: 24 | N69: 0 | O69: 0 | P69: 24
A70: 24382 | B70: Al-Qadissiya | C70: Al-Diwaniya | D70: Al-Shafeia | E70: Hay Al Shomos | F70: حي الشموس | G70: 32.00180139 | H70: 44.86404724 | I70: 0 | J70: 0 | K70: 0 | L70: 0 | M70: 12 | N70: 0 | O70: 0 | P70: 12
A71: 25568 | B71: Al-Qadissiya | C71: Al-Diwaniya | D71: Al-Saniya | E71: Hay Al-Amin 2 | F71: حي الامين 2 | G71: 32.00629877 | H71: 44.84477322 | I71: 0 | J71: 0 | K71: 0 | L71: 0 | M71: 24 | N71: 0 | O71: 0 | P71: 24
A72: 22452 | B72: Al-Qadissiya | C72: Al-Diwaniya | D72: Markaz Al-Diwaniya | E72: Qaryat Al Ensaf | F72: قرية الانصاف | G72: 31.99916497 | H72: 45.01540678 | I72: 0 | J72: 0 | K72: 0 | L72: 0 | M72: 18 | N72: 0 | O72: 0 | P72: 18
A73: 24583 | B73: Al-Qadissiya | C73: Al-Hamza | D73: Al-Sadeer | E73: Al-Marshad village | F73: قرية المرشد | G73: 31.8604446 | H73: 44.9292598 | I73: 0 | J73: 0 | K73: 0 | L73: 0 | M73: 6 | N73: 0 | O73: 0 | P73: 6
A74: 25285 | B74: Al-Qadissiya | C74: Al-Hamza | D74: Al-Sadeer | E74: Hay Al-Askary | F74: حي العسكري | G74: 31.82547375 | H74: 44.94278593 | I74: 0 | J74: 0 | K74: 0 | L74: 0 | M74: 6 | N74: 0 | O74: 0 | P74: 6
A75: 24688 | B75: Al-Sulaymaniyah | C75: Chamchamal | D75: Markaz Chamchamal | E75: Asuda | F75: اسودة | G75: 35.52697274 | H75: 44.81462323 | I75: 0 | J75: 0 | K75: 12 | L75: 0 | M75: 0 | N75: 0 | O75: 0 | P75: 12
A76: 4838 | B76: Al-Sulaymaniyah | C76: Dokan | D76: Sourdash | E76: Mughagh | F76: مغاغ | G76: 35.78373637 | H76: 45.11336097 | I76: 0 | J76: 0 | K76: 0 | L76: 0 | M76: 0 | N76: 12 | O76: 0 | P76: 12
A77: 21287 | B77: Al-Sulaymaniyah | C77: Al-Sulaymaniyah | D77: Sarchnar | E77: Chwar Chra | F77: جوارجرا | G77: 35.5420488 | H77: 45.4011283 | I77: 0 | J77: 0 | K77: 0 | L77: 0 | M77: 12 | N77: 0 | O77: 0 | P77: 12
A78: 24095 | B78: Al-Sulaymaniyah | C78: Al-Sulaymaniyah | D78: Qaradagh | E78: Rizgari-Arbat | F78: رزكارى | G78: 35.4276592 | H78: 45.58655862 | I78: 0 | J78: 0 | K78: 84 | L78: 0 | M78: 0 | N78: 0 | O78: 0 | P78: 84
A79: 21021 | B79: Al-Sulaymaniyah | C79: Al-Sulaymaniyah | D79: Qaradagh | E79: Sabun karan Qt | F79: صابن كران | G79: 35.5536541 | H79: 45.4458314 | I79: 0 | J79: 36 | K79: 0 | L79: 0 | M79: 0 | N79: 0 | O79: 0 | P79: 36
A80: 20420 | B80: Al-Sulaymaniyah | C80: Chamchamal | D80: Kadr Karam | E80: Haidarasor | F80: قرية حيدرسور | G80: 35.002364 | H80: 44.8642712 | I80: 12 | J80: 0 | K80: 0 | L80: 0 | M80: 0 | N80: 0 | O80: 0 | P80: 12
A81: 33146 | B81: Al-Sulaymaniyah | C81: Chamchamal | D81: Kadr Karam | E81: Qalkhanlu Khwar Village | F81: قرية قلخانلو السفلى | G81: 35.1100651 | H81: 44.6613463 | I81: 12 | J81: 0 | K81: 0 | L81: 0 | M81: 0 | N81: 0 | O81: 0 | P81: 12
A82: 26094 | B82: Babil | C82: Al-Mahaweel | D82: Markaz Al-Mahawil | E82: Hay Al-Jamhoreiah | F82: حي الجمهوري | G82: 32.66164469 | H82: 44.40033883 | I82: 0 | J82: 0 | K82: 6 | L82: 0 | M82: 0 | N82: 0 | O82: 0 | P82: 6
A83: 24164 | B83: Babil | C83: Al-Mussyab | D83: Jurf Al-Sakhar | E83: Al Hamiyah Al Amer Village | F83: الحامية-قرية ال عامر | G83: 32.80166667 | H83: 44.27527778 | I83: 0 | J83: 36 | K83: 0 | L83: 0 | M83: 0 | N83: 0 | O83: 0 | P83: 36
A84: 24649 | B84: Babil | C84: Al-Mussyab | D84: Al-Iskandaria | E84: Hay Aday-Al Eskandariya | F84: ناحيه الاسكندريه-حي عداي | G84: 32.88055556 | H84: 44.39583333 | I84: 0 | J84: 60 | K84: 0 | L84: 0 | M84: 0 | N84: 0 | O84: 0 | P84: 60
A85: 24171 | B85: Babil | C85: Al-Mussyab | D85: Jurf Al-Sakhar | E85: Hay Al Moatnen 3 | F85: حي المواطنين 3 | G85: 32.78355036 | H85: 44.26641899 | I85: 0 | J85: 60 | K85: 0 | L85: 0 | M85: 0 | N85: 0 | O85: 0 | P85: 60
A86: 24983 | B86: Babil | C86: Al-Mussyab | D86: Jurf Al-Sakhar | E86: Hay Alaskary-AlThaghet | F86: حي العسكري-الضغط | G86: 32.78972964 | H86: 44.26553415 | I86: 0 | J86: 180 | K86: 0 | L86: 0 | M86: 0 | N86: 0 | O86: 0 | P86: 180
A87: 7126 | B87: Babil | C87: Al-Mussyab | D87: Jurf Al-Sakhar | E87: Al Hamiyah-Al Mutaqedin 1 | F87: الحامية-المتقاعدين 1 | G87: 32.81393002 | H87: 44.26428293 | I87: 0 | J87: 84 | K87: 0 | L87: 0 | M87: 0 | N87: 0 | O87: 0 | P87: 84
A88: 29582 | B88: Babil | C88: Al-Mussyab | D88: Jurf Al-Sakhar | E88: Hay Al Moatnen 1 | F88: حي المواطنين 1 | G88: 32.78803072 | H88: 44.26797728 | I88: 0 | J88: 24 | K88: 0 | L88: 0 | M88: 0 | N88: 0 | O88: 0 | P88: 24
A89: 25880 | B89: Babil | C89: Al-Hashimiya | D89: Al-Qasim | E89: Hay Al Zahraa-Qassim | F89: حي الزهراء-القاسم | G89: 32.29843793 | H89: 44.69027481 | I89: 0 | J89: 6 | K89: 0 | L89: 0 | M89: 0 | N89: 0 | O89: 0 | P89: 6
A90: 23950 | B90: Babil | C90: Al-Hilla | D90: Abi Gharaq | E90: Qas Sowelem-Compound | F90: كص سويلم-المجمع السكني | G90: 32.41754562 | H90: 44.40687833 | I90: 0 | J90: 0 | K90: 24 | L90: 0 | M90: 0 | N90: 0 | O90: 0 | P90: 24
A91: 21173 | B91: Baghdad | C91: Al-Kadhmiyah | D91: Abu Ghraib | E91: 1 Athar | F91: 1 اذار | G91: 33.300602 | H91: 44.1836993 | I91: 12 | J91: 30 | K91: 0 | L91: 0 | M91: 0 | N91: 0 | O91: 0 | P91: 42
A92: 7671 | B92: Baghdad | C92: Al-Kadhmiyah | D92: Abu Ghraib | E92: 1 Huzairan | F92: 1 حزيران | G92: 33.3023826 | H92: 44.1393425 | I92: 42 | J92: 30 | K92: 0 | L92: 0 | M92: 0 | N92: 0 | O92: 0 | P92: 72
A93: 24047 | B93: Baghdad | C93: Al-Kadhmiyah | D93: Abu Ghraib | E93: Abo Moniaser | F93: ابو منيصير | G93: 33.2974117 | H93: 44.0954705 | I93: 24 | J93: 204 | K93: 0 | L93: 0 | M93: 0 | N93: 0 | O93: 0 | P93: 228
A94: 7658 | B94: Baghdad | C94: Al-Kadhmiyah | D94: Abu Ghraib | E94: Al-Resalah | F94: الرسالة | G94: 33.2981074 | H94: 44.1198344 | I94: 30 | J94: 78 | K94: 0 | L94: 0 | M94: 0 | N94: 0 | O94: 0 | P94: 108
A95: 24034 | B95: Baghdad | C95: Al-Kadhmiyah | D95: Abu Ghraib | E95: Hay Al Ghawassah | F95: حي الغواصة | G95: 33.2962605 | H95: 44.1447545 | I95: 0 | J95: 54 | K95: 0 | L95: 0 | M95: 0 | N95: 0 | O95: 0 | P95: 54
A96: 24039 | B96: Baghdad | C96: Al-Kadhmiyah | D96: Abu Ghraib | E96: Hay Al Zohor | F96: حي الزهور | G96: 33.307966 | H96: 44.1857611 | I96: 30 | J96: 0 | K96: 0 | L96: 0 | M96: 0 | N96: 0 | O96: 0 | P96: 30
A97: 22050 | B97: Baghdad | C97: Al-Kadhmiyah | D97: Abu Ghraib | E97: Hay Ashbilia | F97: حي اشبيليه | G97: 33.3084816 | H97: 44.1671145 | I97: 18 | J97: 0 | K97: 0 | L97: 0 | M97: 0 | N97: 0 | O97: 0 | P97: 18
A98: 25126 | B98: Baghdad | C98: Al-Kadhmiyah | D98: Abu Ghraib | E98: Khan Dhari Center | F98: خان ضاري مركز | G98: 33.2980734 | H98: 44.0603843 | I98: 30 | J98: 0 | K98: 0 | L98: 0 | M98: 0 | N98: 0 | O98: 0 | P98: 30
A99: 7709 | B99: Baghdad | C99: Al-Kadhmiyah | D99: Abu Ghraib | E99: North Khernabat | F99: خرنابات الشمالية | G99: 33.3269536 | H99: 44.1931925 | I99: 12 | J99: 0 | K99: 0 | L99: 0 | M99: 0 | N99: 0 | O99: 0 | P99: 12
A100: 25128 | B100: Baghdad | C100: Al-Kadhmiyah | D100: Abu Ghraib | E100: Khernabat-South | F100: خرنابات الجنوبيه | G100: 33.3227163 | H100: 44.1942128 | I100: 36 | J100: 0 | K100: 0 | L100: 0 | M100: 0 | N100: 0 | O100: 0 | P100: 36
A101: 31713 | B101: Baghdad | C101: Al-Kadhmiyah | D101: Abu Ghraib | E101: Shuhada Markza-Shuhadda the first | F101: الشهداءالمركز-شهداء الاولى | G101: 33.3009359 | H101: 44.1420854 | I101: 66 | J101: 114 | K101: 0 | L101: 0 | M101: 0 | N101: 0 | O101: 0 | P101: 180
A102: 31714 | B102: Baghdad | C102: Al-Kadhmiyah | D102: Abu Ghraib | E102: Shuhada Markza-Shuhdda the second | F102: الشهداء المركز-شهداء الثانية | G102: 33.3076704 | H102: 44.1432889 | I102: 0 | J102: 1,434 | K102: 0 | L102: 0 | M102: 0 | N102: 0 | O102: 0 | P102: 1,434
A103: 31715 | B103: Baghdad | C103: Al-Kadhmiyah | D103: Abu Ghraib | E103: Shuhada Markza-Shuhadda the third | F103: الشهداء المركز-شهداء الثالثة | G103: 33.3061956 | H103: 44.1406122 | I103: 36 | J103: 18 | K103: 0 | L103: 0 | M103: 0 | N103: 0 | O103: 0 | P103: 54
A104: 34292 | B104: Baghdad | C104: Al-Kadhmiyah | D104: Abu Ghraib | E104: Hamed Shaban | F104: حميد شعبان | G104: 33.295247 | H104: 44.133117 | I104: 0 | J104: 264 | K104: 0 | L104: 0 | M104: 0 | N104: 0 | O104: 0 | P104: 264
A105: 25969 | B105: Baghdad | C105: Al-Risafa | D105: Baghdad Al-Jedeeda | E105: Zayona | F105: مخيم زيونة | G105: 33.3177568 | H105: 44.44695717 | I105: 0 | J105: 558 | K105: 0 | L105: 0 | M105: 0 | N105: 0 | O105: 0 | P105: 558
A106: 25169 | B106: Baghdad | C106: Al-Kadhmiyah | D106: Al-Taji | E106: Sabea Al Buor-15000 | F106: سبع البور-15000 | G106: 33.4532989 | H106: 44.1582762 | I106: 6 | J106: 0 | K106: 0 | L106: 0 | M106: 0 | N106: 0 | O106: 0 | P106: 6
A107: 27413 | B107: Baghdad | C107: Al-Kadhmiyah | D107: Al-Taji | E107: Al Ahnaf-Al Rakia Fadel village | F107: الأحنف-اركية وفاضل | G107: 33.43497456 | H107: 44.24392406 | I107: 0 | J107: 0 | K107: 12 | L107: 0 | M107: 0 | N107: 0 | O107: 0 | P107: 12
A108: 25402 | B108: Baghdad | C108: Al-Mahmoudiya | D108: Al-Rasheed | E108: Abu Dsheer-850 | F108: ابو دشير-850 | G108: 33.218129 | H108: 44.381644 | I108: 30 | J108: 0 | K108: 0 | L108: 0 | M108: 0 | N108: 0 | O108: 0 | P108: 30
A109: 25221 | B109: Baghdad | C109: Al-Karkh | D109: Al-Mansour | E109: Al Forat-893 | F109: الفرات-893 | G109: 33.27585335 | H109: 44.27571666 | I109: 0 | J109: 0 | K109: 120 | L109: 0 | M109: 0 | N109: 0 | O109: 0 | P109: 120
A110: 23734 | B110: Baghdad | C110: Al-Karkh | D110: Al-Mansour | E110: Al Ghazaliya-681 | F110: الغزالية-681 | G110: 33.33075272 | H110: 44.27745651 | I110: 0 | J110: 0 | K110: 0 | L110: 0 | M110: 60 | N110: 0 | O110: 0 | P110: 60
A111: 23733 | B111: Baghdad | C111: Al-Karkh | D111: Al-Mamoon | E111: Arab jbor | F111: عرب جبور | G111: 33.19973241 | H111: 44.47091846 | I111: 30 | J111: 0 | K111: 0 | L111: 0 | M111: 0 | N111: 0 | O111: 0 | P111: 30
A112: 21745 | B112: Baghdad | C112: Al-Risafa | D112: Al-Karrada Al-Sharqia | E112: Al Karkh-212 | F112: الكرخ-212 | G112: 33.33968099 | H112: 44.38086383 | I112: 0 | J112: 0 | K112: 0 | L112: 0 | M112: 0 | N112: 66 | O112: 0 | P112: 66
A113: 7547 | B113: Baghdad | C113: Al-Mada'in | D113: Al-Jisr | E113: Al Wardia | F113: الوردية | G113: 33.18254483 | H113: 44.54256956 | I113: 0 | J113: 108 | K113: 0 | L113: 0 | M113: 0 | N113: 0 | O113: 0 | P113: 108
A114: 34160 | B114: Baghdad | C114: Al-Mada'in | D114: Al-Wihda | E114: Al-Ahed village | F114: قرية العهد | G114: 33.3155757 | H114: 44.661487 | I114: 0 | J114: 210 | K114: 0 | L114: 0 | M114: 0 | N114: 0 | O114: 0 | P114: 210
A115: 23618 | B115: Baghdad | C115: Al-Mahmoudiya | D115: Al-Latifya | E115: 14 Tamooz | F115: حي 14 تموز | G115: 32.96238873 | H115: 44.35447619 | I115: 0 | J115: 600 | K115: 0 | L115: 48 | M115: 0 | N115: 0 | O115: 0 | P115: 648
A116: 25150 | B116: Baghdad | C116: Al-Mahmoudiya | D116: Al-Latifya | E116: Al Latefia-Al Qadessia | F116: اللطيفية-حي القادسية | G116: 32.97002439 | H116: 44.35341187 | I116: 48 | J116: 1,494 | K116: 0 | L116: 0 | M116: 0 | N116: 0 | O116: 0 | P116: 1,542
A117: 25149 | B117: Baghdad | C117: Al-Mahmoudiya | D117: Al-Latifya | E117: Al Latefia-Al Salam | F117: اللطيفية-السلام | G117: 32.995505 | H117: 44.36041983 | I117: 102 | J117: 0 | K117: 0 | L117: 0 | M117: 0 | N117: 0 | O117: 0 | P117: 102
A118: 7615 | B118: Baghdad | C118: Al-Mahmoudiya | D118: Al-Latifya | E118: Hay Al-Askary | F118: حي العسكري | G118: 33.00901095 | H118: 44.36494889 | I118: 12 | J118: 0 | K118: 0 | L118: 0 | M118: 0 | N118: 0 | O118: 0 | P118: 12
A119: 25152 | B119: Baghdad | C119: Al-Mahmoudiya | D119: Al-Latifya | E119: Kilo 18 | F119: كيلو 18 | G119: 32.9631896 | H119: 44.36297354 | I119: 0 | J119: 2,766 | K119: 0 | L119: 0 | M119: 0 | N119: 0 | O119: 0 | P119: 2,766
A120: 25153 | B120: Baghdad | C120: Al-Mahmoudiya | D120: Al-Latifya | E120: Kilo 31 | F120: كيلو 31 | G120: 32.90825011 | H120: 44.3994687 | I120: 24 | J120: 0 | K120: 0 | L120: 0 | M120: 0 | N120: 0 | O120: 0 | P120: 24
A121: 21463 | B121: Baghdad | C121: Al-Mahmoudiya | D121: Al-Latifya | E121: Hay Al Mazraa | F121: حي المزرعة | G121: 33.00417507 | H121: 44.36737038 | I121: 0 | J121: 36 | K121: 0 | L121: 0 | M121: 0 | N121: 0 | O121: 0 | P121: 36
A122: 7733 | B122: Baghdad | C122: Al-Mahmoudiya | D122: Al-Latifya | E122: Hay Al Zuhoor | F122: حي الزهور | G122: 32.99891391 | H122: 44.36657974 | I122: 0 | J122: 726 | K122: 0 | L122: 0 | M122: 0 | N122: 0 | O122: 0 | P122: 726
A123: 25936 | B123: Baghdad | C123: Al-Mahmoudiya | D123: Al-Yousifya | E123: Al Radhwania Al Sharkia-Obaid Al Saher Village | F123: الرضوانية الشرقية-قرية عبيد الساهر | G123: 33.2171431 | H123: 44.1731253 | I123: 0 | J123: 42 | K123: 0 | L123: 0 | M123: 0 | N123: 0 | O123: 0 | P123: 42
A124: 34229 | B124: Baghdad | C124: Al-Mahmoudiya | D124: Al-Yousifya | E124: Abu jaishy village | F124: قرية ابو جيشي | G124: 33.138818 | H124: 44.215703 | I124: 0 | J124: 582 | K124: 0 | L124: 0 | M124: 0 | N124: 0 | O124: 0 | P124: 582
A125: 34230 | B125: Baghdad | C125: Al-Mahmoudiya | D125: Al-Yousifya | E125: Ahmed Abdullah village | F125: قرية احمد عبد الله | G125: 33.1414504 | H125: 44.2122119 | I125: 0 | J125: 648 | K125: 0 | L125: 0 | M125: 0 | N125: 0 | O125: 0 | P125: 648
A126: 25427 | B126: Baghdad | C126: Al-Kadhmiyah | D126: Al-Tarmiya | E126: Abu Sreweel Village | F126: قرية أبو سريويل | G126: 33.6962643 | H126: 44.41488843 | I126: 24 | J126: 0 | K126: 0 | L126: 0 | M126: 0 | N126: 0 | O126: 0 | P126: 24
A127: 25416 | B127: Baghdad | C127: Al-Kadhmiyah | D127: Al-Tarmiya | E127: Al Farook Quarter-1 | F127: حي الفاروق-1 | G127: 33.6597764 | H127: 44.38952615 | I127: 30 | J127: 24 | K127: 0 | L127: 0 | M127: 0 | N127: 0 | O127: 0 | P127: 54
A128: 25417 | B128: Baghdad | C128: Al-Kadhmiyah | D128: Al-Tarmiya | E128: Al Farook Quarter-2 | F128: حي الفاروق-2 | G128: 33.66161588 | H128: 44.39424197 | I128: 30 | J128: 0 | K128: 0 | L128: 0 | M128: 0 | N128: 0 | O128: 0 | P128: 30
A129: 24061 | B129: Baghdad | C129: Al-Kadhmiyah | D129: Al-Tarmiya | E129: Al Tarmiya Center | F129: مركز الطارمية | G129: 33.66303238 | H129: 44.39890244 | I129: 30 | J129: 0 | K129: 0 | L129: 0 | M129: 0 | N129: 0 | O129: 0 | P129: 30
A130: 25419 | B130: Baghdad | C130: Al-Kadhmiyah | D130: Al-Tarmiya | E130: Hai Al Hukem Al Mahali | F130: حي الحكم المحلي | G130: 33.66384018 | H130: 44.38142646 | I130: 0 | J130: 24 | K130: 0 | L130: 0 | M130: 0 | N130: 0 | O130: 0 | P130: 24
A131: 25423 | B131: Baghdad | C131: Al-Kadhmiyah | D131: Al-Tarmiya | E131: Hai Al Qadessia-1 | F131: حي القادسية-1 | G131: 33.66785621 | H131: 44.37779603 | I131: 30 | J131: 0 | K131: 0 | L131: 0 | M131: 0 | N131: 0 | O131: 0 | P131: 30
A132: 25418 | B132: Baghdad | C132: Al-Kadhmiyah | D132: Al-Tarmiya | E132: Hai Al Resala | F132: حي الرسالة | G132: 33.66571757 | H132: 44.39279237 | I132: 0 | J132: 24 | K132: 0 | L132: 0 | M132: 0 | N132: 0 | O132: 0 | P132: 24
A133: 25420 | B133: Baghdad | C133: Al-Kadhmiyah | D133: Al-Tarmiya | E133: Hai Al Sedeq | F133: حي الصديق | G133: 33.6639399 | H133: 44.37533264 | I133: 0 | J133: 78 | K133: 0 | L133: 0 | M133: 0 | N133: 0 | O133: 0 | P133: 78
A134: 25422 | B134: Baghdad | C134: Al-Kadhmiyah | D134: Al-Tarmiya | E134: Hai Al Turba | F134: حي التربة | G134: 33.66355586 | H134: 44.36792717 | I134: 42 | J134: 30 | K134: 0 | L134: 0 | M134: 0 | N134: 0 | O134: 0 | P134: 72
A135: 25421 | B135: Baghdad | C135: Al-Kadhmiyah | D135: Al-Tarmiya | E135: Hai Al Wehda | F135: حي الوحدة | G135: 33.67135567 | H135: 44.38319397 | I135: 36 | J135: 0 | K135: 0 | L135: 0 | M135: 0 | N135: 0 | O135: 0 | P135: 36
A136: 25426 | B136: Baghdad | C136: Al-Kadhmiyah | D136: Al-Tarmiya | E136: Nadeem-2 Village | F136: قرية نديم-2 | G136: 33.59057448 | H136: 44.2388131 | I136: 30 | J136: 0 | K136: 0 | L136: 0 | M136: 0 | N136: 0 | O136: 0 | P136: 30
A137: 23966 | B137: Diyala | C137: Baquba | D137: Beni Saad | E137: Al Hadid | F137: الحديد | G137: 33.76864999 | H137: 44.5628627 | I137: 0 | J137: 0 | K137: 60 | L137: 0 | M137: 0 | N137: 0 | O137: 0 | P137: 60
A138: 25804 | B138: Diyala | C138: Al-Muqdadiya | D138: Markaz Al-Muqdadiya | E138: Al Mataar Qtr | F138: حي المطار | G138: 33.98943701 | H138: 44.94954431 | I138: 18 | J138: 0 | K138: 0 | L138: 0 | M138: 0 | N138: 0 | O138: 0 | P138: 18
A139: 24915 | B139: Diyala | C139: Baquba | D139: Beni Saad | E139: Al Gatoon-Al rahma | F139: الكاطون-الرحمة | G139: 33.75780234 | H139: 44.59200923 | I139: 156 | J139: 0 | K139: 0 | L139: 0 | M139: 0 | N139: 0 | O139: 0 | P139: 156
A140: 24805 | B140: Diyala | C140: Baquba | D140: Beni Saad | E140: Al Gatoon-Al Yarmook Qtr | F140: الكاطون-حي اليرموك | G140: 33.72419303 | H140: 44.6079515 | I140: 336 | J140: 0 | K140: 0 | L140: 0 | M140: 0 | N140: 0 | O140: 0 | P140: 336
A141: 11189 | B141: Diyala | C141: Baquba | D141: Beni Saad | E141: Al Mafraq | F141: المفرق | G141: 33.74319557 | H141: 44.6104473 | I141: 180 | J141: 0 | K141: 144 | L141: 0 | M141: 0 | N141: 0 | O141: 0 | P141: 324
A142: 11411 | B142: Diyala | C142: Baquba | D142: Beni Saad | E142: Al Sabtiyah village | F142: قرية السبتية | G142: 33.78342225 | H142: 44.62301762 | I142: 18 | J142: 0 | K142: 0 | L142: 0 | M142: 0 | N142: 0 | O142: 0 | P142: 18
A143: 21273 | B143: Diyala | C143: Baquba | D143: Beni Saad | E143: Al-Qatoon-Al Raazi Qtr | F143: الكاطون-حي الرازي | G143: 33.73363233 | H143: 44.59700895 | I143: 72 | J143: 0 | K143: 0 | L143: 0 | M143: 0 | N143: 0 | O143: 0 | P143: 72
A144: 23694 | B144: Diyala | C144: Baquba | D144: Beni Saad | E144: Al Intesar-1 Qtr | F144: حي الانتصار 1 | G144: 33.58422006 | H144: 44.55428868 | I144: 30 | J144: 0 | K144: 0 | L144: 0 | M144: 0 | N144: 0 | O144: 0 | P144: 30
A145: 21413 | B145: Diyala | C145: Baquba | D145: Beni Saad | E145: Al-Mualimeen-Shahid wadah Qtr | F145: حي المعلمين-الشهيد وضاح | G145: 33.72840161 | H145: 44.61132193 | I145: 78 | J145: 0 | K145: 48 | L145: 0 | M145: 0 | N145: 0 | O145: 0 | P145: 126
A146: 25052 | B146: Diyala | C146: Baquba | D146: Kanan | E146: Al Badaa Village | F146: قرية البدعة | G146: 33.66703991 | H146: 44.77086915 | I146: 12 | J146: 0 | K146: 0 | L146: 0 | M146: 0 | N146: 0 | O146: 0 | P146: 12
A147: 11208 | B147: Diyala | C147: Baquba | D147: Buhriz | E147: Muskar Saad Qtr | F147: حي معسكر سعد | G147: 33.75233961 | H147: 44.66649735 | I147: 180 | J147: 0 | K147: 30 | L147: 0 | M147: 0 | N147: 0 | O147: 0 | P147: 210
A148: 10676 | B148: Diyala | C148: Khanaqin | D148: Markaz Khanaqin | E148: Arkawazi Qtr | F148: حي اركوازي | G148: 34.33118201 | H148: 45.40113561 | I148: 78 | J148: 0 | K148: 0 | L148: 0 | M148: 0 | N148: 0 | O148: 0 | P148: 78
A149: 25257 | B149: Diyala | C149: Khanaqin | D149: Markaz Khanaqin | E149: Bakhtiari Qtr | F149: حي بختياري | G149: 34.31795129 | H149: 45.36263465 | I149: 300 | J149: 0 | K149: 0 | L149: 0 | M149: 0 | N149: 0 | O149: 0 | P149: 300
A150: 24312 | B150: Diyala | C150: Khanaqin | D150: Markaz Khanaqin | E150: Imam Abass Qtr | F150: حي إمام عباس | G150: 34.34230051 | H150: 45.36063392 | I150: 114 | J150: 0 | K150: 0 | L150: 0 | M150: 0 | N150: 0 | O150: 0 | P150: 114
A151: 25429 | B151: Diyala | C151: Kifri | D151: Jabarra | E151: Markaz Jabara | F151: جبارة | G151: 34.59461544 | H151: 44.92762571 | I151: 54 | J151: 0 | K151: 0 | L151: 0 | M151: 0 | N151: 0 | O151: 0 | P151: 54
A152: 10528 | B152: Diyala | C152: Khanaqin | D152: Markaz Khanaqin | E152: Mekhas Village | F152: قرية ميخاس(ملا رحمن) | G152: 34.39450948 | H152: 45.3563535 | I152: 18 | J152: 0 | K152: 0 | L152: 0 | M152: 0 | N152: 0 | O152: 0 | P152: 18
A153: 24392 | B153: Diyala | C153: Khanaqin | D153: Markaz Khanaqin | E153: Shakir village | F153: قرية شاكر | G153: 34.35472024 | H153: 45.34559185 | I153: 36 | J153: 0 | K153: 0 | L153: 0 | M153: 0 | N153: 0 | O153: 0 | P153: 36
A154: 25342 | B154: Diyala | C154: Khanaqin | D154: Markaz Khanaqin | E154: Sirwan Qtr | F154: حي سيروان | G154: 34.35087595 | H154: 45.41715922 | I154: 30 | J154: 0 | K154: 0 | L154: 0 | M154: 0 | N154: 0 | O154: 0 | P154: 30
A155: 11047 | B155: Diyala | C155: Khanaqin | D155: Markaz Khanaqin | E155: Tula Frosh Qtr | F155: حي تولا فروش | G155: 34.35788763 | H155: 45.37631834 | I155: 120 | J155: 0 | K155: 0 | L155: 0 | M155: 0 | N155: 0 | O155: 0 | P155: 120
A156: 24393 | B156: Diyala | C156: Khanaqin | D156: Markaz Khanaqin | E156: Zurab village | F156: قرية زوراب | G156: 34.35205123 | H156: 45.34729711 | I156: 36 | J156: 0 | K156: 0 | L156: 0 | M156: 0 | N156: 0 | O156: 0 | P156: 36
A157: 10592 | B157: Diyala | C157: Kifri | D157: Qara Tabe | E157: Qaratappa | F157: قره تبه | G157: 34.43519072 | H157: 44.93243147 | I157: 90 | J157: 0 | K157: 0 | L157: 0 | M157: 0 | N157: 0 | O157: 0 | P157: 90
A158: 28428 | B158: Diyala | C158: Kifri | D158: Markaz Kifri | E158: rezgari | F158: رزكاري | G158: 34.6933138 | H158: 44.9612653 | I158: 0 | J158: 0 | K158: 24 | L158: 0 | M158: 0 | N158: 0 | O158: 0 | P158: 24
A159: 7860 | B159: Duhok | C159: Al-Amadiya | D159: Sarsank | E159: Inishke | F159: اينشكي | G159: 37.105418 | H159: 43.360688 | I159: 0 | J159: 0 | K159: 36 | L159: 0 | M159: 0 | N159: 0 | O159: 0 | P159: 36
A160: 7835 | B160: Duhok | C160: Al-Amadiya | D160: Sarsank | E160: Sarsink | F160: سرسنك | G160: 37.0390861 | H160: 43.3435935 | I160: 0 | J160: 0 | K160: 12 | L160: 0 | M160: 0 | N160: 0 | O160: 0 | P160: 12
A161: 7867 | B161: Duhok | C161: Al-Amadiya | D161: Sarsank | E161: Sikreen | F161: سكرين | G161: 37.0389905 | H161: 43.2794053 | I161: 0 | J161: 0 | K161: 6 | L161: 0 | M161: 0 | N161: 0 | O161: 0 | P161: 6
A162: 7788 | B162: Duhok | C162: Al-Amadiya | D162: Sarsank | E162: Hamza | F162: همزا | G162: 37.11834568 | H162: 43.16602926 | I162: 0 | J162: 0 | K162: 6 | L162: 0 | M162: 0 | N162: 0 | O162: 0 | P162: 6
A163: 8419 | B163: Duhok | C163: Al-Amadiya | D163: Sarsank | E163: Shekh Mama | F163: شيخ مما | G163: 37.0805725 | H163: 43.26021066 | I163: 0 | J163: 0 | K163: 12 | L163: 0 | M163: 0 | N163: 0 | O163: 0 | P163: 12
A164: 7896 | B164: Duhok | C164: Al-Amadiya | D164: Sarsank | E164: Benata | F164: بيناتا | G164: 37.0860405 | H164: 43.3760173 | I164: 0 | J164: 0 | K164: 12 | L164: 0 | M164: 0 | N164: 0 | O164: 0 | P164: 12
A165: 24801 | B165: Duhok | C165: Duhok | D165: Zawita | E165: Bagera | F165: باكيرا | G165: 36.9657757 | H165: 43.1702511 | I165: 0 | J165: 0 | K165: 0 | L165: 36 | M165: 0 | N165: 0 | O165: 0 | P165: 36
A166: 8538 | B166: Duhok | C166: Duhok | D166: Zawita | E166: Banye | F166: باني | G166: 36.9105242 | H166: 43.2363018 | I166: 0 | J166: 0 | K166: 492 | L166: 0 | M166: 0 | N166: 0 | O166: 0 | P166: 492
A167: 26047 | B167: Duhok | C167: Duhok | D167: Markaz Duhok | E167: Botan | F167: بوتان | G167: 36.8638715 | H167: 42.9722146 | I167: 0 | J167: 0 | K167: 18 | L167: 0 | M167: 0 | N167: 0 | O167: 0 | P167: 18
A168: 7949 | B168: Duhok | C168: Duhok | D168: Zawita | E168: Eminke | F168: امينكي | G168: 36.8606393 | H168: 43.0952888 | I168: 0 | J168: 0 | K168: 36 | L168: 0 | M168: 0 | N168: 0 | O168: 0 | P168: 36
A169: 24628 | B169: Duhok | C169: Duhok | D169: Zawita | E169: Etit | F169: ايتيت | G169: 36.8446575 | H169: 43.0842642 | I169: 0 | J169: 0 | K169: 12 | L169: 0 | M169: 0 | N169: 0 | O169: 0 | P169: 12
A170: 8871 | B170: Duhok | C170: Duhok | D170: Zawita | E170: Kora | F170: كورا | G170: 36.9342014 | H170: 43.1478887 | I170: 0 | J170: 0 | K170: 12 | L170: 0 | M170: 0 | N170: 0 | O170: 0 | P170: 12
A171: 7984 | B171: Duhok | C171: Sumail | D171: Markaz Sumail | E171: Kevila | F171: كيفيلا | G171: 36.8894236 | H171: 42.9151342 | I171: 0 | J171: 0 | K171: 12 | L171: 0 | M171: 0 | N171: 0 | O171: 0 | P171: 12
A172: 24802 | B172: Duhok | C172: Duhok | D172: Markaz Duhok | E172: Mazi | F172: مازي | G172: 36.85652 | H172: 42.976289 | I172: 0 | J172: 0 | K172: 6 | L172: 0 | M172: 0 | N172: 0 | O172: 0 | P172: 6
A173: 7946 | B173: Duhok | C173: Duhok | D173: Zawita | E173: Nazarke | F173: نزاركي | G173: 36.842476 | H173: 43.0587682 | I173: 0 | J173: 0 | K173: 24 | L173: 0 | M173: 0 | N173: 0 | O173: 0 | P173: 24
A174: 8468 | B174: Duhok | C174: Duhok | D174: Zawita | E174: Rashanke | F174: رشانكي | G174: 36.9300248 | H174: 43.1983966 | I174: 0 | J174: 0 | K174: 24 | L174: 0 | M174: 0 | N174: 0 | O174: 0 | P174: 24
A175: 25898 | B175: Duhok | C175: Duhok | D175: Zawita | E175: Avrike | F175: افريكي | G175: 36.831657 | H175: 43.1188347 | I175: 0 | J175: 12 | K175: 48 | L175: 0 | M175: 0 | N175: 0 | O175: 0 | P175: 60
A176: 24186 | B176: Duhok | C176: Duhok | D176: Markaz Duhok | E176: Zirka | F176: زركا | G176: 36.8751441 | H176: 42.9303401 | I176: 0 | J176: 0 | K176: 156 | L176: 0 | M176: 0 | N176: 0 | O176: 0 | P176: 156
A177: 8238 | B177: Duhok | C177: Duhok | D177: Al-Duski | E177: Kovle | F177: كوفلي | G177: 37.0462129 | H177: 43.1386217 | I177: 0 | J177: 0 | K177: 18 | L177: 0 | M177: 0 | N177: 0 | O177: 0 | P177: 18
A178: 8044 | B178: Duhok | C178: Sumail | D178: Bateel | E178: Bajit Kandala | F178: باجت كندال | G178: 37.047199 | H178: 42.4509321 | I178: 0 | J178: 0 | K178: 156 | L178: 0 | M178: 0 | N178: 0 | O178: 0 | P178: 156
A179: 8019 | B179: Duhok | C179: Sumail | D179: Sindi | E179: Bakhitme | F179: باختمي | G179: 36.8066357 | H179: 42.860121 | I179: 0 | J179: 0 | K179: 36 | L179: 0 | M179: 0 | N179: 0 | O179: 0 | P179: 36
